{"text_format":"1","workbook":"xlsx","n_sheets":8,"sheets":["Input","Forside","Malkekvæg","Grovfoder","Sohold30kg","Slagtesvin","Data","Beregninger"],"not_rendered":{"charts":7,"images":5,"macros":1,"external_links":0,"defined_names":4,"comments":0,"pivot_tables":0},"unopened":[],"bounds":{"document_bytes":16777216,"sheet_cells":100000,"rows_first":2000,"rows_last":500,"rows_between":2000,"halvings":0,"cell_chars":16384,"cell_head_chars":4096},"cells_cut":0,"cells_raw":0,"read":"part_too_large","date_system":"1900"}

{"sheet":"Input","index":0,"n_rows":0,"n_cols":0,"rows_kept":0,"cut":false,"hidden":false,"merged":[]}

{"sheet":"Forside","index":1,"n_rows":115,"n_cols":7,"rows_kept":115,"cut":false,"hidden":false,"merged":[]}
[]
[null,"Intern Benchmarking",null,null,null,null,"Forklaring til regnearket Intern Benchmarking"]
[]
[null,null,null,null,null,null,"Intern Benchmarking er et værktøj, hvor man kan se udvalgte driftsgrensresultater sat op imod hinanden, enten forskellige steder på en ejendom i en bestemt periode, eller på samme sted i forskellige perioder. "]
[]
[null,null,null,null,null,null,"Der er mulighed for at se resultater indenfor Malkekvæg inkl. Opdræt, Grovfoder, slagtesvin og Sohold 30 kg. (Valgmulighederne udvides i senere versioner)"]
[]
[null,"Vælg hvilken driftsgren der skal ses på:",null,null,null,null,"Kom i gang:"]
[]
[null,"Malkekvæg inkl. opdræt",null,"Slagtesvin",null,null,"Data for den pågældende ejendom indsættes i fanen \"Input\""]
[null,null,null,null,null,null,"På fanen \"Forside\" trykkes på knappen \"Klargør data\""]
[null,"Grovfoder",null,"Sohold 30 kg",null,null,"vælg herefter hvilken driftsgren der ønskes at analysere på."]
[]
[]
[]
[]
[]
[]
[]
[]
[]
[]
[]
[]
[]
[]
[]
[]
[]
[null,null,null,null,null,null,"Herefter skal der vælges om man ønsker at se samme periode med forskellige steder eller samme sted med forskellige perioder. Der kan vælges op til 10 forskellige steder/perioder."]
[null,null,null,null,null,null,"Perioder skrives som ååååmmdd og datoerne er inkl ved både til og fra."]
[null,null,null,null,null,null,"Stederne skrives enten i det pågældende felt eller vælges ud fra den tilhørende Drop-down boks"]
[null,null,null,null,null,null,"Ved hver driftsgren vil der være nogle ekstra oplysninger som skal indtastes for hvert sted/periode. Det kan f.eks. være antal årskøer, Ha grovfoder, antal årssøer, eller gns kg. pr. slagtesvin"]
[]
[]
[]
[]
[]
[]
[]
[]
[]
[]
[]
[]
[]
[]
[]
[]
[]
[]
[]
[]
[null,null,null,null,null,null,"Når de pågældende steder/perioder er valgt trykkes på knappen \"Vis resultat\""]
[null,null,null,null,null,null,"Hvis man vil tilbage til indtastning igen trykkes på \"Indsæt nye steder/perioder\""]
[null,null,null,null,null,null,"Hvis man vil helt tilbage på forsiden trykkes på \"Til forsiden\""]
[]
[]
[]
[]
[]
[]
[]
[]
[]
[]
[null,null,null,null,null,null,"Når der er trykket på vis resultat kommer de pågældende resultater frem. Hvis der er flere muligheder for divisor (pr enhed) vises begge muligheder. F.eks. Ved mælk vises både resultater pr. årsko, samt pr. kg. ekm"]
[null,null,null,null,null,null,"Visningen er dynamisk og tilpasser sig antallet af steder/perioder"]
[]
[]
[]
[]
[]
[]
[]
[]
[]
[]
[]
[]
[]
[]
[]
[]
[]
[]
[]
[]
[]
[]
[]
[]
[]
[]
[]
[]
[]
[]
[]
[]
[]
[]
[]
[]
[]
[]
[]
[]
[]
[]
[]
[]
[null,null,null,null,null,null,"Grafer:"]
[null,null,null,null,null,null,"Under tabellerne findes der grafer for de forskellige steder/perioder"]
[null,null,null,null,null,null,"Hvilken graf der skal vises vælges ved \"Vælg diagram\", hvor der kan vælges via drop-down. Omkostninger vil blive vist med positiv fortegn og ikke negative som i tabellerne"]

{"sheet":"Malkekvæg","index":2,"n_rows":121,"n_cols":34,"rows_kept":121,"cut":false,"hidden":false,"merged":[]}
[]
[1,1,1,1,{"$f":"IF(COUNT(E8:E22)>0,1,0)","v":1},{"$f":"IF(COUNT(F8:F22)>0,1,0)","v":0},0,1,0,0,1,0,0,0,0,0,0,0,0,0,0,0,0,0,0,0,0,0,0,0,0,0,1,1]
[]
[]
[]
[null,null,"Vælg samme periode med forskellige steder"]
[]
[null,null,"Periode","Fra:"]
[null,null,null,"Til:"]
[]
[null,null,"Vælg op til 10 steder:"]
[null,null,"Ekstra informationer:"]
[null,null,"Antal årskøer pr sted:"]
[]
[null,null,"Vælg samme sted forskellige perioder"]
[]
[null,null,"Sted",null,"Sted 1"]
[]
[null,null,"Vælg op til 10 perioder:","Fra:",20190101,null,null,20190201,null,null,20190301]
[null,null,null,"Til:",20190131,null,null,20190228,null,null,20190331]
[null,null,"Ekstra informationer:"]
[null,null,"Antal årskøer i perioden:",null,200,null,null,400,null,null,300]
[]
[]
[]
[]
[]
[]
[]
[]
[]
[]
[]
[null,null,"Intern Benchmarking"]
[]
[null,null,"Sted",null,{"$f":"IF(E11=\"\",IF($E$17=\"\",\"\",$E$17),E11)","v":"Sted 1"},null,null,{"$f":"IF(H11=\"\",IF($E$17=\"\",\"\",$E$17),H11)","v":"Sted 1"},null,null,"Sted 1",null,null,"Sted 1",null,null,"Sted 1",null,null,"Sted 1",null,null,"Sted 1",null,null,"Sted 1",null,null,"Sted 1",null,null,"Sted 1"]
[null,null,"Periode",null,{"$f":"IF(E19=\"\",IF($E$8=\"\",\"\",$E$8),E19)","v":20190101},null,null,{"$f":"IF(H19=\"\",IF($E$8=\"\",\"\",$E$8),H19)","v":20190201},null,null,20190301,null,null,"",null,null,"",null,null,"",null,null,"",null,null,"",null,null,"",null,null,""]
[null,null,"               ",null,{"$f":"IF(E20=\"\",IF($E$9=\"\",\"\",$E$9),E20)","v":20190131},null,null,{"$f":"IF(H20=\"\",IF($E$9=\"\",\"\",$E$9),H20)","v":20190228},null,null,20190331,null,null,"",null,null,"",null,null,"",null,null,"",null,null,"",null,null,"",null,null,""]
[]
[null,null,"Produktion"]
[null,null,"Antal årskøer ",null,{"$f":"IF(E13=\"\",IF(E22=\"\",\"\",E22),E13)","v":200},"","",400,"","",300,"","","","","","","","","","","","","","","","","","","","",""]
[]
[null,null,"Resultat pr. årsko"]
[null,null,"Mælk leveret kr.",null,{"$f":"Beregninger!E89","v":6501.7586499999998},null,null,{"$f":"Beregninger!H89","v":3049.2778250000001},null,null,{"$f":"Beregninger!K89","v":8089.6919333333308},null,null,{"$f":"Beregninger!N89","v":0},null,null,{"$f":"Beregninger!Q89","v":0},null,null,{"$f":"Beregninger!T89","v":0},null,null,{"$f":"Beregninger!W89","v":0},null,null,{"$f":"Beregninger!Z89","v":0},null,null,{"$f":"Beregninger!AC89","v":0},null,null,{"$f":"Beregninger!AF89","v":0}]
[null,null,"Mælk leveret kg. EKM",null,{"$f":"Beregninger!F89","v":1827.61},null,null,{"$f":"Beregninger!I89","v":853.06},null,null,{"$f":"Beregninger!L89","v":1226.7133333333334},null,null,{"$f":"Beregninger!O89","v":0},null,null,{"$f":"Beregninger!R89","v":0},null,null,{"$f":"Beregninger!U89","v":0},null,null,{"$f":"Beregninger!X89","v":0},null,null,{"$f":"Beregninger!AA89","v":0},null,null,{"$f":"Beregninger!AD89","v":0},null,null,{"$f":"Beregninger!AG89","v":0}]
[null,null,"Foder i alt kr.",null,{"$f":"Beregninger!E90","v":-2049.4600500000001},null,null,{"$f":"Beregninger!H90","v":-774.65917500000012},null,null,{"$f":"Beregninger!K90","v":-960.04256666666674},null,null,{"$f":"Beregninger!N90","v":0},null,null,{"$f":"Beregninger!Q90","v":0},null,null,{"$f":"Beregninger!T90","v":0},null,null,{"$f":"Beregninger!W90","v":0},null,null,{"$f":"Beregninger!Z90","v":0},null,null,{"$f":"Beregninger!AC90","v":0},null,null,{"$f":"Beregninger!AF90","v":0}]
[null,null,"Heraf eget grovfoder kr.",null,{"$f":"Beregninger!E91","v":0},null,null,{"$f":"Beregninger!H91","v":0},null,null,{"$f":"Beregninger!K91","v":0},null,null,{"$f":"Beregninger!N91","v":0},null,null,{"$f":"Beregninger!Q91","v":0},null,null,{"$f":"Beregninger!T91","v":0},null,null,{"$f":"Beregninger!W91","v":0},null,null,{"$f":"Beregninger!Z91","v":0},null,null,{"$f":"Beregninger!AC91","v":0},null,null,{"$f":"Beregninger!AF91","v":0}]
[null,null,"Heraf eget grovfoder kg.",null,{"$f":"Beregninger!F91","v":0},null,null,{"$f":"Beregninger!I91","v":0},null,null,{"$f":"Beregninger!L91","v":0},null,null,{"$f":"Beregninger!O91","v":0},null,null,{"$f":"Beregninger!R91","v":0},null,null,{"$f":"Beregninger!U91","v":0},null,null,{"$f":"Beregninger!X91","v":0},null,null,{"$f":"Beregninger!AA91","v":0},null,null,{"$f":"Beregninger!AD91","v":0},null,null,{"$f":"Beregninger!AG91","v":0}]
[null,null,"Heraf kraftfoder kr.",null,{"$f":"Beregninger!E92","v":-1958.5725500000001},null,null,{"$f":"Beregninger!H92","v":-707.54105000000015},null,null,{"$f":"Beregninger!K92","v":-938.02173333333337},null,null,{"$f":"Beregninger!N92","v":0},null,null,{"$f":"Beregninger!Q92","v":0},null,null,{"$f":"Beregninger!T92","v":0},null,null,{"$f":"Beregninger!W92","v":0},null,null,{"$f":"Beregninger!Z92","v":0},null,null,{"$f":"Beregninger!AC92","v":0},null,null,{"$f":"Beregninger!AF92","v":0}]
[null,null,"Heraf kraffoder kg.",null,{"$f":"Beregninger!F92","v":-840.95},null,null,{"$f":"Beregninger!I92","v":-303.2},null,null,{"$f":"Beregninger!L92","v":-401.43333333333334},null,null,{"$f":"Beregninger!O92","v":0},null,null,{"$f":"Beregninger!R92","v":0},null,null,{"$f":"Beregninger!U92","v":0},null,null,{"$f":"Beregninger!X92","v":0},null,null,{"$f":"Beregninger!AA92","v":0},null,null,{"$f":"Beregninger!AD92","v":0},null,null,{"$f":"Beregninger!AG92","v":0}]
[null,null,"  Heraf A-blanding kr.",null,{"$f":"Beregninger!E93","v":-1958.5725500000001},null,null,{"$f":"Beregninger!H93","v":-707.54105000000015},null,null,{"$f":"Beregninger!K93","v":-938.02173333333337},null,null,{"$f":"Beregninger!N93","v":0},null,null,{"$f":"Beregninger!Q93","v":0},null,null,{"$f":"Beregninger!T93","v":0},null,null,{"$f":"Beregninger!W93","v":0},null,null,{"$f":"Beregninger!Z93","v":0},null,null,{"$f":"Beregninger!AC93","v":0},null,null,{"$f":"Beregninger!AF93","v":0}]
[null,null,"  Heraf A-blanding kg.",null,{"$f":"Beregninger!F93","v":-840.95},null,null,{"$f":"Beregninger!I93","v":-303.2},null,null,{"$f":"Beregninger!L93","v":-401.43333333333334},null,null,{"$f":"Beregninger!O93","v":0},null,null,{"$f":"Beregninger!R93","v":0},null,null,{"$f":"Beregninger!U93","v":0},null,null,{"$f":"Beregninger!X93","v":0},null,null,{"$f":"Beregninger!AA93","v":0},null,null,{"$f":"Beregninger!AD93","v":0},null,null,{"$f":"Beregninger!AG93","v":0}]
[null,null,"  Heraf C-blanding kr.",null,{"$f":"Beregninger!E94","v":0},null,null,{"$f":"Beregninger!H94","v":0},null,null,{"$f":"Beregninger!K94","v":0},null,null,{"$f":"Beregninger!N94","v":0},null,null,{"$f":"Beregninger!Q94","v":0},null,null,{"$f":"Beregninger!T94","v":0},null,null,{"$f":"Beregninger!W94","v":0},null,null,{"$f":"Beregninger!Z94","v":0},null,null,{"$f":"Beregninger!AC94","v":0},null,null,{"$f":"Beregninger!AF94","v":0}]
[null,null,"  Heraf C-blanding kg.",null,{"$f":"Beregninger!F94","v":0},null,null,{"$f":"Beregninger!I94","v":0},null,null,{"$f":"Beregninger!L94","v":0},null,null,{"$f":"Beregninger!O94","v":0},null,null,{"$f":"Beregninger!R94","v":0},null,null,{"$f":"Beregninger!U94","v":0},null,null,{"$f":"Beregninger!X94","v":0},null,null,{"$f":"Beregninger!AA94","v":0},null,null,{"$f":"Beregninger!AD94","v":0},null,null,{"$f":"Beregninger!AG94","v":0}]
[null,null,"Dyrlæge og medicin kr.",null,{"$f":"Beregninger!E95","v":-154.43924999999999},null,null,{"$f":"Beregninger!H95","v":-75.399924999999982},null,null,{"$f":"Beregninger!K95","v":-106.00593333333332},null,null,{"$f":"Beregninger!N95","v":0},null,null,{"$f":"Beregninger!Q95","v":0},null,null,{"$f":"Beregninger!T95","v":0},null,null,{"$f":"Beregninger!W95","v":0},null,null,{"$f":"Beregninger!Z95","v":0},null,null,{"$f":"Beregninger!AC95","v":0},null,null,{"$f":"Beregninger!AF95","v":0}]
[null,null,"Vedligeholdelse bygninger kr.",null,{"$f":"Beregninger!E96","v":0},null,null,{"$f":"Beregninger!H96","v":0},null,null,{"$f":"Beregninger!K96","v":0},null,null,{"$f":"Beregninger!N96","v":0},null,null,{"$f":"Beregninger!Q96","v":0},null,null,{"$f":"Beregninger!T96","v":0},null,null,{"$f":"Beregninger!W96","v":0},null,null,{"$f":"Beregninger!Z96","v":0},null,null,{"$f":"Beregninger!AC96","v":0},null,null,{"$f":"Beregninger!AF96","v":0}]
[null,null,"Vedligeholdelse staldinventar kr.",null,{"$f":"Beregninger!E97","v":0},null,null,{"$f":"Beregninger!H97","v":0},null,null,{"$f":"Beregninger!K97","v":0},null,null,{"$f":"Beregninger!N97","v":0},null,null,{"$f":"Beregninger!Q97","v":0},null,null,{"$f":"Beregninger!T97","v":0},null,null,{"$f":"Beregninger!W97","v":0},null,null,{"$f":"Beregninger!Z97","v":0},null,null,{"$f":"Beregninger!AC97","v":0},null,null,{"$f":"Beregninger!AF97","v":0}]
[]
[null,null,"Resultat pr. kg EKM."]
[null,null,"Mælk leveret kr.",null,{"$f":"Beregninger!E100","v":3.5575197388939652},null,null,{"$f":"Beregninger!H100","v":3.5745174137809772},null,null,{"$f":"Beregninger!K100","v":6.5946066725722368},null,null,{"$f":"Beregninger!N100","v":0},null,null,{"$f":"Beregninger!Q100","v":0},null,null,{"$f":"Beregninger!T100","v":0},null,null,{"$f":"Beregninger!W100","v":0},null,null,{"$f":"Beregninger!Z100","v":0},null,null,{"$f":"Beregninger!AC100","v":0},null,null,{"$f":"Beregninger!AF100","v":0}]
[null,null,"Mælk leveret kg. EKM",null,{"$f":"Beregninger!F100","v":1},null,null,{"$f":"Beregninger!I100","v":1},null,null,{"$f":"Beregninger!L100","v":1},null,null,{"$f":"Beregninger!O100","v":0},null,null,{"$f":"Beregninger!R100","v":0},null,null,{"$f":"Beregninger!U100","v":0},null,null,{"$f":"Beregninger!X100","v":0},null,null,{"$f":"Beregninger!AA100","v":0},null,null,{"$f":"Beregninger!AD100","v":0},null,null,{"$f":"Beregninger!AG100","v":0}]
[null,null,"Foder i alt kr.",null,{"$f":"Beregninger!E101","v":-1.1213880696647534},null,null,{"$f":"Beregninger!H101","v":-0.90809459475300691},null,null,{"$f":"Beregninger!K101","v":-0.78261362339476226},null,null,{"$f":"Beregninger!N101","v":0},null,null,{"$f":"Beregninger!Q101","v":0},null,null,{"$f":"Beregninger!T101","v":0},null,null,{"$f":"Beregninger!W101","v":0},null,null,{"$f":"Beregninger!Z101","v":0},null,null,{"$f":"Beregninger!AC101","v":0},null,null,{"$f":"Beregninger!AF101","v":0}]
[null,null,"Heraf eget grovfoder kr.",null,{"$f":"Beregninger!E102","v":0},null,null,{"$f":"Beregninger!H102","v":0},null,null,{"$f":"Beregninger!K102","v":0},null,null,{"$f":"Beregninger!N102","v":0},null,null,{"$f":"Beregninger!Q102","v":0},null,null,{"$f":"Beregninger!T102","v":0},null,null,{"$f":"Beregninger!W102","v":0},null,null,{"$f":"Beregninger!Z102","v":0},null,null,{"$f":"Beregninger!AC102","v":0},null,null,{"$f":"Beregninger!AF102","v":0}]
[null,null,"Heraf eget grovfoder kg.",null,{"$f":"Beregninger!F102","v":0},null,null,{"$f":"Beregninger!I102","v":0},null,null,{"$f":"Beregninger!L102","v":0},null,null,{"$f":"Beregninger!O102","v":0},null,null,{"$f":"Beregninger!R102","v":0},null,null,{"$f":"Beregninger!U102","v":0},null,null,{"$f":"Beregninger!X102","v":0},null,null,{"$f":"Beregninger!AA102","v":0},null,null,{"$f":"Beregninger!AD102","v":0},null,null,{"$f":"Beregninger!AG102","v":0}]
[null,null,"Heraf kraftfoder kr.",null,{"$f":"Beregninger!E103","v":-1.0716578208698793},null,null,{"$f":"Beregninger!H103","v":-0.82941534006986628},null,null,{"$f":"Beregninger!K103","v":-0.7646625400120648},null,null,{"$f":"Beregninger!N103","v":0},null,null,{"$f":"Beregninger!Q103","v":0},null,null,{"$f":"Beregninger!T103","v":0},null,null,{"$f":"Beregninger!W103","v":0},null,null,{"$f":"Beregninger!Z103","v":0},null,null,{"$f":"Beregninger!AC103","v":0},null,null,{"$f":"Beregninger!AF103","v":0}]
[null,null,"Heraf kraffoder kg.",null,{"$f":"Beregninger!F103","v":-0.46013646237435779},null,null,{"$f":"Beregninger!I103","v":-0.35542634750193419},null,null,{"$f":"Beregninger!L103","v":-0.3272429853212106},null,null,{"$f":"Beregninger!O103","v":0},null,null,{"$f":"Beregninger!R103","v":0},null,null,{"$f":"Beregninger!U103","v":0},null,null,{"$f":"Beregninger!X103","v":0},null,null,{"$f":"Beregninger!AA103","v":0},null,null,{"$f":"Beregninger!AD103","v":0},null,null,{"$f":"Beregninger!AG103","v":0}]
[null,null,"  Heraf A-blanding kr.",null,{"$f":"Beregninger!E104","v":-1.0716578208698793},null,null,{"$f":"Beregninger!H104","v":-0.82941534006986628},null,null,{"$f":"Beregninger!K104","v":-0.7646625400120648},null,null,{"$f":"Beregninger!N104","v":0},null,null,{"$f":"Beregninger!Q104","v":0},null,null,{"$f":"Beregninger!T104","v":0},null,null,{"$f":"Beregninger!W104","v":0},null,null,{"$f":"Beregninger!Z104","v":0},null,null,{"$f":"Beregninger!AC104","v":0},null,null,{"$f":"Beregninger!AF104","v":0}]
[null,null,"  Heraf A-blanding kg.",null,{"$f":"Beregninger!F104","v":-0.46013646237435779},null,null,{"$f":"Beregninger!I104","v":-0.35542634750193419},null,null,{"$f":"Beregninger!L104","v":-0.3272429853212106},null,null,{"$f":"Beregninger!O104","v":0},null,null,{"$f":"Beregninger!R104","v":0},null,null,{"$f":"Beregninger!U104","v":0},null,null,{"$f":"Beregninger!X104","v":0},null,null,{"$f":"Beregninger!AA104","v":0},null,null,{"$f":"Beregninger!AD104","v":0},null,null,{"$f":"Beregninger!AG104","v":0}]
[null,null,"  Heraf C-blanding kr.",null,{"$f":"Beregninger!E105","v":0},null,null,{"$f":"Beregninger!H105","v":0},null,null,{"$f":"Beregninger!K105","v":0},null,null,{"$f":"Beregninger!N105","v":0},null,null,{"$f":"Beregninger!Q105","v":0},null,null,{"$f":"Beregninger!T105","v":0},null,null,{"$f":"Beregninger!W105","v":0},null,null,{"$f":"Beregninger!Z105","v":0},null,null,{"$f":"Beregninger!AC105","v":0},null,null,{"$f":"Beregninger!AF105","v":0}]
[null,null,"  Heraf C-blanding kg.",null,{"$f":"Beregninger!F105","v":0},null,null,{"$f":"Beregninger!I105","v":0},null,null,{"$f":"Beregninger!L105","v":0},null,null,{"$f":"Beregninger!O105","v":0},null,null,{"$f":"Beregninger!R105","v":0},null,null,{"$f":"Beregninger!U105","v":0},null,null,{"$f":"Beregninger!X105","v":0},null,null,{"$f":"Beregninger!AA105","v":0},null,null,{"$f":"Beregninger!AD105","v":0},null,null,{"$f":"Beregninger!AG105","v":0}]
[null,null,"Dyrlæge og medicin kr.",null,{"$f":"Beregninger!E106","v":-8.4503395144478299E-2},null,null,{"$f":"Beregninger!H106","v":-8.8387598762103461E-2},null,null,{"$f":"Beregninger!K106","v":-8.6414592923095307E-2},null,null,{"$f":"Beregninger!N106","v":0},null,null,{"$f":"Beregninger!Q106","v":0},null,null,{"$f":"Beregninger!T106","v":0},null,null,{"$f":"Beregninger!W106","v":0},null,null,{"$f":"Beregninger!Z106","v":0},null,null,{"$f":"Beregninger!AC106","v":0},null,null,{"$f":"Beregninger!AF106","v":0}]
[null,null,"Vedligeholdelse bygninger kr.",null,{"$f":"Beregninger!E107","v":0},null,null,{"$f":"Beregninger!H107","v":0},null,null,{"$f":"Beregninger!K107","v":0},null,null,{"$f":"Beregninger!N107","v":0},null,null,{"$f":"Beregninger!Q107","v":0},null,null,{"$f":"Beregninger!T107","v":0},null,null,{"$f":"Beregninger!W107","v":0},null,null,{"$f":"Beregninger!Z107","v":0},null,null,{"$f":"Beregninger!AC107","v":0},null,null,{"$f":"Beregninger!AF107","v":0}]
[null,null,"Vedligeholdelse staldinventar kr.",null,{"$f":"Beregninger!E108","v":0},null,null,{"$f":"Beregninger!H108","v":0},null,null,{"$f":"Beregninger!K108","v":0},null,null,{"$f":"Beregninger!N108","v":0},null,null,{"$f":"Beregninger!Q108","v":0},null,null,{"$f":"Beregninger!T108","v":0},null,null,{"$f":"Beregninger!W108","v":0},null,null,{"$f":"Beregninger!Z108","v":0},null,null,{"$f":"Beregninger!AC108","v":0},null,null,{"$f":"Beregninger!AF108","v":0}]
[]
[]
[null,null,"Vælg diagram",null,{"$f":"C78&\" pr. årsko\"","v":"Foder i alt kr. pr. årsko"}]
[]
[null,null,"Foder i alt kr."]
[]
[]
[]
[]
[]
[]
[]
[]
[]
[]
[]
[]
[]
[]
[]
[]
[null,null,null,null,{"$f":"C78&\" pr. kg. EKM\"","v":"Foder i alt kr. pr. kg. EKM"}]
[]
[]
[]
[]
[]
[]
[]
[]
[]
[]
[]
[]
[]
[]
[]
[]
[]
[]
[]
[]
[]
[null,null,null,null,{"$f":"E37&\" - \"&E38","v":"20190101 - 20190131"},{"$f":"F37&\" - \"&F38","v":" - "}," - ","20190201 - 20190228"," - "," - ","20190301 - 20190331"," - "," - "," - "," - "," - "," - "," - "," - "," - "," - "," - "," - "," - "," - "," - "," - "," - "," - "," - "," - "," - "]
[null,null,null,null,{"$f":"IF(E36=H36,E117,E36)","v":"20190101 - 20190131"},{"$f":"IF(F36=I36,F117,F36)","v":" - "},{"$f":"IF(G36=J36,G117,G36)","v":" - "},{"$f":"IF(H36=E36,H117,H36)","v":"20190201 - 20190228"}," - "," - ","20190301 - 20190331"," - "," - "," - "," - "," - "," - "," - "," - "," - "," - "," - "," - "," - "," - "," - "," - "," - "," - "," - "," - "," - "]
[null,null,null,null,3,{"$f":"E119+1","v":4},{"$f":"F119+1","v":5},6,7,8,9,10,11,12,13,14,15,16,17,18,19,20,21,22,23,24,25,26,27,28,29,30]
[null,null,null,null,{"$f":"ABS(IFERROR(VLOOKUP($C$78,$C$44:$AF$57,E119,FALSE),\"\"))","v":2049.4600500000001},0,0,774.65917500000012,0,0,960.04256666666674,0,0,0,0,0,0,0,0,0,0,0,0,0,0,0,0,0,0,0,0,0]
[null,null,null,null,{"$f":"ABS(IFERROR(VLOOKUP($C$78,$C$60:$AF$73,E119,FALSE),\"\"))","v":1.1213880696647534},0,0,0.90809459475300691,0,0,0.78261362339476226,0,0,0,0,0,0,0,0,0,0,0,0,0,0,0,0,0,0,0,0,0]

{"sheet":"Grovfoder","index":3,"n_rows":73,"n_cols":34,"rows_kept":73,"cut":false,"hidden":false,"merged":[]}
[]
[1,1,1,1,{"$f":"IF(COUNT(E8:E22)>0,1,0)","v":0},{"$f":"IF(COUNT(F8:F22)>0,1,0)","v":0},0,0,0,0,0,0,0,0,0,0,0,0,0,0,0,0,0,0,0,0,0,0,0,0,0,0,1,1]
[]
[]
[]
[null,null,"Vælg samme periode med forskellige steder"]
[]
[null,null,"Periode","Fra:"]
[null,null,null,"Til:"]
[]
[null,null,"Vælg op til 10 steder:"]
[null,null,"Ekstra informationer:"]
[null,null,"Ha. grovfoder sted"]
[]
[null,null,"Vælg samme sted forskellige perioder"]
[]
[null,null,"Sted"]
[]
[null,null,"Vælg op til 10 perioder:","Fra:"]
[null,null,null,"Til:"]
[null,null,"Ekstra informationer:"]
[null,null,"Ha. grovfoder i perioden"]
[]
[]
[]
[]
[]
[]
[]
[]
[]
[]
[]
[null,null,"Intern Benchmarking"]
[]
[null,null,"Sted",null,{"$f":"IF(E11=\"\",IF($E$17=\"\",\"\",$E$17),E11)","v":""},null,null,{"$f":"IF(H11=\"\",IF($E$17=\"\",\"\",$E$17),H11)","v":""},null,null,"",null,null,"",null,null,"",null,null,"",null,null,"",null,null,"",null,null,"",null,null,""]
[null,null,"Periode",null,{"$f":"IF(E19=\"\",IF($E$8=\"\",\"\",$E$8),E19)","v":""},null,null,{"$f":"IF(H19=\"\",IF($E$8=\"\",\"\",$E$8),H19)","v":""},null,null,"",null,null,"",null,null,"",null,null,"",null,null,"",null,null,"",null,null,"",null,null,""]
[null,null,"               ",null,{"$f":"IF(E20=\"\",IF($E$9=\"\",\"\",$E$9),E20)","v":""},null,null,{"$f":"IF(H20=\"\",IF($E$9=\"\",\"\",$E$9),H20)","v":""},null,null,"",null,null,"",null,null,"",null,null,"",null,null,"",null,null,"",null,null,"",null,null,""]
[]
[null,null,"Produktion"]
[null,null,"Ha grovfoder",null,{"$f":"IF(E13=\"\",IF(E22=\"\",\"\",E22),E13)","v":""},{"$f":"IF(F13=\"\",IF(F22=\"\",\"\",F22),F13)","v":""},"","","","","","","","","","","","","","","","","","","","","","","","","",""]
[]
[null,null,"Resultat pr. ha"]
[null,null,"Maskinstation i alt, kr",null,{"$f":"Beregninger!E122","v":0},null,null,{"$f":"Beregninger!H122","v":0},null,null,{"$f":"Beregninger!K122","v":0},null,null,{"$f":"Beregninger!N122","v":0},null,null,{"$f":"Beregninger!Q122","v":0},null,null,{"$f":"Beregninger!T122","v":0},null,null,{"$f":"Beregninger!W122","v":0},null,null,{"$f":"Beregninger!Z122","v":0},null,null,{"$f":"Beregninger!AC122","v":0},null,null,{"$f":"Beregninger!AF122","v":0}]
[null,null," Heraf høst grovfoder, kr",null,{"$f":"Beregninger!E123","v":0},null,null,{"$f":"Beregninger!H123","v":0},null,null,{"$f":"Beregninger!K123","v":0},null,null,{"$f":"Beregninger!N123","v":0},null,null,{"$f":"Beregninger!Q123","v":0},null,null,{"$f":"Beregninger!T123","v":0},null,null,{"$f":"Beregninger!W123","v":0},null,null,{"$f":"Beregninger!Z123","v":0},null,null,{"$f":"Beregninger!AC123","v":0},null,null,{"$f":"Beregninger!AF123","v":0}]
[null,null,"Vedligehold maskiner",null,{"$f":"Beregninger!E124","v":0},null,null,{"$f":"Beregninger!H124","v":0},null,null,{"$f":"Beregninger!K124","v":0},null,null,{"$f":"Beregninger!N124","v":0},null,null,{"$f":"Beregninger!Q124","v":0},null,null,{"$f":"Beregninger!T124","v":0},null,null,{"$f":"Beregninger!W124","v":0},null,null,{"$f":"Beregninger!Z124","v":0},null,null,{"$f":"Beregninger!AC124","v":0},null,null,{"$f":"Beregninger!AF124","v":0}]
[]
[]
[null,null,"Vælg diagram",null,{"$f":"C51&\" pr. ha\"","v":"Maskinstation i alt pr. ha"}]
[]
[null,null,"Maskinstation i alt"]
[]
[]
[]
[]
[]
[]
[]
[]
[]
[]
[]
[]
[]
[]
[]
[]
[]
[]
[null,null,null,null,{"$f":"E37&\" - \"&E38","v":" - "},null,null,{"$f":"H37&\" - \"&H38","v":" - "},null,null,{"$f":"K37&\" - \"&K38","v":" - "}," - "," - "," - "," - "," - "," - "," - "," - "," - "," - "," - "," - "," - "," - "," - "," - "," - "," - "," - "," - "," - "]
[null,null,null,null,{"$f":"IF(E36=H36,E70,E36)","v":" - "},null,null,{"$f":"IF(H36=E36,H70,H36)","v":" - "},null,null,{"$f":"IF(K36=H36,K70,K36)","v":" - "}," - "," - "," - "," - "," - "," - "," - "," - "," - "," - "," - "," - "," - "," - "," - "," - "," - "," - "," - "," - "," - "]
[null,null,null,null,3,3,3,3,3,3,3,3,3,3,3,3,3,3,3,3,3,3,3,3,3,3,3,3,3,3,3,3]
[null,null,null,null,{"$f":"ABS(IFERROR(VLOOKUP($C$51,$C$44:$AF$47,E72,FALSE),\"\"))","v":{"$error":"#VALUE!"}},null,null,{"$f":"ABS(IFERROR(VLOOKUP($C$51,$C$44:$AF$47,H72,FALSE),\"\"))","v":{"$error":"#VALUE!"}},null,null,{"$f":"ABS(IFERROR(VLOOKUP($C$51,$C$44:$AF$47,K72,FALSE),\"\"))","v":{"$error":"#VALUE!"}},{"$error":"#VALUE!"},{"$error":"#VALUE!"},{"$error":"#VALUE!"},{"$error":"#VALUE!"},{"$error":"#VALUE!"},{"$error":"#VALUE!"},{"$error":"#VALUE!"},{"$error":"#VALUE!"},{"$error":"#VALUE!"},{"$error":"#VALUE!"},{"$error":"#VALUE!"},{"$error":"#VALUE!"},{"$error":"#VALUE!"},{"$error":"#VALUE!"},{"$error":"#VALUE!"},{"$error":"#VALUE!"},{"$error":"#VALUE!"},{"$error":"#VALUE!"},{"$error":"#VALUE!"},{"$error":"#VALUE!"},{"$error":"#VALUE!"}]

{"sheet":"Sohold30kg","index":4,"n_rows":126,"n_cols":34,"rows_kept":126,"cut":false,"hidden":false,"merged":[]}
[]
[1,1,1,1,{"$f":"IF(COUNT(E8:E22)>0,1,0)","v":0},{"$f":"IF(COUNT(F8:F22)>0,1,0)","v":0},0,0,0,0,0,0,0,0,0,0,0,0,0,0,0,0,0,0,0,0,0,0,0,0,0,0,1,1]
[]
[]
[]
[null,null,"Vælg samme periode med forskellige steder"]
[]
[null,null,"Periode","Fra:"]
[null,null,null,"Til:"]
[]
[null,null,"Vælg op til 10 steder:"]
[null,null,"Ekstra informationer:"]
[null,null,"Antal årssøer pr. sted"]
[]
[null,null,"Vælg samme sted forskellige perioder"]
[]
[null,null,"Sted"]
[]
[null,null,"Vælg op til 10 perioder:","Fra:"]
[null,null,null,"Til:"]
[null,null,"Ekstra informationer:"]
[null,null,"Antal årssøer i perioden"]
[]
[]
[]
[]
[]
[]
[]
[]
[]
[]
[]
[null,null,"Intern Benchmarking"]
[]
[null,null,"Sted",null,{"$f":"IF(E11=\"\",IF($E$17=\"\",\"\",$E$17),E11)","v":""},null,null,{"$f":"IF(H11=\"\",IF($E$17=\"\",\"\",$E$17),H11)","v":""},null,null,"",null,null,"",null,null,"",null,null,"",null,null,"",null,null,"",null,null,"",null,null,""]
[null,null,"Periode",null,{"$f":"IF(E19=\"\",IF($E$8=\"\",\"\",$E$8),E19)","v":""},null,null,{"$f":"IF(H19=\"\",IF($E$8=\"\",\"\",$E$8),H19)","v":""},null,null,"",null,null,"",null,null,"",null,null,"",null,null,"",null,null,"",null,null,"",null,null,""]
[null,null,"               ",null,{"$f":"IF(E20=\"\",IF($E$9=\"\",\"\",$E$9),E20)","v":""},null,null,{"$f":"IF(H20=\"\",IF($E$9=\"\",\"\",$E$9),H20)","v":""},null,null,"",null,null,"",null,null,"",null,null,"",null,null,"",null,null,"",null,null,"",null,null,""]
[]
[null,null,"Produktion"]
[null,null,"Antal årssøer",null,{"$f":"IF(E13=\"\",IF(E22=\"\",\"\",E22),E13)","v":""},"","","","","","","","","","","","","","","","","","","","","","","","","","",""]
[null,null,"Solgte smågrise",null,{"$f":"IF(Beregninger!F133=\"\",\"\",Beregninger!F133)","v":0},null,null,{"$f":"IF(Beregninger!I133=\"\",\"\",Beregninger!I133)","v":0},null,null,{"$f":"IF(Beregninger!L133=\"\",\"\",Beregninger!L133)","v":0},null,null,{"$f":"IF(Beregninger!O133=\"\",\"\",Beregninger!O133)","v":0},null,null,{"$f":"IF(Beregninger!R133=\"\",\"\",Beregninger!R133)","v":0},null,null,{"$f":"IF(Beregninger!U133=\"\",\"\",Beregninger!U133)","v":0},null,null,{"$f":"IF(Beregninger!X133=\"\",\"\",Beregninger!X133)","v":0},null,null,{"$f":"IF(Beregninger!AA133=\"\",\"\",Beregninger!AA133)","v":0},null,null,{"$f":"IF(Beregninger!AD133=\"\",\"\",Beregninger!AD133)","v":0},null,null,{"$f":"IF(Beregninger!AG133=\"\",\"\",Beregninger!AG133)","v":0}]
[]
[null,null,"Resultat pr. årsso"]
[null,null,"Solgte smågrise kr.",null,{"$f":"Beregninger!E147","v":0},null,null,{"$f":"Beregninger!H147","v":0},null,null,{"$f":"Beregninger!K147","v":0},null,null,{"$f":"Beregninger!N147","v":0},null,null,{"$f":"Beregninger!Q147","v":0},null,null,{"$f":"Beregninger!T147","v":0},null,null,{"$f":"Beregninger!W147","v":0},null,null,{"$f":"Beregninger!Z147","v":0},null,null,{"$f":"Beregninger!AC147","v":0},null,null,{"$f":"Beregninger!AF147","v":0}]
[null,null,"solge smågrise stk.",null,{"$f":"Beregninger!F147","v":0},null,null,{"$f":"Beregninger!I147","v":0},null,null,{"$f":"Beregninger!L147","v":0},null,null,{"$f":"Beregninger!O147","v":0},null,null,{"$f":"Beregninger!R147","v":0},null,null,{"$f":"Beregninger!U147","v":0},null,null,{"$f":"Beregninger!X147","v":0},null,null,{"$f":"Beregninger!AA147","v":0},null,null,{"$f":"Beregninger!AD147","v":0},null,null,{"$f":"Beregninger!AG147","v":0}]
[null,null,"Foder i alt kr.",null,{"$f":"Beregninger!E148","v":0},null,null,{"$f":"Beregninger!H148","v":0},null,null,{"$f":"Beregninger!K148","v":0},null,null,{"$f":"Beregninger!N148","v":0},null,null,{"$f":"Beregninger!Q148","v":0},null,null,{"$f":"Beregninger!T148","v":0},null,null,{"$f":"Beregninger!W148","v":0},null,null,{"$f":"Beregninger!Z148","v":0},null,null,{"$f":"Beregninger!AC148","v":0},null,null,{"$f":"Beregninger!AF148","v":0}]
[null,null,"Heraf korn kr.",null,{"$f":"Beregninger!E149","v":0},null,null,{"$f":"Beregninger!H149","v":0},null,null,{"$f":"Beregninger!K149","v":0},null,null,{"$f":"Beregninger!N149","v":0},null,null,{"$f":"Beregninger!Q149","v":0},null,null,{"$f":"Beregninger!T149","v":0},null,null,{"$f":"Beregninger!W149","v":0},null,null,{"$f":"Beregninger!Z149","v":0},null,null,{"$f":"Beregninger!AC149","v":0},null,null,{"$f":"Beregninger!AF149","v":0}]
[null,null,"Heraf korn kg.",null,{"$f":"Beregninger!F149","v":0},null,null,{"$f":"Beregninger!I149","v":0},null,null,{"$f":"Beregninger!L149","v":0},null,null,{"$f":"Beregninger!O149","v":0},null,null,{"$f":"Beregninger!R149","v":0},null,null,{"$f":"Beregninger!U149","v":0},null,null,{"$f":"Beregninger!X149","v":0},null,null,{"$f":"Beregninger!AA149","v":0},null,null,{"$f":"Beregninger!AD149","v":0},null,null,{"$f":"Beregninger!AG149","v":0}]
[null,null,"Heraf tilskudsfoder kr.",null,{"$f":"Beregninger!E150","v":0},null,null,{"$f":"Beregninger!H150","v":0},null,null,{"$f":"Beregninger!K150","v":0},null,null,{"$f":"Beregninger!N150","v":0},null,null,{"$f":"Beregninger!Q150","v":0},null,null,{"$f":"Beregninger!T150","v":0},null,null,{"$f":"Beregninger!W150","v":0},null,null,{"$f":"Beregninger!Z150","v":0},null,null,{"$f":"Beregninger!AC150","v":0},null,null,{"$f":"Beregninger!AF150","v":0}]
[null,null,"Heraf tilskudsfoder kg.",null,{"$f":"Beregninger!F150","v":0},null,null,{"$f":"Beregninger!I150","v":0},null,null,{"$f":"Beregninger!L150","v":0},null,null,{"$f":"Beregninger!O150","v":0},null,null,{"$f":"Beregninger!R150","v":0},null,null,{"$f":"Beregninger!U150","v":0},null,null,{"$f":"Beregninger!X150","v":0},null,null,{"$f":"Beregninger!AA150","v":0},null,null,{"$f":"Beregninger!AD150","v":0},null,null,{"$f":"Beregninger!AG150","v":0}]
[null,null,"Heraf Smågriseblanding kr.",null,{"$f":"Beregninger!E151","v":0},null,null,{"$f":"Beregninger!H151","v":0},null,null,{"$f":"Beregninger!K151","v":0},null,null,{"$f":"Beregninger!N151","v":0},null,null,{"$f":"Beregninger!Q151","v":0},null,null,{"$f":"Beregninger!T151","v":0},null,null,{"$f":"Beregninger!W151","v":0},null,null,{"$f":"Beregninger!Z151","v":0},null,null,{"$f":"Beregninger!AC151","v":0},null,null,{"$f":"Beregninger!AF151","v":0}]
[null,null,"Heraf Smågriseblanding kg.",null,{"$f":"Beregninger!F151","v":0},null,null,{"$f":"Beregninger!I151","v":0},null,null,{"$f":"Beregninger!L151","v":0},null,null,{"$f":"Beregninger!O151","v":0},null,null,{"$f":"Beregninger!R151","v":0},null,null,{"$f":"Beregninger!U151","v":0},null,null,{"$f":"Beregninger!X151","v":0},null,null,{"$f":"Beregninger!AA151","v":0},null,null,{"$f":"Beregninger!AD151","v":0},null,null,{"$f":"Beregninger!AG151","v":0}]
[null,null,"Heraf Færdigblanding søer kr.",null,{"$f":"Beregninger!E152","v":0},null,null,{"$f":"Beregninger!H152","v":0},null,null,{"$f":"Beregninger!K152","v":0},null,null,{"$f":"Beregninger!N152","v":0},null,null,{"$f":"Beregninger!Q152","v":0},null,null,{"$f":"Beregninger!T152","v":0},null,null,{"$f":"Beregninger!W152","v":0},null,null,{"$f":"Beregninger!Z152","v":0},null,null,{"$f":"Beregninger!AC152","v":0},null,null,{"$f":"Beregninger!AF152","v":0}]
[null,null,"Heraf Færdigblanding søer kg.",null,{"$f":"Beregninger!F152","v":0},null,null,{"$f":"Beregninger!I152","v":0},null,null,{"$f":"Beregninger!L152","v":0},null,null,{"$f":"Beregninger!O152","v":0},null,null,{"$f":"Beregninger!R152","v":0},null,null,{"$f":"Beregninger!U152","v":0},null,null,{"$f":"Beregninger!X152","v":0},null,null,{"$f":"Beregninger!AA152","v":0},null,null,{"$f":"Beregninger!AD152","v":0},null,null,{"$f":"Beregninger!AG152","v":0}]
[null,null,"Heraf Færdigblanding smågrise kr.",null,{"$f":"Beregninger!E153","v":0},null,null,{"$f":"Beregninger!H153","v":0},null,null,{"$f":"Beregninger!K153","v":0},null,null,{"$f":"Beregninger!N153","v":0},null,null,{"$f":"Beregninger!Q153","v":0},null,null,{"$f":"Beregninger!T153","v":0},null,null,{"$f":"Beregninger!W153","v":0},null,null,{"$f":"Beregninger!Z153","v":0},null,null,{"$f":"Beregninger!AC153","v":0},null,null,{"$f":"Beregninger!AF153","v":0}]
[null,null,"Heraf Færdigblanding smågrise kg.",null,{"$f":"Beregninger!F153","v":0},null,null,{"$f":"Beregninger!I153","v":0},null,null,{"$f":"Beregninger!L153","v":0},null,null,{"$f":"Beregninger!O153","v":0},null,null,{"$f":"Beregninger!R153","v":0},null,null,{"$f":"Beregninger!U153","v":0},null,null,{"$f":"Beregninger!X153","v":0},null,null,{"$f":"Beregninger!AA153","v":0},null,null,{"$f":"Beregninger!AD153","v":0},null,null,{"$f":"Beregninger!AG153","v":0}]
[null,null,"Dyrlæge og medicin kr.",null,{"$f":"Beregninger!E154","v":0},null,null,{"$f":"Beregninger!H154","v":0},null,null,{"$f":"Beregninger!K154","v":0},null,null,{"$f":"Beregninger!N154","v":0},null,null,{"$f":"Beregninger!Q154","v":0},null,null,{"$f":"Beregninger!T154","v":0},null,null,{"$f":"Beregninger!W154","v":0},null,null,{"$f":"Beregninger!Z154","v":0},null,null,{"$f":"Beregninger!AC154","v":0},null,null,{"$f":"Beregninger!AF154","v":0}]
[null,null,"Vedligeholdelse bygninger kr.",null,{"$f":"Beregninger!E155","v":0},null,null,{"$f":"Beregninger!H155","v":0},null,null,{"$f":"Beregninger!K155","v":0},null,null,{"$f":"Beregninger!N155","v":0},null,null,{"$f":"Beregninger!Q155","v":0},null,null,{"$f":"Beregninger!T155","v":0},null,null,{"$f":"Beregninger!W155","v":0},null,null,{"$f":"Beregninger!Z155","v":0},null,null,{"$f":"Beregninger!AC155","v":0},null,null,{"$f":"Beregninger!AF155","v":0}]
[null,null,"Vedligeholdelse staldinventar kr.",null,{"$f":"Beregninger!E156","v":0},null,null,{"$f":"Beregninger!H156","v":0},null,null,{"$f":"Beregninger!K156","v":0},null,null,{"$f":"Beregninger!N156","v":0},null,null,{"$f":"Beregninger!Q156","v":0},null,null,{"$f":"Beregninger!T156","v":0},null,null,{"$f":"Beregninger!W156","v":0},null,null,{"$f":"Beregninger!Z156","v":0},null,null,{"$f":"Beregninger!AC156","v":0},null,null,{"$f":"Beregninger!AF156","v":0}]
[]
[null,null,"Resultat pr. smågris"]
[null,null,"Solgte smågrise kr.",null,{"$f":"Beregninger!E160","v":0},null,null,{"$f":"Beregninger!H160","v":0},null,null,{"$f":"Beregninger!K160","v":0},null,null,{"$f":"Beregninger!N160","v":0},null,null,{"$f":"Beregninger!Q160","v":0},null,null,{"$f":"Beregninger!T160","v":0},null,null,{"$f":"Beregninger!W160","v":0},null,null,{"$f":"Beregninger!Z160","v":0},null,null,{"$f":"Beregninger!AC160","v":0},null,null,{"$f":"Beregninger!AF160","v":0}]
[null,null,"solge smågrise stk.",null,{"$f":"Beregninger!F160","v":0},null,null,{"$f":"Beregninger!I160","v":0},null,null,{"$f":"Beregninger!L160","v":0},null,null,{"$f":"Beregninger!O160","v":0},null,null,{"$f":"Beregninger!R160","v":0},null,null,{"$f":"Beregninger!U160","v":0},null,null,{"$f":"Beregninger!X160","v":0},null,null,{"$f":"Beregninger!AA160","v":0},null,null,{"$f":"Beregninger!AD160","v":0},null,null,{"$f":"Beregninger!AG160","v":0}]
[null,null,"Foder i alt kr.",null,{"$f":"Beregninger!E161","v":0},null,null,{"$f":"Beregninger!H161","v":0},null,null,{"$f":"Beregninger!K161","v":0},null,null,{"$f":"Beregninger!N161","v":0},null,null,{"$f":"Beregninger!Q161","v":0},null,null,{"$f":"Beregninger!T161","v":0},null,null,{"$f":"Beregninger!W161","v":0},null,null,{"$f":"Beregninger!Z161","v":0},null,null,{"$f":"Beregninger!AC161","v":0},null,null,{"$f":"Beregninger!AF161","v":0}]
[null,null,"Heraf korn kr.",null,{"$f":"Beregninger!E162","v":0},null,null,{"$f":"Beregninger!H162","v":0},null,null,{"$f":"Beregninger!K162","v":0},null,null,{"$f":"Beregninger!N162","v":0},null,null,{"$f":"Beregninger!Q162","v":0},null,null,{"$f":"Beregninger!T162","v":0},null,null,{"$f":"Beregninger!W162","v":0},null,null,{"$f":"Beregninger!Z162","v":0},null,null,{"$f":"Beregninger!AC162","v":0},null,null,{"$f":"Beregninger!AF162","v":0}]
[null,null,"Heraf korn kg.",null,{"$f":"Beregninger!F162","v":0},null,null,{"$f":"Beregninger!I162","v":0},null,null,{"$f":"Beregninger!L162","v":0},null,null,{"$f":"Beregninger!O162","v":0},null,null,{"$f":"Beregninger!R162","v":0},null,null,{"$f":"Beregninger!U162","v":0},null,null,{"$f":"Beregninger!X162","v":0},null,null,{"$f":"Beregninger!AA162","v":0},null,null,{"$f":"Beregninger!AD162","v":0},null,null,{"$f":"Beregninger!AG162","v":0}]
[null,null,"Heraf tilskudsfoder kr.",null,{"$f":"Beregninger!E163","v":0},null,null,{"$f":"Beregninger!H163","v":0},null,null,{"$f":"Beregninger!K163","v":0},null,null,{"$f":"Beregninger!N163","v":0},null,null,{"$f":"Beregninger!Q163","v":0},null,null,{"$f":"Beregninger!T163","v":0},null,null,{"$f":"Beregninger!W163","v":0},null,null,{"$f":"Beregninger!Z163","v":0},null,null,{"$f":"Beregninger!AC163","v":0},null,null,{"$f":"Beregninger!AF163","v":0}]
[null,null,"Heraf tilskudsfoder kg.",null,{"$f":"Beregninger!F163","v":0},null,null,{"$f":"Beregninger!I163","v":0},null,null,{"$f":"Beregninger!L163","v":0},null,null,{"$f":"Beregninger!O163","v":0},null,null,{"$f":"Beregninger!R163","v":0},null,null,{"$f":"Beregninger!U163","v":0},null,null,{"$f":"Beregninger!X163","v":0},null,null,{"$f":"Beregninger!AA163","v":0},null,null,{"$f":"Beregninger!AD163","v":0},null,null,{"$f":"Beregninger!AG163","v":0}]
[null,null,"Heraf Smågriseblanding kr.",null,{"$f":"Beregninger!E164","v":0},null,null,{"$f":"Beregninger!H164","v":0},null,null,{"$f":"Beregninger!K164","v":0},null,null,{"$f":"Beregninger!N164","v":0},null,null,{"$f":"Beregninger!Q164","v":0},null,null,{"$f":"Beregninger!T164","v":0},null,null,{"$f":"Beregninger!W164","v":0},null,null,{"$f":"Beregninger!Z164","v":0},null,null,{"$f":"Beregninger!AC164","v":0},null,null,{"$f":"Beregninger!AF164","v":0}]
[null,null,"Heraf Smågriseblanding kg.",null,{"$f":"Beregninger!F164","v":0},null,null,{"$f":"Beregninger!I164","v":0},null,null,{"$f":"Beregninger!L164","v":0},null,null,{"$f":"Beregninger!O164","v":0},null,null,{"$f":"Beregninger!R164","v":0},null,null,{"$f":"Beregninger!U164","v":0},null,null,{"$f":"Beregninger!X164","v":0},null,null,{"$f":"Beregninger!AA164","v":0},null,null,{"$f":"Beregninger!AD164","v":0},null,null,{"$f":"Beregninger!AG164","v":0}]
[null,null,"Heraf Færdigblanding søer kr.",null,{"$f":"Beregninger!E165","v":0},null,null,{"$f":"Beregninger!H165","v":0},null,null,{"$f":"Beregninger!K165","v":0},null,null,{"$f":"Beregninger!N165","v":0},null,null,{"$f":"Beregninger!Q165","v":0},null,null,{"$f":"Beregninger!T165","v":0},null,null,{"$f":"Beregninger!W165","v":0},null,null,{"$f":"Beregninger!Z165","v":0},null,null,{"$f":"Beregninger!AC165","v":0},null,null,{"$f":"Beregninger!AF165","v":0}]
[null,null,"Heraf Færdigblanding søer kg.",null,{"$f":"Beregninger!F165","v":0},null,null,{"$f":"Beregninger!I165","v":0},null,null,{"$f":"Beregninger!L165","v":0},null,null,{"$f":"Beregninger!O165","v":0},null,null,{"$f":"Beregninger!R165","v":0},null,null,{"$f":"Beregninger!U165","v":0},null,null,{"$f":"Beregninger!X165","v":0},null,null,{"$f":"Beregninger!AA165","v":0},null,null,{"$f":"Beregninger!AD165","v":0},null,null,{"$f":"Beregninger!AG165","v":0}]
[null,null,"Heraf Færdigblanding smågrise kr.",null,{"$f":"Beregninger!E166","v":0},null,null,{"$f":"Beregninger!H166","v":0},null,null,{"$f":"Beregninger!K166","v":0},null,null,{"$f":"Beregninger!N166","v":0},null,null,{"$f":"Beregninger!Q166","v":0},null,null,{"$f":"Beregninger!T166","v":0},null,null,{"$f":"Beregninger!W166","v":0},null,null,{"$f":"Beregninger!Z166","v":0},null,null,{"$f":"Beregninger!AC166","v":0},null,null,{"$f":"Beregninger!AF166","v":0}]
[null,null,"Heraf Færdigblanding smågrise kg.",null,{"$f":"Beregninger!F166","v":0},null,null,{"$f":"Beregninger!I166","v":0},null,null,{"$f":"Beregninger!L166","v":0},null,null,{"$f":"Beregninger!O166","v":0},null,null,{"$f":"Beregninger!R166","v":0},null,null,{"$f":"Beregninger!U166","v":0},null,null,{"$f":"Beregninger!X166","v":0},null,null,{"$f":"Beregninger!AA166","v":0},null,null,{"$f":"Beregninger!AD166","v":0},null,null,{"$f":"Beregninger!AG166","v":0}]
[null,null,"Dyrlæge og medicin kr.",null,{"$f":"Beregninger!E167","v":0},null,null,{"$f":"Beregninger!H167","v":0},null,null,{"$f":"Beregninger!K167","v":0},null,null,{"$f":"Beregninger!N167","v":0},null,null,{"$f":"Beregninger!Q167","v":0},null,null,{"$f":"Beregninger!T167","v":0},null,null,{"$f":"Beregninger!W167","v":0},null,null,{"$f":"Beregninger!Z167","v":0},null,null,{"$f":"Beregninger!AC167","v":0},null,null,{"$f":"Beregninger!AF167","v":0}]
[null,null,"Vedligeholdelse bygninger kr.",null,{"$f":"Beregninger!E168","v":0},null,null,{"$f":"Beregninger!H168","v":0},null,null,{"$f":"Beregninger!K168","v":0},null,null,{"$f":"Beregninger!N168","v":0},null,null,{"$f":"Beregninger!Q168","v":0},null,null,{"$f":"Beregninger!T168","v":0},null,null,{"$f":"Beregninger!W168","v":0},null,null,{"$f":"Beregninger!Z168","v":0},null,null,{"$f":"Beregninger!AC168","v":0},null,null,{"$f":"Beregninger!AF168","v":0}]
[null,null,"Vedligeholdelse staldinventar kr.",null,{"$f":"Beregninger!E169","v":0},null,null,{"$f":"Beregninger!H169","v":0},null,null,{"$f":"Beregninger!K169","v":0},null,null,{"$f":"Beregninger!N169","v":0},null,null,{"$f":"Beregninger!Q169","v":0},null,null,{"$f":"Beregninger!T169","v":0},null,null,{"$f":"Beregninger!W169","v":0},null,null,{"$f":"Beregninger!Z169","v":0},null,null,{"$f":"Beregninger!AC169","v":0},null,null,{"$f":"Beregninger!AF169","v":0}]
[]
[]
[null,null,"Vælg diagram",null,{"$f":"C83&\" pr. årsso\"","v":"Solgte smågrise kr. pr. årsso"}]
[]
[null,null,"Solgte smågrise kr."]
[]
[]
[]
[]
[]
[]
[]
[]
[]
[]
[]
[]
[]
[]
[]
[]
[null,null,null,null,{"$f":"C83&\" pr. smågris\"","v":"Solgte smågrise kr. pr. smågris"}]
[]
[]
[]
[]
[]
[]
[]
[]
[]
[]
[]
[]
[]
[]
[]
[]
[]
[]
[]
[]
[null,null,null,null,{"$f":"E37&\" - \"&E38","v":" - "},null,null,{"$f":"H37&\" - \"&H38","v":" - "},null,null,{"$f":"K37&\" - \"&K38","v":" - "},null,null,{"$f":"N37&\" - \"&N38","v":" - "},null,null,{"$f":"Q37&\" - \"&Q38","v":" - "},null,null,{"$f":"T37&\" - \"&T38","v":" - "},null,null,{"$f":"W37&\" - \"&W38","v":" - "},null,null,{"$f":"Z37&\" - \"&Z38","v":" - "},null,null,{"$f":"AC37&\" - \"&AC38","v":" - "},null,null,{"$f":"AF37&\" - \"&AF38","v":" - "}]
[null,null,null,null,{"$f":"IF(E40=H40,E121,E40)","v":" - "},null,null,{"$f":"IF(H40=K40,H121,H40)","v":" - "},null,null,{"$f":"IF(K40=N40,K121,K40)","v":" - "},null,null,{"$f":"IF(N40=Q40,N121,N40)","v":" - "},null,null,{"$f":"IF(Q40=T40,Q121,Q40)","v":" - "},null,null,{"$f":"IF(T40=W40,T121,T40)","v":" - "},null,null,{"$f":"IF(W40=Z40,W121,W40)","v":" - "},null,null,{"$f":"IF(Z40=AC40,Z121,Z40)","v":" - "},null,null,{"$f":"IF(AC40=AF40,AC121,AC40)","v":" - "},null,null,{"$f":"IF(AF40=AI40,AF121,AF40)","v":" - "}]
[]
[null,null,null,null,3,{"$f":"E124+1","v":4},{"$f":"F124+1","v":5},6,7,8,9,10,11,12,13,14,15,16,17,18,19,20,21,22,23,24,25,26,27,28,29,30]
[null,null,null,null,{"$f":"ABS(IFERROR(VLOOKUP($C$83,$C$45:$AF$60,E124,FALSE),\"\"))","v":0},{"$f":"ABS(IFERROR(VLOOKUP($C$79,$C$45:$AF$58,F124,FALSE),\"\"))","v":{"$error":"#VALUE!"}},{"$error":"#VALUE!"},{"$f":"ABS(IFERROR(VLOOKUP($C$83,$C$45:$AF$60,H124,FALSE),\"\"))","v":0},{"$error":"#VALUE!"},{"$error":"#VALUE!"},{"$f":"ABS(IFERROR(VLOOKUP($C$83,$C$45:$AF$60,K124,FALSE),\"\"))","v":0},{"$error":"#VALUE!"},{"$error":"#VALUE!"},{"$f":"ABS(IFERROR(VLOOKUP($C$83,$C$45:$AF$60,N124,FALSE),\"\"))","v":0},{"$error":"#VALUE!"},{"$error":"#VALUE!"},{"$f":"ABS(IFERROR(VLOOKUP($C$83,$C$45:$AF$60,Q124,FALSE),\"\"))","v":0},{"$error":"#VALUE!"},{"$error":"#VALUE!"},{"$f":"ABS(IFERROR(VLOOKUP($C$83,$C$45:$AF$60,T124,FALSE),\"\"))","v":0},{"$error":"#VALUE!"},{"$error":"#VALUE!"},{"$f":"ABS(IFERROR(VLOOKUP($C$83,$C$45:$AF$60,W124,FALSE),\"\"))","v":0},{"$error":"#VALUE!"},{"$error":"#VALUE!"},{"$f":"ABS(IFERROR(VLOOKUP($C$83,$C$45:$AF$60,Z124,FALSE),\"\"))","v":0},{"$error":"#VALUE!"},{"$error":"#VALUE!"},{"$f":"ABS(IFERROR(VLOOKUP($C$83,$C$45:$AF$60,AC124,FALSE),\"\"))","v":0},{"$error":"#VALUE!"},{"$error":"#VALUE!"},{"$f":"ABS(IFERROR(VLOOKUP($C$83,$C$45:$AF$60,AF124,FALSE),\"\"))","v":0}]
[null,null,null,null,{"$f":"ABS(IFERROR(VLOOKUP($C$83,$C$63:$AF$78,E124,FALSE),\"\"))","v":0},{"$f":"ABS(IFERROR(VLOOKUP($C$79,$C$61:$AF$74,F124,FALSE),\"\"))","v":{"$error":"#VALUE!"}},{"$error":"#VALUE!"},{"$f":"ABS(IFERROR(VLOOKUP($C$83,$C$63:$AF$78,H124,FALSE),\"\"))","v":0},{"$error":"#VALUE!"},{"$error":"#VALUE!"},{"$f":"ABS(IFERROR(VLOOKUP($C$83,$C$63:$AF$78,K124,FALSE),\"\"))","v":0},{"$error":"#VALUE!"},{"$error":"#VALUE!"},{"$f":"ABS(IFERROR(VLOOKUP($C$83,$C$63:$AF$78,N124,FALSE),\"\"))","v":0},{"$error":"#VALUE!"},{"$error":"#VALUE!"},{"$f":"ABS(IFERROR(VLOOKUP($C$83,$C$63:$AF$78,Q124,FALSE),\"\"))","v":0},{"$error":"#VALUE!"},{"$error":"#VALUE!"},{"$f":"ABS(IFERROR(VLOOKUP($C$83,$C$63:$AF$78,T124,FALSE),\"\"))","v":0},{"$error":"#VALUE!"},{"$error":"#VALUE!"},{"$f":"ABS(IFERROR(VLOOKUP($C$83,$C$63:$AF$78,W124,FALSE),\"\"))","v":0},{"$error":"#VALUE!"},{"$error":"#VALUE!"},{"$f":"ABS(IFERROR(VLOOKUP($C$83,$C$63:$AF$78,Z124,FALSE),\"\"))","v":0},{"$error":"#VALUE!"},{"$error":"#VALUE!"},{"$f":"ABS(IFERROR(VLOOKUP($C$83,$C$63:$AF$78,AC124,FALSE),\"\"))","v":0},{"$error":"#VALUE!"},{"$error":"#VALUE!"},{"$f":"ABS(IFERROR(VLOOKUP($C$83,$C$63:$AF$78,AF124,FALSE),\"\"))","v":0}]

{"sheet":"Slagtesvin","index":5,"n_rows":118,"n_cols":34,"rows_kept":118,"cut":false,"hidden":false,"merged":[]}
[]
[1,1,1,1,{"$f":"IF(COUNT(E8:E22)>0,1,0)","v":1},{"$f":"IF(COUNT(F8:F22)>0,1,0)","v":0},0,1,0,0,1,0,0,0,0,0,0,0,0,0,0,0,0,0,0,0,0,0,0,0,0,0,1,1]
[]
[]
[]
[null,null,"Vælg samme periode med forskellige steder"]
[]
[null,null,"Periode","Fra:"]
[null,null,null,"Til:"]
[]
[null,null,"Vælg op til 10 steder:"]
[null,null,"Ekstra informationer:"]
[null,null,"Gns kg. pr slagtesvin"]
[]
[null,null,"Vælg samme sted forskellige perioder"]
[]
[null,null,"Sted",null,"Sted 9"]
[]
[null,null,"Vælg op til 10 perioder:","Fra:",20190101,null,null,20190201,null,null,20190301]
[null,null,null,"Til:",20190131,null,null,20190228,null,null,20190331]
[null,null,"Ekstra informationer:"]
[null,null,"Gns kg. Pr. slagtesvin",null,85,null,null,85,null,null,85]
[]
[]
[]
[]
[]
[]
[]
[]
[]
[]
[]
[null,null,"Intern Benchmarking"]
[]
[null,null,"Sted",null,{"$f":"IF(E11=\"\",IF($E$17=\"\",\"\",$E$17),E11)","v":"Sted 9"},null,null,{"$f":"IF(H11=\"\",IF($E$17=\"\",\"\",$E$17),H11)","v":"Sted 9"},null,null,"Sted 9",null,null,"Sted 9",null,null,"Sted 9",null,null,"Sted 9",null,null,"Sted 9",null,null,"Sted 9",null,null,"Sted 9",null,null,"Sted 9"]
[null,null,"Periode",null,{"$f":"IF(E19=\"\",IF($E$8=\"\",\"\",$E$8),E19)","v":20190101},null,null,{"$f":"IF(H19=\"\",IF($E$8=\"\",\"\",$E$8),H19)","v":20190201},null,null,20190301,null,null,"",null,null,"",null,null,"",null,null,"",null,null,"",null,null,"",null,null,""]
[null,null,"               ",null,{"$f":"IF(E20=\"\",IF($E$9=\"\",\"\",$E$9),E20)","v":20190131},null,null,{"$f":"IF(H20=\"\",IF($E$9=\"\",\"\",$E$9),H20)","v":20190228},null,null,20190331,null,null,"",null,null,"",null,null,"",null,null,"",null,null,"",null,null,"",null,null,""]
[]
[null,null,"Produktion"]
[null,null,"Antal solgte slagtesvin",null,{"$f":"IF(Beregninger!F177=\"\",\"\",Beregninger!F177)","v":925},{"$f":"IF(Beregninger!G177=\"\",\"\",Beregninger!G177)","v":""},{"$f":"IF(Beregninger!H177=\"\",\"\",Beregninger!H177)","v":74579.03},{"$f":"IF(Beregninger!I177=\"\",\"\",Beregninger!I177)","v":108},{"$f":"IF(Beregninger!J177=\"\",\"\",Beregninger!J177)","v":""},{"$f":"IF(Beregninger!K177=\"\",\"\",Beregninger!K177)","v":61430.38},{"$f":"IF(Beregninger!L177=\"\",\"\",Beregninger!L177)","v":87},{"$f":"IF(Beregninger!M177=\"\",\"\",Beregninger!M177)","v":""},{"$f":"IF(Beregninger!N177=\"\",\"\",Beregninger!N177)","v":0},{"$f":"IF(Beregninger!O177=\"\",\"\",Beregninger!O177)","v":0},{"$f":"IF(Beregninger!P177=\"\",\"\",Beregninger!P177)","v":""},{"$f":"IF(Beregninger!Q177=\"\",\"\",Beregninger!Q177)","v":0},{"$f":"IF(Beregninger!R177=\"\",\"\",Beregninger!R177)","v":0},{"$f":"IF(Beregninger!S177=\"\",\"\",Beregninger!S177)","v":""},{"$f":"IF(Beregninger!T177=\"\",\"\",Beregninger!T177)","v":0},{"$f":"IF(Beregninger!U177=\"\",\"\",Beregninger!U177)","v":0},{"$f":"IF(Beregninger!V177=\"\",\"\",Beregninger!V177)","v":""},{"$f":"IF(Beregninger!W177=\"\",\"\",Beregninger!W177)","v":0},{"$f":"IF(Beregninger!X177=\"\",\"\",Beregninger!X177)","v":0},{"$f":"IF(Beregninger!Y177=\"\",\"\",Beregninger!Y177)","v":""},{"$f":"IF(Beregninger!Z177=\"\",\"\",Beregninger!Z177)","v":0},{"$f":"IF(Beregninger!AA177=\"\",\"\",Beregninger!AA177)","v":0},{"$f":"IF(Beregninger!AB177=\"\",\"\",Beregninger!AB177)","v":""},{"$f":"IF(Beregninger!AC177=\"\",\"\",Beregninger!AC177)","v":0},{"$f":"IF(Beregninger!AD177=\"\",\"\",Beregninger!AD177)","v":0},{"$f":"IF(Beregninger!AE177=\"\",\"\",Beregninger!AE177)","v":""},{"$f":"IF(Beregninger!AF177=\"\",\"\",Beregninger!AF177)","v":0},{"$f":"IF(Beregninger!AG177=\"\",\"\",Beregninger!AG177)","v":0}]
[null,null,"Gns kg pr . Slagtesvin",null,{"$f":"IF(E13=\"\",IF(E22=\"\",\"\",E22),E13)","v":85},{"$f":"IF(F13=\"\",IF(F22=\"\",\"\",F22),F13)","v":""},"",85,"","",85,"","","","","","","","","","","","","","","","","","","","",""]
[]
[null,null,"Resultat pr. slagtesvin"]
[null,null,"Solgte slagtesvin kr.",null,{"$f":"Beregninger!E188","v":688.04990270270264},null,null,{"$f":"Beregninger!H188","v":690.5465740740741},null,null,{"$f":"Beregninger!K188","v":706.09632183908047},null,null,{"$f":"Beregninger!N188","v":0},null,null,{"$f":"Beregninger!Q188","v":0},null,null,{"$f":"Beregninger!T188","v":0},null,null,{"$f":"Beregninger!W188","v":0},null,null,{"$f":"Beregninger!Z188","v":0},null,null,{"$f":"Beregninger!AC188","v":0},null,null,{"$f":"Beregninger!AF188","v":0}]
[null,null,"Solge slagtesvin stk.",null,{"$f":"Beregninger!F188","v":1},null,null,{"$f":"Beregninger!I188","v":1},null,null,{"$f":"Beregninger!L188","v":1},null,null,{"$f":"Beregninger!O188","v":0},null,null,{"$f":"Beregninger!R188","v":0},null,null,{"$f":"Beregninger!U188","v":0},null,null,{"$f":"Beregninger!X188","v":0},null,null,{"$f":"Beregninger!AA188","v":0},null,null,{"$f":"Beregninger!AD188","v":0},null,null,{"$f":"Beregninger!AG188","v":0}]
[null,null,"Foder i alt kr.",null,{"$f":"Beregninger!E189","v":-59.437491891891895},null,null,{"$f":"Beregninger!H189","v":-173.94629629629631},null,null,{"$f":"Beregninger!K189","v":-444.0344827586207},null,null,{"$f":"Beregninger!N189","v":0},null,null,{"$f":"Beregninger!Q189","v":0},null,null,{"$f":"Beregninger!T189","v":0},null,null,{"$f":"Beregninger!W189","v":0},null,null,{"$f":"Beregninger!Z189","v":0},null,null,{"$f":"Beregninger!AC189","v":0},null,null,{"$f":"Beregninger!AF189","v":0}]
[null,null,"Heraf korn kr.",null,{"$f":"Beregninger!E190","v":0},null,null,{"$f":"Beregninger!H190","v":0},null,null,{"$f":"Beregninger!K190","v":0},null,null,{"$f":"Beregninger!N190","v":0},null,null,{"$f":"Beregninger!Q190","v":0},null,null,{"$f":"Beregninger!T190","v":0},null,null,{"$f":"Beregninger!W190","v":0},null,null,{"$f":"Beregninger!Z190","v":0},null,null,{"$f":"Beregninger!AC190","v":0},null,null,{"$f":"Beregninger!AF190","v":0}]
[null,null,"Heraf korn kg.",null,{"$f":"Beregninger!F190","v":0},null,null,{"$f":"Beregninger!I190","v":0},null,null,{"$f":"Beregninger!L190","v":0},null,null,{"$f":"Beregninger!O190","v":0},null,null,{"$f":"Beregninger!R190","v":0},null,null,{"$f":"Beregninger!U190","v":0},null,null,{"$f":"Beregninger!X190","v":0},null,null,{"$f":"Beregninger!AA190","v":0},null,null,{"$f":"Beregninger!AD190","v":0},null,null,{"$f":"Beregninger!AG190","v":0}]
[null,null,"Heraf tilskudsfoder kr.",null,{"$f":"Beregninger!E191","v":0},null,null,{"$f":"Beregninger!H191","v":0},null,null,{"$f":"Beregninger!K191","v":0},null,null,{"$f":"Beregninger!N191","v":0},null,null,{"$f":"Beregninger!Q191","v":0},null,null,{"$f":"Beregninger!T191","v":0},null,null,{"$f":"Beregninger!W191","v":0},null,null,{"$f":"Beregninger!Z191","v":0},null,null,{"$f":"Beregninger!AC191","v":0},null,null,{"$f":"Beregninger!AF191","v":0}]
[null,null,"Heraf tilskudsfoder kg.",null,{"$f":"Beregninger!F191","v":0},null,null,{"$f":"Beregninger!I191","v":0},null,null,{"$f":"Beregninger!L191","v":0},null,null,{"$f":"Beregninger!O191","v":0},null,null,{"$f":"Beregninger!R191","v":0},null,null,{"$f":"Beregninger!U191","v":0},null,null,{"$f":"Beregninger!X191","v":0},null,null,{"$f":"Beregninger!AA191","v":0},null,null,{"$f":"Beregninger!AD191","v":0},null,null,{"$f":"Beregninger!AG191","v":0}]
[null,null,"Heraf Færdigblanding slagtesvin kr.",null,{"$f":"Beregninger!E192","v":-57.341189189189187},null,null,{"$f":"Beregninger!H192","v":-173.94629629629631},null,null,{"$f":"Beregninger!K192","v":-444.0344827586207},null,null,{"$f":"Beregninger!N192","v":0},null,null,{"$f":"Beregninger!Q192","v":0},null,null,{"$f":"Beregninger!T192","v":0},null,null,{"$f":"Beregninger!W192","v":0},null,null,{"$f":"Beregninger!Z192","v":0},null,null,{"$f":"Beregninger!AC192","v":0},null,null,{"$f":"Beregninger!AF192","v":0}]
[null,null,"Heraf Færdigblanding slagtesvin kg.",null,{"$f":"Beregninger!F192","v":-36.291891891891893},null,null,{"$f":"Beregninger!I192","v":-110.0925925925926},null,null,{"$f":"Beregninger!L192","v":-281.0344827586207},null,null,{"$f":"Beregninger!O192","v":0},null,null,{"$f":"Beregninger!R192","v":0},null,null,{"$f":"Beregninger!U192","v":0},null,null,{"$f":"Beregninger!X192","v":0},null,null,{"$f":"Beregninger!AA192","v":0},null,null,{"$f":"Beregninger!AD192","v":0},null,null,{"$f":"Beregninger!AG192","v":0}]
[null,null,"Dyrlæge og medicin kr.",null,{"$f":"Beregninger!E193","v":-0.38162162162162161},null,null,{"$f":"Beregninger!H193","v":0},null,null,{"$f":"Beregninger!K193","v":0},null,null,{"$f":"Beregninger!N193","v":0},null,null,{"$f":"Beregninger!Q193","v":0},null,null,{"$f":"Beregninger!T193","v":0},null,null,{"$f":"Beregninger!W193","v":0},null,null,{"$f":"Beregninger!Z193","v":0},null,null,{"$f":"Beregninger!AC193","v":0},null,null,{"$f":"Beregninger!AF193","v":0}]
[null,null,"Vedligeholdelse bygninger kr.",null,{"$f":"Beregninger!E194","v":0},null,null,{"$f":"Beregninger!H194","v":0},null,null,{"$f":"Beregninger!K194","v":0},null,null,{"$f":"Beregninger!N194","v":0},null,null,{"$f":"Beregninger!Q194","v":0},null,null,{"$f":"Beregninger!T194","v":0},null,null,{"$f":"Beregninger!W194","v":0},null,null,{"$f":"Beregninger!Z194","v":0},null,null,{"$f":"Beregninger!AC194","v":0},null,null,{"$f":"Beregninger!AF194","v":0}]
[null,null,"Vedligeholdelse staldinventar kr.",null,{"$f":"Beregninger!E195","v":-20.783567567567566},null,null,{"$f":"Beregninger!H195","v":-275.8085185185185},null,null,{"$f":"Beregninger!K195","v":-254.73988505747124},null,null,{"$f":"Beregninger!N195","v":0},null,null,{"$f":"Beregninger!Q195","v":0},null,null,{"$f":"Beregninger!T195","v":0},null,null,{"$f":"Beregninger!W195","v":0},null,null,{"$f":"Beregninger!Z195","v":0},null,null,{"$f":"Beregninger!AC195","v":0},null,null,{"$f":"Beregninger!AF195","v":0}]
[]
[null,null,"Resultat pr. kg slagtesvin"]
[null,null,"Solgte slagtesvin kr.",null,{"$f":"Beregninger!E202","v":8.094704737678855},null,null,{"$f":"Beregninger!H202","v":8.1240773420479293},null,null,{"$f":"Beregninger!K202","v":8.3070155510480053},null,null,{"$f":"Beregninger!N202","v":0},null,null,{"$f":"Beregninger!Q202","v":0},null,null,{"$f":"Beregninger!T202","v":0},null,null,{"$f":"Beregninger!W202","v":0},null,null,{"$f":"Beregninger!Z202","v":0},null,null,{"$f":"Beregninger!AC202","v":0},null,null,{"$f":"Beregninger!AF202","v":0}]
[null,null,"Solge slagtesvin stk.",null,{"$f":"Beregninger!F202","v":1.1764705882352941E-2},null,null,{"$f":"Beregninger!I202","v":1.1764705882352941E-2},null,null,{"$f":"Beregninger!L202","v":1.1764705882352941E-2},null,null,{"$f":"Beregninger!O202","v":0},null,null,{"$f":"Beregninger!R202","v":0},null,null,{"$f":"Beregninger!U202","v":0},null,null,{"$f":"Beregninger!X202","v":0},null,null,{"$f":"Beregninger!AA202","v":0},null,null,{"$f":"Beregninger!AD202","v":0},null,null,{"$f":"Beregninger!AG202","v":0}]
[null,null,"Foder i alt kr.",null,{"$f":"Beregninger!E203","v":-0.69926461049284583},null,null,{"$f":"Beregninger!H203","v":-2.0464270152505448},null,null,{"$f":"Beregninger!K203","v":-5.2239350912778901},null,null,{"$f":"Beregninger!N203","v":0},null,null,{"$f":"Beregninger!Q203","v":0},null,null,{"$f":"Beregninger!T203","v":0},null,null,{"$f":"Beregninger!W203","v":0},null,null,{"$f":"Beregninger!Z203","v":0},null,null,{"$f":"Beregninger!AC203","v":0},null,null,{"$f":"Beregninger!AF203","v":0}]
[null,null,"Heraf korn kr.",null,{"$f":"Beregninger!E204","v":0},null,null,{"$f":"Beregninger!H204","v":0},null,null,{"$f":"Beregninger!K204","v":0},null,null,{"$f":"Beregninger!N204","v":0},null,null,{"$f":"Beregninger!Q204","v":0},null,null,{"$f":"Beregninger!T204","v":0},null,null,{"$f":"Beregninger!W204","v":0},null,null,{"$f":"Beregninger!Z204","v":0},null,null,{"$f":"Beregninger!AC204","v":0},null,null,{"$f":"Beregninger!AF204","v":0}]
[null,null,"Heraf korn kg.",null,{"$f":"Beregninger!F204","v":0},null,null,{"$f":"Beregninger!I204","v":0},null,null,{"$f":"Beregninger!L204","v":0},null,null,{"$f":"Beregninger!O204","v":0},null,null,{"$f":"Beregninger!R204","v":0},null,null,{"$f":"Beregninger!U204","v":0},null,null,{"$f":"Beregninger!X204","v":0},null,null,{"$f":"Beregninger!AA204","v":0},null,null,{"$f":"Beregninger!AD204","v":0},null,null,{"$f":"Beregninger!AG204","v":0}]
[null,null,"Heraf tilskudsfoder kr.",null,{"$f":"Beregninger!E205","v":0},null,null,{"$f":"Beregninger!H205","v":0},null,null,{"$f":"Beregninger!K205","v":0},null,null,{"$f":"Beregninger!N205","v":0},null,null,{"$f":"Beregninger!Q205","v":0},null,null,{"$f":"Beregninger!T205","v":0},null,null,{"$f":"Beregninger!W205","v":0},null,null,{"$f":"Beregninger!Z205","v":0},null,null,{"$f":"Beregninger!AC205","v":0},null,null,{"$f":"Beregninger!AF205","v":0}]
[null,null,"Heraf tilskudsfoder kg.",null,{"$f":"Beregninger!F205","v":0},null,null,{"$f":"Beregninger!I205","v":0},null,null,{"$f":"Beregninger!L205","v":0},null,null,{"$f":"Beregninger!O205","v":0},null,null,{"$f":"Beregninger!R205","v":0},null,null,{"$f":"Beregninger!U205","v":0},null,null,{"$f":"Beregninger!X205","v":0},null,null,{"$f":"Beregninger!AA205","v":0},null,null,{"$f":"Beregninger!AD205","v":0},null,null,{"$f":"Beregninger!AG205","v":0}]
[null,null,"Heraf Færdigblanding slagtesvin kr.",null,{"$f":"Beregninger!E206","v":-0.67460222575516693},null,null,{"$f":"Beregninger!H206","v":-2.0464270152505448},null,null,{"$f":"Beregninger!K206","v":-5.2239350912778901},null,null,{"$f":"Beregninger!N206","v":0},null,null,{"$f":"Beregninger!Q206","v":0},null,null,{"$f":"Beregninger!T206","v":0},null,null,{"$f":"Beregninger!W206","v":0},null,null,{"$f":"Beregninger!Z206","v":0},null,null,{"$f":"Beregninger!AC206","v":0},null,null,{"$f":"Beregninger!AF206","v":0}]
[null,null,"Heraf Færdigblanding slagtesvin kg.",null,{"$f":"Beregninger!F206","v":-0.42696343402225756},null,null,{"$f":"Beregninger!I206","v":-1.2952069716775598},null,null,{"$f":"Beregninger!L206","v":-3.3062880324543609},null,null,{"$f":"Beregninger!O206","v":0},null,null,{"$f":"Beregninger!R206","v":0},null,null,{"$f":"Beregninger!U206","v":0},null,null,{"$f":"Beregninger!X206","v":0},null,null,{"$f":"Beregninger!AA206","v":0},null,null,{"$f":"Beregninger!AD206","v":0},null,null,{"$f":"Beregninger!AG206","v":0}]
[null,null,"Dyrlæge og medicin kr.",null,{"$f":"Beregninger!E207","v":-4.4896661367249601E-3},null,null,{"$f":"Beregninger!H207","v":0},null,null,{"$f":"Beregninger!K207","v":0},null,null,{"$f":"Beregninger!N207","v":0},null,null,{"$f":"Beregninger!Q207","v":0},null,null,{"$f":"Beregninger!T207","v":0},null,null,{"$f":"Beregninger!W207","v":0},null,null,{"$f":"Beregninger!Z207","v":0},null,null,{"$f":"Beregninger!AC207","v":0},null,null,{"$f":"Beregninger!AF207","v":0}]
[null,null,"Vedligeholdelse bygninger kr.",null,{"$f":"Beregninger!E208","v":0},null,null,{"$f":"Beregninger!H208","v":0},null,null,{"$f":"Beregninger!K208","v":0},null,null,{"$f":"Beregninger!N208","v":0},null,null,{"$f":"Beregninger!Q208","v":0},null,null,{"$f":"Beregninger!T208","v":0},null,null,{"$f":"Beregninger!W208","v":0},null,null,{"$f":"Beregninger!Z208","v":0},null,null,{"$f":"Beregninger!AC208","v":0},null,null,{"$f":"Beregninger!AF208","v":0}]
[null,null,"Vedligeholdelse staldinventar kr.",null,{"$f":"Beregninger!E209","v":-0.24451255961844195},null,null,{"$f":"Beregninger!H209","v":-3.2448061002178648},null,null,{"$f":"Beregninger!K209","v":-2.9969398242055441},null,null,{"$f":"Beregninger!N209","v":0},null,null,{"$f":"Beregninger!Q209","v":0},null,null,{"$f":"Beregninger!T209","v":0},null,null,{"$f":"Beregninger!W209","v":0},null,null,{"$f":"Beregninger!Z209","v":0},null,null,{"$f":"Beregninger!AC209","v":0},null,null,{"$f":"Beregninger!AF209","v":0}]
[]
[]
[null,null,"Vælg diagram",null,{"$f":"C75&\" pr. slagtesvin\"","v":"Solgte slagtesvin kr. pr. slagtesvin"}]
[]
[null,null,"Solgte slagtesvin kr."]
[]
[]
[]
[]
[]
[]
[]
[]
[]
[]
[]
[]
[]
[]
[]
[]
[null,null,null,null,{"$f":"C75&\" pr. kg slagtesvin\"","v":"Solgte slagtesvin kr. pr. kg slagtesvin"}]
[]
[]
[]
[]
[]
[]
[]
[]
[]
[]
[]
[]
[]
[]
[]
[]
[]
[]
[]
[]
[null,null,null,null,{"$f":"E37&\" - \"&E38","v":"20190101 - 20190131"},null,null,{"$f":"H37&\" - \"&H38","v":"20190201 - 20190228"},null,null,{"$f":"K37&\" - \"&K38","v":"20190301 - 20190331"},null,null,{"$f":"N37&\" - \"&N38","v":" - "},null,null,{"$f":"Q37&\" - \"&Q38","v":" - "},null,null,{"$f":"T37&\" - \"&T38","v":" - "},null,null,{"$f":"W37&\" - \"&W38","v":" - "},null,null,{"$f":"Z37&\" - \"&Z38","v":" - "},null,null,{"$f":"AC37&\" - \"&AC38","v":" - "},null,null,{"$f":"AF37&\" - \"&AF38","v":" - "}]
[null,null,null,null,{"$f":"IF(E40=H40,E113,E40)","v":"20190101 - 20190131"},null,null,{"$f":"IF(H40=K40,H113,H40)","v":"20190201 - 20190228"},null,null,{"$f":"IF(K40=N40,K113,K40)","v":"20190301 - 20190331"},null,null,{"$f":"IF(N40=Q40,N113,N40)","v":" - "},null,null,{"$f":"IF(Q40=T40,Q113,Q40)","v":" - "},null,null,{"$f":"IF(T40=W40,T113,T40)","v":" - "},null,null,{"$f":"IF(W40=Z40,W113,W40)","v":" - "},null,null,{"$f":"IF(Z40=AC40,Z113,Z40)","v":" - "},null,null,{"$f":"IF(AC40=AF40,AC113,AC40)","v":" - "},null,null,{"$f":"IF(AF40=AI40,AF113,AF40)","v":" - "}]
[]
[null,null,null,null,3,{"$f":"E116+1","v":4},{"$f":"F116+1","v":5},6,7,8,9,10,11,12,13,14,15,16,17,18,19,20,21,22,23,24,25,26,27,28,29,30]
[null,null,null,null,{"$f":"ABS(IFERROR(VLOOKUP($C$75,$C$45:$AF$56,E116,FALSE),\"\"))","v":688.04990270270264},{"$f":"ABS(IFERROR(VLOOKUP($C$71,$C$45:$AF$54,F116,FALSE),\"\"))","v":{"$error":"#VALUE!"}},{"$f":"ABS(IFERROR(VLOOKUP($C$71,$C$45:$AF$54,G116,FALSE),\"\"))","v":{"$error":"#VALUE!"}},{"$f":"ABS(IFERROR(VLOOKUP($C$75,$C$45:$AF$56,H116,FALSE),\"\"))","v":690.5465740740741},{"$f":"ABS(IFERROR(VLOOKUP($C$71,$C$45:$AF$54,I116,FALSE),\"\"))","v":{"$error":"#VALUE!"}},{"$f":"ABS(IFERROR(VLOOKUP($C$71,$C$45:$AF$54,J116,FALSE),\"\"))","v":{"$error":"#VALUE!"}},{"$f":"ABS(IFERROR(VLOOKUP($C$75,$C$45:$AF$56,K116,FALSE),\"\"))","v":706.09632183908047},{"$f":"ABS(IFERROR(VLOOKUP($C$71,$C$45:$AF$54,L116,FALSE),\"\"))","v":{"$error":"#VALUE!"}},{"$f":"ABS(IFERROR(VLOOKUP($C$71,$C$45:$AF$54,M116,FALSE),\"\"))","v":{"$error":"#VALUE!"}},{"$f":"ABS(IFERROR(VLOOKUP($C$75,$C$45:$AF$56,N116,FALSE),\"\"))","v":0},{"$f":"ABS(IFERROR(VLOOKUP($C$71,$C$45:$AF$54,O116,FALSE),\"\"))","v":{"$error":"#VALUE!"}},{"$f":"ABS(IFERROR(VLOOKUP($C$71,$C$45:$AF$54,P116,FALSE),\"\"))","v":{"$error":"#VALUE!"}},{"$f":"ABS(IFERROR(VLOOKUP($C$75,$C$45:$AF$56,Q116,FALSE),\"\"))","v":0},{"$f":"ABS(IFERROR(VLOOKUP($C$71,$C$45:$AF$54,R116,FALSE),\"\"))","v":{"$error":"#VALUE!"}},{"$f":"ABS(IFERROR(VLOOKUP($C$71,$C$45:$AF$54,S116,FALSE),\"\"))","v":{"$error":"#VALUE!"}},{"$f":"ABS(IFERROR(VLOOKUP($C$75,$C$45:$AF$56,T116,FALSE),\"\"))","v":0},{"$f":"ABS(IFERROR(VLOOKUP($C$71,$C$45:$AF$54,U116,FALSE),\"\"))","v":{"$error":"#VALUE!"}},{"$f":"ABS(IFERROR(VLOOKUP($C$71,$C$45:$AF$54,V116,FALSE),\"\"))","v":{"$error":"#VALUE!"}},{"$f":"ABS(IFERROR(VLOOKUP($C$75,$C$45:$AF$56,W116,FALSE),\"\"))","v":0},{"$f":"ABS(IFERROR(VLOOKUP($C$71,$C$45:$AF$54,X116,FALSE),\"\"))","v":{"$error":"#VALUE!"}},{"$f":"ABS(IFERROR(VLOOKUP($C$71,$C$45:$AF$54,Y116,FALSE),\"\"))","v":{"$error":"#VALUE!"}},{"$f":"ABS(IFERROR(VLOOKUP($C$75,$C$45:$AF$56,Z116,FALSE),\"\"))","v":0},{"$f":"ABS(IFERROR(VLOOKUP($C$71,$C$45:$AF$54,AA116,FALSE),\"\"))","v":{"$error":"#VALUE!"}},{"$f":"ABS(IFERROR(VLOOKUP($C$71,$C$45:$AF$54,AB116,FALSE),\"\"))","v":{"$error":"#VALUE!"}},{"$f":"ABS(IFERROR(VLOOKUP($C$75,$C$45:$AF$56,AC116,FALSE),\"\"))","v":0},{"$f":"ABS(IFERROR(VLOOKUP($C$71,$C$45:$AF$54,AD116,FALSE),\"\"))","v":{"$error":"#VALUE!"}},{"$f":"ABS(IFERROR(VLOOKUP($C$71,$C$45:$AF$54,AE116,FALSE),\"\"))","v":{"$error":"#VALUE!"}},{"$f":"ABS(IFERROR(VLOOKUP($C$75,$C$45:$AF$56,AF116,FALSE),\"\"))","v":0}]
[null,null,null,null,{"$f":"ABS(IFERROR(VLOOKUP($C$75,$C$59:$AF$70,E116,FALSE),\"\"))","v":8.094704737678855},{"$f":"ABS(IFERROR(VLOOKUP($C$71,$C$57:$AF$67,F116,FALSE),\"\"))","v":{"$error":"#VALUE!"}},{"$f":"ABS(IFERROR(VLOOKUP($C$71,$C$57:$AF$67,G116,FALSE),\"\"))","v":{"$error":"#VALUE!"}},{"$f":"ABS(IFERROR(VLOOKUP($C$75,$C$59:$AF$70,H116,FALSE),\"\"))","v":8.1240773420479293},{"$f":"ABS(IFERROR(VLOOKUP($C$71,$C$57:$AF$67,I116,FALSE),\"\"))","v":{"$error":"#VALUE!"}},{"$f":"ABS(IFERROR(VLOOKUP($C$71,$C$57:$AF$67,J116,FALSE),\"\"))","v":{"$error":"#VALUE!"}},{"$f":"ABS(IFERROR(VLOOKUP($C$75,$C$59:$AF$70,K116,FALSE),\"\"))","v":8.3070155510480053},{"$f":"ABS(IFERROR(VLOOKUP($C$71,$C$57:$AF$67,L116,FALSE),\"\"))","v":{"$error":"#VALUE!"}},{"$f":"ABS(IFERROR(VLOOKUP($C$71,$C$57:$AF$67,M116,FALSE),\"\"))","v":{"$error":"#VALUE!"}},{"$f":"ABS(IFERROR(VLOOKUP($C$75,$C$59:$AF$70,N116,FALSE),\"\"))","v":0},{"$f":"ABS(IFERROR(VLOOKUP($C$71,$C$57:$AF$67,O116,FALSE),\"\"))","v":{"$error":"#VALUE!"}},{"$f":"ABS(IFERROR(VLOOKUP($C$71,$C$57:$AF$67,P116,FALSE),\"\"))","v":{"$error":"#VALUE!"}},{"$f":"ABS(IFERROR(VLOOKUP($C$75,$C$59:$AF$70,Q116,FALSE),\"\"))","v":0},{"$f":"ABS(IFERROR(VLOOKUP($C$71,$C$57:$AF$67,R116,FALSE),\"\"))","v":{"$error":"#VALUE!"}},{"$f":"ABS(IFERROR(VLOOKUP($C$71,$C$57:$AF$67,S116,FALSE),\"\"))","v":{"$error":"#VALUE!"}},{"$f":"ABS(IFERROR(VLOOKUP($C$75,$C$59:$AF$70,T116,FALSE),\"\"))","v":0},{"$f":"ABS(IFERROR(VLOOKUP($C$71,$C$57:$AF$67,U116,FALSE),\"\"))","v":{"$error":"#VALUE!"}},{"$f":"ABS(IFERROR(VLOOKUP($C$71,$C$57:$AF$67,V116,FALSE),\"\"))","v":{"$error":"#VALUE!"}},{"$f":"ABS(IFERROR(VLOOKUP($C$75,$C$59:$AF$70,W116,FALSE),\"\"))","v":0},{"$f":"ABS(IFERROR(VLOOKUP($C$71,$C$57:$AF$67,X116,FALSE),\"\"))","v":{"$error":"#VALUE!"}},{"$f":"ABS(IFERROR(VLOOKUP($C$71,$C$57:$AF$67,Y116,FALSE),\"\"))","v":{"$error":"#VALUE!"}},{"$f":"ABS(IFERROR(VLOOKUP($C$75,$C$59:$AF$70,Z116,FALSE),\"\"))","v":0},{"$f":"ABS(IFERROR(VLOOKUP($C$71,$C$57:$AF$67,AA116,FALSE),\"\"))","v":{"$error":"#VALUE!"}},{"$f":"ABS(IFERROR(VLOOKUP($C$71,$C$57:$AF$67,AB116,FALSE),\"\"))","v":{"$error":"#VALUE!"}},{"$f":"ABS(IFERROR(VLOOKUP($C$75,$C$59:$AF$70,AC116,FALSE),\"\"))","v":0},{"$f":"ABS(IFERROR(VLOOKUP($C$71,$C$57:$AF$67,AD116,FALSE),\"\"))","v":{"$error":"#VALUE!"}},{"$f":"ABS(IFERROR(VLOOKUP($C$71,$C$57:$AF$67,AE116,FALSE),\"\"))","v":{"$error":"#VALUE!"}},{"$f":"ABS(IFERROR(VLOOKUP($C$75,$C$59:$AF$70,AF116,FALSE),\"\"))","v":0}]

{"sheet":"Data","index":6,"n_rows":0,"n_cols":0,"rows_kept":0,"cut":false,"hidden":false,"merged":[],"read":"part_too_large"}

{"sheet":"Beregninger","index":7,"n_rows":209,"n_cols":33,"rows_kept":209,"cut":false,"hidden":true,"merged":[]}
[]
[]
[null,null,null,null,null,null,null,null,null,null,"Driftsgren",null,null,"Prodgrennr"]
[null,null,null,"Ejendomsbetegnelser",{"$f":"IFERROR(INDEX(Tabel1[DWID_Sted],MATCH(0,COUNTIF($E$3:E3,Tabel1[DWID_Sted]),0)),\"\")","v":"Sted 9"},null,"Mulige driftsgrene ejendom",null,{"$f":"IFERROR(INDEX(Tabel1[Prodgrennr],MATCH(0,COUNTIF($I$3:I3,Tabel1[Prodgrennr]),0)),\"\")","v":7916},null,"Mælk",6000,null,"6000-6299"]
[null,null,null,null,{"$f":"IFERROR(INDEX(Tabel1[DWID_Sted],MATCH(0,COUNTIF($E$3:E4,Tabel1[DWID_Sted]),0)),\"\")","v":"Sted 7"},null,null,null,{"$f":"IFERROR(INDEX(Tabel1[Prodgrennr],MATCH(0,COUNTIF($I$3:I4,Tabel1[Prodgrennr]),0)),\"\")","v":7915},null,"Grovfoder",5950,null,"5950 + 400-4199 + 4300-4999"]
[null,null,null,null,{"$f":"IFERROR(INDEX(Tabel1[DWID_Sted],MATCH(0,COUNTIF($E$3:E5,Tabel1[DWID_Sted]),0)),\"\")","v":"Sted 2"},null,null,null,{"$f":"IFERROR(INDEX(Tabel1[Prodgrennr],MATCH(0,COUNTIF($I$3:I5,Tabel1[Prodgrennr]),0)),\"\")","v":7200},null,"Slagtesvin",7200,null,"7200-7299"]
[null,null,null,null,{"$f":"IFERROR(INDEX(Tabel1[DWID_Sted],MATCH(0,COUNTIF($E$3:E6,Tabel1[DWID_Sted]),0)),\"\")","v":"Sted 8"},null,null,null,{"$f":"IFERROR(INDEX(Tabel1[Prodgrennr],MATCH(0,COUNTIF($I$3:I6,Tabel1[Prodgrennr]),0)),\"\")","v":7100},null,"Sohold - smågrise",7910,null,"7910 + 7000-7199"]
[null,null,null,null,{"$f":"IFERROR(INDEX(Tabel1[DWID_Sted],MATCH(0,COUNTIF($E$3:E7,Tabel1[DWID_Sted]),0)),\"\")","v":"Sted 5"},null,null,null,{"$f":"IFERROR(INDEX(Tabel1[Prodgrennr],MATCH(0,COUNTIF($I$3:I7,Tabel1[Prodgrennr]),0)),\"\")","v":7010},null,"Sohold frav.",7000,null,"7000-7099"]
[null,null,null,null,{"$f":"IFERROR(INDEX(Tabel1[DWID_Sted],MATCH(0,COUNTIF($E$3:E8,Tabel1[DWID_Sted]),0)),\"\")","v":"Sted 6"},null,null,null,{"$f":"IFERROR(INDEX(Tabel1[Prodgrennr],MATCH(0,COUNTIF($I$3:I8,Tabel1[Prodgrennr]),0)),\"\")","v":7000},null,"Salgsafgrøder - korn m.m.",5910,null,"5910 + 5920 + 5930 +1000-3299"]
[null,null,null,null,{"$f":"IFERROR(INDEX(Tabel1[DWID_Sted],MATCH(0,COUNTIF($E$3:E9,Tabel1[DWID_Sted]),0)),\"\")","v":"Sted 1"},null,null,null,{"$f":"IFERROR(INDEX(Tabel1[Prodgrennr],MATCH(0,COUNTIF($I$3:I9,Tabel1[Prodgrennr]),0)),\"\")","v":6300},null,"Fabriksroer",3400,null,"3400-3999"]
[null,null,null,null,{"$f":"IFERROR(INDEX(Tabel1[DWID_Sted],MATCH(0,COUNTIF($E$3:E10,Tabel1[DWID_Sted]),0)),\"\")","v":"Sted 4"},null,null,null,{"$f":"IFERROR(INDEX(Tabel1[Prodgrennr],MATCH(0,COUNTIF($I$3:I10,Tabel1[Prodgrennr]),0)),\"\")","v":6200},null,"Kartofler",3300,null,"3300-3399"]
[null,null,null,null,{"$f":"IFERROR(INDEX(Tabel1[DWID_Sted],MATCH(0,COUNTIF($E$3:E11,Tabel1[DWID_Sted]),0)),\"\")","v":"Sted 3"},null,null,null,{"$f":"IFERROR(INDEX(Tabel1[Prodgrennr],MATCH(0,COUNTIF($I$3:I11,Tabel1[Prodgrennr]),0)),\"\")","v":6100}]
[null,null,null,null,{"$f":"IFERROR(INDEX(Tabel1[DWID_Sted],MATCH(0,COUNTIF($E$3:E12,Tabel1[DWID_Sted]),0)),\"\")","v":""},null,null,null,{"$f":"IFERROR(INDEX(Tabel1[Prodgrennr],MATCH(0,COUNTIF($I$3:I12,Tabel1[Prodgrennr]),0)),\"\")","v":4460}]
[]
["Prodgren Mælk definitioner af kontonr m.m."]
[]
[null,null,"Betegnelse til formler","Mælk:"]
[null,null,null,null,"Kolonne","Fra ","Til","Fra","Til","Fra","Til","Fra ","Til","Fra","Til","Fra","Til","Fra ","Til","Fra ","Til","Fra ","Til","Fra ","Til"]
[null,null,"Mælk 1","Hvilken prodgrenenr er i denne","Prodgrennr",6000,6299]
[null,null,"Mælk 2","Mælk leveret  beløb - kvantum","Kontonr",330000,330699,330800,330999,388011,388011,388480,388489,330700,330799,331000,331099]
[null,null,"Gen 1","Foder","Kontonr",440000,440099,440100,441799,441800,444999]
[null,null,"Mælk 3","Eget grovfoder","Kontonr",442000,442399]
[null,null,"Mælk 4","Heraf kraffoder","Kontonr",440100,440199]
[null,null,"Mælk 5","Heraf A-blanding","Kontonr",440120,440129,440140,440149,440192,440192]
[null,null,"Mælk 6","Heraf C-blanding","Kontonr",440100,440114,440190,440191]
[null,null,"Gen 2","Dyrlæge om medicin","Kontonr",448000,448599]
[null,null,"Gen 3","Vedligehold bygninger*","Kontonr",460000,461999,462500,464999,489510,489519,489903,489903,163700,163719]
[null,null,"Gen 4","Vedligehold staldinv.*","Kontonr",467100,467199,163720,163739]
[]
[null,null,null,"*skal ikke begræses af prodgren da den ikke er delt op på prodgren. Vi antager at alt bygninger og staldinv hører til denne driftsgren"]
[]
["Prodgen Grovfoder definitioner af prodgren m.m."]
[null,null,null,"Grovfoder:"]
[null,null,"Grov 1",null,"Prodgrennr",5950,5950,4000,4199,4300,4999]
[null,null,"Grov 2","Maskinstation i alt","Kontonr",407100,407199,406000,407099,407200,407999,163300,163399]
[null,null,"Grov 3"," Heraf høst grovfoder","Kontonr",407140,407199]
[null,null,"Gen 5","Vedligehold maskiner","Kontonr",467200,467899,163740,163759]
[]
[]
["Prodgren Sohold med smågrise definitioner af prodgren m.m."]
[]
[null,null,null,"Smågrise"]
[null,null,"Små 1",null,"Prodgren nr",7910,7910,7000,7199]
[null,null,"Små 2","Solgte smågrise beløb - kvantum","Kontonr",341700,341709,341900,341999]
[null,null,"Gen 1","Foder","Kontonr",440000,440099,440100,441799,441800,444999]
[null,null,"Små 3"," Heraf korn","Kontonr",440000,440099,441700,441799]
[null,null,"Små 4"," Heraf tilskudsfoder","Kontonr",440200,440299]
[null,null,"Små 5"," Heraf Smågriseblanding","Kontonr",440300,440499]
[null,null,"Små 6"," Heraf  Færdigblanding søer","Kontonr",440510,440529,440591,440592]
[null,null,"Små 7"," Heraf  Færdigblanding smågrise","Kontonr",440530,440549,440593,440594]
[null,null,"Gen 2","Dyrlæge om medicin","Kontonr",448000,448599]
[null,null,"Gen 3","Vedligehold bygninger*","Kontonr",460000,461999,462500,464999,489510,489519,489903,489903,163700,163719]
[null,null,"Gen 4","Vedligehold staldinv.*","Kontonr",467100,467199,163720,163739]
[]
[]
["Prodgren slagtesvin definitioner af prodgren m.m."]
[]
[null,null,"Slsvin 1",null,"Prodgren nr",7200,7299]
[null,null,"Slsvin 2","Solgte slagtesvin beløb - kvantum","Kontonr",346100,346199,346400,346499]
[null,null,"Gen 1","Foder","Kontonr",440000,440099,440100,441799,441800,444999]
[null,null,"Små 3"," Heraf korn","Kontonr",440000,440099,441700,441799]
[null,null,"Små 4"," Heraf tilskudsfoder","Kontonr",440200,440299]
[null,null,"Slsvin 3"," Heraf Færdigblanding slagtesvin","Kontonr",440500,440509,440550,440589,440590,440590,440595,440599]
[null,null,"Gen 2","Dyrlæge om medicin","Kontonr",448000,448599]
[null,null,"Gen 3","Vedligehold bygninger*","Kontonr",460000,461999,462500,464999,489510,489519,489903,489903,163700,163719]
[null,null,"Gen 4","Vedligehold staldinv.*","Kontonr",467100,467199,163720,163739]
[]
[]
[]
[]
["Beregninger alle prodgrene"]
[]
[null,null,null,"Antal årskøer (indtast)",{"$f":"IF(Malkekvæg!E13=\"\",IF(Malkekvæg!E22=\"\",\"\",Malkekvæg!E22),Malkekvæg!E13)","v":200},null,null,{"$f":"IF(Malkekvæg!H13=\"\",IF(Malkekvæg!H22=\"\",\"\",Malkekvæg!H22),Malkekvæg!H13)","v":400},null,null,{"$f":"IF(Malkekvæg!K13=\"\",IF(Malkekvæg!K22=\"\",\"\",Malkekvæg!K22),Malkekvæg!K13)","v":300},null,null,{"$f":"IF(Malkekvæg!N13=\"\",IF(Malkekvæg!N22=\"\",\"\",Malkekvæg!N22),Malkekvæg!N13)","v":""},null,null,{"$f":"IF(Malkekvæg!Q13=\"\",IF(Malkekvæg!Q22=\"\",\"\",Malkekvæg!Q22),Malkekvæg!Q13)","v":""},null,null,{"$f":"IF(Malkekvæg!T13=\"\",IF(Malkekvæg!T22=\"\",\"\",Malkekvæg!T22),Malkekvæg!T13)","v":""},null,null,{"$f":"IF(Malkekvæg!W13=\"\",IF(Malkekvæg!W22=\"\",\"\",Malkekvæg!W22),Malkekvæg!W13)","v":""},null,null,{"$f":"IF(Malkekvæg!Z13=\"\",IF(Malkekvæg!Z22=\"\",\"\",Malkekvæg!Z22),Malkekvæg!Z13)","v":""},null,null,{"$f":"IF(Malkekvæg!AC13=\"\",IF(Malkekvæg!AC22=\"\",\"\",Malkekvæg!AC22),Malkekvæg!AC13)","v":""},null,null,{"$f":"IF(Malkekvæg!AF13=\"\",IF(Malkekvæg!AF22=\"\",\"\",Malkekvæg!AF22),Malkekvæg!AF13)","v":""}]
["Parametre til formler:",null,null,"Vælg ejendom (fra drop down)",{"$f":"IF(E75=\"\",\"\",IF(Malkekvæg!$E$17=\"\",IF(Malkekvæg!E11=\"\",\"\",Malkekvæg!E11),Malkekvæg!$E$17))","v":"Sted 1"},null,null,{"$f":"IF(H75=\"\",\"\",IF(Malkekvæg!$E$17=\"\",IF(Malkekvæg!H11=\"\",\"\",Malkekvæg!H11),Malkekvæg!$E$17))","v":"Sted 1"},null,null,{"$f":"IF(K75=\"\",\"\",IF(Malkekvæg!$E$17=\"\",IF(Malkekvæg!K11=\"\",\"\",Malkekvæg!K11),Malkekvæg!$E$17))","v":"Sted 1"},null,null,{"$f":"IF(N75=\"\",\"\",IF(Malkekvæg!$E$17=\"\",IF(Malkekvæg!N11=\"\",\"\",Malkekvæg!N11),Malkekvæg!$E$17))","v":""},null,null,{"$f":"IF(Q75=\"\",\"\",IF(Malkekvæg!$E$17=\"\",IF(Malkekvæg!Q11=\"\",\"\",Malkekvæg!Q11),Malkekvæg!$E$17))","v":""},null,null,{"$f":"IF(T75=\"\",\"\",IF(Malkekvæg!$E$17=\"\",IF(Malkekvæg!T11=\"\",\"\",Malkekvæg!T11),Malkekvæg!$E$17))","v":""},null,null,{"$f":"IF(W75=\"\",\"\",IF(Malkekvæg!$E$17=\"\",IF(Malkekvæg!W11=\"\",\"\",Malkekvæg!W11),Malkekvæg!$E$17))","v":""},null,null,{"$f":"IF(Z75=\"\",\"\",IF(Malkekvæg!$E$17=\"\",IF(Malkekvæg!Z11=\"\",\"\",Malkekvæg!Z11),Malkekvæg!$E$17))","v":""},null,null,{"$f":"IF(AC75=\"\",\"\",IF(Malkekvæg!$E$17=\"\",IF(Malkekvæg!AC11=\"\",\"\",Malkekvæg!AC11),Malkekvæg!$E$17))","v":""},null,null,{"$f":"IF(AF75=\"\",\"\",IF(Malkekvæg!$E$17=\"\",IF(Malkekvæg!AF11=\"\",\"\",Malkekvæg!AF11),Malkekvæg!$E$17))","v":""}]
["Prodgren","Kontonr","Værdi","Vælg periode fra til (ååååmmdd)",{"$f":"IF(Malkekvæg!$E$8=\"\",IF(Malkekvæg!E19=\"\",\"\",Malkekvæg!E19),Malkekvæg!$E$8)","v":20190101},null,null,{"$f":"IF(Malkekvæg!$E$8=\"\",IF(Malkekvæg!H19=\"\",\"\",Malkekvæg!H19),Malkekvæg!$E$8)","v":20190201},null,null,{"$f":"IF(Malkekvæg!$E$8=\"\",IF(Malkekvæg!K19=\"\",\"\",Malkekvæg!K19),Malkekvæg!$E$8)","v":20190301},null,null,{"$f":"IF(Malkekvæg!$E$8=\"\",IF(Malkekvæg!N19=\"\",\"\",Malkekvæg!N19),Malkekvæg!$E$8)","v":""},null,null,{"$f":"IF(Malkekvæg!$E$8=\"\",IF(Malkekvæg!Q19=\"\",\"\",Malkekvæg!Q19),Malkekvæg!$E$8)","v":""},null,null,{"$f":"IF(Malkekvæg!$E$8=\"\",IF(Malkekvæg!T19=\"\",\"\",Malkekvæg!T19),Malkekvæg!$E$8)","v":""},null,null,{"$f":"IF(Malkekvæg!$E$8=\"\",IF(Malkekvæg!W19=\"\",\"\",Malkekvæg!W19),Malkekvæg!$E$8)","v":""},null,null,{"$f":"IF(Malkekvæg!$E$8=\"\",IF(Malkekvæg!Z19=\"\",\"\",Malkekvæg!Z19),Malkekvæg!$E$8)","v":""},null,null,{"$f":"IF(Malkekvæg!$E$8=\"\",IF(Malkekvæg!AC19=\"\",\"\",Malkekvæg!AC19),Malkekvæg!$E$8)","v":""},null,null,{"$f":"IF(Malkekvæg!$E$8=\"\",IF(Malkekvæg!AF19=\"\",\"\",Malkekvæg!AF19),Malkekvæg!$E$8)","v":""}]
[null,null,null,null,{"$f":"IF(Malkekvæg!$E$9=\"\",IF(Malkekvæg!E20=\"\",\"\",Malkekvæg!E20),Malkekvæg!$E$9)","v":20190131},null,null,{"$f":"IF(Malkekvæg!$E$9=\"\",IF(Malkekvæg!H20=\"\",\"\",Malkekvæg!H20),Malkekvæg!$E$9)","v":20190228},null,null,{"$f":"IF(Malkekvæg!$E$9=\"\",IF(Malkekvæg!K20=\"\",\"\",Malkekvæg!K20),Malkekvæg!$E$9)","v":20190331},null,null,{"$f":"IF(Malkekvæg!$E$9=\"\",IF(Malkekvæg!N20=\"\",\"\",Malkekvæg!N20),Malkekvæg!$E$9)","v":""},null,null,{"$f":"IF(Malkekvæg!$E$9=\"\",IF(Malkekvæg!Q20=\"\",\"\",Malkekvæg!Q20),Malkekvæg!$E$9)","v":""},null,null,{"$f":"IF(Malkekvæg!$E$9=\"\",IF(Malkekvæg!T20=\"\",\"\",Malkekvæg!T20),Malkekvæg!$E$9)","v":""},null,null,{"$f":"IF(Malkekvæg!$E$9=\"\",IF(Malkekvæg!W20=\"\",\"\",Malkekvæg!W20),Malkekvæg!$E$9)","v":""},null,null,{"$f":"IF(Malkekvæg!$E$9=\"\",IF(Malkekvæg!Z20=\"\",\"\",Malkekvæg!Z20),Malkekvæg!$E$9)","v":""},null,null,{"$f":"IF(Malkekvæg!$E$9=\"\",IF(Malkekvæg!AC20=\"\",\"\",Malkekvæg!AC20),Malkekvæg!$E$9)","v":""},null,null,{"$f":"IF(Malkekvæg!$E$9=\"\",IF(Malkekvæg!AF20=\"\",\"\",Malkekvæg!AF20),Malkekvæg!$E$9)","v":""}]
[]
["Mælk 1","Mælk 2",1,"Mælk leveret  beløb - kvantum",{"$f":"SUMIFS(Tabel1[Beloeb],INDIRECT(\"Tabel1[\"&$A78&\"]\"),$C78,INDIRECT(\"Tabel1[\"&$B78&\"]\"),$C78,Tabel1[DWID_Sted],Beregninger!E$74,Tabel1[DWID_Dato],\">=\"&Beregninger!E$75,Tabel1[DWID_Dato],\"<=\"&Beregninger!E$76)","v":1300351.73},{"$f":"SUMIFS(Tabel1[Kvantum],INDIRECT(\"Tabel1[\"&$A78&\"]\"),$C78,INDIRECT(\"Tabel1[\"&$B78&\"]\"),$C78,Tabel1[DWID_Sted],Beregninger!E$74,Tabel1[DWID_Dato],\">=\"&Beregninger!E$75,Tabel1[DWID_Dato],\"<=\"&Beregninger!E$76)","v":365522},null,{"$f":"SUMIFS(Tabel1[Beloeb],INDIRECT(\"Tabel1[\"&$A78&\"]\"),$C78,INDIRECT(\"Tabel1[\"&$B78&\"]\"),$C78,Tabel1[DWID_Sted],Beregninger!H$74,Tabel1[DWID_Dato],\">=\"&Beregninger!H$75,Tabel1[DWID_Dato],\"<=\"&Beregninger!H$76)","v":1219711.1300000001},{"$f":"SUMIFS(Tabel1[Kvantum],INDIRECT(\"Tabel1[\"&$A78&\"]\"),$C78,INDIRECT(\"Tabel1[\"&$B78&\"]\"),$C78,Tabel1[DWID_Sted],Beregninger!H$74,Tabel1[DWID_Dato],\">=\"&Beregninger!H$75,Tabel1[DWID_Dato],\"<=\"&Beregninger!H$76)","v":341224},null,{"$f":"SUMIFS(Tabel1[Beloeb],INDIRECT(\"Tabel1[\"&$A78&\"]\"),$C78,INDIRECT(\"Tabel1[\"&$B78&\"]\"),$C78,Tabel1[DWID_Sted],Beregninger!K$74,Tabel1[DWID_Dato],\">=\"&Beregninger!K$75,Tabel1[DWID_Dato],\"<=\"&Beregninger!K$76)","v":2426907.5799999991},{"$f":"SUMIFS(Tabel1[Kvantum],INDIRECT(\"Tabel1[\"&$A78&\"]\"),$C78,INDIRECT(\"Tabel1[\"&$B78&\"]\"),$C78,Tabel1[DWID_Sted],Beregninger!K$74,Tabel1[DWID_Dato],\">=\"&Beregninger!K$75,Tabel1[DWID_Dato],\"<=\"&Beregninger!K$76)","v":368014},null,{"$f":"SUMIFS(Tabel1[Beloeb],INDIRECT(\"Tabel1[\"&$A78&\"]\"),$C78,INDIRECT(\"Tabel1[\"&$B78&\"]\"),$C78,Tabel1[DWID_Sted],Beregninger!N$74,Tabel1[DWID_Dato],\">=\"&Beregninger!N$75,Tabel1[DWID_Dato],\"<=\"&Beregninger!N$76)","v":0},{"$f":"SUMIFS(Tabel1[Kvantum],INDIRECT(\"Tabel1[\"&$A78&\"]\"),$C78,INDIRECT(\"Tabel1[\"&$B78&\"]\"),$C78,Tabel1[DWID_Sted],Beregninger!N$74,Tabel1[DWID_Dato],\">=\"&Beregninger!N$75,Tabel1[DWID_Dato],\"<=\"&Beregninger!N$76)","v":0},null,{"$f":"SUMIFS(Tabel1[Beloeb],INDIRECT(\"Tabel1[\"&$A78&\"]\"),$C78,INDIRECT(\"Tabel1[\"&$B78&\"]\"),$C78,Tabel1[DWID_Sted],Beregninger!Q$74,Tabel1[DWID_Dato],\">=\"&Beregninger!Q$75,Tabel1[DWID_Dato],\"<=\"&Beregninger!Q$76)","v":0},{"$f":"SUMIFS(Tabel1[Kvantum],INDIRECT(\"Tabel1[\"&$A78&\"]\"),$C78,INDIRECT(\"Tabel1[\"&$B78&\"]\"),$C78,Tabel1[DWID_Sted],Beregninger!Q$74,Tabel1[DWID_Dato],\">=\"&Beregninger!Q$75,Tabel1[DWID_Dato],\"<=\"&Beregninger!Q$76)","v":0},null,{"$f":"SUMIFS(Tabel1[Beloeb],INDIRECT(\"Tabel1[\"&$A78&\"]\"),$C78,INDIRECT(\"Tabel1[\"&$B78&\"]\"),$C78,Tabel1[DWID_Sted],Beregninger!T$74,Tabel1[DWID_Dato],\">=\"&Beregninger!T$75,Tabel1[DWID_Dato],\"<=\"&Beregninger!T$76)","v":0},{"$f":"SUMIFS(Tabel1[Kvantum],INDIRECT(\"Tabel1[\"&$A78&\"]\"),$C78,INDIRECT(\"Tabel1[\"&$B78&\"]\"),$C78,Tabel1[DWID_Sted],Beregninger!T$74,Tabel1[DWID_Dato],\">=\"&Beregninger!T$75,Tabel1[DWID_Dato],\"<=\"&Beregninger!T$76)","v":0},null,{"$f":"SUMIFS(Tabel1[Beloeb],INDIRECT(\"Tabel1[\"&$A78&\"]\"),$C78,INDIRECT(\"Tabel1[\"&$B78&\"]\"),$C78,Tabel1[DWID_Sted],Beregninger!W$74,Tabel1[DWID_Dato],\">=\"&Beregninger!W$75,Tabel1[DWID_Dato],\"<=\"&Beregninger!W$76)","v":0},{"$f":"SUMIFS(Tabel1[Kvantum],INDIRECT(\"Tabel1[\"&$A78&\"]\"),$C78,INDIRECT(\"Tabel1[\"&$B78&\"]\"),$C78,Tabel1[DWID_Sted],Beregninger!W$74,Tabel1[DWID_Dato],\">=\"&Beregninger!W$75,Tabel1[DWID_Dato],\"<=\"&Beregninger!W$76)","v":0},null,{"$f":"SUMIFS(Tabel1[Beloeb],INDIRECT(\"Tabel1[\"&$A78&\"]\"),$C78,INDIRECT(\"Tabel1[\"&$B78&\"]\"),$C78,Tabel1[DWID_Sted],Beregninger!Z$74,Tabel1[DWID_Dato],\">=\"&Beregninger!Z$75,Tabel1[DWID_Dato],\"<=\"&Beregninger!Z$76)","v":0},{"$f":"SUMIFS(Tabel1[Kvantum],INDIRECT(\"Tabel1[\"&$A78&\"]\"),$C78,INDIRECT(\"Tabel1[\"&$B78&\"]\"),$C78,Tabel1[DWID_Sted],Beregninger!Z$74,Tabel1[DWID_Dato],\">=\"&Beregninger!Z$75,Tabel1[DWID_Dato],\"<=\"&Beregninger!Z$76)","v":0},null,{"$f":"SUMIFS(Tabel1[Beloeb],INDIRECT(\"Tabel1[\"&$A78&\"]\"),$C78,INDIRECT(\"Tabel1[\"&$B78&\"]\"),$C78,Tabel1[DWID_Sted],Beregninger!AC$74,Tabel1[DWID_Dato],\">=\"&Beregninger!AC$75,Tabel1[DWID_Dato],\"<=\"&Beregninger!AC$76)","v":0},{"$f":"SUMIFS(Tabel1[Kvantum],INDIRECT(\"Tabel1[\"&$A78&\"]\"),$C78,INDIRECT(\"Tabel1[\"&$B78&\"]\"),$C78,Tabel1[DWID_Sted],Beregninger!AC$74,Tabel1[DWID_Dato],\">=\"&Beregninger!AC$75,Tabel1[DWID_Dato],\"<=\"&Beregninger!AC$76)","v":0},null,{"$f":"SUMIFS(Tabel1[Beloeb],INDIRECT(\"Tabel1[\"&$A78&\"]\"),$C78,INDIRECT(\"Tabel1[\"&$B78&\"]\"),$C78,Tabel1[DWID_Sted],Beregninger!AF$74,Tabel1[DWID_Dato],\">=\"&Beregninger!AF$75,Tabel1[DWID_Dato],\"<=\"&Beregninger!AF$76)","v":0},{"$f":"SUMIFS(Tabel1[Kvantum],INDIRECT(\"Tabel1[\"&$A78&\"]\"),$C78,INDIRECT(\"Tabel1[\"&$B78&\"]\"),$C78,Tabel1[DWID_Sted],Beregninger!AF$74,Tabel1[DWID_Dato],\">=\"&Beregninger!AF$75,Tabel1[DWID_Dato],\"<=\"&Beregninger!AF$76)","v":0}]
["Mælk 1","Gen 1",1,"Foder",{"$f":"SUMIFS(Tabel1[Beloeb],INDIRECT(\"Tabel1[\"&$A79&\"]\"),$C79,INDIRECT(\"Tabel1[\"&$B79&\"]\"),$C79,Tabel1[DWID_Sted],Beregninger!E$74,Tabel1[DWID_Dato],\">=\"&Beregninger!E$75,Tabel1[DWID_Dato],\"<=\"&Beregninger!E$76)","v":-409892.01},{"$f":"SUMIFS(Tabel1[Kvantum],INDIRECT(\"Tabel1[\"&$A79&\"]\"),$C79,INDIRECT(\"Tabel1[\"&$B79&\"]\"),$C79,Tabel1[DWID_Sted],Beregninger!E$74,Tabel1[DWID_Dato],\">=\"&Beregninger!E$75,Tabel1[DWID_Dato],\"<=\"&Beregninger!E$76)","v":-171040},null,{"$f":"SUMIFS(Tabel1[Beloeb],INDIRECT(\"Tabel1[\"&$A79&\"]\"),$C79,INDIRECT(\"Tabel1[\"&$B79&\"]\"),$C79,Tabel1[DWID_Sted],Beregninger!H$74,Tabel1[DWID_Dato],\">=\"&Beregninger!H$75,Tabel1[DWID_Dato],\"<=\"&Beregninger!H$76)","v":-309863.67000000004},{"$f":"SUMIFS(Tabel1[Kvantum],INDIRECT(\"Tabel1[\"&$A79&\"]\"),$C79,INDIRECT(\"Tabel1[\"&$B79&\"]\"),$C79,Tabel1[DWID_Sted],Beregninger!H$74,Tabel1[DWID_Dato],\">=\"&Beregninger!H$75,Tabel1[DWID_Dato],\"<=\"&Beregninger!H$76)","v":-124355},null,{"$f":"SUMIFS(Tabel1[Beloeb],INDIRECT(\"Tabel1[\"&$A79&\"]\"),$C79,INDIRECT(\"Tabel1[\"&$B79&\"]\"),$C79,Tabel1[DWID_Sted],Beregninger!K$74,Tabel1[DWID_Dato],\">=\"&Beregninger!K$75,Tabel1[DWID_Dato],\"<=\"&Beregninger!K$76)","v":-288012.77},{"$f":"SUMIFS(Tabel1[Kvantum],INDIRECT(\"Tabel1[\"&$A79&\"]\"),$C79,INDIRECT(\"Tabel1[\"&$B79&\"]\"),$C79,Tabel1[DWID_Sted],Beregninger!K$74,Tabel1[DWID_Dato],\">=\"&Beregninger!K$75,Tabel1[DWID_Dato],\"<=\"&Beregninger!K$76)","v":-122305},null,{"$f":"SUMIFS(Tabel1[Beloeb],INDIRECT(\"Tabel1[\"&$A79&\"]\"),$C79,INDIRECT(\"Tabel1[\"&$B79&\"]\"),$C79,Tabel1[DWID_Sted],Beregninger!N$74,Tabel1[DWID_Dato],\">=\"&Beregninger!N$75,Tabel1[DWID_Dato],\"<=\"&Beregninger!N$76)","v":0},{"$f":"SUMIFS(Tabel1[Kvantum],INDIRECT(\"Tabel1[\"&$A79&\"]\"),$C79,INDIRECT(\"Tabel1[\"&$B79&\"]\"),$C79,Tabel1[DWID_Sted],Beregninger!N$74,Tabel1[DWID_Dato],\">=\"&Beregninger!N$75,Tabel1[DWID_Dato],\"<=\"&Beregninger!N$76)","v":0},null,{"$f":"SUMIFS(Tabel1[Beloeb],INDIRECT(\"Tabel1[\"&$A79&\"]\"),$C79,INDIRECT(\"Tabel1[\"&$B79&\"]\"),$C79,Tabel1[DWID_Sted],Beregninger!Q$74,Tabel1[DWID_Dato],\">=\"&Beregninger!Q$75,Tabel1[DWID_Dato],\"<=\"&Beregninger!Q$76)","v":0},{"$f":"SUMIFS(Tabel1[Kvantum],INDIRECT(\"Tabel1[\"&$A79&\"]\"),$C79,INDIRECT(\"Tabel1[\"&$B79&\"]\"),$C79,Tabel1[DWID_Sted],Beregninger!Q$74,Tabel1[DWID_Dato],\">=\"&Beregninger!Q$75,Tabel1[DWID_Dato],\"<=\"&Beregninger!Q$76)","v":0},null,{"$f":"SUMIFS(Tabel1[Beloeb],INDIRECT(\"Tabel1[\"&$A79&\"]\"),$C79,INDIRECT(\"Tabel1[\"&$B79&\"]\"),$C79,Tabel1[DWID_Sted],Beregninger!T$74,Tabel1[DWID_Dato],\">=\"&Beregninger!T$75,Tabel1[DWID_Dato],\"<=\"&Beregninger!T$76)","v":0},{"$f":"SUMIFS(Tabel1[Kvantum],INDIRECT(\"Tabel1[\"&$A79&\"]\"),$C79,INDIRECT(\"Tabel1[\"&$B79&\"]\"),$C79,Tabel1[DWID_Sted],Beregninger!T$74,Tabel1[DWID_Dato],\">=\"&Beregninger!T$75,Tabel1[DWID_Dato],\"<=\"&Beregninger!T$76)","v":0},null,{"$f":"SUMIFS(Tabel1[Beloeb],INDIRECT(\"Tabel1[\"&$A79&\"]\"),$C79,INDIRECT(\"Tabel1[\"&$B79&\"]\"),$C79,Tabel1[DWID_Sted],Beregninger!W$74,Tabel1[DWID_Dato],\">=\"&Beregninger!W$75,Tabel1[DWID_Dato],\"<=\"&Beregninger!W$76)","v":0},{"$f":"SUMIFS(Tabel1[Kvantum],INDIRECT(\"Tabel1[\"&$A79&\"]\"),$C79,INDIRECT(\"Tabel1[\"&$B79&\"]\"),$C79,Tabel1[DWID_Sted],Beregninger!W$74,Tabel1[DWID_Dato],\">=\"&Beregninger!W$75,Tabel1[DWID_Dato],\"<=\"&Beregninger!W$76)","v":0},null,{"$f":"SUMIFS(Tabel1[Beloeb],INDIRECT(\"Tabel1[\"&$A79&\"]\"),$C79,INDIRECT(\"Tabel1[\"&$B79&\"]\"),$C79,Tabel1[DWID_Sted],Beregninger!Z$74,Tabel1[DWID_Dato],\">=\"&Beregninger!Z$75,Tabel1[DWID_Dato],\"<=\"&Beregninger!Z$76)","v":0},{"$f":"SUMIFS(Tabel1[Kvantum],INDIRECT(\"Tabel1[\"&$A79&\"]\"),$C79,INDIRECT(\"Tabel1[\"&$B79&\"]\"),$C79,Tabel1[DWID_Sted],Beregninger!Z$74,Tabel1[DWID_Dato],\">=\"&Beregninger!Z$75,Tabel1[DWID_Dato],\"<=\"&Beregninger!Z$76)","v":0},null,{"$f":"SUMIFS(Tabel1[Beloeb],INDIRECT(\"Tabel1[\"&$A79&\"]\"),$C79,INDIRECT(\"Tabel1[\"&$B79&\"]\"),$C79,Tabel1[DWID_Sted],Beregninger!AC$74,Tabel1[DWID_Dato],\">=\"&Beregninger!AC$75,Tabel1[DWID_Dato],\"<=\"&Beregninger!AC$76)","v":0},{"$f":"SUMIFS(Tabel1[Kvantum],INDIRECT(\"Tabel1[\"&$A79&\"]\"),$C79,INDIRECT(\"Tabel1[\"&$B79&\"]\"),$C79,Tabel1[DWID_Sted],Beregninger!AC$74,Tabel1[DWID_Dato],\">=\"&Beregninger!AC$75,Tabel1[DWID_Dato],\"<=\"&Beregninger!AC$76)","v":0},null,{"$f":"SUMIFS(Tabel1[Beloeb],INDIRECT(\"Tabel1[\"&$A79&\"]\"),$C79,INDIRECT(\"Tabel1[\"&$B79&\"]\"),$C79,Tabel1[DWID_Sted],Beregninger!AF$74,Tabel1[DWID_Dato],\">=\"&Beregninger!AF$75,Tabel1[DWID_Dato],\"<=\"&Beregninger!AF$76)","v":0},{"$f":"SUMIFS(Tabel1[Kvantum],INDIRECT(\"Tabel1[\"&$A79&\"]\"),$C79,INDIRECT(\"Tabel1[\"&$B79&\"]\"),$C79,Tabel1[DWID_Sted],Beregninger!AF$74,Tabel1[DWID_Dato],\">=\"&Beregninger!AF$75,Tabel1[DWID_Dato],\"<=\"&Beregninger!AF$76)","v":0}]
["Mælk 1","Mælk 3",1,"Eget grovfoder",{"$f":"SUMIFS(Tabel1[Beloeb],INDIRECT(\"Tabel1[\"&$A80&\"]\"),$C80,INDIRECT(\"Tabel1[\"&$B80&\"]\"),$C80,Tabel1[DWID_Sted],Beregninger!E$74,Tabel1[DWID_Dato],\">=\"&Beregninger!E$75,Tabel1[DWID_Dato],\"<=\"&Beregninger!E$76)","v":0},{"$f":"SUMIFS(Tabel1[Kvantum],INDIRECT(\"Tabel1[\"&$A80&\"]\"),$C80,INDIRECT(\"Tabel1[\"&$B80&\"]\"),$C80,Tabel1[DWID_Sted],Beregninger!E$74,Tabel1[DWID_Dato],\">=\"&Beregninger!E$75,Tabel1[DWID_Dato],\"<=\"&Beregninger!E$76)","v":0},null,{"$f":"SUMIFS(Tabel1[Beloeb],INDIRECT(\"Tabel1[\"&$A80&\"]\"),$C80,INDIRECT(\"Tabel1[\"&$B80&\"]\"),$C80,Tabel1[DWID_Sted],Beregninger!H$74,Tabel1[DWID_Dato],\">=\"&Beregninger!H$75,Tabel1[DWID_Dato],\"<=\"&Beregninger!H$76)","v":0},{"$f":"SUMIFS(Tabel1[Kvantum],INDIRECT(\"Tabel1[\"&$A80&\"]\"),$C80,INDIRECT(\"Tabel1[\"&$B80&\"]\"),$C80,Tabel1[DWID_Sted],Beregninger!H$74,Tabel1[DWID_Dato],\">=\"&Beregninger!H$75,Tabel1[DWID_Dato],\"<=\"&Beregninger!H$76)","v":0},null,{"$f":"SUMIFS(Tabel1[Beloeb],INDIRECT(\"Tabel1[\"&$A80&\"]\"),$C80,INDIRECT(\"Tabel1[\"&$B80&\"]\"),$C80,Tabel1[DWID_Sted],Beregninger!K$74,Tabel1[DWID_Dato],\">=\"&Beregninger!K$75,Tabel1[DWID_Dato],\"<=\"&Beregninger!K$76)","v":0},{"$f":"SUMIFS(Tabel1[Kvantum],INDIRECT(\"Tabel1[\"&$A80&\"]\"),$C80,INDIRECT(\"Tabel1[\"&$B80&\"]\"),$C80,Tabel1[DWID_Sted],Beregninger!K$74,Tabel1[DWID_Dato],\">=\"&Beregninger!K$75,Tabel1[DWID_Dato],\"<=\"&Beregninger!K$76)","v":0},null,{"$f":"SUMIFS(Tabel1[Beloeb],INDIRECT(\"Tabel1[\"&$A80&\"]\"),$C80,INDIRECT(\"Tabel1[\"&$B80&\"]\"),$C80,Tabel1[DWID_Sted],Beregninger!N$74,Tabel1[DWID_Dato],\">=\"&Beregninger!N$75,Tabel1[DWID_Dato],\"<=\"&Beregninger!N$76)","v":0},{"$f":"SUMIFS(Tabel1[Kvantum],INDIRECT(\"Tabel1[\"&$A80&\"]\"),$C80,INDIRECT(\"Tabel1[\"&$B80&\"]\"),$C80,Tabel1[DWID_Sted],Beregninger!N$74,Tabel1[DWID_Dato],\">=\"&Beregninger!N$75,Tabel1[DWID_Dato],\"<=\"&Beregninger!N$76)","v":0},null,{"$f":"SUMIFS(Tabel1[Beloeb],INDIRECT(\"Tabel1[\"&$A80&\"]\"),$C80,INDIRECT(\"Tabel1[\"&$B80&\"]\"),$C80,Tabel1[DWID_Sted],Beregninger!Q$74,Tabel1[DWID_Dato],\">=\"&Beregninger!Q$75,Tabel1[DWID_Dato],\"<=\"&Beregninger!Q$76)","v":0},{"$f":"SUMIFS(Tabel1[Kvantum],INDIRECT(\"Tabel1[\"&$A80&\"]\"),$C80,INDIRECT(\"Tabel1[\"&$B80&\"]\"),$C80,Tabel1[DWID_Sted],Beregninger!Q$74,Tabel1[DWID_Dato],\">=\"&Beregninger!Q$75,Tabel1[DWID_Dato],\"<=\"&Beregninger!Q$76)","v":0},null,{"$f":"SUMIFS(Tabel1[Beloeb],INDIRECT(\"Tabel1[\"&$A80&\"]\"),$C80,INDIRECT(\"Tabel1[\"&$B80&\"]\"),$C80,Tabel1[DWID_Sted],Beregninger!T$74,Tabel1[DWID_Dato],\">=\"&Beregninger!T$75,Tabel1[DWID_Dato],\"<=\"&Beregninger!T$76)","v":0},{"$f":"SUMIFS(Tabel1[Kvantum],INDIRECT(\"Tabel1[\"&$A80&\"]\"),$C80,INDIRECT(\"Tabel1[\"&$B80&\"]\"),$C80,Tabel1[DWID_Sted],Beregninger!T$74,Tabel1[DWID_Dato],\">=\"&Beregninger!T$75,Tabel1[DWID_Dato],\"<=\"&Beregninger!T$76)","v":0},null,{"$f":"SUMIFS(Tabel1[Beloeb],INDIRECT(\"Tabel1[\"&$A80&\"]\"),$C80,INDIRECT(\"Tabel1[\"&$B80&\"]\"),$C80,Tabel1[DWID_Sted],Beregninger!W$74,Tabel1[DWID_Dato],\">=\"&Beregninger!W$75,Tabel1[DWID_Dato],\"<=\"&Beregninger!W$76)","v":0},{"$f":"SUMIFS(Tabel1[Kvantum],INDIRECT(\"Tabel1[\"&$A80&\"]\"),$C80,INDIRECT(\"Tabel1[\"&$B80&\"]\"),$C80,Tabel1[DWID_Sted],Beregninger!W$74,Tabel1[DWID_Dato],\">=\"&Beregninger!W$75,Tabel1[DWID_Dato],\"<=\"&Beregninger!W$76)","v":0},null,{"$f":"SUMIFS(Tabel1[Beloeb],INDIRECT(\"Tabel1[\"&$A80&\"]\"),$C80,INDIRECT(\"Tabel1[\"&$B80&\"]\"),$C80,Tabel1[DWID_Sted],Beregninger!Z$74,Tabel1[DWID_Dato],\">=\"&Beregninger!Z$75,Tabel1[DWID_Dato],\"<=\"&Beregninger!Z$76)","v":0},{"$f":"SUMIFS(Tabel1[Kvantum],INDIRECT(\"Tabel1[\"&$A80&\"]\"),$C80,INDIRECT(\"Tabel1[\"&$B80&\"]\"),$C80,Tabel1[DWID_Sted],Beregninger!Z$74,Tabel1[DWID_Dato],\">=\"&Beregninger!Z$75,Tabel1[DWID_Dato],\"<=\"&Beregninger!Z$76)","v":0},null,{"$f":"SUMIFS(Tabel1[Beloeb],INDIRECT(\"Tabel1[\"&$A80&\"]\"),$C80,INDIRECT(\"Tabel1[\"&$B80&\"]\"),$C80,Tabel1[DWID_Sted],Beregninger!AC$74,Tabel1[DWID_Dato],\">=\"&Beregninger!AC$75,Tabel1[DWID_Dato],\"<=\"&Beregninger!AC$76)","v":0},{"$f":"SUMIFS(Tabel1[Kvantum],INDIRECT(\"Tabel1[\"&$A80&\"]\"),$C80,INDIRECT(\"Tabel1[\"&$B80&\"]\"),$C80,Tabel1[DWID_Sted],Beregninger!AC$74,Tabel1[DWID_Dato],\">=\"&Beregninger!AC$75,Tabel1[DWID_Dato],\"<=\"&Beregninger!AC$76)","v":0},null,{"$f":"SUMIFS(Tabel1[Beloeb],INDIRECT(\"Tabel1[\"&$A80&\"]\"),$C80,INDIRECT(\"Tabel1[\"&$B80&\"]\"),$C80,Tabel1[DWID_Sted],Beregninger!AF$74,Tabel1[DWID_Dato],\">=\"&Beregninger!AF$75,Tabel1[DWID_Dato],\"<=\"&Beregninger!AF$76)","v":0},{"$f":"SUMIFS(Tabel1[Kvantum],INDIRECT(\"Tabel1[\"&$A80&\"]\"),$C80,INDIRECT(\"Tabel1[\"&$B80&\"]\"),$C80,Tabel1[DWID_Sted],Beregninger!AF$74,Tabel1[DWID_Dato],\">=\"&Beregninger!AF$75,Tabel1[DWID_Dato],\"<=\"&Beregninger!AF$76)","v":0}]
["Mælk 1","Mælk 4",1,"Heraf kraffoder",{"$f":"SUMIFS(Tabel1[Beloeb],INDIRECT(\"Tabel1[\"&$A81&\"]\"),$C81,INDIRECT(\"Tabel1[\"&$B81&\"]\"),$C81,Tabel1[DWID_Sted],Beregninger!E$74,Tabel1[DWID_Dato],\">=\"&Beregninger!E$75,Tabel1[DWID_Dato],\"<=\"&Beregninger!E$76)","v":-391714.51},{"$f":"SUMIFS(Tabel1[Kvantum],INDIRECT(\"Tabel1[\"&$A81&\"]\"),$C81,INDIRECT(\"Tabel1[\"&$B81&\"]\"),$C81,Tabel1[DWID_Sted],Beregninger!E$74,Tabel1[DWID_Dato],\">=\"&Beregninger!E$75,Tabel1[DWID_Dato],\"<=\"&Beregninger!E$76)","v":-168190},null,{"$f":"SUMIFS(Tabel1[Beloeb],INDIRECT(\"Tabel1[\"&$A81&\"]\"),$C81,INDIRECT(\"Tabel1[\"&$B81&\"]\"),$C81,Tabel1[DWID_Sted],Beregninger!H$74,Tabel1[DWID_Dato],\">=\"&Beregninger!H$75,Tabel1[DWID_Dato],\"<=\"&Beregninger!H$76)","v":-283016.42000000004},{"$f":"SUMIFS(Tabel1[Kvantum],INDIRECT(\"Tabel1[\"&$A81&\"]\"),$C81,INDIRECT(\"Tabel1[\"&$B81&\"]\"),$C81,Tabel1[DWID_Sted],Beregninger!H$74,Tabel1[DWID_Dato],\">=\"&Beregninger!H$75,Tabel1[DWID_Dato],\"<=\"&Beregninger!H$76)","v":-121280},null,{"$f":"SUMIFS(Tabel1[Beloeb],INDIRECT(\"Tabel1[\"&$A81&\"]\"),$C81,INDIRECT(\"Tabel1[\"&$B81&\"]\"),$C81,Tabel1[DWID_Sted],Beregninger!K$74,Tabel1[DWID_Dato],\">=\"&Beregninger!K$75,Tabel1[DWID_Dato],\"<=\"&Beregninger!K$76)","v":-281406.52},{"$f":"SUMIFS(Tabel1[Kvantum],INDIRECT(\"Tabel1[\"&$A81&\"]\"),$C81,INDIRECT(\"Tabel1[\"&$B81&\"]\"),$C81,Tabel1[DWID_Sted],Beregninger!K$74,Tabel1[DWID_Dato],\">=\"&Beregninger!K$75,Tabel1[DWID_Dato],\"<=\"&Beregninger!K$76)","v":-120430},null,{"$f":"SUMIFS(Tabel1[Beloeb],INDIRECT(\"Tabel1[\"&$A81&\"]\"),$C81,INDIRECT(\"Tabel1[\"&$B81&\"]\"),$C81,Tabel1[DWID_Sted],Beregninger!N$74,Tabel1[DWID_Dato],\">=\"&Beregninger!N$75,Tabel1[DWID_Dato],\"<=\"&Beregninger!N$76)","v":0},{"$f":"SUMIFS(Tabel1[Kvantum],INDIRECT(\"Tabel1[\"&$A81&\"]\"),$C81,INDIRECT(\"Tabel1[\"&$B81&\"]\"),$C81,Tabel1[DWID_Sted],Beregninger!N$74,Tabel1[DWID_Dato],\">=\"&Beregninger!N$75,Tabel1[DWID_Dato],\"<=\"&Beregninger!N$76)","v":0},null,{"$f":"SUMIFS(Tabel1[Beloeb],INDIRECT(\"Tabel1[\"&$A81&\"]\"),$C81,INDIRECT(\"Tabel1[\"&$B81&\"]\"),$C81,Tabel1[DWID_Sted],Beregninger!Q$74,Tabel1[DWID_Dato],\">=\"&Beregninger!Q$75,Tabel1[DWID_Dato],\"<=\"&Beregninger!Q$76)","v":0},{"$f":"SUMIFS(Tabel1[Kvantum],INDIRECT(\"Tabel1[\"&$A81&\"]\"),$C81,INDIRECT(\"Tabel1[\"&$B81&\"]\"),$C81,Tabel1[DWID_Sted],Beregninger!Q$74,Tabel1[DWID_Dato],\">=\"&Beregninger!Q$75,Tabel1[DWID_Dato],\"<=\"&Beregninger!Q$76)","v":0},null,{"$f":"SUMIFS(Tabel1[Beloeb],INDIRECT(\"Tabel1[\"&$A81&\"]\"),$C81,INDIRECT(\"Tabel1[\"&$B81&\"]\"),$C81,Tabel1[DWID_Sted],Beregninger!T$74,Tabel1[DWID_Dato],\">=\"&Beregninger!T$75,Tabel1[DWID_Dato],\"<=\"&Beregninger!T$76)","v":0},{"$f":"SUMIFS(Tabel1[Kvantum],INDIRECT(\"Tabel1[\"&$A81&\"]\"),$C81,INDIRECT(\"Tabel1[\"&$B81&\"]\"),$C81,Tabel1[DWID_Sted],Beregninger!T$74,Tabel1[DWID_Dato],\">=\"&Beregninger!T$75,Tabel1[DWID_Dato],\"<=\"&Beregninger!T$76)","v":0},null,{"$f":"SUMIFS(Tabel1[Beloeb],INDIRECT(\"Tabel1[\"&$A81&\"]\"),$C81,INDIRECT(\"Tabel1[\"&$B81&\"]\"),$C81,Tabel1[DWID_Sted],Beregninger!W$74,Tabel1[DWID_Dato],\">=\"&Beregninger!W$75,Tabel1[DWID_Dato],\"<=\"&Beregninger!W$76)","v":0},{"$f":"SUMIFS(Tabel1[Kvantum],INDIRECT(\"Tabel1[\"&$A81&\"]\"),$C81,INDIRECT(\"Tabel1[\"&$B81&\"]\"),$C81,Tabel1[DWID_Sted],Beregninger!W$74,Tabel1[DWID_Dato],\">=\"&Beregninger!W$75,Tabel1[DWID_Dato],\"<=\"&Beregninger!W$76)","v":0},null,{"$f":"SUMIFS(Tabel1[Beloeb],INDIRECT(\"Tabel1[\"&$A81&\"]\"),$C81,INDIRECT(\"Tabel1[\"&$B81&\"]\"),$C81,Tabel1[DWID_Sted],Beregninger!Z$74,Tabel1[DWID_Dato],\">=\"&Beregninger!Z$75,Tabel1[DWID_Dato],\"<=\"&Beregninger!Z$76)","v":0},{"$f":"SUMIFS(Tabel1[Kvantum],INDIRECT(\"Tabel1[\"&$A81&\"]\"),$C81,INDIRECT(\"Tabel1[\"&$B81&\"]\"),$C81,Tabel1[DWID_Sted],Beregninger!Z$74,Tabel1[DWID_Dato],\">=\"&Beregninger!Z$75,Tabel1[DWID_Dato],\"<=\"&Beregninger!Z$76)","v":0},null,{"$f":"SUMIFS(Tabel1[Beloeb],INDIRECT(\"Tabel1[\"&$A81&\"]\"),$C81,INDIRECT(\"Tabel1[\"&$B81&\"]\"),$C81,Tabel1[DWID_Sted],Beregninger!AC$74,Tabel1[DWID_Dato],\">=\"&Beregninger!AC$75,Tabel1[DWID_Dato],\"<=\"&Beregninger!AC$76)","v":0},{"$f":"SUMIFS(Tabel1[Kvantum],INDIRECT(\"Tabel1[\"&$A81&\"]\"),$C81,INDIRECT(\"Tabel1[\"&$B81&\"]\"),$C81,Tabel1[DWID_Sted],Beregninger!AC$74,Tabel1[DWID_Dato],\">=\"&Beregninger!AC$75,Tabel1[DWID_Dato],\"<=\"&Beregninger!AC$76)","v":0},null,{"$f":"SUMIFS(Tabel1[Beloeb],INDIRECT(\"Tabel1[\"&$A81&\"]\"),$C81,INDIRECT(\"Tabel1[\"&$B81&\"]\"),$C81,Tabel1[DWID_Sted],Beregninger!AF$74,Tabel1[DWID_Dato],\">=\"&Beregninger!AF$75,Tabel1[DWID_Dato],\"<=\"&Beregninger!AF$76)","v":0},{"$f":"SUMIFS(Tabel1[Kvantum],INDIRECT(\"Tabel1[\"&$A81&\"]\"),$C81,INDIRECT(\"Tabel1[\"&$B81&\"]\"),$C81,Tabel1[DWID_Sted],Beregninger!AF$74,Tabel1[DWID_Dato],\">=\"&Beregninger!AF$75,Tabel1[DWID_Dato],\"<=\"&Beregninger!AF$76)","v":0}]
["Mælk 1","Mælk 5",1,"Heraf A-blanding",{"$f":"SUMIFS(Tabel1[Beloeb],INDIRECT(\"Tabel1[\"&$A82&\"]\"),$C82,INDIRECT(\"Tabel1[\"&$B82&\"]\"),$C82,Tabel1[DWID_Sted],Beregninger!E$74,Tabel1[DWID_Dato],\">=\"&Beregninger!E$75,Tabel1[DWID_Dato],\"<=\"&Beregninger!E$76)","v":-391714.51},{"$f":"SUMIFS(Tabel1[Kvantum],INDIRECT(\"Tabel1[\"&$A82&\"]\"),$C82,INDIRECT(\"Tabel1[\"&$B82&\"]\"),$C82,Tabel1[DWID_Sted],Beregninger!E$74,Tabel1[DWID_Dato],\">=\"&Beregninger!E$75,Tabel1[DWID_Dato],\"<=\"&Beregninger!E$76)","v":-168190},null,{"$f":"SUMIFS(Tabel1[Beloeb],INDIRECT(\"Tabel1[\"&$A82&\"]\"),$C82,INDIRECT(\"Tabel1[\"&$B82&\"]\"),$C82,Tabel1[DWID_Sted],Beregninger!H$74,Tabel1[DWID_Dato],\">=\"&Beregninger!H$75,Tabel1[DWID_Dato],\"<=\"&Beregninger!H$76)","v":-283016.42000000004},{"$f":"SUMIFS(Tabel1[Kvantum],INDIRECT(\"Tabel1[\"&$A82&\"]\"),$C82,INDIRECT(\"Tabel1[\"&$B82&\"]\"),$C82,Tabel1[DWID_Sted],Beregninger!H$74,Tabel1[DWID_Dato],\">=\"&Beregninger!H$75,Tabel1[DWID_Dato],\"<=\"&Beregninger!H$76)","v":-121280},null,{"$f":"SUMIFS(Tabel1[Beloeb],INDIRECT(\"Tabel1[\"&$A82&\"]\"),$C82,INDIRECT(\"Tabel1[\"&$B82&\"]\"),$C82,Tabel1[DWID_Sted],Beregninger!K$74,Tabel1[DWID_Dato],\">=\"&Beregninger!K$75,Tabel1[DWID_Dato],\"<=\"&Beregninger!K$76)","v":-281406.52},{"$f":"SUMIFS(Tabel1[Kvantum],INDIRECT(\"Tabel1[\"&$A82&\"]\"),$C82,INDIRECT(\"Tabel1[\"&$B82&\"]\"),$C82,Tabel1[DWID_Sted],Beregninger!K$74,Tabel1[DWID_Dato],\">=\"&Beregninger!K$75,Tabel1[DWID_Dato],\"<=\"&Beregninger!K$76)","v":-120430},null,{"$f":"SUMIFS(Tabel1[Beloeb],INDIRECT(\"Tabel1[\"&$A82&\"]\"),$C82,INDIRECT(\"Tabel1[\"&$B82&\"]\"),$C82,Tabel1[DWID_Sted],Beregninger!N$74,Tabel1[DWID_Dato],\">=\"&Beregninger!N$75,Tabel1[DWID_Dato],\"<=\"&Beregninger!N$76)","v":0},{"$f":"SUMIFS(Tabel1[Kvantum],INDIRECT(\"Tabel1[\"&$A82&\"]\"),$C82,INDIRECT(\"Tabel1[\"&$B82&\"]\"),$C82,Tabel1[DWID_Sted],Beregninger!N$74,Tabel1[DWID_Dato],\">=\"&Beregninger!N$75,Tabel1[DWID_Dato],\"<=\"&Beregninger!N$76)","v":0},null,{"$f":"SUMIFS(Tabel1[Beloeb],INDIRECT(\"Tabel1[\"&$A82&\"]\"),$C82,INDIRECT(\"Tabel1[\"&$B82&\"]\"),$C82,Tabel1[DWID_Sted],Beregninger!Q$74,Tabel1[DWID_Dato],\">=\"&Beregninger!Q$75,Tabel1[DWID_Dato],\"<=\"&Beregninger!Q$76)","v":0},{"$f":"SUMIFS(Tabel1[Kvantum],INDIRECT(\"Tabel1[\"&$A82&\"]\"),$C82,INDIRECT(\"Tabel1[\"&$B82&\"]\"),$C82,Tabel1[DWID_Sted],Beregninger!Q$74,Tabel1[DWID_Dato],\">=\"&Beregninger!Q$75,Tabel1[DWID_Dato],\"<=\"&Beregninger!Q$76)","v":0},null,{"$f":"SUMIFS(Tabel1[Beloeb],INDIRECT(\"Tabel1[\"&$A82&\"]\"),$C82,INDIRECT(\"Tabel1[\"&$B82&\"]\"),$C82,Tabel1[DWID_Sted],Beregninger!T$74,Tabel1[DWID_Dato],\">=\"&Beregninger!T$75,Tabel1[DWID_Dato],\"<=\"&Beregninger!T$76)","v":0},{"$f":"SUMIFS(Tabel1[Kvantum],INDIRECT(\"Tabel1[\"&$A82&\"]\"),$C82,INDIRECT(\"Tabel1[\"&$B82&\"]\"),$C82,Tabel1[DWID_Sted],Beregninger!T$74,Tabel1[DWID_Dato],\">=\"&Beregninger!T$75,Tabel1[DWID_Dato],\"<=\"&Beregninger!T$76)","v":0},null,{"$f":"SUMIFS(Tabel1[Beloeb],INDIRECT(\"Tabel1[\"&$A82&\"]\"),$C82,INDIRECT(\"Tabel1[\"&$B82&\"]\"),$C82,Tabel1[DWID_Sted],Beregninger!W$74,Tabel1[DWID_Dato],\">=\"&Beregninger!W$75,Tabel1[DWID_Dato],\"<=\"&Beregninger!W$76)","v":0},{"$f":"SUMIFS(Tabel1[Kvantum],INDIRECT(\"Tabel1[\"&$A82&\"]\"),$C82,INDIRECT(\"Tabel1[\"&$B82&\"]\"),$C82,Tabel1[DWID_Sted],Beregninger!W$74,Tabel1[DWID_Dato],\">=\"&Beregninger!W$75,Tabel1[DWID_Dato],\"<=\"&Beregninger!W$76)","v":0},null,{"$f":"SUMIFS(Tabel1[Beloeb],INDIRECT(\"Tabel1[\"&$A82&\"]\"),$C82,INDIRECT(\"Tabel1[\"&$B82&\"]\"),$C82,Tabel1[DWID_Sted],Beregninger!Z$74,Tabel1[DWID_Dato],\">=\"&Beregninger!Z$75,Tabel1[DWID_Dato],\"<=\"&Beregninger!Z$76)","v":0},{"$f":"SUMIFS(Tabel1[Kvantum],INDIRECT(\"Tabel1[\"&$A82&\"]\"),$C82,INDIRECT(\"Tabel1[\"&$B82&\"]\"),$C82,Tabel1[DWID_Sted],Beregninger!Z$74,Tabel1[DWID_Dato],\">=\"&Beregninger!Z$75,Tabel1[DWID_Dato],\"<=\"&Beregninger!Z$76)","v":0},null,{"$f":"SUMIFS(Tabel1[Beloeb],INDIRECT(\"Tabel1[\"&$A82&\"]\"),$C82,INDIRECT(\"Tabel1[\"&$B82&\"]\"),$C82,Tabel1[DWID_Sted],Beregninger!AC$74,Tabel1[DWID_Dato],\">=\"&Beregninger!AC$75,Tabel1[DWID_Dato],\"<=\"&Beregninger!AC$76)","v":0},{"$f":"SUMIFS(Tabel1[Kvantum],INDIRECT(\"Tabel1[\"&$A82&\"]\"),$C82,INDIRECT(\"Tabel1[\"&$B82&\"]\"),$C82,Tabel1[DWID_Sted],Beregninger!AC$74,Tabel1[DWID_Dato],\">=\"&Beregninger!AC$75,Tabel1[DWID_Dato],\"<=\"&Beregninger!AC$76)","v":0},null,{"$f":"SUMIFS(Tabel1[Beloeb],INDIRECT(\"Tabel1[\"&$A82&\"]\"),$C82,INDIRECT(\"Tabel1[\"&$B82&\"]\"),$C82,Tabel1[DWID_Sted],Beregninger!AF$74,Tabel1[DWID_Dato],\">=\"&Beregninger!AF$75,Tabel1[DWID_Dato],\"<=\"&Beregninger!AF$76)","v":0},{"$f":"SUMIFS(Tabel1[Kvantum],INDIRECT(\"Tabel1[\"&$A82&\"]\"),$C82,INDIRECT(\"Tabel1[\"&$B82&\"]\"),$C82,Tabel1[DWID_Sted],Beregninger!AF$74,Tabel1[DWID_Dato],\">=\"&Beregninger!AF$75,Tabel1[DWID_Dato],\"<=\"&Beregninger!AF$76)","v":0}]
["Mælk 1","Mælk 6",1,"Heraf C-blanding",{"$f":"SUMIFS(Tabel1[Beloeb],INDIRECT(\"Tabel1[\"&$A83&\"]\"),$C83,INDIRECT(\"Tabel1[\"&$B83&\"]\"),$C83,Tabel1[DWID_Sted],Beregninger!E$74,Tabel1[DWID_Dato],\">=\"&Beregninger!E$75,Tabel1[DWID_Dato],\"<=\"&Beregninger!E$76)","v":0},{"$f":"SUMIFS(Tabel1[Kvantum],INDIRECT(\"Tabel1[\"&$A83&\"]\"),$C83,INDIRECT(\"Tabel1[\"&$B83&\"]\"),$C83,Tabel1[DWID_Sted],Beregninger!E$74,Tabel1[DWID_Dato],\">=\"&Beregninger!E$75,Tabel1[DWID_Dato],\"<=\"&Beregninger!E$76)","v":0},null,{"$f":"SUMIFS(Tabel1[Beloeb],INDIRECT(\"Tabel1[\"&$A83&\"]\"),$C83,INDIRECT(\"Tabel1[\"&$B83&\"]\"),$C83,Tabel1[DWID_Sted],Beregninger!H$74,Tabel1[DWID_Dato],\">=\"&Beregninger!H$75,Tabel1[DWID_Dato],\"<=\"&Beregninger!H$76)","v":0},{"$f":"SUMIFS(Tabel1[Kvantum],INDIRECT(\"Tabel1[\"&$A83&\"]\"),$C83,INDIRECT(\"Tabel1[\"&$B83&\"]\"),$C83,Tabel1[DWID_Sted],Beregninger!H$74,Tabel1[DWID_Dato],\">=\"&Beregninger!H$75,Tabel1[DWID_Dato],\"<=\"&Beregninger!H$76)","v":0},null,{"$f":"SUMIFS(Tabel1[Beloeb],INDIRECT(\"Tabel1[\"&$A83&\"]\"),$C83,INDIRECT(\"Tabel1[\"&$B83&\"]\"),$C83,Tabel1[DWID_Sted],Beregninger!K$74,Tabel1[DWID_Dato],\">=\"&Beregninger!K$75,Tabel1[DWID_Dato],\"<=\"&Beregninger!K$76)","v":0},{"$f":"SUMIFS(Tabel1[Kvantum],INDIRECT(\"Tabel1[\"&$A83&\"]\"),$C83,INDIRECT(\"Tabel1[\"&$B83&\"]\"),$C83,Tabel1[DWID_Sted],Beregninger!K$74,Tabel1[DWID_Dato],\">=\"&Beregninger!K$75,Tabel1[DWID_Dato],\"<=\"&Beregninger!K$76)","v":0},null,{"$f":"SUMIFS(Tabel1[Beloeb],INDIRECT(\"Tabel1[\"&$A83&\"]\"),$C83,INDIRECT(\"Tabel1[\"&$B83&\"]\"),$C83,Tabel1[DWID_Sted],Beregninger!N$74,Tabel1[DWID_Dato],\">=\"&Beregninger!N$75,Tabel1[DWID_Dato],\"<=\"&Beregninger!N$76)","v":0},{"$f":"SUMIFS(Tabel1[Kvantum],INDIRECT(\"Tabel1[\"&$A83&\"]\"),$C83,INDIRECT(\"Tabel1[\"&$B83&\"]\"),$C83,Tabel1[DWID_Sted],Beregninger!N$74,Tabel1[DWID_Dato],\">=\"&Beregninger!N$75,Tabel1[DWID_Dato],\"<=\"&Beregninger!N$76)","v":0},null,{"$f":"SUMIFS(Tabel1[Beloeb],INDIRECT(\"Tabel1[\"&$A83&\"]\"),$C83,INDIRECT(\"Tabel1[\"&$B83&\"]\"),$C83,Tabel1[DWID_Sted],Beregninger!Q$74,Tabel1[DWID_Dato],\">=\"&Beregninger!Q$75,Tabel1[DWID_Dato],\"<=\"&Beregninger!Q$76)","v":0},{"$f":"SUMIFS(Tabel1[Kvantum],INDIRECT(\"Tabel1[\"&$A83&\"]\"),$C83,INDIRECT(\"Tabel1[\"&$B83&\"]\"),$C83,Tabel1[DWID_Sted],Beregninger!Q$74,Tabel1[DWID_Dato],\">=\"&Beregninger!Q$75,Tabel1[DWID_Dato],\"<=\"&Beregninger!Q$76)","v":0},null,{"$f":"SUMIFS(Tabel1[Beloeb],INDIRECT(\"Tabel1[\"&$A83&\"]\"),$C83,INDIRECT(\"Tabel1[\"&$B83&\"]\"),$C83,Tabel1[DWID_Sted],Beregninger!T$74,Tabel1[DWID_Dato],\">=\"&Beregninger!T$75,Tabel1[DWID_Dato],\"<=\"&Beregninger!T$76)","v":0},{"$f":"SUMIFS(Tabel1[Kvantum],INDIRECT(\"Tabel1[\"&$A83&\"]\"),$C83,INDIRECT(\"Tabel1[\"&$B83&\"]\"),$C83,Tabel1[DWID_Sted],Beregninger!T$74,Tabel1[DWID_Dato],\">=\"&Beregninger!T$75,Tabel1[DWID_Dato],\"<=\"&Beregninger!T$76)","v":0},null,{"$f":"SUMIFS(Tabel1[Beloeb],INDIRECT(\"Tabel1[\"&$A83&\"]\"),$C83,INDIRECT(\"Tabel1[\"&$B83&\"]\"),$C83,Tabel1[DWID_Sted],Beregninger!W$74,Tabel1[DWID_Dato],\">=\"&Beregninger!W$75,Tabel1[DWID_Dato],\"<=\"&Beregninger!W$76)","v":0},{"$f":"SUMIFS(Tabel1[Kvantum],INDIRECT(\"Tabel1[\"&$A83&\"]\"),$C83,INDIRECT(\"Tabel1[\"&$B83&\"]\"),$C83,Tabel1[DWID_Sted],Beregninger!W$74,Tabel1[DWID_Dato],\">=\"&Beregninger!W$75,Tabel1[DWID_Dato],\"<=\"&Beregninger!W$76)","v":0},null,{"$f":"SUMIFS(Tabel1[Beloeb],INDIRECT(\"Tabel1[\"&$A83&\"]\"),$C83,INDIRECT(\"Tabel1[\"&$B83&\"]\"),$C83,Tabel1[DWID_Sted],Beregninger!Z$74,Tabel1[DWID_Dato],\">=\"&Beregninger!Z$75,Tabel1[DWID_Dato],\"<=\"&Beregninger!Z$76)","v":0},{"$f":"SUMIFS(Tabel1[Kvantum],INDIRECT(\"Tabel1[\"&$A83&\"]\"),$C83,INDIRECT(\"Tabel1[\"&$B83&\"]\"),$C83,Tabel1[DWID_Sted],Beregninger!Z$74,Tabel1[DWID_Dato],\">=\"&Beregninger!Z$75,Tabel1[DWID_Dato],\"<=\"&Beregninger!Z$76)","v":0},null,{"$f":"SUMIFS(Tabel1[Beloeb],INDIRECT(\"Tabel1[\"&$A83&\"]\"),$C83,INDIRECT(\"Tabel1[\"&$B83&\"]\"),$C83,Tabel1[DWID_Sted],Beregninger!AC$74,Tabel1[DWID_Dato],\">=\"&Beregninger!AC$75,Tabel1[DWID_Dato],\"<=\"&Beregninger!AC$76)","v":0},{"$f":"SUMIFS(Tabel1[Kvantum],INDIRECT(\"Tabel1[\"&$A83&\"]\"),$C83,INDIRECT(\"Tabel1[\"&$B83&\"]\"),$C83,Tabel1[DWID_Sted],Beregninger!AC$74,Tabel1[DWID_Dato],\">=\"&Beregninger!AC$75,Tabel1[DWID_Dato],\"<=\"&Beregninger!AC$76)","v":0},null,{"$f":"SUMIFS(Tabel1[Beloeb],INDIRECT(\"Tabel1[\"&$A83&\"]\"),$C83,INDIRECT(\"Tabel1[\"&$B83&\"]\"),$C83,Tabel1[DWID_Sted],Beregninger!AF$74,Tabel1[DWID_Dato],\">=\"&Beregninger!AF$75,Tabel1[DWID_Dato],\"<=\"&Beregninger!AF$76)","v":0},{"$f":"SUMIFS(Tabel1[Kvantum],INDIRECT(\"Tabel1[\"&$A83&\"]\"),$C83,INDIRECT(\"Tabel1[\"&$B83&\"]\"),$C83,Tabel1[DWID_Sted],Beregninger!AF$74,Tabel1[DWID_Dato],\">=\"&Beregninger!AF$75,Tabel1[DWID_Dato],\"<=\"&Beregninger!AF$76)","v":0}]
["Mælk 1","Gen 2",1,"Dyrlæge om medicin",{"$f":"SUMIFS(Tabel1[Beloeb],INDIRECT(\"Tabel1[\"&$A84&\"]\"),$C84,INDIRECT(\"Tabel1[\"&$B84&\"]\"),$C84,Tabel1[DWID_Sted],Beregninger!E$74,Tabel1[DWID_Dato],\">=\"&Beregninger!E$75,Tabel1[DWID_Dato],\"<=\"&Beregninger!E$76)","v":-30887.849999999995},{"$f":"SUMIFS(Tabel1[Kvantum],INDIRECT(\"Tabel1[\"&$A84&\"]\"),$C84,INDIRECT(\"Tabel1[\"&$B84&\"]\"),$C84,Tabel1[DWID_Sted],Beregninger!E$74,Tabel1[DWID_Dato],\">=\"&Beregninger!E$75,Tabel1[DWID_Dato],\"<=\"&Beregninger!E$76)","v":0},null,{"$f":"SUMIFS(Tabel1[Beloeb],INDIRECT(\"Tabel1[\"&$A84&\"]\"),$C84,INDIRECT(\"Tabel1[\"&$B84&\"]\"),$C84,Tabel1[DWID_Sted],Beregninger!H$74,Tabel1[DWID_Dato],\">=\"&Beregninger!H$75,Tabel1[DWID_Dato],\"<=\"&Beregninger!H$76)","v":-30159.969999999994},{"$f":"SUMIFS(Tabel1[Kvantum],INDIRECT(\"Tabel1[\"&$A84&\"]\"),$C84,INDIRECT(\"Tabel1[\"&$B84&\"]\"),$C84,Tabel1[DWID_Sted],Beregninger!H$74,Tabel1[DWID_Dato],\">=\"&Beregninger!H$75,Tabel1[DWID_Dato],\"<=\"&Beregninger!H$76)","v":0},null,{"$f":"SUMIFS(Tabel1[Beloeb],INDIRECT(\"Tabel1[\"&$A84&\"]\"),$C84,INDIRECT(\"Tabel1[\"&$B84&\"]\"),$C84,Tabel1[DWID_Sted],Beregninger!K$74,Tabel1[DWID_Dato],\">=\"&Beregninger!K$75,Tabel1[DWID_Dato],\"<=\"&Beregninger!K$76)","v":-31801.779999999995},{"$f":"SUMIFS(Tabel1[Kvantum],INDIRECT(\"Tabel1[\"&$A84&\"]\"),$C84,INDIRECT(\"Tabel1[\"&$B84&\"]\"),$C84,Tabel1[DWID_Sted],Beregninger!K$74,Tabel1[DWID_Dato],\">=\"&Beregninger!K$75,Tabel1[DWID_Dato],\"<=\"&Beregninger!K$76)","v":0},null,{"$f":"SUMIFS(Tabel1[Beloeb],INDIRECT(\"Tabel1[\"&$A84&\"]\"),$C84,INDIRECT(\"Tabel1[\"&$B84&\"]\"),$C84,Tabel1[DWID_Sted],Beregninger!N$74,Tabel1[DWID_Dato],\">=\"&Beregninger!N$75,Tabel1[DWID_Dato],\"<=\"&Beregninger!N$76)","v":0},{"$f":"SUMIFS(Tabel1[Kvantum],INDIRECT(\"Tabel1[\"&$A84&\"]\"),$C84,INDIRECT(\"Tabel1[\"&$B84&\"]\"),$C84,Tabel1[DWID_Sted],Beregninger!N$74,Tabel1[DWID_Dato],\">=\"&Beregninger!N$75,Tabel1[DWID_Dato],\"<=\"&Beregninger!N$76)","v":0},null,{"$f":"SUMIFS(Tabel1[Beloeb],INDIRECT(\"Tabel1[\"&$A84&\"]\"),$C84,INDIRECT(\"Tabel1[\"&$B84&\"]\"),$C84,Tabel1[DWID_Sted],Beregninger!Q$74,Tabel1[DWID_Dato],\">=\"&Beregninger!Q$75,Tabel1[DWID_Dato],\"<=\"&Beregninger!Q$76)","v":0},{"$f":"SUMIFS(Tabel1[Kvantum],INDIRECT(\"Tabel1[\"&$A84&\"]\"),$C84,INDIRECT(\"Tabel1[\"&$B84&\"]\"),$C84,Tabel1[DWID_Sted],Beregninger!Q$74,Tabel1[DWID_Dato],\">=\"&Beregninger!Q$75,Tabel1[DWID_Dato],\"<=\"&Beregninger!Q$76)","v":0},null,{"$f":"SUMIFS(Tabel1[Beloeb],INDIRECT(\"Tabel1[\"&$A84&\"]\"),$C84,INDIRECT(\"Tabel1[\"&$B84&\"]\"),$C84,Tabel1[DWID_Sted],Beregninger!T$74,Tabel1[DWID_Dato],\">=\"&Beregninger!T$75,Tabel1[DWID_Dato],\"<=\"&Beregninger!T$76)","v":0},{"$f":"SUMIFS(Tabel1[Kvantum],INDIRECT(\"Tabel1[\"&$A84&\"]\"),$C84,INDIRECT(\"Tabel1[\"&$B84&\"]\"),$C84,Tabel1[DWID_Sted],Beregninger!T$74,Tabel1[DWID_Dato],\">=\"&Beregninger!T$75,Tabel1[DWID_Dato],\"<=\"&Beregninger!T$76)","v":0},null,{"$f":"SUMIFS(Tabel1[Beloeb],INDIRECT(\"Tabel1[\"&$A84&\"]\"),$C84,INDIRECT(\"Tabel1[\"&$B84&\"]\"),$C84,Tabel1[DWID_Sted],Beregninger!W$74,Tabel1[DWID_Dato],\">=\"&Beregninger!W$75,Tabel1[DWID_Dato],\"<=\"&Beregninger!W$76)","v":0},{"$f":"SUMIFS(Tabel1[Kvantum],INDIRECT(\"Tabel1[\"&$A84&\"]\"),$C84,INDIRECT(\"Tabel1[\"&$B84&\"]\"),$C84,Tabel1[DWID_Sted],Beregninger!W$74,Tabel1[DWID_Dato],\">=\"&Beregninger!W$75,Tabel1[DWID_Dato],\"<=\"&Beregninger!W$76)","v":0},null,{"$f":"SUMIFS(Tabel1[Beloeb],INDIRECT(\"Tabel1[\"&$A84&\"]\"),$C84,INDIRECT(\"Tabel1[\"&$B84&\"]\"),$C84,Tabel1[DWID_Sted],Beregninger!Z$74,Tabel1[DWID_Dato],\">=\"&Beregninger!Z$75,Tabel1[DWID_Dato],\"<=\"&Beregninger!Z$76)","v":0},{"$f":"SUMIFS(Tabel1[Kvantum],INDIRECT(\"Tabel1[\"&$A84&\"]\"),$C84,INDIRECT(\"Tabel1[\"&$B84&\"]\"),$C84,Tabel1[DWID_Sted],Beregninger!Z$74,Tabel1[DWID_Dato],\">=\"&Beregninger!Z$75,Tabel1[DWID_Dato],\"<=\"&Beregninger!Z$76)","v":0},null,{"$f":"SUMIFS(Tabel1[Beloeb],INDIRECT(\"Tabel1[\"&$A84&\"]\"),$C84,INDIRECT(\"Tabel1[\"&$B84&\"]\"),$C84,Tabel1[DWID_Sted],Beregninger!AC$74,Tabel1[DWID_Dato],\">=\"&Beregninger!AC$75,Tabel1[DWID_Dato],\"<=\"&Beregninger!AC$76)","v":0},{"$f":"SUMIFS(Tabel1[Kvantum],INDIRECT(\"Tabel1[\"&$A84&\"]\"),$C84,INDIRECT(\"Tabel1[\"&$B84&\"]\"),$C84,Tabel1[DWID_Sted],Beregninger!AC$74,Tabel1[DWID_Dato],\">=\"&Beregninger!AC$75,Tabel1[DWID_Dato],\"<=\"&Beregninger!AC$76)","v":0},null,{"$f":"SUMIFS(Tabel1[Beloeb],INDIRECT(\"Tabel1[\"&$A84&\"]\"),$C84,INDIRECT(\"Tabel1[\"&$B84&\"]\"),$C84,Tabel1[DWID_Sted],Beregninger!AF$74,Tabel1[DWID_Dato],\">=\"&Beregninger!AF$75,Tabel1[DWID_Dato],\"<=\"&Beregninger!AF$76)","v":0},{"$f":"SUMIFS(Tabel1[Kvantum],INDIRECT(\"Tabel1[\"&$A84&\"]\"),$C84,INDIRECT(\"Tabel1[\"&$B84&\"]\"),$C84,Tabel1[DWID_Sted],Beregninger!AF$74,Tabel1[DWID_Dato],\">=\"&Beregninger!AF$75,Tabel1[DWID_Dato],\"<=\"&Beregninger!AF$76)","v":0}]
["Gen 3","Gen 3",1,"Vedligehold bygninger*",{"$f":"SUMIFS(Tabel1[Beloeb],INDIRECT(\"Tabel1[\"&$A85&\"]\"),$C85,INDIRECT(\"Tabel1[\"&$B85&\"]\"),$C85,Tabel1[DWID_Sted],Beregninger!E$74,Tabel1[DWID_Dato],\">=\"&Beregninger!E$75,Tabel1[DWID_Dato],\"<=\"&Beregninger!E$76)","v":0},{"$f":"SUMIFS(Tabel1[Kvantum],INDIRECT(\"Tabel1[\"&$A85&\"]\"),$C85,INDIRECT(\"Tabel1[\"&$B85&\"]\"),$C85,Tabel1[DWID_Sted],Beregninger!E$74,Tabel1[DWID_Dato],\">=\"&Beregninger!E$75,Tabel1[DWID_Dato],\"<=\"&Beregninger!E$76)","v":0},null,{"$f":"SUMIFS(Tabel1[Beloeb],INDIRECT(\"Tabel1[\"&$A85&\"]\"),$C85,INDIRECT(\"Tabel1[\"&$B85&\"]\"),$C85,Tabel1[DWID_Sted],Beregninger!H$74,Tabel1[DWID_Dato],\">=\"&Beregninger!H$75,Tabel1[DWID_Dato],\"<=\"&Beregninger!H$76)","v":0},{"$f":"SUMIFS(Tabel1[Kvantum],INDIRECT(\"Tabel1[\"&$A85&\"]\"),$C85,INDIRECT(\"Tabel1[\"&$B85&\"]\"),$C85,Tabel1[DWID_Sted],Beregninger!H$74,Tabel1[DWID_Dato],\">=\"&Beregninger!H$75,Tabel1[DWID_Dato],\"<=\"&Beregninger!H$76)","v":0},null,{"$f":"SUMIFS(Tabel1[Beloeb],INDIRECT(\"Tabel1[\"&$A85&\"]\"),$C85,INDIRECT(\"Tabel1[\"&$B85&\"]\"),$C85,Tabel1[DWID_Sted],Beregninger!K$74,Tabel1[DWID_Dato],\">=\"&Beregninger!K$75,Tabel1[DWID_Dato],\"<=\"&Beregninger!K$76)","v":0},{"$f":"SUMIFS(Tabel1[Kvantum],INDIRECT(\"Tabel1[\"&$A85&\"]\"),$C85,INDIRECT(\"Tabel1[\"&$B85&\"]\"),$C85,Tabel1[DWID_Sted],Beregninger!K$74,Tabel1[DWID_Dato],\">=\"&Beregninger!K$75,Tabel1[DWID_Dato],\"<=\"&Beregninger!K$76)","v":0},null,{"$f":"SUMIFS(Tabel1[Beloeb],INDIRECT(\"Tabel1[\"&$A85&\"]\"),$C85,INDIRECT(\"Tabel1[\"&$B85&\"]\"),$C85,Tabel1[DWID_Sted],Beregninger!N$74,Tabel1[DWID_Dato],\">=\"&Beregninger!N$75,Tabel1[DWID_Dato],\"<=\"&Beregninger!N$76)","v":0},{"$f":"SUMIFS(Tabel1[Kvantum],INDIRECT(\"Tabel1[\"&$A85&\"]\"),$C85,INDIRECT(\"Tabel1[\"&$B85&\"]\"),$C85,Tabel1[DWID_Sted],Beregninger!N$74,Tabel1[DWID_Dato],\">=\"&Beregninger!N$75,Tabel1[DWID_Dato],\"<=\"&Beregninger!N$76)","v":0},null,{"$f":"SUMIFS(Tabel1[Beloeb],INDIRECT(\"Tabel1[\"&$A85&\"]\"),$C85,INDIRECT(\"Tabel1[\"&$B85&\"]\"),$C85,Tabel1[DWID_Sted],Beregninger!Q$74,Tabel1[DWID_Dato],\">=\"&Beregninger!Q$75,Tabel1[DWID_Dato],\"<=\"&Beregninger!Q$76)","v":0},{"$f":"SUMIFS(Tabel1[Kvantum],INDIRECT(\"Tabel1[\"&$A85&\"]\"),$C85,INDIRECT(\"Tabel1[\"&$B85&\"]\"),$C85,Tabel1[DWID_Sted],Beregninger!Q$74,Tabel1[DWID_Dato],\">=\"&Beregninger!Q$75,Tabel1[DWID_Dato],\"<=\"&Beregninger!Q$76)","v":0},null,{"$f":"SUMIFS(Tabel1[Beloeb],INDIRECT(\"Tabel1[\"&$A85&\"]\"),$C85,INDIRECT(\"Tabel1[\"&$B85&\"]\"),$C85,Tabel1[DWID_Sted],Beregninger!T$74,Tabel1[DWID_Dato],\">=\"&Beregninger!T$75,Tabel1[DWID_Dato],\"<=\"&Beregninger!T$76)","v":0},{"$f":"SUMIFS(Tabel1[Kvantum],INDIRECT(\"Tabel1[\"&$A85&\"]\"),$C85,INDIRECT(\"Tabel1[\"&$B85&\"]\"),$C85,Tabel1[DWID_Sted],Beregninger!T$74,Tabel1[DWID_Dato],\">=\"&Beregninger!T$75,Tabel1[DWID_Dato],\"<=\"&Beregninger!T$76)","v":0},null,{"$f":"SUMIFS(Tabel1[Beloeb],INDIRECT(\"Tabel1[\"&$A85&\"]\"),$C85,INDIRECT(\"Tabel1[\"&$B85&\"]\"),$C85,Tabel1[DWID_Sted],Beregninger!W$74,Tabel1[DWID_Dato],\">=\"&Beregninger!W$75,Tabel1[DWID_Dato],\"<=\"&Beregninger!W$76)","v":0},{"$f":"SUMIFS(Tabel1[Kvantum],INDIRECT(\"Tabel1[\"&$A85&\"]\"),$C85,INDIRECT(\"Tabel1[\"&$B85&\"]\"),$C85,Tabel1[DWID_Sted],Beregninger!W$74,Tabel1[DWID_Dato],\">=\"&Beregninger!W$75,Tabel1[DWID_Dato],\"<=\"&Beregninger!W$76)","v":0},null,{"$f":"SUMIFS(Tabel1[Beloeb],INDIRECT(\"Tabel1[\"&$A85&\"]\"),$C85,INDIRECT(\"Tabel1[\"&$B85&\"]\"),$C85,Tabel1[DWID_Sted],Beregninger!Z$74,Tabel1[DWID_Dato],\">=\"&Beregninger!Z$75,Tabel1[DWID_Dato],\"<=\"&Beregninger!Z$76)","v":0},{"$f":"SUMIFS(Tabel1[Kvantum],INDIRECT(\"Tabel1[\"&$A85&\"]\"),$C85,INDIRECT(\"Tabel1[\"&$B85&\"]\"),$C85,Tabel1[DWID_Sted],Beregninger!Z$74,Tabel1[DWID_Dato],\">=\"&Beregninger!Z$75,Tabel1[DWID_Dato],\"<=\"&Beregninger!Z$76)","v":0},null,{"$f":"SUMIFS(Tabel1[Beloeb],INDIRECT(\"Tabel1[\"&$A85&\"]\"),$C85,INDIRECT(\"Tabel1[\"&$B85&\"]\"),$C85,Tabel1[DWID_Sted],Beregninger!AC$74,Tabel1[DWID_Dato],\">=\"&Beregninger!AC$75,Tabel1[DWID_Dato],\"<=\"&Beregninger!AC$76)","v":0},{"$f":"SUMIFS(Tabel1[Kvantum],INDIRECT(\"Tabel1[\"&$A85&\"]\"),$C85,INDIRECT(\"Tabel1[\"&$B85&\"]\"),$C85,Tabel1[DWID_Sted],Beregninger!AC$74,Tabel1[DWID_Dato],\">=\"&Beregninger!AC$75,Tabel1[DWID_Dato],\"<=\"&Beregninger!AC$76)","v":0},null,{"$f":"SUMIFS(Tabel1[Beloeb],INDIRECT(\"Tabel1[\"&$A85&\"]\"),$C85,INDIRECT(\"Tabel1[\"&$B85&\"]\"),$C85,Tabel1[DWID_Sted],Beregninger!AF$74,Tabel1[DWID_Dato],\">=\"&Beregninger!AF$75,Tabel1[DWID_Dato],\"<=\"&Beregninger!AF$76)","v":0},{"$f":"SUMIFS(Tabel1[Kvantum],INDIRECT(\"Tabel1[\"&$A85&\"]\"),$C85,INDIRECT(\"Tabel1[\"&$B85&\"]\"),$C85,Tabel1[DWID_Sted],Beregninger!AF$74,Tabel1[DWID_Dato],\">=\"&Beregninger!AF$75,Tabel1[DWID_Dato],\"<=\"&Beregninger!AF$76)","v":0}]
["Gen 4","Gen 4",1,"Vedligehold staldinv.*",{"$f":"SUMIFS(Tabel1[Beloeb],INDIRECT(\"Tabel1[\"&$A86&\"]\"),$C86,INDIRECT(\"Tabel1[\"&$B86&\"]\"),$C86,Tabel1[DWID_Sted],Beregninger!E$74,Tabel1[DWID_Dato],\">=\"&Beregninger!E$75,Tabel1[DWID_Dato],\"<=\"&Beregninger!E$76)","v":0},{"$f":"SUMIFS(Tabel1[Kvantum],INDIRECT(\"Tabel1[\"&$A86&\"]\"),$C86,INDIRECT(\"Tabel1[\"&$B86&\"]\"),$C86,Tabel1[DWID_Sted],Beregninger!E$74,Tabel1[DWID_Dato],\">=\"&Beregninger!E$75,Tabel1[DWID_Dato],\"<=\"&Beregninger!E$76)","v":0},null,{"$f":"SUMIFS(Tabel1[Beloeb],INDIRECT(\"Tabel1[\"&$A86&\"]\"),$C86,INDIRECT(\"Tabel1[\"&$B86&\"]\"),$C86,Tabel1[DWID_Sted],Beregninger!H$74,Tabel1[DWID_Dato],\">=\"&Beregninger!H$75,Tabel1[DWID_Dato],\"<=\"&Beregninger!H$76)","v":0},{"$f":"SUMIFS(Tabel1[Kvantum],INDIRECT(\"Tabel1[\"&$A86&\"]\"),$C86,INDIRECT(\"Tabel1[\"&$B86&\"]\"),$C86,Tabel1[DWID_Sted],Beregninger!H$74,Tabel1[DWID_Dato],\">=\"&Beregninger!H$75,Tabel1[DWID_Dato],\"<=\"&Beregninger!H$76)","v":0},null,{"$f":"SUMIFS(Tabel1[Beloeb],INDIRECT(\"Tabel1[\"&$A86&\"]\"),$C86,INDIRECT(\"Tabel1[\"&$B86&\"]\"),$C86,Tabel1[DWID_Sted],Beregninger!K$74,Tabel1[DWID_Dato],\">=\"&Beregninger!K$75,Tabel1[DWID_Dato],\"<=\"&Beregninger!K$76)","v":0},{"$f":"SUMIFS(Tabel1[Kvantum],INDIRECT(\"Tabel1[\"&$A86&\"]\"),$C86,INDIRECT(\"Tabel1[\"&$B86&\"]\"),$C86,Tabel1[DWID_Sted],Beregninger!K$74,Tabel1[DWID_Dato],\">=\"&Beregninger!K$75,Tabel1[DWID_Dato],\"<=\"&Beregninger!K$76)","v":0},null,{"$f":"SUMIFS(Tabel1[Beloeb],INDIRECT(\"Tabel1[\"&$A86&\"]\"),$C86,INDIRECT(\"Tabel1[\"&$B86&\"]\"),$C86,Tabel1[DWID_Sted],Beregninger!N$74,Tabel1[DWID_Dato],\">=\"&Beregninger!N$75,Tabel1[DWID_Dato],\"<=\"&Beregninger!N$76)","v":0},{"$f":"SUMIFS(Tabel1[Kvantum],INDIRECT(\"Tabel1[\"&$A86&\"]\"),$C86,INDIRECT(\"Tabel1[\"&$B86&\"]\"),$C86,Tabel1[DWID_Sted],Beregninger!N$74,Tabel1[DWID_Dato],\">=\"&Beregninger!N$75,Tabel1[DWID_Dato],\"<=\"&Beregninger!N$76)","v":0},null,{"$f":"SUMIFS(Tabel1[Beloeb],INDIRECT(\"Tabel1[\"&$A86&\"]\"),$C86,INDIRECT(\"Tabel1[\"&$B86&\"]\"),$C86,Tabel1[DWID_Sted],Beregninger!Q$74,Tabel1[DWID_Dato],\">=\"&Beregninger!Q$75,Tabel1[DWID_Dato],\"<=\"&Beregninger!Q$76)","v":0},{"$f":"SUMIFS(Tabel1[Kvantum],INDIRECT(\"Tabel1[\"&$A86&\"]\"),$C86,INDIRECT(\"Tabel1[\"&$B86&\"]\"),$C86,Tabel1[DWID_Sted],Beregninger!Q$74,Tabel1[DWID_Dato],\">=\"&Beregninger!Q$75,Tabel1[DWID_Dato],\"<=\"&Beregninger!Q$76)","v":0},null,{"$f":"SUMIFS(Tabel1[Beloeb],INDIRECT(\"Tabel1[\"&$A86&\"]\"),$C86,INDIRECT(\"Tabel1[\"&$B86&\"]\"),$C86,Tabel1[DWID_Sted],Beregninger!T$74,Tabel1[DWID_Dato],\">=\"&Beregninger!T$75,Tabel1[DWID_Dato],\"<=\"&Beregninger!T$76)","v":0},{"$f":"SUMIFS(Tabel1[Kvantum],INDIRECT(\"Tabel1[\"&$A86&\"]\"),$C86,INDIRECT(\"Tabel1[\"&$B86&\"]\"),$C86,Tabel1[DWID_Sted],Beregninger!T$74,Tabel1[DWID_Dato],\">=\"&Beregninger!T$75,Tabel1[DWID_Dato],\"<=\"&Beregninger!T$76)","v":0},null,{"$f":"SUMIFS(Tabel1[Beloeb],INDIRECT(\"Tabel1[\"&$A86&\"]\"),$C86,INDIRECT(\"Tabel1[\"&$B86&\"]\"),$C86,Tabel1[DWID_Sted],Beregninger!W$74,Tabel1[DWID_Dato],\">=\"&Beregninger!W$75,Tabel1[DWID_Dato],\"<=\"&Beregninger!W$76)","v":0},{"$f":"SUMIFS(Tabel1[Kvantum],INDIRECT(\"Tabel1[\"&$A86&\"]\"),$C86,INDIRECT(\"Tabel1[\"&$B86&\"]\"),$C86,Tabel1[DWID_Sted],Beregninger!W$74,Tabel1[DWID_Dato],\">=\"&Beregninger!W$75,Tabel1[DWID_Dato],\"<=\"&Beregninger!W$76)","v":0},null,{"$f":"SUMIFS(Tabel1[Beloeb],INDIRECT(\"Tabel1[\"&$A86&\"]\"),$C86,INDIRECT(\"Tabel1[\"&$B86&\"]\"),$C86,Tabel1[DWID_Sted],Beregninger!Z$74,Tabel1[DWID_Dato],\">=\"&Beregninger!Z$75,Tabel1[DWID_Dato],\"<=\"&Beregninger!Z$76)","v":0},{"$f":"SUMIFS(Tabel1[Kvantum],INDIRECT(\"Tabel1[\"&$A86&\"]\"),$C86,INDIRECT(\"Tabel1[\"&$B86&\"]\"),$C86,Tabel1[DWID_Sted],Beregninger!Z$74,Tabel1[DWID_Dato],\">=\"&Beregninger!Z$75,Tabel1[DWID_Dato],\"<=\"&Beregninger!Z$76)","v":0},null,{"$f":"SUMIFS(Tabel1[Beloeb],INDIRECT(\"Tabel1[\"&$A86&\"]\"),$C86,INDIRECT(\"Tabel1[\"&$B86&\"]\"),$C86,Tabel1[DWID_Sted],Beregninger!AC$74,Tabel1[DWID_Dato],\">=\"&Beregninger!AC$75,Tabel1[DWID_Dato],\"<=\"&Beregninger!AC$76)","v":0},{"$f":"SUMIFS(Tabel1[Kvantum],INDIRECT(\"Tabel1[\"&$A86&\"]\"),$C86,INDIRECT(\"Tabel1[\"&$B86&\"]\"),$C86,Tabel1[DWID_Sted],Beregninger!AC$74,Tabel1[DWID_Dato],\">=\"&Beregninger!AC$75,Tabel1[DWID_Dato],\"<=\"&Beregninger!AC$76)","v":0},null,{"$f":"SUMIFS(Tabel1[Beloeb],INDIRECT(\"Tabel1[\"&$A86&\"]\"),$C86,INDIRECT(\"Tabel1[\"&$B86&\"]\"),$C86,Tabel1[DWID_Sted],Beregninger!AF$74,Tabel1[DWID_Dato],\">=\"&Beregninger!AF$75,Tabel1[DWID_Dato],\"<=\"&Beregninger!AF$76)","v":0},{"$f":"SUMIFS(Tabel1[Kvantum],INDIRECT(\"Tabel1[\"&$A86&\"]\"),$C86,INDIRECT(\"Tabel1[\"&$B86&\"]\"),$C86,Tabel1[DWID_Sted],Beregninger!AF$74,Tabel1[DWID_Dato],\">=\"&Beregninger!AF$75,Tabel1[DWID_Dato],\"<=\"&Beregninger!AF$76)","v":0}]
[]
[null,null,null,"Pr årsko"]
[null,null,null,"Mælk leveret  beløb - kvantum",{"$f":"IFERROR(E78/E$73,0)","v":6501.7586499999998},{"$f":"IFERROR(F78/E$73,0)","v":1827.61},null,{"$f":"IFERROR(H78/H$73,0)","v":3049.2778250000001},{"$f":"IFERROR(I78/H$73,0)","v":853.06},null,{"$f":"IFERROR(K78/K$73,0)","v":8089.6919333333308},{"$f":"IFERROR(L78/K$73,0)","v":1226.7133333333334},null,{"$f":"IFERROR(N78/N$73,0)","v":0},{"$f":"IFERROR(O78/N$73,0)","v":0},null,{"$f":"IFERROR(Q78/Q$73,0)","v":0},{"$f":"IFERROR(R78/Q$73,0)","v":0},null,{"$f":"IFERROR(T78/T$73,0)","v":0},{"$f":"IFERROR(U78/T$73,0)","v":0},null,{"$f":"IFERROR(W78/W$73,0)","v":0},{"$f":"IFERROR(X78/W$73,0)","v":0},null,{"$f":"IFERROR(Z78/Z$73,0)","v":0},{"$f":"IFERROR(AA78/Z$73,0)","v":0},null,{"$f":"IFERROR(AC78/AC$73,0)","v":0},{"$f":"IFERROR(AD78/AC$73,0)","v":0},null,{"$f":"IFERROR(AF78/AF$73,0)","v":0},{"$f":"IFERROR(AG78/AF$73,0)","v":0}]
[null,null,null,"Foder",-2049.4600500000001,-855.2,null,-774.65917500000012,-310.88749999999999,null,-960.04256666666674,-407.68333333333334,null,0,0,null,0,0,null,0,0,null,0,0,null,0,0,null,0,0,null,0,0]
[null,null,null,"Eget grovfoder",0,0,null,0,0,null,0,0,null,0,0,null,0,0,null,0,0,null,0,0,null,0,0,null,0,0,null,0,0]
[null,null,null,"Heraf kraffoder",-1958.5725500000001,-840.95,null,-707.54105000000015,-303.2,null,-938.02173333333337,-401.43333333333334,null,0,0,null,0,0,null,0,0,null,0,0,null,0,0,null,0,0,null,0,0]
[null,null,null,"Heraf A-blanding",-1958.5725500000001,-840.95,null,-707.54105000000015,-303.2,null,-938.02173333333337,-401.43333333333334,null,0,0,null,0,0,null,0,0,null,0,0,null,0,0,null,0,0,null,0,0]
[null,null,null,"Heraf C-blanding",0,0,null,0,0,null,0,0,null,0,0,null,0,0,null,0,0,null,0,0,null,0,0,null,0,0,null,0,0]
[null,null,null,"Dyrlæge om medicin",-154.43924999999999,0,null,-75.399924999999982,0,null,-106.00593333333332,0,null,0,0,null,0,0,null,0,0,null,0,0,null,0,0,null,0,0,null,0,0]
[null,null,null,"Vedligehold bygninger*",0,0,null,0,0,null,0,0,null,0,0,null,0,0,null,0,0,null,0,0,null,0,0,null,0,0,null,0,0]
[null,null,null,"Vedligehold staldinv.*",0,0,null,0,0,null,0,0,null,0,0,null,0,0,null,0,0,null,0,0,null,0,0,null,0,0,null,0,0]
[]
[null,null,null,"Pr. kg mælk leveret"]
[null,null,null,"Mælk leveret  beløb - kvantum",{"$f":"IFERROR(E78/F$78,0)","v":3.5575197388939652},{"$f":"IFERROR(F78/F$78,0)","v":1},null,{"$f":"IFERROR(H78/I$78,0)","v":3.5745174137809772},{"$f":"IFERROR(I78/I$78,0)","v":1},null,{"$f":"IFERROR(K78/L$78,0)","v":6.5946066725722368},{"$f":"IFERROR(L78/L$78,0)","v":1},null,{"$f":"IFERROR(N78/O$78,0)","v":0},{"$f":"IFERROR(O78/O$78,0)","v":0},null,{"$f":"IFERROR(Q78/R$78,0)","v":0},{"$f":"IFERROR(R78/R$78,0)","v":0},null,{"$f":"IFERROR(T78/U$78,0)","v":0},{"$f":"IFERROR(U78/U$78,0)","v":0},null,{"$f":"IFERROR(W78/X$78,0)","v":0},{"$f":"IFERROR(X78/X$78,0)","v":0},null,{"$f":"IFERROR(Z78/AA$78,0)","v":0},{"$f":"IFERROR(AA78/AA$78,0)","v":0},null,{"$f":"IFERROR(AC78/AD$78,0)","v":0},{"$f":"IFERROR(AD78/AD$78,0)","v":0},null,{"$f":"IFERROR(AF78/AG$78,0)","v":0},{"$f":"IFERROR(AG78/AG$78,0)","v":0}]
[null,null,null,"Foder",-1.1213880696647534,-0.46793353067667609,null,-0.90809459475300691,-0.36443802311677959,null,-0.78261362339476226,-0.33233790018857978,null,0,0,null,0,0,null,0,0,null,0,0,null,0,0,null,0,0,null,0,0]
[null,null,null,"Eget grovfoder",0,0,null,0,0,null,0,0,null,0,0,null,0,0,null,0,0,null,0,0,null,0,0,null,0,0,null,0,0]
[null,null,null,"Heraf kraffoder",-1.0716578208698793,-0.46013646237435779,null,-0.82941534006986628,-0.35542634750193419,null,-0.7646625400120648,-0.3272429853212106,null,0,0,null,0,0,null,0,0,null,0,0,null,0,0,null,0,0,null,0,0]
[null,null,null,"Heraf A-blanding",-1.0716578208698793,-0.46013646237435779,null,-0.82941534006986628,-0.35542634750193419,null,-0.7646625400120648,-0.3272429853212106,null,0,0,null,0,0,null,0,0,null,0,0,null,0,0,null,0,0,null,0,0]
[null,null,null,"Heraf C-blanding",0,0,null,0,0,null,0,0,null,0,0,null,0,0,null,0,0,null,0,0,null,0,0,null,0,0,null,0,0]
[null,null,null,"Dyrlæge om medicin",-8.4503395144478299E-2,0,null,-8.8387598762103461E-2,0,null,-8.6414592923095307E-2,0,null,0,0,null,0,0,null,0,0,null,0,0,null,0,0,null,0,0,null,0,0]
[null,null,null,"Vedligehold bygninger*",0,0,null,0,0,null,0,0,null,0,0,null,0,0,null,0,0,null,0,0,null,0,0,null,0,0,null,0,0]
[null,null,null,"Vedligehold staldinv.*",0,0,null,0,0,null,0,0,null,0,0,null,0,0,null,0,0,null,0,0,null,0,0,null,0,0,null,0,0]
[]
[]
[null,null,null,"Antal Ha (indtast)",{"$f":"IF(Grovfoder!E13=\"\",IF(Grovfoder!E22=\"\",\"\",Grovfoder!E22),Grovfoder!E13)","v":""},null,null,{"$f":"IF(Grovfoder!H13=\"\",IF(Grovfoder!H22=\"\",\"\",Grovfoder!H22),Grovfoder!H13)","v":""},null,null,{"$f":"IF(Grovfoder!K13=\"\",IF(Grovfoder!K22=\"\",\"\",Grovfoder!K22),Grovfoder!K13)","v":""},null,null,{"$f":"IF(Grovfoder!N13=\"\",IF(Grovfoder!N22=\"\",\"\",Grovfoder!N22),Grovfoder!N13)","v":""},null,null,{"$f":"IF(Grovfoder!Q13=\"\",IF(Grovfoder!Q22=\"\",\"\",Grovfoder!Q22),Grovfoder!Q13)","v":""},null,null,{"$f":"IF(Grovfoder!T13=\"\",IF(Grovfoder!T22=\"\",\"\",Grovfoder!T22),Grovfoder!T13)","v":""},null,null,{"$f":"IF(Grovfoder!W13=\"\",IF(Grovfoder!W22=\"\",\"\",Grovfoder!W22),Grovfoder!W13)","v":""},null,null,{"$f":"IF(Grovfoder!Z13=\"\",IF(Grovfoder!Z22=\"\",\"\",Grovfoder!Z22),Grovfoder!Z13)","v":""},null,null,{"$f":"IF(Grovfoder!AC13=\"\",IF(Grovfoder!AC22=\"\",\"\",Grovfoder!AC22),Grovfoder!AC13)","v":""},null,null,{"$f":"IF(Grovfoder!AF13=\"\",IF(Grovfoder!AF22=\"\",\"\",Grovfoder!AF22),Grovfoder!AF13)","v":""}]
[null,null,null,"Vælg ejendom (fra drop down)",{"$f":"IF(E113=\"\",\"\",IF(Grovfoder!$E$17=\"\",IF(Grovfoder!E11=\"\",\"\",Grovfoder!E11),Grovfoder!$E$17))","v":""},null,null,{"$f":"IF(H113=\"\",\"\",IF(Grovfoder!$E$17=\"\",IF(Grovfoder!H11=\"\",\"\",Grovfoder!H11),Grovfoder!$E$17))","v":""},null,null,{"$f":"IF(K113=\"\",\"\",IF(Grovfoder!$E$17=\"\",IF(Grovfoder!K11=\"\",\"\",Grovfoder!K11),Grovfoder!$E$17))","v":""},null,null,{"$f":"IF(N113=\"\",\"\",IF(Grovfoder!$E$17=\"\",IF(Grovfoder!N11=\"\",\"\",Grovfoder!N11),Grovfoder!$E$17))","v":""},null,null,{"$f":"IF(Q113=\"\",\"\",IF(Grovfoder!$E$17=\"\",IF(Grovfoder!Q11=\"\",\"\",Grovfoder!Q11),Grovfoder!$E$17))","v":""},null,null,{"$f":"IF(T113=\"\",\"\",IF(Grovfoder!$E$17=\"\",IF(Grovfoder!T11=\"\",\"\",Grovfoder!T11),Grovfoder!$E$17))","v":""},null,null,{"$f":"IF(W113=\"\",\"\",IF(Grovfoder!$E$17=\"\",IF(Grovfoder!W11=\"\",\"\",Grovfoder!W11),Grovfoder!$E$17))","v":""},null,null,{"$f":"IF(Z113=\"\",\"\",IF(Grovfoder!$E$17=\"\",IF(Grovfoder!Z11=\"\",\"\",Grovfoder!Z11),Grovfoder!$E$17))","v":""},null,null,{"$f":"IF(AC113=\"\",\"\",IF(Grovfoder!$E$17=\"\",IF(Grovfoder!AC11=\"\",\"\",Grovfoder!AC11),Grovfoder!$E$17))","v":""},null,null,{"$f":"IF(AF113=\"\",\"\",IF(Grovfoder!$E$17=\"\",IF(Grovfoder!AF11=\"\",\"\",Grovfoder!AF11),Grovfoder!$E$17))","v":""}]
[null,null,null,"Vælg periode fra til (ååååmmdd)",{"$f":"IF(Grovfoder!$E$8=\"\",IF(Grovfoder!E19=\"\",\"\",Grovfoder!E19),Grovfoder!$E$8)","v":""},null,null,{"$f":"IF(Grovfoder!$E$8=\"\",IF(Grovfoder!H19=\"\",\"\",Grovfoder!H19),Grovfoder!$E$8)","v":""},null,null,{"$f":"IF(Grovfoder!$E$8=\"\",IF(Grovfoder!K19=\"\",\"\",Grovfoder!K19),Grovfoder!$E$8)","v":""},null,null,{"$f":"IF(Grovfoder!$E$8=\"\",IF(Grovfoder!N19=\"\",\"\",Grovfoder!N19),Grovfoder!$E$8)","v":""},null,null,{"$f":"IF(Grovfoder!$E$8=\"\",IF(Grovfoder!Q19=\"\",\"\",Grovfoder!Q19),Grovfoder!$E$8)","v":""},null,null,{"$f":"IF(Grovfoder!$E$8=\"\",IF(Grovfoder!T19=\"\",\"\",Grovfoder!T19),Grovfoder!$E$8)","v":""},null,null,{"$f":"IF(Grovfoder!$E$8=\"\",IF(Grovfoder!W19=\"\",\"\",Grovfoder!W19),Grovfoder!$E$8)","v":""},null,null,{"$f":"IF(Grovfoder!$E$8=\"\",IF(Grovfoder!Z19=\"\",\"\",Grovfoder!Z19),Grovfoder!$E$8)","v":""},null,null,{"$f":"IF(Grovfoder!$E$8=\"\",IF(Grovfoder!AC19=\"\",\"\",Grovfoder!AC19),Grovfoder!$E$8)","v":""},null,null,{"$f":"IF(Grovfoder!$E$8=\"\",IF(Grovfoder!AF19=\"\",\"\",Grovfoder!AF19),Grovfoder!$E$8)","v":""}]
[null,null,null,null,{"$f":"IF(Grovfoder!$E$9=\"\",IF(Grovfoder!E20=\"\",\"\",Grovfoder!E20),Grovfoder!$E$9)","v":""},null,null,{"$f":"IF(Grovfoder!$E$9=\"\",IF(Grovfoder!H20=\"\",\"\",Grovfoder!H20),Grovfoder!$E$9)","v":""},null,null,{"$f":"IF(Grovfoder!$E$9=\"\",IF(Grovfoder!K20=\"\",\"\",Grovfoder!K20),Grovfoder!$E$9)","v":""},null,null,{"$f":"IF(Grovfoder!$E$9=\"\",IF(Grovfoder!N20=\"\",\"\",Grovfoder!N20),Grovfoder!$E$9)","v":""},null,null,{"$f":"IF(Grovfoder!$E$9=\"\",IF(Grovfoder!Q20=\"\",\"\",Grovfoder!Q20),Grovfoder!$E$9)","v":""},null,null,{"$f":"IF(Grovfoder!$E$9=\"\",IF(Grovfoder!T20=\"\",\"\",Grovfoder!T20),Grovfoder!$E$9)","v":""},null,null,{"$f":"IF(Grovfoder!$E$9=\"\",IF(Grovfoder!W20=\"\",\"\",Grovfoder!W20),Grovfoder!$E$9)","v":""},null,null,{"$f":"IF(Grovfoder!$E$9=\"\",IF(Grovfoder!Z20=\"\",\"\",Grovfoder!Z20),Grovfoder!$E$9)","v":""},null,null,{"$f":"IF(Grovfoder!$E$9=\"\",IF(Grovfoder!AC20=\"\",\"\",Grovfoder!AC20),Grovfoder!$E$9)","v":""},null,null,{"$f":"IF(Grovfoder!$E$9=\"\",IF(Grovfoder!AF20=\"\",\"\",Grovfoder!AF20),Grovfoder!$E$9)","v":""}]
[]
["Grov 1","Grov 2",1,"Maskinstation i alt",{"$f":"SUMIFS(Tabel1[Beloeb],INDIRECT(\"Tabel1[\"&$A116&\"]\"),$C116,INDIRECT(\"Tabel1[\"&$B116&\"]\"),$C116,Tabel1[DWID_Sted],Beregninger!E$112,Tabel1[DWID_Dato],\">=\"&Beregninger!E$113,Tabel1[DWID_Dato],\"<=\"&Beregninger!E$114)","v":0},{"$f":"SUMIFS(Tabel1[Kvantum],INDIRECT(\"Tabel1[\"&$A116&\"]\"),$C116,INDIRECT(\"Tabel1[\"&$B116&\"]\"),$C116,Tabel1[DWID_Sted],Beregninger!E$112,Tabel1[DWID_Dato],\">=\"&Beregninger!E$113,Tabel1[DWID_Dato],\"<=\"&Beregninger!E$114)","v":0},null,{"$f":"SUMIFS(Tabel1[Beloeb],INDIRECT(\"Tabel1[\"&$A116&\"]\"),$C116,INDIRECT(\"Tabel1[\"&$B116&\"]\"),$C116,Tabel1[DWID_Sted],Beregninger!H$112,Tabel1[DWID_Dato],\">=\"&Beregninger!H$113,Tabel1[DWID_Dato],\"<=\"&Beregninger!H$114)","v":0},{"$f":"SUMIFS(Tabel1[Kvantum],INDIRECT(\"Tabel1[\"&$A116&\"]\"),$C116,INDIRECT(\"Tabel1[\"&$B116&\"]\"),$C116,Tabel1[DWID_Sted],Beregninger!H$112,Tabel1[DWID_Dato],\">=\"&Beregninger!H$113,Tabel1[DWID_Dato],\"<=\"&Beregninger!H$114)","v":0},null,{"$f":"SUMIFS(Tabel1[Beloeb],INDIRECT(\"Tabel1[\"&$A116&\"]\"),$C116,INDIRECT(\"Tabel1[\"&$B116&\"]\"),$C116,Tabel1[DWID_Sted],Beregninger!K$112,Tabel1[DWID_Dato],\">=\"&Beregninger!K$113,Tabel1[DWID_Dato],\"<=\"&Beregninger!K$114)","v":0},{"$f":"SUMIFS(Tabel1[Kvantum],INDIRECT(\"Tabel1[\"&$A116&\"]\"),$C116,INDIRECT(\"Tabel1[\"&$B116&\"]\"),$C116,Tabel1[DWID_Sted],Beregninger!K$112,Tabel1[DWID_Dato],\">=\"&Beregninger!K$113,Tabel1[DWID_Dato],\"<=\"&Beregninger!K$114)","v":0},null,{"$f":"SUMIFS(Tabel1[Beloeb],INDIRECT(\"Tabel1[\"&$A116&\"]\"),$C116,INDIRECT(\"Tabel1[\"&$B116&\"]\"),$C116,Tabel1[DWID_Sted],Beregninger!N$112,Tabel1[DWID_Dato],\">=\"&Beregninger!N$113,Tabel1[DWID_Dato],\"<=\"&Beregninger!N$114)","v":0},{"$f":"SUMIFS(Tabel1[Kvantum],INDIRECT(\"Tabel1[\"&$A116&\"]\"),$C116,INDIRECT(\"Tabel1[\"&$B116&\"]\"),$C116,Tabel1[DWID_Sted],Beregninger!N$112,Tabel1[DWID_Dato],\">=\"&Beregninger!N$113,Tabel1[DWID_Dato],\"<=\"&Beregninger!N$114)","v":0},null,{"$f":"SUMIFS(Tabel1[Beloeb],INDIRECT(\"Tabel1[\"&$A116&\"]\"),$C116,INDIRECT(\"Tabel1[\"&$B116&\"]\"),$C116,Tabel1[DWID_Sted],Beregninger!Q$112,Tabel1[DWID_Dato],\">=\"&Beregninger!Q$113,Tabel1[DWID_Dato],\"<=\"&Beregninger!Q$114)","v":0},{"$f":"SUMIFS(Tabel1[Kvantum],INDIRECT(\"Tabel1[\"&$A116&\"]\"),$C116,INDIRECT(\"Tabel1[\"&$B116&\"]\"),$C116,Tabel1[DWID_Sted],Beregninger!Q$112,Tabel1[DWID_Dato],\">=\"&Beregninger!Q$113,Tabel1[DWID_Dato],\"<=\"&Beregninger!Q$114)","v":0},null,{"$f":"SUMIFS(Tabel1[Beloeb],INDIRECT(\"Tabel1[\"&$A116&\"]\"),$C116,INDIRECT(\"Tabel1[\"&$B116&\"]\"),$C116,Tabel1[DWID_Sted],Beregninger!T$112,Tabel1[DWID_Dato],\">=\"&Beregninger!T$113,Tabel1[DWID_Dato],\"<=\"&Beregninger!T$114)","v":0},{"$f":"SUMIFS(Tabel1[Kvantum],INDIRECT(\"Tabel1[\"&$A116&\"]\"),$C116,INDIRECT(\"Tabel1[\"&$B116&\"]\"),$C116,Tabel1[DWID_Sted],Beregninger!T$112,Tabel1[DWID_Dato],\">=\"&Beregninger!T$113,Tabel1[DWID_Dato],\"<=\"&Beregninger!T$114)","v":0},null,{"$f":"SUMIFS(Tabel1[Beloeb],INDIRECT(\"Tabel1[\"&$A116&\"]\"),$C116,INDIRECT(\"Tabel1[\"&$B116&\"]\"),$C116,Tabel1[DWID_Sted],Beregninger!W$112,Tabel1[DWID_Dato],\">=\"&Beregninger!W$113,Tabel1[DWID_Dato],\"<=\"&Beregninger!W$114)","v":0},{"$f":"SUMIFS(Tabel1[Kvantum],INDIRECT(\"Tabel1[\"&$A116&\"]\"),$C116,INDIRECT(\"Tabel1[\"&$B116&\"]\"),$C116,Tabel1[DWID_Sted],Beregninger!W$112,Tabel1[DWID_Dato],\">=\"&Beregninger!W$113,Tabel1[DWID_Dato],\"<=\"&Beregninger!W$114)","v":0},null,{"$f":"SUMIFS(Tabel1[Beloeb],INDIRECT(\"Tabel1[\"&$A116&\"]\"),$C116,INDIRECT(\"Tabel1[\"&$B116&\"]\"),$C116,Tabel1[DWID_Sted],Beregninger!Z$112,Tabel1[DWID_Dato],\">=\"&Beregninger!Z$113,Tabel1[DWID_Dato],\"<=\"&Beregninger!Z$114)","v":0},{"$f":"SUMIFS(Tabel1[Kvantum],INDIRECT(\"Tabel1[\"&$A116&\"]\"),$C116,INDIRECT(\"Tabel1[\"&$B116&\"]\"),$C116,Tabel1[DWID_Sted],Beregninger!Z$112,Tabel1[DWID_Dato],\">=\"&Beregninger!Z$113,Tabel1[DWID_Dato],\"<=\"&Beregninger!Z$114)","v":0},null,{"$f":"SUMIFS(Tabel1[Beloeb],INDIRECT(\"Tabel1[\"&$A116&\"]\"),$C116,INDIRECT(\"Tabel1[\"&$B116&\"]\"),$C116,Tabel1[DWID_Sted],Beregninger!AC$112,Tabel1[DWID_Dato],\">=\"&Beregninger!AC$113,Tabel1[DWID_Dato],\"<=\"&Beregninger!AC$114)","v":0},{"$f":"SUMIFS(Tabel1[Kvantum],INDIRECT(\"Tabel1[\"&$A116&\"]\"),$C116,INDIRECT(\"Tabel1[\"&$B116&\"]\"),$C116,Tabel1[DWID_Sted],Beregninger!AC$112,Tabel1[DWID_Dato],\">=\"&Beregninger!AC$113,Tabel1[DWID_Dato],\"<=\"&Beregninger!AC$114)","v":0},null,{"$f":"SUMIFS(Tabel1[Beloeb],INDIRECT(\"Tabel1[\"&$A116&\"]\"),$C116,INDIRECT(\"Tabel1[\"&$B116&\"]\"),$C116,Tabel1[DWID_Sted],Beregninger!AF$112,Tabel1[DWID_Dato],\">=\"&Beregninger!AF$113,Tabel1[DWID_Dato],\"<=\"&Beregninger!AF$114)","v":0},{"$f":"SUMIFS(Tabel1[Kvantum],INDIRECT(\"Tabel1[\"&$A116&\"]\"),$C116,INDIRECT(\"Tabel1[\"&$B116&\"]\"),$C116,Tabel1[DWID_Sted],Beregninger!AF$112,Tabel1[DWID_Dato],\">=\"&Beregninger!AF$113,Tabel1[DWID_Dato],\"<=\"&Beregninger!AF$114)","v":0}]
["Grov 1","Grov 3",1," Heraf høst grovfoder",{"$f":"SUMIFS(Tabel1[Beloeb],INDIRECT(\"Tabel1[\"&$A117&\"]\"),$C117,INDIRECT(\"Tabel1[\"&$B117&\"]\"),$C117,Tabel1[DWID_Sted],Beregninger!E$112,Tabel1[DWID_Dato],\">=\"&Beregninger!E$113,Tabel1[DWID_Dato],\"<=\"&Beregninger!E$114)","v":0},{"$f":"SUMIFS(Tabel1[Kvantum],INDIRECT(\"Tabel1[\"&$A117&\"]\"),$C117,INDIRECT(\"Tabel1[\"&$B117&\"]\"),$C117,Tabel1[DWID_Sted],Beregninger!E$112,Tabel1[DWID_Dato],\">=\"&Beregninger!E$113,Tabel1[DWID_Dato],\"<=\"&Beregninger!E$114)","v":0},null,{"$f":"SUMIFS(Tabel1[Beloeb],INDIRECT(\"Tabel1[\"&$A117&\"]\"),$C117,INDIRECT(\"Tabel1[\"&$B117&\"]\"),$C117,Tabel1[DWID_Sted],Beregninger!H$112,Tabel1[DWID_Dato],\">=\"&Beregninger!H$113,Tabel1[DWID_Dato],\"<=\"&Beregninger!H$114)","v":0},{"$f":"SUMIFS(Tabel1[Kvantum],INDIRECT(\"Tabel1[\"&$A117&\"]\"),$C117,INDIRECT(\"Tabel1[\"&$B117&\"]\"),$C117,Tabel1[DWID_Sted],Beregninger!H$112,Tabel1[DWID_Dato],\">=\"&Beregninger!H$113,Tabel1[DWID_Dato],\"<=\"&Beregninger!H$114)","v":0},null,{"$f":"SUMIFS(Tabel1[Beloeb],INDIRECT(\"Tabel1[\"&$A117&\"]\"),$C117,INDIRECT(\"Tabel1[\"&$B117&\"]\"),$C117,Tabel1[DWID_Sted],Beregninger!K$112,Tabel1[DWID_Dato],\">=\"&Beregninger!K$113,Tabel1[DWID_Dato],\"<=\"&Beregninger!K$114)","v":0},{"$f":"SUMIFS(Tabel1[Kvantum],INDIRECT(\"Tabel1[\"&$A117&\"]\"),$C117,INDIRECT(\"Tabel1[\"&$B117&\"]\"),$C117,Tabel1[DWID_Sted],Beregninger!K$112,Tabel1[DWID_Dato],\">=\"&Beregninger!K$113,Tabel1[DWID_Dato],\"<=\"&Beregninger!K$114)","v":0},null,{"$f":"SUMIFS(Tabel1[Beloeb],INDIRECT(\"Tabel1[\"&$A117&\"]\"),$C117,INDIRECT(\"Tabel1[\"&$B117&\"]\"),$C117,Tabel1[DWID_Sted],Beregninger!N$112,Tabel1[DWID_Dato],\">=\"&Beregninger!N$113,Tabel1[DWID_Dato],\"<=\"&Beregninger!N$114)","v":0},{"$f":"SUMIFS(Tabel1[Kvantum],INDIRECT(\"Tabel1[\"&$A117&\"]\"),$C117,INDIRECT(\"Tabel1[\"&$B117&\"]\"),$C117,Tabel1[DWID_Sted],Beregninger!N$112,Tabel1[DWID_Dato],\">=\"&Beregninger!N$113,Tabel1[DWID_Dato],\"<=\"&Beregninger!N$114)","v":0},null,{"$f":"SUMIFS(Tabel1[Beloeb],INDIRECT(\"Tabel1[\"&$A117&\"]\"),$C117,INDIRECT(\"Tabel1[\"&$B117&\"]\"),$C117,Tabel1[DWID_Sted],Beregninger!Q$112,Tabel1[DWID_Dato],\">=\"&Beregninger!Q$113,Tabel1[DWID_Dato],\"<=\"&Beregninger!Q$114)","v":0},{"$f":"SUMIFS(Tabel1[Kvantum],INDIRECT(\"Tabel1[\"&$A117&\"]\"),$C117,INDIRECT(\"Tabel1[\"&$B117&\"]\"),$C117,Tabel1[DWID_Sted],Beregninger!Q$112,Tabel1[DWID_Dato],\">=\"&Beregninger!Q$113,Tabel1[DWID_Dato],\"<=\"&Beregninger!Q$114)","v":0},null,{"$f":"SUMIFS(Tabel1[Beloeb],INDIRECT(\"Tabel1[\"&$A117&\"]\"),$C117,INDIRECT(\"Tabel1[\"&$B117&\"]\"),$C117,Tabel1[DWID_Sted],Beregninger!T$112,Tabel1[DWID_Dato],\">=\"&Beregninger!T$113,Tabel1[DWID_Dato],\"<=\"&Beregninger!T$114)","v":0},{"$f":"SUMIFS(Tabel1[Kvantum],INDIRECT(\"Tabel1[\"&$A117&\"]\"),$C117,INDIRECT(\"Tabel1[\"&$B117&\"]\"),$C117,Tabel1[DWID_Sted],Beregninger!T$112,Tabel1[DWID_Dato],\">=\"&Beregninger!T$113,Tabel1[DWID_Dato],\"<=\"&Beregninger!T$114)","v":0},null,{"$f":"SUMIFS(Tabel1[Beloeb],INDIRECT(\"Tabel1[\"&$A117&\"]\"),$C117,INDIRECT(\"Tabel1[\"&$B117&\"]\"),$C117,Tabel1[DWID_Sted],Beregninger!W$112,Tabel1[DWID_Dato],\">=\"&Beregninger!W$113,Tabel1[DWID_Dato],\"<=\"&Beregninger!W$114)","v":0},{"$f":"SUMIFS(Tabel1[Kvantum],INDIRECT(\"Tabel1[\"&$A117&\"]\"),$C117,INDIRECT(\"Tabel1[\"&$B117&\"]\"),$C117,Tabel1[DWID_Sted],Beregninger!W$112,Tabel1[DWID_Dato],\">=\"&Beregninger!W$113,Tabel1[DWID_Dato],\"<=\"&Beregninger!W$114)","v":0},null,{"$f":"SUMIFS(Tabel1[Beloeb],INDIRECT(\"Tabel1[\"&$A117&\"]\"),$C117,INDIRECT(\"Tabel1[\"&$B117&\"]\"),$C117,Tabel1[DWID_Sted],Beregninger!Z$112,Tabel1[DWID_Dato],\">=\"&Beregninger!Z$113,Tabel1[DWID_Dato],\"<=\"&Beregninger!Z$114)","v":0},{"$f":"SUMIFS(Tabel1[Kvantum],INDIRECT(\"Tabel1[\"&$A117&\"]\"),$C117,INDIRECT(\"Tabel1[\"&$B117&\"]\"),$C117,Tabel1[DWID_Sted],Beregninger!Z$112,Tabel1[DWID_Dato],\">=\"&Beregninger!Z$113,Tabel1[DWID_Dato],\"<=\"&Beregninger!Z$114)","v":0},null,{"$f":"SUMIFS(Tabel1[Beloeb],INDIRECT(\"Tabel1[\"&$A117&\"]\"),$C117,INDIRECT(\"Tabel1[\"&$B117&\"]\"),$C117,Tabel1[DWID_Sted],Beregninger!AC$112,Tabel1[DWID_Dato],\">=\"&Beregninger!AC$113,Tabel1[DWID_Dato],\"<=\"&Beregninger!AC$114)","v":0},{"$f":"SUMIFS(Tabel1[Kvantum],INDIRECT(\"Tabel1[\"&$A117&\"]\"),$C117,INDIRECT(\"Tabel1[\"&$B117&\"]\"),$C117,Tabel1[DWID_Sted],Beregninger!AC$112,Tabel1[DWID_Dato],\">=\"&Beregninger!AC$113,Tabel1[DWID_Dato],\"<=\"&Beregninger!AC$114)","v":0},null,{"$f":"SUMIFS(Tabel1[Beloeb],INDIRECT(\"Tabel1[\"&$A117&\"]\"),$C117,INDIRECT(\"Tabel1[\"&$B117&\"]\"),$C117,Tabel1[DWID_Sted],Beregninger!AF$112,Tabel1[DWID_Dato],\">=\"&Beregninger!AF$113,Tabel1[DWID_Dato],\"<=\"&Beregninger!AF$114)","v":0},{"$f":"SUMIFS(Tabel1[Kvantum],INDIRECT(\"Tabel1[\"&$A117&\"]\"),$C117,INDIRECT(\"Tabel1[\"&$B117&\"]\"),$C117,Tabel1[DWID_Sted],Beregninger!AF$112,Tabel1[DWID_Dato],\">=\"&Beregninger!AF$113,Tabel1[DWID_Dato],\"<=\"&Beregninger!AF$114)","v":0}]
["Gen 5","Gen 5",1,"Vedligehold maskiner",{"$f":"SUMIFS(Tabel1[Beloeb],INDIRECT(\"Tabel1[\"&$A118&\"]\"),$C118,INDIRECT(\"Tabel1[\"&$B118&\"]\"),$C118,Tabel1[DWID_Sted],Beregninger!E$112,Tabel1[DWID_Dato],\">=\"&Beregninger!E$113,Tabel1[DWID_Dato],\"<=\"&Beregninger!E$114)","v":0},{"$f":"SUMIFS(Tabel1[Kvantum],INDIRECT(\"Tabel1[\"&$A118&\"]\"),$C118,INDIRECT(\"Tabel1[\"&$B118&\"]\"),$C118,Tabel1[DWID_Sted],Beregninger!E$112,Tabel1[DWID_Dato],\">=\"&Beregninger!E$113,Tabel1[DWID_Dato],\"<=\"&Beregninger!E$114)","v":0},null,{"$f":"SUMIFS(Tabel1[Beloeb],INDIRECT(\"Tabel1[\"&$A118&\"]\"),$C118,INDIRECT(\"Tabel1[\"&$B118&\"]\"),$C118,Tabel1[DWID_Sted],Beregninger!H$112,Tabel1[DWID_Dato],\">=\"&Beregninger!H$113,Tabel1[DWID_Dato],\"<=\"&Beregninger!H$114)","v":0},{"$f":"SUMIFS(Tabel1[Kvantum],INDIRECT(\"Tabel1[\"&$A118&\"]\"),$C118,INDIRECT(\"Tabel1[\"&$B118&\"]\"),$C118,Tabel1[DWID_Sted],Beregninger!H$112,Tabel1[DWID_Dato],\">=\"&Beregninger!H$113,Tabel1[DWID_Dato],\"<=\"&Beregninger!H$114)","v":0},null,{"$f":"SUMIFS(Tabel1[Beloeb],INDIRECT(\"Tabel1[\"&$A118&\"]\"),$C118,INDIRECT(\"Tabel1[\"&$B118&\"]\"),$C118,Tabel1[DWID_Sted],Beregninger!K$112,Tabel1[DWID_Dato],\">=\"&Beregninger!K$113,Tabel1[DWID_Dato],\"<=\"&Beregninger!K$114)","v":0},{"$f":"SUMIFS(Tabel1[Kvantum],INDIRECT(\"Tabel1[\"&$A118&\"]\"),$C118,INDIRECT(\"Tabel1[\"&$B118&\"]\"),$C118,Tabel1[DWID_Sted],Beregninger!K$112,Tabel1[DWID_Dato],\">=\"&Beregninger!K$113,Tabel1[DWID_Dato],\"<=\"&Beregninger!K$114)","v":0},null,{"$f":"SUMIFS(Tabel1[Beloeb],INDIRECT(\"Tabel1[\"&$A118&\"]\"),$C118,INDIRECT(\"Tabel1[\"&$B118&\"]\"),$C118,Tabel1[DWID_Sted],Beregninger!N$112,Tabel1[DWID_Dato],\">=\"&Beregninger!N$113,Tabel1[DWID_Dato],\"<=\"&Beregninger!N$114)","v":0},{"$f":"SUMIFS(Tabel1[Kvantum],INDIRECT(\"Tabel1[\"&$A118&\"]\"),$C118,INDIRECT(\"Tabel1[\"&$B118&\"]\"),$C118,Tabel1[DWID_Sted],Beregninger!N$112,Tabel1[DWID_Dato],\">=\"&Beregninger!N$113,Tabel1[DWID_Dato],\"<=\"&Beregninger!N$114)","v":0},null,{"$f":"SUMIFS(Tabel1[Beloeb],INDIRECT(\"Tabel1[\"&$A118&\"]\"),$C118,INDIRECT(\"Tabel1[\"&$B118&\"]\"),$C118,Tabel1[DWID_Sted],Beregninger!Q$112,Tabel1[DWID_Dato],\">=\"&Beregninger!Q$113,Tabel1[DWID_Dato],\"<=\"&Beregninger!Q$114)","v":0},{"$f":"SUMIFS(Tabel1[Kvantum],INDIRECT(\"Tabel1[\"&$A118&\"]\"),$C118,INDIRECT(\"Tabel1[\"&$B118&\"]\"),$C118,Tabel1[DWID_Sted],Beregninger!Q$112,Tabel1[DWID_Dato],\">=\"&Beregninger!Q$113,Tabel1[DWID_Dato],\"<=\"&Beregninger!Q$114)","v":0},null,{"$f":"SUMIFS(Tabel1[Beloeb],INDIRECT(\"Tabel1[\"&$A118&\"]\"),$C118,INDIRECT(\"Tabel1[\"&$B118&\"]\"),$C118,Tabel1[DWID_Sted],Beregninger!T$112,Tabel1[DWID_Dato],\">=\"&Beregninger!T$113,Tabel1[DWID_Dato],\"<=\"&Beregninger!T$114)","v":0},{"$f":"SUMIFS(Tabel1[Kvantum],INDIRECT(\"Tabel1[\"&$A118&\"]\"),$C118,INDIRECT(\"Tabel1[\"&$B118&\"]\"),$C118,Tabel1[DWID_Sted],Beregninger!T$112,Tabel1[DWID_Dato],\">=\"&Beregninger!T$113,Tabel1[DWID_Dato],\"<=\"&Beregninger!T$114)","v":0},null,{"$f":"SUMIFS(Tabel1[Beloeb],INDIRECT(\"Tabel1[\"&$A118&\"]\"),$C118,INDIRECT(\"Tabel1[\"&$B118&\"]\"),$C118,Tabel1[DWID_Sted],Beregninger!W$112,Tabel1[DWID_Dato],\">=\"&Beregninger!W$113,Tabel1[DWID_Dato],\"<=\"&Beregninger!W$114)","v":0},{"$f":"SUMIFS(Tabel1[Kvantum],INDIRECT(\"Tabel1[\"&$A118&\"]\"),$C118,INDIRECT(\"Tabel1[\"&$B118&\"]\"),$C118,Tabel1[DWID_Sted],Beregninger!W$112,Tabel1[DWID_Dato],\">=\"&Beregninger!W$113,Tabel1[DWID_Dato],\"<=\"&Beregninger!W$114)","v":0},null,{"$f":"SUMIFS(Tabel1[Beloeb],INDIRECT(\"Tabel1[\"&$A118&\"]\"),$C118,INDIRECT(\"Tabel1[\"&$B118&\"]\"),$C118,Tabel1[DWID_Sted],Beregninger!Z$112,Tabel1[DWID_Dato],\">=\"&Beregninger!Z$113,Tabel1[DWID_Dato],\"<=\"&Beregninger!Z$114)","v":0},{"$f":"SUMIFS(Tabel1[Kvantum],INDIRECT(\"Tabel1[\"&$A118&\"]\"),$C118,INDIRECT(\"Tabel1[\"&$B118&\"]\"),$C118,Tabel1[DWID_Sted],Beregninger!Z$112,Tabel1[DWID_Dato],\">=\"&Beregninger!Z$113,Tabel1[DWID_Dato],\"<=\"&Beregninger!Z$114)","v":0},null,{"$f":"SUMIFS(Tabel1[Beloeb],INDIRECT(\"Tabel1[\"&$A118&\"]\"),$C118,INDIRECT(\"Tabel1[\"&$B118&\"]\"),$C118,Tabel1[DWID_Sted],Beregninger!AC$112,Tabel1[DWID_Dato],\">=\"&Beregninger!AC$113,Tabel1[DWID_Dato],\"<=\"&Beregninger!AC$114)","v":0},{"$f":"SUMIFS(Tabel1[Kvantum],INDIRECT(\"Tabel1[\"&$A118&\"]\"),$C118,INDIRECT(\"Tabel1[\"&$B118&\"]\"),$C118,Tabel1[DWID_Sted],Beregninger!AC$112,Tabel1[DWID_Dato],\">=\"&Beregninger!AC$113,Tabel1[DWID_Dato],\"<=\"&Beregninger!AC$114)","v":0},null,{"$f":"SUMIFS(Tabel1[Beloeb],INDIRECT(\"Tabel1[\"&$A118&\"]\"),$C118,INDIRECT(\"Tabel1[\"&$B118&\"]\"),$C118,Tabel1[DWID_Sted],Beregninger!AF$112,Tabel1[DWID_Dato],\">=\"&Beregninger!AF$113,Tabel1[DWID_Dato],\"<=\"&Beregninger!AF$114)","v":0},{"$f":"SUMIFS(Tabel1[Kvantum],INDIRECT(\"Tabel1[\"&$A118&\"]\"),$C118,INDIRECT(\"Tabel1[\"&$B118&\"]\"),$C118,Tabel1[DWID_Sted],Beregninger!AF$112,Tabel1[DWID_Dato],\">=\"&Beregninger!AF$113,Tabel1[DWID_Dato],\"<=\"&Beregninger!AF$114)","v":0}]
[]
[null,null,null,"Pr ha"]
[]
[null,null,null,"Maskinstation i alt",{"$f":"IFERROR(E116/E$111,0)","v":0},{"$f":"IFERROR(F116/E$111,0)","v":0},null,{"$f":"IFERROR(H116/H$111,0)","v":0},{"$f":"IFERROR(I116/H$111,0)","v":0},null,{"$f":"IFERROR(K116/K$111,0)","v":0},{"$f":"IFERROR(L116/K$111,0)","v":0},null,{"$f":"IFERROR(N116/N$111,0)","v":0},{"$f":"IFERROR(O116/N$111,0)","v":0},null,{"$f":"IFERROR(Q116/Q$111,0)","v":0},{"$f":"IFERROR(R116/Q$111,0)","v":0},null,{"$f":"IFERROR(T116/T$111,0)","v":0},{"$f":"IFERROR(U116/T$111,0)","v":0},null,{"$f":"IFERROR(W116/W$111,0)","v":0},{"$f":"IFERROR(X116/W$111,0)","v":0},null,{"$f":"IFERROR(Z116/Z$111,0)","v":0},{"$f":"IFERROR(AA116/Z$111,0)","v":0},null,{"$f":"IFERROR(AC116/AC$111,0)","v":0},{"$f":"IFERROR(AD116/AC$111,0)","v":0},null,{"$f":"IFERROR(AF116/AF$111,0)","v":0},{"$f":"IFERROR(AG116/AF$111,0)","v":0}]
[null,null,null," Heraf høst grovfoder",{"$f":"IFERROR(E117/E$111,0)","v":0},{"$f":"IFERROR(F117/E$111,0)","v":0},null,{"$f":"IFERROR(H117/H$111,0)","v":0},{"$f":"IFERROR(I117/H$111,0)","v":0},null,{"$f":"IFERROR(K117/K$111,0)","v":0},{"$f":"IFERROR(L117/K$111,0)","v":0},null,{"$f":"IFERROR(N117/N$111,0)","v":0},{"$f":"IFERROR(O117/N$111,0)","v":0},null,{"$f":"IFERROR(Q117/Q$111,0)","v":0},{"$f":"IFERROR(R117/Q$111,0)","v":0},null,{"$f":"IFERROR(T117/T$111,0)","v":0},{"$f":"IFERROR(U117/T$111,0)","v":0},null,{"$f":"IFERROR(W117/W$111,0)","v":0},{"$f":"IFERROR(X117/W$111,0)","v":0},null,{"$f":"IFERROR(Z117/Z$111,0)","v":0},{"$f":"IFERROR(AA117/Z$111,0)","v":0},null,{"$f":"IFERROR(AC117/AC$111,0)","v":0},{"$f":"IFERROR(AD117/AC$111,0)","v":0},null,{"$f":"IFERROR(AF117/AF$111,0)","v":0},{"$f":"IFERROR(AG117/AF$111,0)","v":0}]
[null,null,null,"Vedligehold maskiner",0,0,null,0,0,null,0,0,null,0,0,null,0,0,null,0,0,null,0,0,null,0,0,null,0,0,null,0,0]
[]
[]
[]
[null,null,null,"Antal årssøer",{"$f":"IF(Sohold30kg!E13=\"\",IF(Sohold30kg!E22=\"\",\"\",Sohold30kg!E22),Sohold30kg!E13)","v":""},null,null,{"$f":"IF(Sohold30kg!H13=\"\",IF(Sohold30kg!H22=\"\",\"\",Sohold30kg!H22),Sohold30kg!H13)","v":""},null,null,{"$f":"IF(Sohold30kg!K13=\"\",IF(Sohold30kg!K22=\"\",\"\",Sohold30kg!K22),Sohold30kg!K13)","v":""},null,null,{"$f":"IF(Sohold30kg!N13=\"\",IF(Sohold30kg!N22=\"\",\"\",Sohold30kg!N22),Sohold30kg!N13)","v":""},null,null,{"$f":"IF(Sohold30kg!Q13=\"\",IF(Sohold30kg!Q22=\"\",\"\",Sohold30kg!Q22),Sohold30kg!Q13)","v":""},null,null,{"$f":"IF(Sohold30kg!T13=\"\",IF(Sohold30kg!T22=\"\",\"\",Sohold30kg!T22),Sohold30kg!T13)","v":""},null,null,{"$f":"IF(Sohold30kg!W13=\"\",IF(Sohold30kg!W22=\"\",\"\",Sohold30kg!W22),Sohold30kg!W13)","v":""},null,null,{"$f":"IF(Sohold30kg!Z13=\"\",IF(Sohold30kg!Z22=\"\",\"\",Sohold30kg!Z22),Sohold30kg!Z13)","v":""},null,null,{"$f":"IF(Sohold30kg!AC13=\"\",IF(Sohold30kg!AC22=\"\",\"\",Sohold30kg!AC22),Sohold30kg!AC13)","v":""},null,null,{"$f":"IF(Sohold30kg!AF13=\"\",IF(Sohold30kg!AF22=\"\",\"\",Sohold30kg!AF22),Sohold30kg!AF13)","v":""}]
[null,null,null,"Vælg ejendom (fra drop down)",{"$f":"IF(E130=\"\",\"\",IF(Sohold30kg!$E$17=\"\",IF(Sohold30kg!E11=\"\",\"\",Sohold30kg!E11),Sohold30kg!$E$17))","v":""},null,null,{"$f":"IF(H130=\"\",\"\",IF(Sohold30kg!$E$17=\"\",IF(Sohold30kg!H11=\"\",\"\",Sohold30kg!H11),Sohold30kg!$E$17))","v":""},null,null,{"$f":"IF(K130=\"\",\"\",IF(Sohold30kg!$E$17=\"\",IF(Sohold30kg!K11=\"\",\"\",Sohold30kg!K11),Sohold30kg!$E$17))","v":""},null,null,{"$f":"IF(N130=\"\",\"\",IF(Sohold30kg!$E$17=\"\",IF(Sohold30kg!N11=\"\",\"\",Sohold30kg!N11),Sohold30kg!$E$17))","v":""},null,null,{"$f":"IF(Q130=\"\",\"\",IF(Sohold30kg!$E$17=\"\",IF(Sohold30kg!Q11=\"\",\"\",Sohold30kg!Q11),Sohold30kg!$E$17))","v":""},null,null,{"$f":"IF(T130=\"\",\"\",IF(Sohold30kg!$E$17=\"\",IF(Sohold30kg!T11=\"\",\"\",Sohold30kg!T11),Sohold30kg!$E$17))","v":""},null,null,{"$f":"IF(W130=\"\",\"\",IF(Sohold30kg!$E$17=\"\",IF(Sohold30kg!W11=\"\",\"\",Sohold30kg!W11),Sohold30kg!$E$17))","v":""},null,null,{"$f":"IF(Z130=\"\",\"\",IF(Sohold30kg!$E$17=\"\",IF(Sohold30kg!Z11=\"\",\"\",Sohold30kg!Z11),Sohold30kg!$E$17))","v":""},null,null,{"$f":"IF(AC130=\"\",\"\",IF(Sohold30kg!$E$17=\"\",IF(Sohold30kg!AC11=\"\",\"\",Sohold30kg!AC11),Sohold30kg!$E$17))","v":""},null,null,{"$f":"IF(AF130=\"\",\"\",IF(Sohold30kg!$E$17=\"\",IF(Sohold30kg!AF11=\"\",\"\",Sohold30kg!AF11),Sohold30kg!$E$17))","v":""}]
[null,null,null,"Vælg periode fra til (ååååmmdd)",{"$f":"IF(Sohold30kg!$E$8=\"\",IF(Sohold30kg!E19=\"\",\"\",Sohold30kg!E19),Sohold30kg!$E$8)","v":""},null,null,{"$f":"IF(Sohold30kg!$E$8=\"\",IF(Sohold30kg!H19=\"\",\"\",Sohold30kg!H19),Sohold30kg!$E$8)","v":""},null,null,{"$f":"IF(Sohold30kg!$E$8=\"\",IF(Sohold30kg!K19=\"\",\"\",Sohold30kg!K19),Sohold30kg!$E$8)","v":""},null,null,{"$f":"IF(Sohold30kg!$E$8=\"\",IF(Sohold30kg!N19=\"\",\"\",Sohold30kg!N19),Sohold30kg!$E$8)","v":""},null,null,{"$f":"IF(Sohold30kg!$E$8=\"\",IF(Sohold30kg!Q19=\"\",\"\",Sohold30kg!Q19),Sohold30kg!$E$8)","v":""},null,null,{"$f":"IF(Sohold30kg!$E$8=\"\",IF(Sohold30kg!T19=\"\",\"\",Sohold30kg!T19),Sohold30kg!$E$8)","v":""},null,null,{"$f":"IF(Sohold30kg!$E$8=\"\",IF(Sohold30kg!W19=\"\",\"\",Sohold30kg!W19),Sohold30kg!$E$8)","v":""},null,null,{"$f":"IF(Sohold30kg!$E$8=\"\",IF(Sohold30kg!Z19=\"\",\"\",Sohold30kg!Z19),Sohold30kg!$E$8)","v":""},null,null,{"$f":"IF(Sohold30kg!$E$8=\"\",IF(Sohold30kg!AC19=\"\",\"\",Sohold30kg!AC19),Sohold30kg!$E$8)","v":""},null,null,{"$f":"IF(Sohold30kg!$E$8=\"\",IF(Sohold30kg!AF19=\"\",\"\",Sohold30kg!AF19),Sohold30kg!$E$8)","v":""}]
[null,null,null,null,{"$f":"IF(Sohold30kg!$E$9=\"\",IF(Sohold30kg!E20=\"\",\"\",Sohold30kg!E20),Sohold30kg!$E$9)","v":""},null,null,{"$f":"IF(Sohold30kg!$E$9=\"\",IF(Sohold30kg!H20=\"\",\"\",Sohold30kg!H20),Sohold30kg!$E$9)","v":""},null,null,{"$f":"IF(Sohold30kg!$E$9=\"\",IF(Sohold30kg!K20=\"\",\"\",Sohold30kg!K20),Sohold30kg!$E$9)","v":""},null,null,{"$f":"IF(Sohold30kg!$E$9=\"\",IF(Sohold30kg!N20=\"\",\"\",Sohold30kg!N20),Sohold30kg!$E$9)","v":""},null,null,{"$f":"IF(Sohold30kg!$E$9=\"\",IF(Sohold30kg!Q20=\"\",\"\",Sohold30kg!Q20),Sohold30kg!$E$9)","v":""},null,null,{"$f":"IF(Sohold30kg!$E$9=\"\",IF(Sohold30kg!T20=\"\",\"\",Sohold30kg!T20),Sohold30kg!$E$9)","v":""},null,null,{"$f":"IF(Sohold30kg!$E$9=\"\",IF(Sohold30kg!W20=\"\",\"\",Sohold30kg!W20),Sohold30kg!$E$9)","v":""},null,null,{"$f":"IF(Sohold30kg!$E$9=\"\",IF(Sohold30kg!Z20=\"\",\"\",Sohold30kg!Z20),Sohold30kg!$E$9)","v":""},null,null,{"$f":"IF(Sohold30kg!$E$9=\"\",IF(Sohold30kg!AC20=\"\",\"\",Sohold30kg!AC20),Sohold30kg!$E$9)","v":""},null,null,{"$f":"IF(Sohold30kg!$E$9=\"\",IF(Sohold30kg!AF20=\"\",\"\",Sohold30kg!AF20),Sohold30kg!$E$9)","v":""}]
[]
["Små 1","Små 2",1,"Solgte smågrise beløb - kvantum",{"$f":"SUMIFS(Tabel1[Beloeb],INDIRECT(\"Tabel1[\"&$A133&\"]\"),$C133,INDIRECT(\"Tabel1[\"&$B133&\"]\"),$C133,Tabel1[DWID_Sted],Beregninger!E$129,Tabel1[DWID_Dato],\">=\"&Beregninger!E$130,Tabel1[DWID_Dato],\"<=\"&Beregninger!E$131)","v":0},{"$f":"SUMIFS(Tabel1[Kvantum],INDIRECT(\"Tabel1[\"&$A133&\"]\"),$C133,INDIRECT(\"Tabel1[\"&$B133&\"]\"),$C133,Tabel1[DWID_Sted],Beregninger!E$129,Tabel1[DWID_Dato],\">=\"&Beregninger!E$130,Tabel1[DWID_Dato],\"<=\"&Beregninger!E$131)","v":0},null,{"$f":"SUMIFS(Tabel1[Beloeb],INDIRECT(\"Tabel1[\"&$A133&\"]\"),$C133,INDIRECT(\"Tabel1[\"&$B133&\"]\"),$C133,Tabel1[DWID_Sted],Beregninger!H$129,Tabel1[DWID_Dato],\">=\"&Beregninger!H$130,Tabel1[DWID_Dato],\"<=\"&Beregninger!H$131)","v":0},{"$f":"SUMIFS(Tabel1[Kvantum],INDIRECT(\"Tabel1[\"&$A133&\"]\"),$C133,INDIRECT(\"Tabel1[\"&$B133&\"]\"),$C133,Tabel1[DWID_Sted],Beregninger!H$129,Tabel1[DWID_Dato],\">=\"&Beregninger!H$130,Tabel1[DWID_Dato],\"<=\"&Beregninger!H$131)","v":0},null,{"$f":"SUMIFS(Tabel1[Beloeb],INDIRECT(\"Tabel1[\"&$A133&\"]\"),$C133,INDIRECT(\"Tabel1[\"&$B133&\"]\"),$C133,Tabel1[DWID_Sted],Beregninger!K$129,Tabel1[DWID_Dato],\">=\"&Beregninger!K$130,Tabel1[DWID_Dato],\"<=\"&Beregninger!K$131)","v":0},{"$f":"SUMIFS(Tabel1[Kvantum],INDIRECT(\"Tabel1[\"&$A133&\"]\"),$C133,INDIRECT(\"Tabel1[\"&$B133&\"]\"),$C133,Tabel1[DWID_Sted],Beregninger!K$129,Tabel1[DWID_Dato],\">=\"&Beregninger!K$130,Tabel1[DWID_Dato],\"<=\"&Beregninger!K$131)","v":0},null,{"$f":"SUMIFS(Tabel1[Beloeb],INDIRECT(\"Tabel1[\"&$A133&\"]\"),$C133,INDIRECT(\"Tabel1[\"&$B133&\"]\"),$C133,Tabel1[DWID_Sted],Beregninger!N$129,Tabel1[DWID_Dato],\">=\"&Beregninger!N$130,Tabel1[DWID_Dato],\"<=\"&Beregninger!N$131)","v":0},{"$f":"SUMIFS(Tabel1[Kvantum],INDIRECT(\"Tabel1[\"&$A133&\"]\"),$C133,INDIRECT(\"Tabel1[\"&$B133&\"]\"),$C133,Tabel1[DWID_Sted],Beregninger!N$129,Tabel1[DWID_Dato],\">=\"&Beregninger!N$130,Tabel1[DWID_Dato],\"<=\"&Beregninger!N$131)","v":0},null,{"$f":"SUMIFS(Tabel1[Beloeb],INDIRECT(\"Tabel1[\"&$A133&\"]\"),$C133,INDIRECT(\"Tabel1[\"&$B133&\"]\"),$C133,Tabel1[DWID_Sted],Beregninger!Q$129,Tabel1[DWID_Dato],\">=\"&Beregninger!Q$130,Tabel1[DWID_Dato],\"<=\"&Beregninger!Q$131)","v":0},{"$f":"SUMIFS(Tabel1[Kvantum],INDIRECT(\"Tabel1[\"&$A133&\"]\"),$C133,INDIRECT(\"Tabel1[\"&$B133&\"]\"),$C133,Tabel1[DWID_Sted],Beregninger!Q$129,Tabel1[DWID_Dato],\">=\"&Beregninger!Q$130,Tabel1[DWID_Dato],\"<=\"&Beregninger!Q$131)","v":0},null,{"$f":"SUMIFS(Tabel1[Beloeb],INDIRECT(\"Tabel1[\"&$A133&\"]\"),$C133,INDIRECT(\"Tabel1[\"&$B133&\"]\"),$C133,Tabel1[DWID_Sted],Beregninger!T$129,Tabel1[DWID_Dato],\">=\"&Beregninger!T$130,Tabel1[DWID_Dato],\"<=\"&Beregninger!T$131)","v":0},{"$f":"SUMIFS(Tabel1[Kvantum],INDIRECT(\"Tabel1[\"&$A133&\"]\"),$C133,INDIRECT(\"Tabel1[\"&$B133&\"]\"),$C133,Tabel1[DWID_Sted],Beregninger!T$129,Tabel1[DWID_Dato],\">=\"&Beregninger!T$130,Tabel1[DWID_Dato],\"<=\"&Beregninger!T$131)","v":0},null,{"$f":"SUMIFS(Tabel1[Beloeb],INDIRECT(\"Tabel1[\"&$A133&\"]\"),$C133,INDIRECT(\"Tabel1[\"&$B133&\"]\"),$C133,Tabel1[DWID_Sted],Beregninger!W$129,Tabel1[DWID_Dato],\">=\"&Beregninger!W$130,Tabel1[DWID_Dato],\"<=\"&Beregninger!W$131)","v":0},{"$f":"SUMIFS(Tabel1[Kvantum],INDIRECT(\"Tabel1[\"&$A133&\"]\"),$C133,INDIRECT(\"Tabel1[\"&$B133&\"]\"),$C133,Tabel1[DWID_Sted],Beregninger!W$129,Tabel1[DWID_Dato],\">=\"&Beregninger!W$130,Tabel1[DWID_Dato],\"<=\"&Beregninger!W$131)","v":0},null,{"$f":"SUMIFS(Tabel1[Beloeb],INDIRECT(\"Tabel1[\"&$A133&\"]\"),$C133,INDIRECT(\"Tabel1[\"&$B133&\"]\"),$C133,Tabel1[DWID_Sted],Beregninger!Z$129,Tabel1[DWID_Dato],\">=\"&Beregninger!Z$130,Tabel1[DWID_Dato],\"<=\"&Beregninger!Z$131)","v":0},{"$f":"SUMIFS(Tabel1[Kvantum],INDIRECT(\"Tabel1[\"&$A133&\"]\"),$C133,INDIRECT(\"Tabel1[\"&$B133&\"]\"),$C133,Tabel1[DWID_Sted],Beregninger!Z$129,Tabel1[DWID_Dato],\">=\"&Beregninger!Z$130,Tabel1[DWID_Dato],\"<=\"&Beregninger!Z$131)","v":0},null,{"$f":"SUMIFS(Tabel1[Beloeb],INDIRECT(\"Tabel1[\"&$A133&\"]\"),$C133,INDIRECT(\"Tabel1[\"&$B133&\"]\"),$C133,Tabel1[DWID_Sted],Beregninger!AC$129,Tabel1[DWID_Dato],\">=\"&Beregninger!AC$130,Tabel1[DWID_Dato],\"<=\"&Beregninger!AC$131)","v":0},{"$f":"SUMIFS(Tabel1[Kvantum],INDIRECT(\"Tabel1[\"&$A133&\"]\"),$C133,INDIRECT(\"Tabel1[\"&$B133&\"]\"),$C133,Tabel1[DWID_Sted],Beregninger!AC$129,Tabel1[DWID_Dato],\">=\"&Beregninger!AC$130,Tabel1[DWID_Dato],\"<=\"&Beregninger!AC$131)","v":0},null,{"$f":"SUMIFS(Tabel1[Beloeb],INDIRECT(\"Tabel1[\"&$A133&\"]\"),$C133,INDIRECT(\"Tabel1[\"&$B133&\"]\"),$C133,Tabel1[DWID_Sted],Beregninger!AF$129,Tabel1[DWID_Dato],\">=\"&Beregninger!AF$130,Tabel1[DWID_Dato],\"<=\"&Beregninger!AF$131)","v":0},{"$f":"SUMIFS(Tabel1[Kvantum],INDIRECT(\"Tabel1[\"&$A133&\"]\"),$C133,INDIRECT(\"Tabel1[\"&$B133&\"]\"),$C133,Tabel1[DWID_Sted],Beregninger!AF$129,Tabel1[DWID_Dato],\">=\"&Beregninger!AF$130,Tabel1[DWID_Dato],\"<=\"&Beregninger!AF$131)","v":0}]
["Små 1","Gen 1",1,"Foder",{"$f":"SUMIFS(Tabel1[Beloeb],INDIRECT(\"Tabel1[\"&$A134&\"]\"),$C134,INDIRECT(\"Tabel1[\"&$B134&\"]\"),$C134,Tabel1[DWID_Sted],Beregninger!E$129,Tabel1[DWID_Dato],\">=\"&Beregninger!E$130,Tabel1[DWID_Dato],\"<=\"&Beregninger!E$131)","v":0},{"$f":"SUMIFS(Tabel1[Kvantum],INDIRECT(\"Tabel1[\"&$A134&\"]\"),$C134,INDIRECT(\"Tabel1[\"&$B134&\"]\"),$C134,Tabel1[DWID_Sted],Beregninger!E$129,Tabel1[DWID_Dato],\">=\"&Beregninger!E$130,Tabel1[DWID_Dato],\"<=\"&Beregninger!E$131)","v":0},null,{"$f":"SUMIFS(Tabel1[Beloeb],INDIRECT(\"Tabel1[\"&$A134&\"]\"),$C134,INDIRECT(\"Tabel1[\"&$B134&\"]\"),$C134,Tabel1[DWID_Sted],Beregninger!H$129,Tabel1[DWID_Dato],\">=\"&Beregninger!H$130,Tabel1[DWID_Dato],\"<=\"&Beregninger!H$131)","v":0},{"$f":"SUMIFS(Tabel1[Kvantum],INDIRECT(\"Tabel1[\"&$A134&\"]\"),$C134,INDIRECT(\"Tabel1[\"&$B134&\"]\"),$C134,Tabel1[DWID_Sted],Beregninger!H$129,Tabel1[DWID_Dato],\">=\"&Beregninger!H$130,Tabel1[DWID_Dato],\"<=\"&Beregninger!H$131)","v":0},null,{"$f":"SUMIFS(Tabel1[Beloeb],INDIRECT(\"Tabel1[\"&$A134&\"]\"),$C134,INDIRECT(\"Tabel1[\"&$B134&\"]\"),$C134,Tabel1[DWID_Sted],Beregninger!K$129,Tabel1[DWID_Dato],\">=\"&Beregninger!K$130,Tabel1[DWID_Dato],\"<=\"&Beregninger!K$131)","v":0},{"$f":"SUMIFS(Tabel1[Kvantum],INDIRECT(\"Tabel1[\"&$A134&\"]\"),$C134,INDIRECT(\"Tabel1[\"&$B134&\"]\"),$C134,Tabel1[DWID_Sted],Beregninger!K$129,Tabel1[DWID_Dato],\">=\"&Beregninger!K$130,Tabel1[DWID_Dato],\"<=\"&Beregninger!K$131)","v":0},null,{"$f":"SUMIFS(Tabel1[Beloeb],INDIRECT(\"Tabel1[\"&$A134&\"]\"),$C134,INDIRECT(\"Tabel1[\"&$B134&\"]\"),$C134,Tabel1[DWID_Sted],Beregninger!N$129,Tabel1[DWID_Dato],\">=\"&Beregninger!N$130,Tabel1[DWID_Dato],\"<=\"&Beregninger!N$131)","v":0},{"$f":"SUMIFS(Tabel1[Kvantum],INDIRECT(\"Tabel1[\"&$A134&\"]\"),$C134,INDIRECT(\"Tabel1[\"&$B134&\"]\"),$C134,Tabel1[DWID_Sted],Beregninger!N$129,Tabel1[DWID_Dato],\">=\"&Beregninger!N$130,Tabel1[DWID_Dato],\"<=\"&Beregninger!N$131)","v":0},null,{"$f":"SUMIFS(Tabel1[Beloeb],INDIRECT(\"Tabel1[\"&$A134&\"]\"),$C134,INDIRECT(\"Tabel1[\"&$B134&\"]\"),$C134,Tabel1[DWID_Sted],Beregninger!Q$129,Tabel1[DWID_Dato],\">=\"&Beregninger!Q$130,Tabel1[DWID_Dato],\"<=\"&Beregninger!Q$131)","v":0},{"$f":"SUMIFS(Tabel1[Kvantum],INDIRECT(\"Tabel1[\"&$A134&\"]\"),$C134,INDIRECT(\"Tabel1[\"&$B134&\"]\"),$C134,Tabel1[DWID_Sted],Beregninger!Q$129,Tabel1[DWID_Dato],\">=\"&Beregninger!Q$130,Tabel1[DWID_Dato],\"<=\"&Beregninger!Q$131)","v":0},null,{"$f":"SUMIFS(Tabel1[Beloeb],INDIRECT(\"Tabel1[\"&$A134&\"]\"),$C134,INDIRECT(\"Tabel1[\"&$B134&\"]\"),$C134,Tabel1[DWID_Sted],Beregninger!T$129,Tabel1[DWID_Dato],\">=\"&Beregninger!T$130,Tabel1[DWID_Dato],\"<=\"&Beregninger!T$131)","v":0},{"$f":"SUMIFS(Tabel1[Kvantum],INDIRECT(\"Tabel1[\"&$A134&\"]\"),$C134,INDIRECT(\"Tabel1[\"&$B134&\"]\"),$C134,Tabel1[DWID_Sted],Beregninger!T$129,Tabel1[DWID_Dato],\">=\"&Beregninger!T$130,Tabel1[DWID_Dato],\"<=\"&Beregninger!T$131)","v":0},null,{"$f":"SUMIFS(Tabel1[Beloeb],INDIRECT(\"Tabel1[\"&$A134&\"]\"),$C134,INDIRECT(\"Tabel1[\"&$B134&\"]\"),$C134,Tabel1[DWID_Sted],Beregninger!W$129,Tabel1[DWID_Dato],\">=\"&Beregninger!W$130,Tabel1[DWID_Dato],\"<=\"&Beregninger!W$131)","v":0},{"$f":"SUMIFS(Tabel1[Kvantum],INDIRECT(\"Tabel1[\"&$A134&\"]\"),$C134,INDIRECT(\"Tabel1[\"&$B134&\"]\"),$C134,Tabel1[DWID_Sted],Beregninger!W$129,Tabel1[DWID_Dato],\">=\"&Beregninger!W$130,Tabel1[DWID_Dato],\"<=\"&Beregninger!W$131)","v":0},null,{"$f":"SUMIFS(Tabel1[Beloeb],INDIRECT(\"Tabel1[\"&$A134&\"]\"),$C134,INDIRECT(\"Tabel1[\"&$B134&\"]\"),$C134,Tabel1[DWID_Sted],Beregninger!Z$129,Tabel1[DWID_Dato],\">=\"&Beregninger!Z$130,Tabel1[DWID_Dato],\"<=\"&Beregninger!Z$131)","v":0},{"$f":"SUMIFS(Tabel1[Kvantum],INDIRECT(\"Tabel1[\"&$A134&\"]\"),$C134,INDIRECT(\"Tabel1[\"&$B134&\"]\"),$C134,Tabel1[DWID_Sted],Beregninger!Z$129,Tabel1[DWID_Dato],\">=\"&Beregninger!Z$130,Tabel1[DWID_Dato],\"<=\"&Beregninger!Z$131)","v":0},null,{"$f":"SUMIFS(Tabel1[Beloeb],INDIRECT(\"Tabel1[\"&$A134&\"]\"),$C134,INDIRECT(\"Tabel1[\"&$B134&\"]\"),$C134,Tabel1[DWID_Sted],Beregninger!AC$129,Tabel1[DWID_Dato],\">=\"&Beregninger!AC$130,Tabel1[DWID_Dato],\"<=\"&Beregninger!AC$131)","v":0},{"$f":"SUMIFS(Tabel1[Kvantum],INDIRECT(\"Tabel1[\"&$A134&\"]\"),$C134,INDIRECT(\"Tabel1[\"&$B134&\"]\"),$C134,Tabel1[DWID_Sted],Beregninger!AC$129,Tabel1[DWID_Dato],\">=\"&Beregninger!AC$130,Tabel1[DWID_Dato],\"<=\"&Beregninger!AC$131)","v":0},null,{"$f":"SUMIFS(Tabel1[Beloeb],INDIRECT(\"Tabel1[\"&$A134&\"]\"),$C134,INDIRECT(\"Tabel1[\"&$B134&\"]\"),$C134,Tabel1[DWID_Sted],Beregninger!AF$129,Tabel1[DWID_Dato],\">=\"&Beregninger!AF$130,Tabel1[DWID_Dato],\"<=\"&Beregninger!AF$131)","v":0},{"$f":"SUMIFS(Tabel1[Kvantum],INDIRECT(\"Tabel1[\"&$A134&\"]\"),$C134,INDIRECT(\"Tabel1[\"&$B134&\"]\"),$C134,Tabel1[DWID_Sted],Beregninger!AF$129,Tabel1[DWID_Dato],\">=\"&Beregninger!AF$130,Tabel1[DWID_Dato],\"<=\"&Beregninger!AF$131)","v":0}]
["Små 1","Små 3",1," Heraf korn",{"$f":"SUMIFS(Tabel1[Beloeb],INDIRECT(\"Tabel1[\"&$A135&\"]\"),$C135,INDIRECT(\"Tabel1[\"&$B135&\"]\"),$C135,Tabel1[DWID_Sted],Beregninger!E$129,Tabel1[DWID_Dato],\">=\"&Beregninger!E$130,Tabel1[DWID_Dato],\"<=\"&Beregninger!E$131)","v":0},{"$f":"SUMIFS(Tabel1[Kvantum],INDIRECT(\"Tabel1[\"&$A135&\"]\"),$C135,INDIRECT(\"Tabel1[\"&$B135&\"]\"),$C135,Tabel1[DWID_Sted],Beregninger!E$129,Tabel1[DWID_Dato],\">=\"&Beregninger!E$130,Tabel1[DWID_Dato],\"<=\"&Beregninger!E$131)","v":0},null,{"$f":"SUMIFS(Tabel1[Beloeb],INDIRECT(\"Tabel1[\"&$A135&\"]\"),$C135,INDIRECT(\"Tabel1[\"&$B135&\"]\"),$C135,Tabel1[DWID_Sted],Beregninger!H$129,Tabel1[DWID_Dato],\">=\"&Beregninger!H$130,Tabel1[DWID_Dato],\"<=\"&Beregninger!H$131)","v":0},{"$f":"SUMIFS(Tabel1[Kvantum],INDIRECT(\"Tabel1[\"&$A135&\"]\"),$C135,INDIRECT(\"Tabel1[\"&$B135&\"]\"),$C135,Tabel1[DWID_Sted],Beregninger!H$129,Tabel1[DWID_Dato],\">=\"&Beregninger!H$130,Tabel1[DWID_Dato],\"<=\"&Beregninger!H$131)","v":0},null,{"$f":"SUMIFS(Tabel1[Beloeb],INDIRECT(\"Tabel1[\"&$A135&\"]\"),$C135,INDIRECT(\"Tabel1[\"&$B135&\"]\"),$C135,Tabel1[DWID_Sted],Beregninger!K$129,Tabel1[DWID_Dato],\">=\"&Beregninger!K$130,Tabel1[DWID_Dato],\"<=\"&Beregninger!K$131)","v":0},{"$f":"SUMIFS(Tabel1[Kvantum],INDIRECT(\"Tabel1[\"&$A135&\"]\"),$C135,INDIRECT(\"Tabel1[\"&$B135&\"]\"),$C135,Tabel1[DWID_Sted],Beregninger!K$129,Tabel1[DWID_Dato],\">=\"&Beregninger!K$130,Tabel1[DWID_Dato],\"<=\"&Beregninger!K$131)","v":0},null,{"$f":"SUMIFS(Tabel1[Beloeb],INDIRECT(\"Tabel1[\"&$A135&\"]\"),$C135,INDIRECT(\"Tabel1[\"&$B135&\"]\"),$C135,Tabel1[DWID_Sted],Beregninger!N$129,Tabel1[DWID_Dato],\">=\"&Beregninger!N$130,Tabel1[DWID_Dato],\"<=\"&Beregninger!N$131)","v":0},{"$f":"SUMIFS(Tabel1[Kvantum],INDIRECT(\"Tabel1[\"&$A135&\"]\"),$C135,INDIRECT(\"Tabel1[\"&$B135&\"]\"),$C135,Tabel1[DWID_Sted],Beregninger!N$129,Tabel1[DWID_Dato],\">=\"&Beregninger!N$130,Tabel1[DWID_Dato],\"<=\"&Beregninger!N$131)","v":0},null,{"$f":"SUMIFS(Tabel1[Beloeb],INDIRECT(\"Tabel1[\"&$A135&\"]\"),$C135,INDIRECT(\"Tabel1[\"&$B135&\"]\"),$C135,Tabel1[DWID_Sted],Beregninger!Q$129,Tabel1[DWID_Dato],\">=\"&Beregninger!Q$130,Tabel1[DWID_Dato],\"<=\"&Beregninger!Q$131)","v":0},{"$f":"SUMIFS(Tabel1[Kvantum],INDIRECT(\"Tabel1[\"&$A135&\"]\"),$C135,INDIRECT(\"Tabel1[\"&$B135&\"]\"),$C135,Tabel1[DWID_Sted],Beregninger!Q$129,Tabel1[DWID_Dato],\">=\"&Beregninger!Q$130,Tabel1[DWID_Dato],\"<=\"&Beregninger!Q$131)","v":0},null,{"$f":"SUMIFS(Tabel1[Beloeb],INDIRECT(\"Tabel1[\"&$A135&\"]\"),$C135,INDIRECT(\"Tabel1[\"&$B135&\"]\"),$C135,Tabel1[DWID_Sted],Beregninger!T$129,Tabel1[DWID_Dato],\">=\"&Beregninger!T$130,Tabel1[DWID_Dato],\"<=\"&Beregninger!T$131)","v":0},{"$f":"SUMIFS(Tabel1[Kvantum],INDIRECT(\"Tabel1[\"&$A135&\"]\"),$C135,INDIRECT(\"Tabel1[\"&$B135&\"]\"),$C135,Tabel1[DWID_Sted],Beregninger!T$129,Tabel1[DWID_Dato],\">=\"&Beregninger!T$130,Tabel1[DWID_Dato],\"<=\"&Beregninger!T$131)","v":0},null,{"$f":"SUMIFS(Tabel1[Beloeb],INDIRECT(\"Tabel1[\"&$A135&\"]\"),$C135,INDIRECT(\"Tabel1[\"&$B135&\"]\"),$C135,Tabel1[DWID_Sted],Beregninger!W$129,Tabel1[DWID_Dato],\">=\"&Beregninger!W$130,Tabel1[DWID_Dato],\"<=\"&Beregninger!W$131)","v":0},{"$f":"SUMIFS(Tabel1[Kvantum],INDIRECT(\"Tabel1[\"&$A135&\"]\"),$C135,INDIRECT(\"Tabel1[\"&$B135&\"]\"),$C135,Tabel1[DWID_Sted],Beregninger!W$129,Tabel1[DWID_Dato],\">=\"&Beregninger!W$130,Tabel1[DWID_Dato],\"<=\"&Beregninger!W$131)","v":0},null,{"$f":"SUMIFS(Tabel1[Beloeb],INDIRECT(\"Tabel1[\"&$A135&\"]\"),$C135,INDIRECT(\"Tabel1[\"&$B135&\"]\"),$C135,Tabel1[DWID_Sted],Beregninger!Z$129,Tabel1[DWID_Dato],\">=\"&Beregninger!Z$130,Tabel1[DWID_Dato],\"<=\"&Beregninger!Z$131)","v":0},{"$f":"SUMIFS(Tabel1[Kvantum],INDIRECT(\"Tabel1[\"&$A135&\"]\"),$C135,INDIRECT(\"Tabel1[\"&$B135&\"]\"),$C135,Tabel1[DWID_Sted],Beregninger!Z$129,Tabel1[DWID_Dato],\">=\"&Beregninger!Z$130,Tabel1[DWID_Dato],\"<=\"&Beregninger!Z$131)","v":0},null,{"$f":"SUMIFS(Tabel1[Beloeb],INDIRECT(\"Tabel1[\"&$A135&\"]\"),$C135,INDIRECT(\"Tabel1[\"&$B135&\"]\"),$C135,Tabel1[DWID_Sted],Beregninger!AC$129,Tabel1[DWID_Dato],\">=\"&Beregninger!AC$130,Tabel1[DWID_Dato],\"<=\"&Beregninger!AC$131)","v":0},{"$f":"SUMIFS(Tabel1[Kvantum],INDIRECT(\"Tabel1[\"&$A135&\"]\"),$C135,INDIRECT(\"Tabel1[\"&$B135&\"]\"),$C135,Tabel1[DWID_Sted],Beregninger!AC$129,Tabel1[DWID_Dato],\">=\"&Beregninger!AC$130,Tabel1[DWID_Dato],\"<=\"&Beregninger!AC$131)","v":0},null,{"$f":"SUMIFS(Tabel1[Beloeb],INDIRECT(\"Tabel1[\"&$A135&\"]\"),$C135,INDIRECT(\"Tabel1[\"&$B135&\"]\"),$C135,Tabel1[DWID_Sted],Beregninger!AF$129,Tabel1[DWID_Dato],\">=\"&Beregninger!AF$130,Tabel1[DWID_Dato],\"<=\"&Beregninger!AF$131)","v":0},{"$f":"SUMIFS(Tabel1[Kvantum],INDIRECT(\"Tabel1[\"&$A135&\"]\"),$C135,INDIRECT(\"Tabel1[\"&$B135&\"]\"),$C135,Tabel1[DWID_Sted],Beregninger!AF$129,Tabel1[DWID_Dato],\">=\"&Beregninger!AF$130,Tabel1[DWID_Dato],\"<=\"&Beregninger!AF$131)","v":0}]
["Små 1","Små 4",1," Heraf tilskudsfoder",{"$f":"SUMIFS(Tabel1[Beloeb],INDIRECT(\"Tabel1[\"&$A136&\"]\"),$C136,INDIRECT(\"Tabel1[\"&$B136&\"]\"),$C136,Tabel1[DWID_Sted],Beregninger!E$129,Tabel1[DWID_Dato],\">=\"&Beregninger!E$130,Tabel1[DWID_Dato],\"<=\"&Beregninger!E$131)","v":0},{"$f":"SUMIFS(Tabel1[Kvantum],INDIRECT(\"Tabel1[\"&$A136&\"]\"),$C136,INDIRECT(\"Tabel1[\"&$B136&\"]\"),$C136,Tabel1[DWID_Sted],Beregninger!E$129,Tabel1[DWID_Dato],\">=\"&Beregninger!E$130,Tabel1[DWID_Dato],\"<=\"&Beregninger!E$131)","v":0},null,{"$f":"SUMIFS(Tabel1[Beloeb],INDIRECT(\"Tabel1[\"&$A136&\"]\"),$C136,INDIRECT(\"Tabel1[\"&$B136&\"]\"),$C136,Tabel1[DWID_Sted],Beregninger!H$129,Tabel1[DWID_Dato],\">=\"&Beregninger!H$130,Tabel1[DWID_Dato],\"<=\"&Beregninger!H$131)","v":0},{"$f":"SUMIFS(Tabel1[Kvantum],INDIRECT(\"Tabel1[\"&$A136&\"]\"),$C136,INDIRECT(\"Tabel1[\"&$B136&\"]\"),$C136,Tabel1[DWID_Sted],Beregninger!H$129,Tabel1[DWID_Dato],\">=\"&Beregninger!H$130,Tabel1[DWID_Dato],\"<=\"&Beregninger!H$131)","v":0},null,{"$f":"SUMIFS(Tabel1[Beloeb],INDIRECT(\"Tabel1[\"&$A136&\"]\"),$C136,INDIRECT(\"Tabel1[\"&$B136&\"]\"),$C136,Tabel1[DWID_Sted],Beregninger!K$129,Tabel1[DWID_Dato],\">=\"&Beregninger!K$130,Tabel1[DWID_Dato],\"<=\"&Beregninger!K$131)","v":0},{"$f":"SUMIFS(Tabel1[Kvantum],INDIRECT(\"Tabel1[\"&$A136&\"]\"),$C136,INDIRECT(\"Tabel1[\"&$B136&\"]\"),$C136,Tabel1[DWID_Sted],Beregninger!K$129,Tabel1[DWID_Dato],\">=\"&Beregninger!K$130,Tabel1[DWID_Dato],\"<=\"&Beregninger!K$131)","v":0},null,{"$f":"SUMIFS(Tabel1[Beloeb],INDIRECT(\"Tabel1[\"&$A136&\"]\"),$C136,INDIRECT(\"Tabel1[\"&$B136&\"]\"),$C136,Tabel1[DWID_Sted],Beregninger!N$129,Tabel1[DWID_Dato],\">=\"&Beregninger!N$130,Tabel1[DWID_Dato],\"<=\"&Beregninger!N$131)","v":0},{"$f":"SUMIFS(Tabel1[Kvantum],INDIRECT(\"Tabel1[\"&$A136&\"]\"),$C136,INDIRECT(\"Tabel1[\"&$B136&\"]\"),$C136,Tabel1[DWID_Sted],Beregninger!N$129,Tabel1[DWID_Dato],\">=\"&Beregninger!N$130,Tabel1[DWID_Dato],\"<=\"&Beregninger!N$131)","v":0},null,{"$f":"SUMIFS(Tabel1[Beloeb],INDIRECT(\"Tabel1[\"&$A136&\"]\"),$C136,INDIRECT(\"Tabel1[\"&$B136&\"]\"),$C136,Tabel1[DWID_Sted],Beregninger!Q$129,Tabel1[DWID_Dato],\">=\"&Beregninger!Q$130,Tabel1[DWID_Dato],\"<=\"&Beregninger!Q$131)","v":0},{"$f":"SUMIFS(Tabel1[Kvantum],INDIRECT(\"Tabel1[\"&$A136&\"]\"),$C136,INDIRECT(\"Tabel1[\"&$B136&\"]\"),$C136,Tabel1[DWID_Sted],Beregninger!Q$129,Tabel1[DWID_Dato],\">=\"&Beregninger!Q$130,Tabel1[DWID_Dato],\"<=\"&Beregninger!Q$131)","v":0},null,{"$f":"SUMIFS(Tabel1[Beloeb],INDIRECT(\"Tabel1[\"&$A136&\"]\"),$C136,INDIRECT(\"Tabel1[\"&$B136&\"]\"),$C136,Tabel1[DWID_Sted],Beregninger!T$129,Tabel1[DWID_Dato],\">=\"&Beregninger!T$130,Tabel1[DWID_Dato],\"<=\"&Beregninger!T$131)","v":0},{"$f":"SUMIFS(Tabel1[Kvantum],INDIRECT(\"Tabel1[\"&$A136&\"]\"),$C136,INDIRECT(\"Tabel1[\"&$B136&\"]\"),$C136,Tabel1[DWID_Sted],Beregninger!T$129,Tabel1[DWID_Dato],\">=\"&Beregninger!T$130,Tabel1[DWID_Dato],\"<=\"&Beregninger!T$131)","v":0},null,{"$f":"SUMIFS(Tabel1[Beloeb],INDIRECT(\"Tabel1[\"&$A136&\"]\"),$C136,INDIRECT(\"Tabel1[\"&$B136&\"]\"),$C136,Tabel1[DWID_Sted],Beregninger!W$129,Tabel1[DWID_Dato],\">=\"&Beregninger!W$130,Tabel1[DWID_Dato],\"<=\"&Beregninger!W$131)","v":0},{"$f":"SUMIFS(Tabel1[Kvantum],INDIRECT(\"Tabel1[\"&$A136&\"]\"),$C136,INDIRECT(\"Tabel1[\"&$B136&\"]\"),$C136,Tabel1[DWID_Sted],Beregninger!W$129,Tabel1[DWID_Dato],\">=\"&Beregninger!W$130,Tabel1[DWID_Dato],\"<=\"&Beregninger!W$131)","v":0},null,{"$f":"SUMIFS(Tabel1[Beloeb],INDIRECT(\"Tabel1[\"&$A136&\"]\"),$C136,INDIRECT(\"Tabel1[\"&$B136&\"]\"),$C136,Tabel1[DWID_Sted],Beregninger!Z$129,Tabel1[DWID_Dato],\">=\"&Beregninger!Z$130,Tabel1[DWID_Dato],\"<=\"&Beregninger!Z$131)","v":0},{"$f":"SUMIFS(Tabel1[Kvantum],INDIRECT(\"Tabel1[\"&$A136&\"]\"),$C136,INDIRECT(\"Tabel1[\"&$B136&\"]\"),$C136,Tabel1[DWID_Sted],Beregninger!Z$129,Tabel1[DWID_Dato],\">=\"&Beregninger!Z$130,Tabel1[DWID_Dato],\"<=\"&Beregninger!Z$131)","v":0},null,{"$f":"SUMIFS(Tabel1[Beloeb],INDIRECT(\"Tabel1[\"&$A136&\"]\"),$C136,INDIRECT(\"Tabel1[\"&$B136&\"]\"),$C136,Tabel1[DWID_Sted],Beregninger!AC$129,Tabel1[DWID_Dato],\">=\"&Beregninger!AC$130,Tabel1[DWID_Dato],\"<=\"&Beregninger!AC$131)","v":0},{"$f":"SUMIFS(Tabel1[Kvantum],INDIRECT(\"Tabel1[\"&$A136&\"]\"),$C136,INDIRECT(\"Tabel1[\"&$B136&\"]\"),$C136,Tabel1[DWID_Sted],Beregninger!AC$129,Tabel1[DWID_Dato],\">=\"&Beregninger!AC$130,Tabel1[DWID_Dato],\"<=\"&Beregninger!AC$131)","v":0},null,{"$f":"SUMIFS(Tabel1[Beloeb],INDIRECT(\"Tabel1[\"&$A136&\"]\"),$C136,INDIRECT(\"Tabel1[\"&$B136&\"]\"),$C136,Tabel1[DWID_Sted],Beregninger!AF$129,Tabel1[DWID_Dato],\">=\"&Beregninger!AF$130,Tabel1[DWID_Dato],\"<=\"&Beregninger!AF$131)","v":0},{"$f":"SUMIFS(Tabel1[Kvantum],INDIRECT(\"Tabel1[\"&$A136&\"]\"),$C136,INDIRECT(\"Tabel1[\"&$B136&\"]\"),$C136,Tabel1[DWID_Sted],Beregninger!AF$129,Tabel1[DWID_Dato],\">=\"&Beregninger!AF$130,Tabel1[DWID_Dato],\"<=\"&Beregninger!AF$131)","v":0}]
["Små 1","Små 5",1," Heraf Smågriseblanding",{"$f":"SUMIFS(Tabel1[Beloeb],INDIRECT(\"Tabel1[\"&$A137&\"]\"),$C137,INDIRECT(\"Tabel1[\"&$B137&\"]\"),$C137,Tabel1[DWID_Sted],Beregninger!E$129,Tabel1[DWID_Dato],\">=\"&Beregninger!E$130,Tabel1[DWID_Dato],\"<=\"&Beregninger!E$131)","v":0},{"$f":"SUMIFS(Tabel1[Kvantum],INDIRECT(\"Tabel1[\"&$A137&\"]\"),$C137,INDIRECT(\"Tabel1[\"&$B137&\"]\"),$C137,Tabel1[DWID_Sted],Beregninger!E$129,Tabel1[DWID_Dato],\">=\"&Beregninger!E$130,Tabel1[DWID_Dato],\"<=\"&Beregninger!E$131)","v":0},null,{"$f":"SUMIFS(Tabel1[Beloeb],INDIRECT(\"Tabel1[\"&$A137&\"]\"),$C137,INDIRECT(\"Tabel1[\"&$B137&\"]\"),$C137,Tabel1[DWID_Sted],Beregninger!H$129,Tabel1[DWID_Dato],\">=\"&Beregninger!H$130,Tabel1[DWID_Dato],\"<=\"&Beregninger!H$131)","v":0},{"$f":"SUMIFS(Tabel1[Kvantum],INDIRECT(\"Tabel1[\"&$A137&\"]\"),$C137,INDIRECT(\"Tabel1[\"&$B137&\"]\"),$C137,Tabel1[DWID_Sted],Beregninger!H$129,Tabel1[DWID_Dato],\">=\"&Beregninger!H$130,Tabel1[DWID_Dato],\"<=\"&Beregninger!H$131)","v":0},null,{"$f":"SUMIFS(Tabel1[Beloeb],INDIRECT(\"Tabel1[\"&$A137&\"]\"),$C137,INDIRECT(\"Tabel1[\"&$B137&\"]\"),$C137,Tabel1[DWID_Sted],Beregninger!K$129,Tabel1[DWID_Dato],\">=\"&Beregninger!K$130,Tabel1[DWID_Dato],\"<=\"&Beregninger!K$131)","v":0},{"$f":"SUMIFS(Tabel1[Kvantum],INDIRECT(\"Tabel1[\"&$A137&\"]\"),$C137,INDIRECT(\"Tabel1[\"&$B137&\"]\"),$C137,Tabel1[DWID_Sted],Beregninger!K$129,Tabel1[DWID_Dato],\">=\"&Beregninger!K$130,Tabel1[DWID_Dato],\"<=\"&Beregninger!K$131)","v":0},null,{"$f":"SUMIFS(Tabel1[Beloeb],INDIRECT(\"Tabel1[\"&$A137&\"]\"),$C137,INDIRECT(\"Tabel1[\"&$B137&\"]\"),$C137,Tabel1[DWID_Sted],Beregninger!N$129,Tabel1[DWID_Dato],\">=\"&Beregninger!N$130,Tabel1[DWID_Dato],\"<=\"&Beregninger!N$131)","v":0},{"$f":"SUMIFS(Tabel1[Kvantum],INDIRECT(\"Tabel1[\"&$A137&\"]\"),$C137,INDIRECT(\"Tabel1[\"&$B137&\"]\"),$C137,Tabel1[DWID_Sted],Beregninger!N$129,Tabel1[DWID_Dato],\">=\"&Beregninger!N$130,Tabel1[DWID_Dato],\"<=\"&Beregninger!N$131)","v":0},null,{"$f":"SUMIFS(Tabel1[Beloeb],INDIRECT(\"Tabel1[\"&$A137&\"]\"),$C137,INDIRECT(\"Tabel1[\"&$B137&\"]\"),$C137,Tabel1[DWID_Sted],Beregninger!Q$129,Tabel1[DWID_Dato],\">=\"&Beregninger!Q$130,Tabel1[DWID_Dato],\"<=\"&Beregninger!Q$131)","v":0},{"$f":"SUMIFS(Tabel1[Kvantum],INDIRECT(\"Tabel1[\"&$A137&\"]\"),$C137,INDIRECT(\"Tabel1[\"&$B137&\"]\"),$C137,Tabel1[DWID_Sted],Beregninger!Q$129,Tabel1[DWID_Dato],\">=\"&Beregninger!Q$130,Tabel1[DWID_Dato],\"<=\"&Beregninger!Q$131)","v":0},null,{"$f":"SUMIFS(Tabel1[Beloeb],INDIRECT(\"Tabel1[\"&$A137&\"]\"),$C137,INDIRECT(\"Tabel1[\"&$B137&\"]\"),$C137,Tabel1[DWID_Sted],Beregninger!T$129,Tabel1[DWID_Dato],\">=\"&Beregninger!T$130,Tabel1[DWID_Dato],\"<=\"&Beregninger!T$131)","v":0},{"$f":"SUMIFS(Tabel1[Kvantum],INDIRECT(\"Tabel1[\"&$A137&\"]\"),$C137,INDIRECT(\"Tabel1[\"&$B137&\"]\"),$C137,Tabel1[DWID_Sted],Beregninger!T$129,Tabel1[DWID_Dato],\">=\"&Beregninger!T$130,Tabel1[DWID_Dato],\"<=\"&Beregninger!T$131)","v":0},null,{"$f":"SUMIFS(Tabel1[Beloeb],INDIRECT(\"Tabel1[\"&$A137&\"]\"),$C137,INDIRECT(\"Tabel1[\"&$B137&\"]\"),$C137,Tabel1[DWID_Sted],Beregninger!W$129,Tabel1[DWID_Dato],\">=\"&Beregninger!W$130,Tabel1[DWID_Dato],\"<=\"&Beregninger!W$131)","v":0},{"$f":"SUMIFS(Tabel1[Kvantum],INDIRECT(\"Tabel1[\"&$A137&\"]\"),$C137,INDIRECT(\"Tabel1[\"&$B137&\"]\"),$C137,Tabel1[DWID_Sted],Beregninger!W$129,Tabel1[DWID_Dato],\">=\"&Beregninger!W$130,Tabel1[DWID_Dato],\"<=\"&Beregninger!W$131)","v":0},null,{"$f":"SUMIFS(Tabel1[Beloeb],INDIRECT(\"Tabel1[\"&$A137&\"]\"),$C137,INDIRECT(\"Tabel1[\"&$B137&\"]\"),$C137,Tabel1[DWID_Sted],Beregninger!Z$129,Tabel1[DWID_Dato],\">=\"&Beregninger!Z$130,Tabel1[DWID_Dato],\"<=\"&Beregninger!Z$131)","v":0},{"$f":"SUMIFS(Tabel1[Kvantum],INDIRECT(\"Tabel1[\"&$A137&\"]\"),$C137,INDIRECT(\"Tabel1[\"&$B137&\"]\"),$C137,Tabel1[DWID_Sted],Beregninger!Z$129,Tabel1[DWID_Dato],\">=\"&Beregninger!Z$130,Tabel1[DWID_Dato],\"<=\"&Beregninger!Z$131)","v":0},null,{"$f":"SUMIFS(Tabel1[Beloeb],INDIRECT(\"Tabel1[\"&$A137&\"]\"),$C137,INDIRECT(\"Tabel1[\"&$B137&\"]\"),$C137,Tabel1[DWID_Sted],Beregninger!AC$129,Tabel1[DWID_Dato],\">=\"&Beregninger!AC$130,Tabel1[DWID_Dato],\"<=\"&Beregninger!AC$131)","v":0},{"$f":"SUMIFS(Tabel1[Kvantum],INDIRECT(\"Tabel1[\"&$A137&\"]\"),$C137,INDIRECT(\"Tabel1[\"&$B137&\"]\"),$C137,Tabel1[DWID_Sted],Beregninger!AC$129,Tabel1[DWID_Dato],\">=\"&Beregninger!AC$130,Tabel1[DWID_Dato],\"<=\"&Beregninger!AC$131)","v":0},null,{"$f":"SUMIFS(Tabel1[Beloeb],INDIRECT(\"Tabel1[\"&$A137&\"]\"),$C137,INDIRECT(\"Tabel1[\"&$B137&\"]\"),$C137,Tabel1[DWID_Sted],Beregninger!AF$129,Tabel1[DWID_Dato],\">=\"&Beregninger!AF$130,Tabel1[DWID_Dato],\"<=\"&Beregninger!AF$131)","v":0},{"$f":"SUMIFS(Tabel1[Kvantum],INDIRECT(\"Tabel1[\"&$A137&\"]\"),$C137,INDIRECT(\"Tabel1[\"&$B137&\"]\"),$C137,Tabel1[DWID_Sted],Beregninger!AF$129,Tabel1[DWID_Dato],\">=\"&Beregninger!AF$130,Tabel1[DWID_Dato],\"<=\"&Beregninger!AF$131)","v":0}]
["Små 1","Små 6",1," Heraf  Færdigblanding søer",{"$f":"SUMIFS(Tabel1[Beloeb],INDIRECT(\"Tabel1[\"&$A138&\"]\"),$C138,INDIRECT(\"Tabel1[\"&$B138&\"]\"),$C138,Tabel1[DWID_Sted],Beregninger!E$129,Tabel1[DWID_Dato],\">=\"&Beregninger!E$130,Tabel1[DWID_Dato],\"<=\"&Beregninger!E$131)","v":0},{"$f":"SUMIFS(Tabel1[Kvantum],INDIRECT(\"Tabel1[\"&$A138&\"]\"),$C138,INDIRECT(\"Tabel1[\"&$B138&\"]\"),$C138,Tabel1[DWID_Sted],Beregninger!E$129,Tabel1[DWID_Dato],\">=\"&Beregninger!E$130,Tabel1[DWID_Dato],\"<=\"&Beregninger!E$131)","v":0},null,{"$f":"SUMIFS(Tabel1[Beloeb],INDIRECT(\"Tabel1[\"&$A138&\"]\"),$C138,INDIRECT(\"Tabel1[\"&$B138&\"]\"),$C138,Tabel1[DWID_Sted],Beregninger!H$129,Tabel1[DWID_Dato],\">=\"&Beregninger!H$130,Tabel1[DWID_Dato],\"<=\"&Beregninger!H$131)","v":0},{"$f":"SUMIFS(Tabel1[Kvantum],INDIRECT(\"Tabel1[\"&$A138&\"]\"),$C138,INDIRECT(\"Tabel1[\"&$B138&\"]\"),$C138,Tabel1[DWID_Sted],Beregninger!H$129,Tabel1[DWID_Dato],\">=\"&Beregninger!H$130,Tabel1[DWID_Dato],\"<=\"&Beregninger!H$131)","v":0},null,{"$f":"SUMIFS(Tabel1[Beloeb],INDIRECT(\"Tabel1[\"&$A138&\"]\"),$C138,INDIRECT(\"Tabel1[\"&$B138&\"]\"),$C138,Tabel1[DWID_Sted],Beregninger!K$129,Tabel1[DWID_Dato],\">=\"&Beregninger!K$130,Tabel1[DWID_Dato],\"<=\"&Beregninger!K$131)","v":0},{"$f":"SUMIFS(Tabel1[Kvantum],INDIRECT(\"Tabel1[\"&$A138&\"]\"),$C138,INDIRECT(\"Tabel1[\"&$B138&\"]\"),$C138,Tabel1[DWID_Sted],Beregninger!K$129,Tabel1[DWID_Dato],\">=\"&Beregninger!K$130,Tabel1[DWID_Dato],\"<=\"&Beregninger!K$131)","v":0},null,{"$f":"SUMIFS(Tabel1[Beloeb],INDIRECT(\"Tabel1[\"&$A138&\"]\"),$C138,INDIRECT(\"Tabel1[\"&$B138&\"]\"),$C138,Tabel1[DWID_Sted],Beregninger!N$129,Tabel1[DWID_Dato],\">=\"&Beregninger!N$130,Tabel1[DWID_Dato],\"<=\"&Beregninger!N$131)","v":0},{"$f":"SUMIFS(Tabel1[Kvantum],INDIRECT(\"Tabel1[\"&$A138&\"]\"),$C138,INDIRECT(\"Tabel1[\"&$B138&\"]\"),$C138,Tabel1[DWID_Sted],Beregninger!N$129,Tabel1[DWID_Dato],\">=\"&Beregninger!N$130,Tabel1[DWID_Dato],\"<=\"&Beregninger!N$131)","v":0},null,{"$f":"SUMIFS(Tabel1[Beloeb],INDIRECT(\"Tabel1[\"&$A138&\"]\"),$C138,INDIRECT(\"Tabel1[\"&$B138&\"]\"),$C138,Tabel1[DWID_Sted],Beregninger!Q$129,Tabel1[DWID_Dato],\">=\"&Beregninger!Q$130,Tabel1[DWID_Dato],\"<=\"&Beregninger!Q$131)","v":0},{"$f":"SUMIFS(Tabel1[Kvantum],INDIRECT(\"Tabel1[\"&$A138&\"]\"),$C138,INDIRECT(\"Tabel1[\"&$B138&\"]\"),$C138,Tabel1[DWID_Sted],Beregninger!Q$129,Tabel1[DWID_Dato],\">=\"&Beregninger!Q$130,Tabel1[DWID_Dato],\"<=\"&Beregninger!Q$131)","v":0},null,{"$f":"SUMIFS(Tabel1[Beloeb],INDIRECT(\"Tabel1[\"&$A138&\"]\"),$C138,INDIRECT(\"Tabel1[\"&$B138&\"]\"),$C138,Tabel1[DWID_Sted],Beregninger!T$129,Tabel1[DWID_Dato],\">=\"&Beregninger!T$130,Tabel1[DWID_Dato],\"<=\"&Beregninger!T$131)","v":0},{"$f":"SUMIFS(Tabel1[Kvantum],INDIRECT(\"Tabel1[\"&$A138&\"]\"),$C138,INDIRECT(\"Tabel1[\"&$B138&\"]\"),$C138,Tabel1[DWID_Sted],Beregninger!T$129,Tabel1[DWID_Dato],\">=\"&Beregninger!T$130,Tabel1[DWID_Dato],\"<=\"&Beregninger!T$131)","v":0},null,{"$f":"SUMIFS(Tabel1[Beloeb],INDIRECT(\"Tabel1[\"&$A138&\"]\"),$C138,INDIRECT(\"Tabel1[\"&$B138&\"]\"),$C138,Tabel1[DWID_Sted],Beregninger!W$129,Tabel1[DWID_Dato],\">=\"&Beregninger!W$130,Tabel1[DWID_Dato],\"<=\"&Beregninger!W$131)","v":0},{"$f":"SUMIFS(Tabel1[Kvantum],INDIRECT(\"Tabel1[\"&$A138&\"]\"),$C138,INDIRECT(\"Tabel1[\"&$B138&\"]\"),$C138,Tabel1[DWID_Sted],Beregninger!W$129,Tabel1[DWID_Dato],\">=\"&Beregninger!W$130,Tabel1[DWID_Dato],\"<=\"&Beregninger!W$131)","v":0},null,{"$f":"SUMIFS(Tabel1[Beloeb],INDIRECT(\"Tabel1[\"&$A138&\"]\"),$C138,INDIRECT(\"Tabel1[\"&$B138&\"]\"),$C138,Tabel1[DWID_Sted],Beregninger!Z$129,Tabel1[DWID_Dato],\">=\"&Beregninger!Z$130,Tabel1[DWID_Dato],\"<=\"&Beregninger!Z$131)","v":0},{"$f":"SUMIFS(Tabel1[Kvantum],INDIRECT(\"Tabel1[\"&$A138&\"]\"),$C138,INDIRECT(\"Tabel1[\"&$B138&\"]\"),$C138,Tabel1[DWID_Sted],Beregninger!Z$129,Tabel1[DWID_Dato],\">=\"&Beregninger!Z$130,Tabel1[DWID_Dato],\"<=\"&Beregninger!Z$131)","v":0},null,{"$f":"SUMIFS(Tabel1[Beloeb],INDIRECT(\"Tabel1[\"&$A138&\"]\"),$C138,INDIRECT(\"Tabel1[\"&$B138&\"]\"),$C138,Tabel1[DWID_Sted],Beregninger!AC$129,Tabel1[DWID_Dato],\">=\"&Beregninger!AC$130,Tabel1[DWID_Dato],\"<=\"&Beregninger!AC$131)","v":0},{"$f":"SUMIFS(Tabel1[Kvantum],INDIRECT(\"Tabel1[\"&$A138&\"]\"),$C138,INDIRECT(\"Tabel1[\"&$B138&\"]\"),$C138,Tabel1[DWID_Sted],Beregninger!AC$129,Tabel1[DWID_Dato],\">=\"&Beregninger!AC$130,Tabel1[DWID_Dato],\"<=\"&Beregninger!AC$131)","v":0},null,{"$f":"SUMIFS(Tabel1[Beloeb],INDIRECT(\"Tabel1[\"&$A138&\"]\"),$C138,INDIRECT(\"Tabel1[\"&$B138&\"]\"),$C138,Tabel1[DWID_Sted],Beregninger!AF$129,Tabel1[DWID_Dato],\">=\"&Beregninger!AF$130,Tabel1[DWID_Dato],\"<=\"&Beregninger!AF$131)","v":0},{"$f":"SUMIFS(Tabel1[Kvantum],INDIRECT(\"Tabel1[\"&$A138&\"]\"),$C138,INDIRECT(\"Tabel1[\"&$B138&\"]\"),$C138,Tabel1[DWID_Sted],Beregninger!AF$129,Tabel1[DWID_Dato],\">=\"&Beregninger!AF$130,Tabel1[DWID_Dato],\"<=\"&Beregninger!AF$131)","v":0}]
["Små 1","Små 7",1,"Heraf  Færdigblanding smågrise",{"$f":"SUMIFS(Tabel1[Beloeb],INDIRECT(\"Tabel1[\"&$A139&\"]\"),$C139,INDIRECT(\"Tabel1[\"&$B139&\"]\"),$C139,Tabel1[DWID_Sted],Beregninger!E$129,Tabel1[DWID_Dato],\">=\"&Beregninger!E$130,Tabel1[DWID_Dato],\"<=\"&Beregninger!E$131)","v":0},{"$f":"SUMIFS(Tabel1[Kvantum],INDIRECT(\"Tabel1[\"&$A139&\"]\"),$C139,INDIRECT(\"Tabel1[\"&$B139&\"]\"),$C139,Tabel1[DWID_Sted],Beregninger!E$129,Tabel1[DWID_Dato],\">=\"&Beregninger!E$130,Tabel1[DWID_Dato],\"<=\"&Beregninger!E$131)","v":0},null,{"$f":"SUMIFS(Tabel1[Beloeb],INDIRECT(\"Tabel1[\"&$A139&\"]\"),$C139,INDIRECT(\"Tabel1[\"&$B139&\"]\"),$C139,Tabel1[DWID_Sted],Beregninger!H$129,Tabel1[DWID_Dato],\">=\"&Beregninger!H$130,Tabel1[DWID_Dato],\"<=\"&Beregninger!H$131)","v":0},{"$f":"SUMIFS(Tabel1[Kvantum],INDIRECT(\"Tabel1[\"&$A139&\"]\"),$C139,INDIRECT(\"Tabel1[\"&$B139&\"]\"),$C139,Tabel1[DWID_Sted],Beregninger!H$129,Tabel1[DWID_Dato],\">=\"&Beregninger!H$130,Tabel1[DWID_Dato],\"<=\"&Beregninger!H$131)","v":0},null,{"$f":"SUMIFS(Tabel1[Beloeb],INDIRECT(\"Tabel1[\"&$A139&\"]\"),$C139,INDIRECT(\"Tabel1[\"&$B139&\"]\"),$C139,Tabel1[DWID_Sted],Beregninger!K$129,Tabel1[DWID_Dato],\">=\"&Beregninger!K$130,Tabel1[DWID_Dato],\"<=\"&Beregninger!K$131)","v":0},{"$f":"SUMIFS(Tabel1[Kvantum],INDIRECT(\"Tabel1[\"&$A139&\"]\"),$C139,INDIRECT(\"Tabel1[\"&$B139&\"]\"),$C139,Tabel1[DWID_Sted],Beregninger!K$129,Tabel1[DWID_Dato],\">=\"&Beregninger!K$130,Tabel1[DWID_Dato],\"<=\"&Beregninger!K$131)","v":0},null,{"$f":"SUMIFS(Tabel1[Beloeb],INDIRECT(\"Tabel1[\"&$A139&\"]\"),$C139,INDIRECT(\"Tabel1[\"&$B139&\"]\"),$C139,Tabel1[DWID_Sted],Beregninger!N$129,Tabel1[DWID_Dato],\">=\"&Beregninger!N$130,Tabel1[DWID_Dato],\"<=\"&Beregninger!N$131)","v":0},{"$f":"SUMIFS(Tabel1[Kvantum],INDIRECT(\"Tabel1[\"&$A139&\"]\"),$C139,INDIRECT(\"Tabel1[\"&$B139&\"]\"),$C139,Tabel1[DWID_Sted],Beregninger!N$129,Tabel1[DWID_Dato],\">=\"&Beregninger!N$130,Tabel1[DWID_Dato],\"<=\"&Beregninger!N$131)","v":0},null,{"$f":"SUMIFS(Tabel1[Beloeb],INDIRECT(\"Tabel1[\"&$A139&\"]\"),$C139,INDIRECT(\"Tabel1[\"&$B139&\"]\"),$C139,Tabel1[DWID_Sted],Beregninger!Q$129,Tabel1[DWID_Dato],\">=\"&Beregninger!Q$130,Tabel1[DWID_Dato],\"<=\"&Beregninger!Q$131)","v":0},{"$f":"SUMIFS(Tabel1[Kvantum],INDIRECT(\"Tabel1[\"&$A139&\"]\"),$C139,INDIRECT(\"Tabel1[\"&$B139&\"]\"),$C139,Tabel1[DWID_Sted],Beregninger!Q$129,Tabel1[DWID_Dato],\">=\"&Beregninger!Q$130,Tabel1[DWID_Dato],\"<=\"&Beregninger!Q$131)","v":0},null,{"$f":"SUMIFS(Tabel1[Beloeb],INDIRECT(\"Tabel1[\"&$A139&\"]\"),$C139,INDIRECT(\"Tabel1[\"&$B139&\"]\"),$C139,Tabel1[DWID_Sted],Beregninger!T$129,Tabel1[DWID_Dato],\">=\"&Beregninger!T$130,Tabel1[DWID_Dato],\"<=\"&Beregninger!T$131)","v":0},{"$f":"SUMIFS(Tabel1[Kvantum],INDIRECT(\"Tabel1[\"&$A139&\"]\"),$C139,INDIRECT(\"Tabel1[\"&$B139&\"]\"),$C139,Tabel1[DWID_Sted],Beregninger!T$129,Tabel1[DWID_Dato],\">=\"&Beregninger!T$130,Tabel1[DWID_Dato],\"<=\"&Beregninger!T$131)","v":0},null,{"$f":"SUMIFS(Tabel1[Beloeb],INDIRECT(\"Tabel1[\"&$A139&\"]\"),$C139,INDIRECT(\"Tabel1[\"&$B139&\"]\"),$C139,Tabel1[DWID_Sted],Beregninger!W$129,Tabel1[DWID_Dato],\">=\"&Beregninger!W$130,Tabel1[DWID_Dato],\"<=\"&Beregninger!W$131)","v":0},{"$f":"SUMIFS(Tabel1[Kvantum],INDIRECT(\"Tabel1[\"&$A139&\"]\"),$C139,INDIRECT(\"Tabel1[\"&$B139&\"]\"),$C139,Tabel1[DWID_Sted],Beregninger!W$129,Tabel1[DWID_Dato],\">=\"&Beregninger!W$130,Tabel1[DWID_Dato],\"<=\"&Beregninger!W$131)","v":0},null,{"$f":"SUMIFS(Tabel1[Beloeb],INDIRECT(\"Tabel1[\"&$A139&\"]\"),$C139,INDIRECT(\"Tabel1[\"&$B139&\"]\"),$C139,Tabel1[DWID_Sted],Beregninger!Z$129,Tabel1[DWID_Dato],\">=\"&Beregninger!Z$130,Tabel1[DWID_Dato],\"<=\"&Beregninger!Z$131)","v":0},{"$f":"SUMIFS(Tabel1[Kvantum],INDIRECT(\"Tabel1[\"&$A139&\"]\"),$C139,INDIRECT(\"Tabel1[\"&$B139&\"]\"),$C139,Tabel1[DWID_Sted],Beregninger!Z$129,Tabel1[DWID_Dato],\">=\"&Beregninger!Z$130,Tabel1[DWID_Dato],\"<=\"&Beregninger!Z$131)","v":0},null,{"$f":"SUMIFS(Tabel1[Beloeb],INDIRECT(\"Tabel1[\"&$A139&\"]\"),$C139,INDIRECT(\"Tabel1[\"&$B139&\"]\"),$C139,Tabel1[DWID_Sted],Beregninger!AC$129,Tabel1[DWID_Dato],\">=\"&Beregninger!AC$130,Tabel1[DWID_Dato],\"<=\"&Beregninger!AC$131)","v":0},{"$f":"SUMIFS(Tabel1[Kvantum],INDIRECT(\"Tabel1[\"&$A139&\"]\"),$C139,INDIRECT(\"Tabel1[\"&$B139&\"]\"),$C139,Tabel1[DWID_Sted],Beregninger!AC$129,Tabel1[DWID_Dato],\">=\"&Beregninger!AC$130,Tabel1[DWID_Dato],\"<=\"&Beregninger!AC$131)","v":0},null,{"$f":"SUMIFS(Tabel1[Beloeb],INDIRECT(\"Tabel1[\"&$A139&\"]\"),$C139,INDIRECT(\"Tabel1[\"&$B139&\"]\"),$C139,Tabel1[DWID_Sted],Beregninger!AF$129,Tabel1[DWID_Dato],\">=\"&Beregninger!AF$130,Tabel1[DWID_Dato],\"<=\"&Beregninger!AF$131)","v":0},{"$f":"SUMIFS(Tabel1[Kvantum],INDIRECT(\"Tabel1[\"&$A139&\"]\"),$C139,INDIRECT(\"Tabel1[\"&$B139&\"]\"),$C139,Tabel1[DWID_Sted],Beregninger!AF$129,Tabel1[DWID_Dato],\">=\"&Beregninger!AF$130,Tabel1[DWID_Dato],\"<=\"&Beregninger!AF$131)","v":0}]
["Små 1","Gen 2",1,"Dyrlæge om medicin",{"$f":"SUMIFS(Tabel1[Beloeb],INDIRECT(\"Tabel1[\"&$A140&\"]\"),$C140,INDIRECT(\"Tabel1[\"&$B140&\"]\"),$C140,Tabel1[DWID_Sted],Beregninger!E$129,Tabel1[DWID_Dato],\">=\"&Beregninger!E$130,Tabel1[DWID_Dato],\"<=\"&Beregninger!E$131)","v":0},{"$f":"SUMIFS(Tabel1[Kvantum],INDIRECT(\"Tabel1[\"&$A140&\"]\"),$C140,INDIRECT(\"Tabel1[\"&$B140&\"]\"),$C140,Tabel1[DWID_Sted],Beregninger!E$129,Tabel1[DWID_Dato],\">=\"&Beregninger!E$130,Tabel1[DWID_Dato],\"<=\"&Beregninger!E$131)","v":0},null,{"$f":"SUMIFS(Tabel1[Beloeb],INDIRECT(\"Tabel1[\"&$A140&\"]\"),$C140,INDIRECT(\"Tabel1[\"&$B140&\"]\"),$C140,Tabel1[DWID_Sted],Beregninger!H$129,Tabel1[DWID_Dato],\">=\"&Beregninger!H$130,Tabel1[DWID_Dato],\"<=\"&Beregninger!H$131)","v":0},{"$f":"SUMIFS(Tabel1[Kvantum],INDIRECT(\"Tabel1[\"&$A140&\"]\"),$C140,INDIRECT(\"Tabel1[\"&$B140&\"]\"),$C140,Tabel1[DWID_Sted],Beregninger!H$129,Tabel1[DWID_Dato],\">=\"&Beregninger!H$130,Tabel1[DWID_Dato],\"<=\"&Beregninger!H$131)","v":0},null,{"$f":"SUMIFS(Tabel1[Beloeb],INDIRECT(\"Tabel1[\"&$A140&\"]\"),$C140,INDIRECT(\"Tabel1[\"&$B140&\"]\"),$C140,Tabel1[DWID_Sted],Beregninger!K$129,Tabel1[DWID_Dato],\">=\"&Beregninger!K$130,Tabel1[DWID_Dato],\"<=\"&Beregninger!K$131)","v":0},{"$f":"SUMIFS(Tabel1[Kvantum],INDIRECT(\"Tabel1[\"&$A140&\"]\"),$C140,INDIRECT(\"Tabel1[\"&$B140&\"]\"),$C140,Tabel1[DWID_Sted],Beregninger!K$129,Tabel1[DWID_Dato],\">=\"&Beregninger!K$130,Tabel1[DWID_Dato],\"<=\"&Beregninger!K$131)","v":0},null,{"$f":"SUMIFS(Tabel1[Beloeb],INDIRECT(\"Tabel1[\"&$A140&\"]\"),$C140,INDIRECT(\"Tabel1[\"&$B140&\"]\"),$C140,Tabel1[DWID_Sted],Beregninger!N$129,Tabel1[DWID_Dato],\">=\"&Beregninger!N$130,Tabel1[DWID_Dato],\"<=\"&Beregninger!N$131)","v":0},{"$f":"SUMIFS(Tabel1[Kvantum],INDIRECT(\"Tabel1[\"&$A140&\"]\"),$C140,INDIRECT(\"Tabel1[\"&$B140&\"]\"),$C140,Tabel1[DWID_Sted],Beregninger!N$129,Tabel1[DWID_Dato],\">=\"&Beregninger!N$130,Tabel1[DWID_Dato],\"<=\"&Beregninger!N$131)","v":0},null,{"$f":"SUMIFS(Tabel1[Beloeb],INDIRECT(\"Tabel1[\"&$A140&\"]\"),$C140,INDIRECT(\"Tabel1[\"&$B140&\"]\"),$C140,Tabel1[DWID_Sted],Beregninger!Q$129,Tabel1[DWID_Dato],\">=\"&Beregninger!Q$130,Tabel1[DWID_Dato],\"<=\"&Beregninger!Q$131)","v":0},{"$f":"SUMIFS(Tabel1[Kvantum],INDIRECT(\"Tabel1[\"&$A140&\"]\"),$C140,INDIRECT(\"Tabel1[\"&$B140&\"]\"),$C140,Tabel1[DWID_Sted],Beregninger!Q$129,Tabel1[DWID_Dato],\">=\"&Beregninger!Q$130,Tabel1[DWID_Dato],\"<=\"&Beregninger!Q$131)","v":0},null,{"$f":"SUMIFS(Tabel1[Beloeb],INDIRECT(\"Tabel1[\"&$A140&\"]\"),$C140,INDIRECT(\"Tabel1[\"&$B140&\"]\"),$C140,Tabel1[DWID_Sted],Beregninger!T$129,Tabel1[DWID_Dato],\">=\"&Beregninger!T$130,Tabel1[DWID_Dato],\"<=\"&Beregninger!T$131)","v":0},{"$f":"SUMIFS(Tabel1[Kvantum],INDIRECT(\"Tabel1[\"&$A140&\"]\"),$C140,INDIRECT(\"Tabel1[\"&$B140&\"]\"),$C140,Tabel1[DWID_Sted],Beregninger!T$129,Tabel1[DWID_Dato],\">=\"&Beregninger!T$130,Tabel1[DWID_Dato],\"<=\"&Beregninger!T$131)","v":0},null,{"$f":"SUMIFS(Tabel1[Beloeb],INDIRECT(\"Tabel1[\"&$A140&\"]\"),$C140,INDIRECT(\"Tabel1[\"&$B140&\"]\"),$C140,Tabel1[DWID_Sted],Beregninger!W$129,Tabel1[DWID_Dato],\">=\"&Beregninger!W$130,Tabel1[DWID_Dato],\"<=\"&Beregninger!W$131)","v":0},{"$f":"SUMIFS(Tabel1[Kvantum],INDIRECT(\"Tabel1[\"&$A140&\"]\"),$C140,INDIRECT(\"Tabel1[\"&$B140&\"]\"),$C140,Tabel1[DWID_Sted],Beregninger!W$129,Tabel1[DWID_Dato],\">=\"&Beregninger!W$130,Tabel1[DWID_Dato],\"<=\"&Beregninger!W$131)","v":0},null,{"$f":"SUMIFS(Tabel1[Beloeb],INDIRECT(\"Tabel1[\"&$A140&\"]\"),$C140,INDIRECT(\"Tabel1[\"&$B140&\"]\"),$C140,Tabel1[DWID_Sted],Beregninger!Z$129,Tabel1[DWID_Dato],\">=\"&Beregninger!Z$130,Tabel1[DWID_Dato],\"<=\"&Beregninger!Z$131)","v":0},{"$f":"SUMIFS(Tabel1[Kvantum],INDIRECT(\"Tabel1[\"&$A140&\"]\"),$C140,INDIRECT(\"Tabel1[\"&$B140&\"]\"),$C140,Tabel1[DWID_Sted],Beregninger!Z$129,Tabel1[DWID_Dato],\">=\"&Beregninger!Z$130,Tabel1[DWID_Dato],\"<=\"&Beregninger!Z$131)","v":0},null,{"$f":"SUMIFS(Tabel1[Beloeb],INDIRECT(\"Tabel1[\"&$A140&\"]\"),$C140,INDIRECT(\"Tabel1[\"&$B140&\"]\"),$C140,Tabel1[DWID_Sted],Beregninger!AC$129,Tabel1[DWID_Dato],\">=\"&Beregninger!AC$130,Tabel1[DWID_Dato],\"<=\"&Beregninger!AC$131)","v":0},{"$f":"SUMIFS(Tabel1[Kvantum],INDIRECT(\"Tabel1[\"&$A140&\"]\"),$C140,INDIRECT(\"Tabel1[\"&$B140&\"]\"),$C140,Tabel1[DWID_Sted],Beregninger!AC$129,Tabel1[DWID_Dato],\">=\"&Beregninger!AC$130,Tabel1[DWID_Dato],\"<=\"&Beregninger!AC$131)","v":0},null,{"$f":"SUMIFS(Tabel1[Beloeb],INDIRECT(\"Tabel1[\"&$A140&\"]\"),$C140,INDIRECT(\"Tabel1[\"&$B140&\"]\"),$C140,Tabel1[DWID_Sted],Beregninger!AF$129,Tabel1[DWID_Dato],\">=\"&Beregninger!AF$130,Tabel1[DWID_Dato],\"<=\"&Beregninger!AF$131)","v":0},{"$f":"SUMIFS(Tabel1[Kvantum],INDIRECT(\"Tabel1[\"&$A140&\"]\"),$C140,INDIRECT(\"Tabel1[\"&$B140&\"]\"),$C140,Tabel1[DWID_Sted],Beregninger!AF$129,Tabel1[DWID_Dato],\">=\"&Beregninger!AF$130,Tabel1[DWID_Dato],\"<=\"&Beregninger!AF$131)","v":0}]
["Gen 3","Gen 3",1,"Vedligehold bygninger*",{"$f":"SUMIFS(Tabel1[Beloeb],INDIRECT(\"Tabel1[\"&$A141&\"]\"),$C141,INDIRECT(\"Tabel1[\"&$B141&\"]\"),$C141,Tabel1[DWID_Sted],Beregninger!E$129,Tabel1[DWID_Dato],\">=\"&Beregninger!E$130,Tabel1[DWID_Dato],\"<=\"&Beregninger!E$131)","v":0},{"$f":"SUMIFS(Tabel1[Kvantum],INDIRECT(\"Tabel1[\"&$A141&\"]\"),$C141,INDIRECT(\"Tabel1[\"&$B141&\"]\"),$C141,Tabel1[DWID_Sted],Beregninger!E$129,Tabel1[DWID_Dato],\">=\"&Beregninger!E$130,Tabel1[DWID_Dato],\"<=\"&Beregninger!E$131)","v":0},null,{"$f":"SUMIFS(Tabel1[Beloeb],INDIRECT(\"Tabel1[\"&$A141&\"]\"),$C141,INDIRECT(\"Tabel1[\"&$B141&\"]\"),$C141,Tabel1[DWID_Sted],Beregninger!H$129,Tabel1[DWID_Dato],\">=\"&Beregninger!H$130,Tabel1[DWID_Dato],\"<=\"&Beregninger!H$131)","v":0},{"$f":"SUMIFS(Tabel1[Kvantum],INDIRECT(\"Tabel1[\"&$A141&\"]\"),$C141,INDIRECT(\"Tabel1[\"&$B141&\"]\"),$C141,Tabel1[DWID_Sted],Beregninger!H$129,Tabel1[DWID_Dato],\">=\"&Beregninger!H$130,Tabel1[DWID_Dato],\"<=\"&Beregninger!H$131)","v":0},null,{"$f":"SUMIFS(Tabel1[Beloeb],INDIRECT(\"Tabel1[\"&$A141&\"]\"),$C141,INDIRECT(\"Tabel1[\"&$B141&\"]\"),$C141,Tabel1[DWID_Sted],Beregninger!K$129,Tabel1[DWID_Dato],\">=\"&Beregninger!K$130,Tabel1[DWID_Dato],\"<=\"&Beregninger!K$131)","v":0},{"$f":"SUMIFS(Tabel1[Kvantum],INDIRECT(\"Tabel1[\"&$A141&\"]\"),$C141,INDIRECT(\"Tabel1[\"&$B141&\"]\"),$C141,Tabel1[DWID_Sted],Beregninger!K$129,Tabel1[DWID_Dato],\">=\"&Beregninger!K$130,Tabel1[DWID_Dato],\"<=\"&Beregninger!K$131)","v":0},null,{"$f":"SUMIFS(Tabel1[Beloeb],INDIRECT(\"Tabel1[\"&$A141&\"]\"),$C141,INDIRECT(\"Tabel1[\"&$B141&\"]\"),$C141,Tabel1[DWID_Sted],Beregninger!N$129,Tabel1[DWID_Dato],\">=\"&Beregninger!N$130,Tabel1[DWID_Dato],\"<=\"&Beregninger!N$131)","v":0},{"$f":"SUMIFS(Tabel1[Kvantum],INDIRECT(\"Tabel1[\"&$A141&\"]\"),$C141,INDIRECT(\"Tabel1[\"&$B141&\"]\"),$C141,Tabel1[DWID_Sted],Beregninger!N$129,Tabel1[DWID_Dato],\">=\"&Beregninger!N$130,Tabel1[DWID_Dato],\"<=\"&Beregninger!N$131)","v":0},null,{"$f":"SUMIFS(Tabel1[Beloeb],INDIRECT(\"Tabel1[\"&$A141&\"]\"),$C141,INDIRECT(\"Tabel1[\"&$B141&\"]\"),$C141,Tabel1[DWID_Sted],Beregninger!Q$129,Tabel1[DWID_Dato],\">=\"&Beregninger!Q$130,Tabel1[DWID_Dato],\"<=\"&Beregninger!Q$131)","v":0},{"$f":"SUMIFS(Tabel1[Kvantum],INDIRECT(\"Tabel1[\"&$A141&\"]\"),$C141,INDIRECT(\"Tabel1[\"&$B141&\"]\"),$C141,Tabel1[DWID_Sted],Beregninger!Q$129,Tabel1[DWID_Dato],\">=\"&Beregninger!Q$130,Tabel1[DWID_Dato],\"<=\"&Beregninger!Q$131)","v":0},null,{"$f":"SUMIFS(Tabel1[Beloeb],INDIRECT(\"Tabel1[\"&$A141&\"]\"),$C141,INDIRECT(\"Tabel1[\"&$B141&\"]\"),$C141,Tabel1[DWID_Sted],Beregninger!T$129,Tabel1[DWID_Dato],\">=\"&Beregninger!T$130,Tabel1[DWID_Dato],\"<=\"&Beregninger!T$131)","v":0},{"$f":"SUMIFS(Tabel1[Kvantum],INDIRECT(\"Tabel1[\"&$A141&\"]\"),$C141,INDIRECT(\"Tabel1[\"&$B141&\"]\"),$C141,Tabel1[DWID_Sted],Beregninger!T$129,Tabel1[DWID_Dato],\">=\"&Beregninger!T$130,Tabel1[DWID_Dato],\"<=\"&Beregninger!T$131)","v":0},null,{"$f":"SUMIFS(Tabel1[Beloeb],INDIRECT(\"Tabel1[\"&$A141&\"]\"),$C141,INDIRECT(\"Tabel1[\"&$B141&\"]\"),$C141,Tabel1[DWID_Sted],Beregninger!W$129,Tabel1[DWID_Dato],\">=\"&Beregninger!W$130,Tabel1[DWID_Dato],\"<=\"&Beregninger!W$131)","v":0},{"$f":"SUMIFS(Tabel1[Kvantum],INDIRECT(\"Tabel1[\"&$A141&\"]\"),$C141,INDIRECT(\"Tabel1[\"&$B141&\"]\"),$C141,Tabel1[DWID_Sted],Beregninger!W$129,Tabel1[DWID_Dato],\">=\"&Beregninger!W$130,Tabel1[DWID_Dato],\"<=\"&Beregninger!W$131)","v":0},null,{"$f":"SUMIFS(Tabel1[Beloeb],INDIRECT(\"Tabel1[\"&$A141&\"]\"),$C141,INDIRECT(\"Tabel1[\"&$B141&\"]\"),$C141,Tabel1[DWID_Sted],Beregninger!Z$129,Tabel1[DWID_Dato],\">=\"&Beregninger!Z$130,Tabel1[DWID_Dato],\"<=\"&Beregninger!Z$131)","v":0},{"$f":"SUMIFS(Tabel1[Kvantum],INDIRECT(\"Tabel1[\"&$A141&\"]\"),$C141,INDIRECT(\"Tabel1[\"&$B141&\"]\"),$C141,Tabel1[DWID_Sted],Beregninger!Z$129,Tabel1[DWID_Dato],\">=\"&Beregninger!Z$130,Tabel1[DWID_Dato],\"<=\"&Beregninger!Z$131)","v":0},null,{"$f":"SUMIFS(Tabel1[Beloeb],INDIRECT(\"Tabel1[\"&$A141&\"]\"),$C141,INDIRECT(\"Tabel1[\"&$B141&\"]\"),$C141,Tabel1[DWID_Sted],Beregninger!AC$129,Tabel1[DWID_Dato],\">=\"&Beregninger!AC$130,Tabel1[DWID_Dato],\"<=\"&Beregninger!AC$131)","v":0},{"$f":"SUMIFS(Tabel1[Kvantum],INDIRECT(\"Tabel1[\"&$A141&\"]\"),$C141,INDIRECT(\"Tabel1[\"&$B141&\"]\"),$C141,Tabel1[DWID_Sted],Beregninger!AC$129,Tabel1[DWID_Dato],\">=\"&Beregninger!AC$130,Tabel1[DWID_Dato],\"<=\"&Beregninger!AC$131)","v":0},null,{"$f":"SUMIFS(Tabel1[Beloeb],INDIRECT(\"Tabel1[\"&$A141&\"]\"),$C141,INDIRECT(\"Tabel1[\"&$B141&\"]\"),$C141,Tabel1[DWID_Sted],Beregninger!AF$129,Tabel1[DWID_Dato],\">=\"&Beregninger!AF$130,Tabel1[DWID_Dato],\"<=\"&Beregninger!AF$131)","v":0},{"$f":"SUMIFS(Tabel1[Kvantum],INDIRECT(\"Tabel1[\"&$A141&\"]\"),$C141,INDIRECT(\"Tabel1[\"&$B141&\"]\"),$C141,Tabel1[DWID_Sted],Beregninger!AF$129,Tabel1[DWID_Dato],\">=\"&Beregninger!AF$130,Tabel1[DWID_Dato],\"<=\"&Beregninger!AF$131)","v":0}]
["Gen 4","Gen 4",1,"Vedligehold staldinv.*",{"$f":"SUMIFS(Tabel1[Beloeb],INDIRECT(\"Tabel1[\"&$A142&\"]\"),$C142,INDIRECT(\"Tabel1[\"&$B142&\"]\"),$C142,Tabel1[DWID_Sted],Beregninger!E$129,Tabel1[DWID_Dato],\">=\"&Beregninger!E$130,Tabel1[DWID_Dato],\"<=\"&Beregninger!E$131)","v":0},{"$f":"SUMIFS(Tabel1[Kvantum],INDIRECT(\"Tabel1[\"&$A142&\"]\"),$C142,INDIRECT(\"Tabel1[\"&$B142&\"]\"),$C142,Tabel1[DWID_Sted],Beregninger!E$129,Tabel1[DWID_Dato],\">=\"&Beregninger!E$130,Tabel1[DWID_Dato],\"<=\"&Beregninger!E$131)","v":0},null,{"$f":"SUMIFS(Tabel1[Beloeb],INDIRECT(\"Tabel1[\"&$A142&\"]\"),$C142,INDIRECT(\"Tabel1[\"&$B142&\"]\"),$C142,Tabel1[DWID_Sted],Beregninger!H$129,Tabel1[DWID_Dato],\">=\"&Beregninger!H$130,Tabel1[DWID_Dato],\"<=\"&Beregninger!H$131)","v":0},{"$f":"SUMIFS(Tabel1[Kvantum],INDIRECT(\"Tabel1[\"&$A142&\"]\"),$C142,INDIRECT(\"Tabel1[\"&$B142&\"]\"),$C142,Tabel1[DWID_Sted],Beregninger!H$129,Tabel1[DWID_Dato],\">=\"&Beregninger!H$130,Tabel1[DWID_Dato],\"<=\"&Beregninger!H$131)","v":0},null,{"$f":"SUMIFS(Tabel1[Beloeb],INDIRECT(\"Tabel1[\"&$A142&\"]\"),$C142,INDIRECT(\"Tabel1[\"&$B142&\"]\"),$C142,Tabel1[DWID_Sted],Beregninger!K$129,Tabel1[DWID_Dato],\">=\"&Beregninger!K$130,Tabel1[DWID_Dato],\"<=\"&Beregninger!K$131)","v":0},{"$f":"SUMIFS(Tabel1[Kvantum],INDIRECT(\"Tabel1[\"&$A142&\"]\"),$C142,INDIRECT(\"Tabel1[\"&$B142&\"]\"),$C142,Tabel1[DWID_Sted],Beregninger!K$129,Tabel1[DWID_Dato],\">=\"&Beregninger!K$130,Tabel1[DWID_Dato],\"<=\"&Beregninger!K$131)","v":0},null,{"$f":"SUMIFS(Tabel1[Beloeb],INDIRECT(\"Tabel1[\"&$A142&\"]\"),$C142,INDIRECT(\"Tabel1[\"&$B142&\"]\"),$C142,Tabel1[DWID_Sted],Beregninger!N$129,Tabel1[DWID_Dato],\">=\"&Beregninger!N$130,Tabel1[DWID_Dato],\"<=\"&Beregninger!N$131)","v":0},{"$f":"SUMIFS(Tabel1[Kvantum],INDIRECT(\"Tabel1[\"&$A142&\"]\"),$C142,INDIRECT(\"Tabel1[\"&$B142&\"]\"),$C142,Tabel1[DWID_Sted],Beregninger!N$129,Tabel1[DWID_Dato],\">=\"&Beregninger!N$130,Tabel1[DWID_Dato],\"<=\"&Beregninger!N$131)","v":0},null,{"$f":"SUMIFS(Tabel1[Beloeb],INDIRECT(\"Tabel1[\"&$A142&\"]\"),$C142,INDIRECT(\"Tabel1[\"&$B142&\"]\"),$C142,Tabel1[DWID_Sted],Beregninger!Q$129,Tabel1[DWID_Dato],\">=\"&Beregninger!Q$130,Tabel1[DWID_Dato],\"<=\"&Beregninger!Q$131)","v":0},{"$f":"SUMIFS(Tabel1[Kvantum],INDIRECT(\"Tabel1[\"&$A142&\"]\"),$C142,INDIRECT(\"Tabel1[\"&$B142&\"]\"),$C142,Tabel1[DWID_Sted],Beregninger!Q$129,Tabel1[DWID_Dato],\">=\"&Beregninger!Q$130,Tabel1[DWID_Dato],\"<=\"&Beregninger!Q$131)","v":0},null,{"$f":"SUMIFS(Tabel1[Beloeb],INDIRECT(\"Tabel1[\"&$A142&\"]\"),$C142,INDIRECT(\"Tabel1[\"&$B142&\"]\"),$C142,Tabel1[DWID_Sted],Beregninger!T$129,Tabel1[DWID_Dato],\">=\"&Beregninger!T$130,Tabel1[DWID_Dato],\"<=\"&Beregninger!T$131)","v":0},{"$f":"SUMIFS(Tabel1[Kvantum],INDIRECT(\"Tabel1[\"&$A142&\"]\"),$C142,INDIRECT(\"Tabel1[\"&$B142&\"]\"),$C142,Tabel1[DWID_Sted],Beregninger!T$129,Tabel1[DWID_Dato],\">=\"&Beregninger!T$130,Tabel1[DWID_Dato],\"<=\"&Beregninger!T$131)","v":0},null,{"$f":"SUMIFS(Tabel1[Beloeb],INDIRECT(\"Tabel1[\"&$A142&\"]\"),$C142,INDIRECT(\"Tabel1[\"&$B142&\"]\"),$C142,Tabel1[DWID_Sted],Beregninger!W$129,Tabel1[DWID_Dato],\">=\"&Beregninger!W$130,Tabel1[DWID_Dato],\"<=\"&Beregninger!W$131)","v":0},{"$f":"SUMIFS(Tabel1[Kvantum],INDIRECT(\"Tabel1[\"&$A142&\"]\"),$C142,INDIRECT(\"Tabel1[\"&$B142&\"]\"),$C142,Tabel1[DWID_Sted],Beregninger!W$129,Tabel1[DWID_Dato],\">=\"&Beregninger!W$130,Tabel1[DWID_Dato],\"<=\"&Beregninger!W$131)","v":0},null,{"$f":"SUMIFS(Tabel1[Beloeb],INDIRECT(\"Tabel1[\"&$A142&\"]\"),$C142,INDIRECT(\"Tabel1[\"&$B142&\"]\"),$C142,Tabel1[DWID_Sted],Beregninger!Z$129,Tabel1[DWID_Dato],\">=\"&Beregninger!Z$130,Tabel1[DWID_Dato],\"<=\"&Beregninger!Z$131)","v":0},{"$f":"SUMIFS(Tabel1[Kvantum],INDIRECT(\"Tabel1[\"&$A142&\"]\"),$C142,INDIRECT(\"Tabel1[\"&$B142&\"]\"),$C142,Tabel1[DWID_Sted],Beregninger!Z$129,Tabel1[DWID_Dato],\">=\"&Beregninger!Z$130,Tabel1[DWID_Dato],\"<=\"&Beregninger!Z$131)","v":0},null,{"$f":"SUMIFS(Tabel1[Beloeb],INDIRECT(\"Tabel1[\"&$A142&\"]\"),$C142,INDIRECT(\"Tabel1[\"&$B142&\"]\"),$C142,Tabel1[DWID_Sted],Beregninger!AC$129,Tabel1[DWID_Dato],\">=\"&Beregninger!AC$130,Tabel1[DWID_Dato],\"<=\"&Beregninger!AC$131)","v":0},{"$f":"SUMIFS(Tabel1[Kvantum],INDIRECT(\"Tabel1[\"&$A142&\"]\"),$C142,INDIRECT(\"Tabel1[\"&$B142&\"]\"),$C142,Tabel1[DWID_Sted],Beregninger!AC$129,Tabel1[DWID_Dato],\">=\"&Beregninger!AC$130,Tabel1[DWID_Dato],\"<=\"&Beregninger!AC$131)","v":0},null,{"$f":"SUMIFS(Tabel1[Beloeb],INDIRECT(\"Tabel1[\"&$A142&\"]\"),$C142,INDIRECT(\"Tabel1[\"&$B142&\"]\"),$C142,Tabel1[DWID_Sted],Beregninger!AF$129,Tabel1[DWID_Dato],\">=\"&Beregninger!AF$130,Tabel1[DWID_Dato],\"<=\"&Beregninger!AF$131)","v":0},{"$f":"SUMIFS(Tabel1[Kvantum],INDIRECT(\"Tabel1[\"&$A142&\"]\"),$C142,INDIRECT(\"Tabel1[\"&$B142&\"]\"),$C142,Tabel1[DWID_Sted],Beregninger!AF$129,Tabel1[DWID_Dato],\">=\"&Beregninger!AF$130,Tabel1[DWID_Dato],\"<=\"&Beregninger!AF$131)","v":0}]
[]
[]
[null,null,null,"pr årsso"]
[null,null,null,"Solgte smågrise beløb - kvantum",{"$f":"IFERROR(E133/E$128,0)","v":0},{"$f":"IFERROR(F133/E$128,0)","v":0},null,{"$f":"IFERROR(H133/H$128,0)","v":0},{"$f":"IFERROR(I133/H$128,0)","v":0},null,{"$f":"IFERROR(K133/K$128,0)","v":0},{"$f":"IFERROR(L133/K$128,0)","v":0},null,{"$f":"IFERROR(N133/N$128,0)","v":0},{"$f":"IFERROR(O133/N$128,0)","v":0},null,{"$f":"IFERROR(Q133/Q$128,0)","v":0},{"$f":"IFERROR(R133/Q$128,0)","v":0},null,{"$f":"IFERROR(T133/T$128,0)","v":0},{"$f":"IFERROR(U133/T$128,0)","v":0},null,{"$f":"IFERROR(W133/W$128,0)","v":0},{"$f":"IFERROR(X133/W$128,0)","v":0},null,{"$f":"IFERROR(Z133/Z$128,0)","v":0},{"$f":"IFERROR(AA133/Z$128,0)","v":0},null,{"$f":"IFERROR(AC133/AC$128,0)","v":0},{"$f":"IFERROR(AD133/AC$128,0)","v":0},null,{"$f":"IFERROR(AF133/AF$128,0)","v":0},{"$f":"IFERROR(AG133/AF$128,0)","v":0}]
[null,null,null,"Foder",{"$f":"IFERROR(E134/E$128,0)","v":0},{"$f":"IFERROR(F134/E$128,0)","v":0},null,{"$f":"IFERROR(H134/H$128,0)","v":0},{"$f":"IFERROR(I134/H$128,0)","v":0},null,{"$f":"IFERROR(K134/K$128,0)","v":0},{"$f":"IFERROR(L134/K$128,0)","v":0},null,{"$f":"IFERROR(N134/N$128,0)","v":0},{"$f":"IFERROR(O134/N$128,0)","v":0},null,{"$f":"IFERROR(Q134/Q$128,0)","v":0},{"$f":"IFERROR(R134/Q$128,0)","v":0},null,{"$f":"IFERROR(T134/T$128,0)","v":0},{"$f":"IFERROR(U134/T$128,0)","v":0},null,{"$f":"IFERROR(W134/W$128,0)","v":0},{"$f":"IFERROR(X134/W$128,0)","v":0},null,{"$f":"IFERROR(Z134/Z$128,0)","v":0},{"$f":"IFERROR(AA134/Z$128,0)","v":0},null,{"$f":"IFERROR(AC134/AC$128,0)","v":0},{"$f":"IFERROR(AD134/AC$128,0)","v":0},null,{"$f":"IFERROR(AF134/AF$128,0)","v":0},{"$f":"IFERROR(AG134/AF$128,0)","v":0}]
[null,null,null," Heraf korn",0,0,null,0,0,null,0,0,null,0,0,null,0,0,null,0,0,null,0,0,null,0,0,null,0,0,null,0,0]
[null,null,null," Heraf tilskudsfoder",0,0,null,0,0,null,0,0,null,0,0,null,0,0,null,0,0,null,0,0,null,0,0,null,0,0,null,0,0]
[null,null,null," Heraf Smågriseblanding",0,0,null,0,0,null,0,0,null,0,0,null,0,0,null,0,0,null,0,0,null,0,0,null,0,0,null,0,0]
[null,null,null," Heraf  Færdigblanding søer",0,0,null,0,0,null,0,0,null,0,0,null,0,0,null,0,0,null,0,0,null,0,0,null,0,0,null,0,0]
[null,null,null,"Heraf  Færdigblanding smågrise",0,0,null,0,0,null,0,0,null,0,0,null,0,0,null,0,0,null,0,0,null,0,0,null,0,0,null,0,0]
[null,null,null,"Dyrlæge om medicin",0,0,null,0,0,null,0,0,null,0,0,null,0,0,null,0,0,null,0,0,null,0,0,null,0,0,null,0,0]
[null,null,null,"Vedligehold bygninger*",0,0,null,0,0,null,0,0,null,0,0,null,0,0,null,0,0,null,0,0,null,0,0,null,0,0,null,0,0]
[null,null,null,"Vedligehold staldinv.*",0,0,null,0,0,null,0,0,null,0,0,null,0,0,null,0,0,null,0,0,null,0,0,null,0,0,null,0,0]
[]
[]
[null,null,null,"pr smågris"]
[null,null,null,"Solgte smågrise beløb - kvantum",{"$f":"IFERROR(E133/F$133,0)","v":0},{"$f":"IFERROR(F133/F$133,0)","v":0},null,{"$f":"IFERROR(H133/I$133,0)","v":0},{"$f":"IFERROR(I133/I$133,0)","v":0},null,{"$f":"IFERROR(K133/L$133,0)","v":0},{"$f":"IFERROR(L133/L$133,0)","v":0},null,{"$f":"IFERROR(N133/O$133,0)","v":0},{"$f":"IFERROR(O133/O$133,0)","v":0},null,{"$f":"IFERROR(Q133/R$133,0)","v":0},{"$f":"IFERROR(R133/R$133,0)","v":0},null,{"$f":"IFERROR(T133/U$133,0)","v":0},{"$f":"IFERROR(U133/U$133,0)","v":0},null,{"$f":"IFERROR(W133/X$133,0)","v":0},{"$f":"IFERROR(X133/X$133,0)","v":0},null,{"$f":"IFERROR(Z133/AA$133,0)","v":0},{"$f":"IFERROR(AA133/AA$133,0)","v":0},null,{"$f":"IFERROR(AC133/AD$133,0)","v":0},{"$f":"IFERROR(AD133/AD$133,0)","v":0},null,{"$f":"IFERROR(AF133/AG$133,0)","v":0},{"$f":"IFERROR(AG133/AG$133,0)","v":0}]
[null,null,null,"Foder",{"$f":"IFERROR(E134/F$133,0)","v":0},{"$f":"IFERROR(F134/F$133,0)","v":0},null,{"$f":"IFERROR(H134/I$133,0)","v":0},{"$f":"IFERROR(I134/I$133,0)","v":0},null,{"$f":"IFERROR(K134/L$133,0)","v":0},{"$f":"IFERROR(L134/L$133,0)","v":0},null,{"$f":"IFERROR(N134/O$133,0)","v":0},{"$f":"IFERROR(O134/O$133,0)","v":0},null,{"$f":"IFERROR(Q134/R$133,0)","v":0},{"$f":"IFERROR(R134/R$133,0)","v":0},null,{"$f":"IFERROR(T134/U$133,0)","v":0},{"$f":"IFERROR(U134/U$133,0)","v":0},null,{"$f":"IFERROR(W134/X$133,0)","v":0},{"$f":"IFERROR(X134/X$133,0)","v":0},null,{"$f":"IFERROR(Z134/AA$133,0)","v":0},{"$f":"IFERROR(AA134/AA$133,0)","v":0},null,{"$f":"IFERROR(AC134/AD$133,0)","v":0},{"$f":"IFERROR(AD134/AD$133,0)","v":0},null,{"$f":"IFERROR(AF134/AG$133,0)","v":0},{"$f":"IFERROR(AG134/AG$133,0)","v":0}]
[null,null,null," Heraf korn",0,0,null,0,0,null,0,0,null,0,0,null,0,0,null,0,0,null,0,0,null,0,0,null,0,0,null,0,0]
[null,null,null," Heraf tilskudsfoder",0,0,null,0,0,null,0,0,null,0,0,null,0,0,null,0,0,null,0,0,null,0,0,null,0,0,null,0,0]
[null,null,null," Heraf Smågriseblanding",0,0,null,0,0,null,0,0,null,0,0,null,0,0,null,0,0,null,0,0,null,0,0,null,0,0,null,0,0]
[null,null,null," Heraf  Færdigblanding søer",0,0,null,0,0,null,0,0,null,0,0,null,0,0,null,0,0,null,0,0,null,0,0,null,0,0,null,0,0]
[null,null,null,"Heraf  Færdigblanding smågrise",0,0,null,0,0,null,0,0,null,0,0,null,0,0,null,0,0,null,0,0,null,0,0,null,0,0,null,0,0]
[null,null,null,"Dyrlæge om medicin",0,0,null,0,0,null,0,0,null,0,0,null,0,0,null,0,0,null,0,0,null,0,0,null,0,0,null,0,0]
[null,null,null,"Vedligehold bygninger*",0,0,null,0,0,null,0,0,null,0,0,null,0,0,null,0,0,null,0,0,null,0,0,null,0,0,null,0,0]
[null,null,null,"Vedligehold staldinv.*",0,0,null,0,0,null,0,0,null,0,0,null,0,0,null,0,0,null,0,0,null,0,0,null,0,0,null,0,0]
[]
[]
[]
[null,null,null,"Gns kg pr slagtesvin",{"$f":"IF(Slagtesvin!E13=\"\",IF(Slagtesvin!E22=\"\",\"\",Slagtesvin!E22),Slagtesvin!E13)","v":85},null,null,{"$f":"IF(Slagtesvin!H13=\"\",IF(Slagtesvin!H22=\"\",\"\",Slagtesvin!H22),Slagtesvin!H13)","v":85},null,null,{"$f":"IF(Slagtesvin!K13=\"\",IF(Slagtesvin!K22=\"\",\"\",Slagtesvin!K22),Slagtesvin!K13)","v":85},null,null,{"$f":"IF(Slagtesvin!N13=\"\",IF(Slagtesvin!N22=\"\",\"\",Slagtesvin!N22),Slagtesvin!N13)","v":""},null,null,{"$f":"IF(Slagtesvin!Q13=\"\",IF(Slagtesvin!Q22=\"\",\"\",Slagtesvin!Q22),Slagtesvin!Q13)","v":""},null,null,{"$f":"IF(Slagtesvin!T13=\"\",IF(Slagtesvin!T22=\"\",\"\",Slagtesvin!T22),Slagtesvin!T13)","v":""},null,null,{"$f":"IF(Slagtesvin!W13=\"\",IF(Slagtesvin!W22=\"\",\"\",Slagtesvin!W22),Slagtesvin!W13)","v":""},null,null,{"$f":"IF(Slagtesvin!Z13=\"\",IF(Slagtesvin!Z22=\"\",\"\",Slagtesvin!Z22),Slagtesvin!Z13)","v":""},null,null,{"$f":"IF(Slagtesvin!AC13=\"\",IF(Slagtesvin!AC22=\"\",\"\",Slagtesvin!AC22),Slagtesvin!AC13)","v":""},null,null,{"$f":"IF(Slagtesvin!AF13=\"\",IF(Slagtesvin!AF22=\"\",\"\",Slagtesvin!AF22),Slagtesvin!AF13)","v":""}]
[null,null,null,"Vælg ejendom (fra drop down)",{"$f":"IF(E174=\"\",\"\",IF(Slagtesvin!$E$17=\"\",IF(Slagtesvin!E11=\"\",\"\",Slagtesvin!E11),Slagtesvin!$E$17))","v":"Sted 9"},null,null,{"$f":"IF(H174=\"\",\"\",IF(Slagtesvin!$E$17=\"\",IF(Slagtesvin!H11=\"\",\"\",Slagtesvin!H11),Slagtesvin!$E$17))","v":"Sted 9"},null,null,{"$f":"IF(K174=\"\",\"\",IF(Slagtesvin!$E$17=\"\",IF(Slagtesvin!K11=\"\",\"\",Slagtesvin!K11),Slagtesvin!$E$17))","v":"Sted 9"},null,null,{"$f":"IF(N174=\"\",\"\",IF(Slagtesvin!$E$17=\"\",IF(Slagtesvin!N11=\"\",\"\",Slagtesvin!N11),Slagtesvin!$E$17))","v":""},null,null,{"$f":"IF(Q174=\"\",\"\",IF(Slagtesvin!$E$17=\"\",IF(Slagtesvin!Q11=\"\",\"\",Slagtesvin!Q11),Slagtesvin!$E$17))","v":""},null,null,{"$f":"IF(T174=\"\",\"\",IF(Slagtesvin!$E$17=\"\",IF(Slagtesvin!T11=\"\",\"\",Slagtesvin!T11),Slagtesvin!$E$17))","v":""},null,null,{"$f":"IF(W174=\"\",\"\",IF(Slagtesvin!$E$17=\"\",IF(Slagtesvin!W11=\"\",\"\",Slagtesvin!W11),Slagtesvin!$E$17))","v":""},null,null,{"$f":"IF(Z174=\"\",\"\",IF(Slagtesvin!$E$17=\"\",IF(Slagtesvin!Z11=\"\",\"\",Slagtesvin!Z11),Slagtesvin!$E$17))","v":""},null,null,{"$f":"IF(AC174=\"\",\"\",IF(Slagtesvin!$E$17=\"\",IF(Slagtesvin!AC11=\"\",\"\",Slagtesvin!AC11),Slagtesvin!$E$17))","v":""},null,null,{"$f":"IF(AF174=\"\",\"\",IF(Slagtesvin!$E$17=\"\",IF(Slagtesvin!AF11=\"\",\"\",Slagtesvin!AF11),Slagtesvin!$E$17))","v":""}]
[null,null,null,"Vælg periode fra til (ååååmmdd)",{"$f":"IF(Slagtesvin!$E$8=\"\",IF(Slagtesvin!E19=\"\",\"\",Slagtesvin!E19),Slagtesvin!$E$8)","v":20190101},null,null,{"$f":"IF(Slagtesvin!$E$8=\"\",IF(Slagtesvin!H19=\"\",\"\",Slagtesvin!H19),Slagtesvin!$E$8)","v":20190201},null,null,{"$f":"IF(Slagtesvin!$E$8=\"\",IF(Slagtesvin!K19=\"\",\"\",Slagtesvin!K19),Slagtesvin!$E$8)","v":20190301},null,null,{"$f":"IF(Slagtesvin!$E$8=\"\",IF(Slagtesvin!N19=\"\",\"\",Slagtesvin!N19),Slagtesvin!$E$8)","v":""},null,null,{"$f":"IF(Slagtesvin!$E$8=\"\",IF(Slagtesvin!Q19=\"\",\"\",Slagtesvin!Q19),Slagtesvin!$E$8)","v":""},null,null,{"$f":"IF(Slagtesvin!$E$8=\"\",IF(Slagtesvin!T19=\"\",\"\",Slagtesvin!T19),Slagtesvin!$E$8)","v":""},null,null,{"$f":"IF(Slagtesvin!$E$8=\"\",IF(Slagtesvin!W19=\"\",\"\",Slagtesvin!W19),Slagtesvin!$E$8)","v":""},null,null,{"$f":"IF(Slagtesvin!$E$8=\"\",IF(Slagtesvin!Z19=\"\",\"\",Slagtesvin!Z19),Slagtesvin!$E$8)","v":""},null,null,{"$f":"IF(Slagtesvin!$E$8=\"\",IF(Slagtesvin!AC19=\"\",\"\",Slagtesvin!AC19),Slagtesvin!$E$8)","v":""},null,null,{"$f":"IF(Slagtesvin!$E$8=\"\",IF(Slagtesvin!AF19=\"\",\"\",Slagtesvin!AF19),Slagtesvin!$E$8)","v":""}]
[null,null,null,null,{"$f":"IF(Slagtesvin!$E$9=\"\",IF(Slagtesvin!E20=\"\",\"\",Slagtesvin!E20),Slagtesvin!$E$9)","v":20190131},null,null,{"$f":"IF(Slagtesvin!$E$9=\"\",IF(Slagtesvin!H20=\"\",\"\",Slagtesvin!H20),Slagtesvin!$E$9)","v":20190228},null,null,{"$f":"IF(Slagtesvin!$E$9=\"\",IF(Slagtesvin!K20=\"\",\"\",Slagtesvin!K20),Slagtesvin!$E$9)","v":20190331},null,null,{"$f":"IF(Slagtesvin!$E$9=\"\",IF(Slagtesvin!N20=\"\",\"\",Slagtesvin!N20),Slagtesvin!$E$9)","v":""},null,null,{"$f":"IF(Slagtesvin!$E$9=\"\",IF(Slagtesvin!Q20=\"\",\"\",Slagtesvin!Q20),Slagtesvin!$E$9)","v":""},null,null,{"$f":"IF(Slagtesvin!$E$9=\"\",IF(Slagtesvin!T20=\"\",\"\",Slagtesvin!T20),Slagtesvin!$E$9)","v":""},null,null,{"$f":"IF(Slagtesvin!$E$9=\"\",IF(Slagtesvin!W20=\"\",\"\",Slagtesvin!W20),Slagtesvin!$E$9)","v":""},null,null,{"$f":"IF(Slagtesvin!$E$9=\"\",IF(Slagtesvin!Z20=\"\",\"\",Slagtesvin!Z20),Slagtesvin!$E$9)","v":""},null,null,{"$f":"IF(Slagtesvin!$E$9=\"\",IF(Slagtesvin!AC20=\"\",\"\",Slagtesvin!AC20),Slagtesvin!$E$9)","v":""},null,null,{"$f":"IF(Slagtesvin!$E$9=\"\",IF(Slagtesvin!AF20=\"\",\"\",Slagtesvin!AF20),Slagtesvin!$E$9)","v":""}]
[]
["Slsvin 1","Slsvin 2",1,"Solgte slagtesvin beløb - kvantum",{"$f":"SUMIFS(Tabel1[Beloeb],INDIRECT(\"Tabel1[\"&$A177&\"]\"),$C177,INDIRECT(\"Tabel1[\"&$B177&\"]\"),$C177,Tabel1[DWID_Sted],Beregninger!E$173,Tabel1[DWID_Dato],\">=\"&Beregninger!E$174,Tabel1[DWID_Dato],\"<=\"&Beregninger!E$175)","v":636446.15999999992},{"$f":"SUMIFS(Tabel1[Kvantum],INDIRECT(\"Tabel1[\"&$A177&\"]\"),$C177,INDIRECT(\"Tabel1[\"&$B177&\"]\"),$C177,Tabel1[DWID_Sted],Beregninger!E$173,Tabel1[DWID_Dato],\">=\"&Beregninger!E$174,Tabel1[DWID_Dato],\"<=\"&Beregninger!E$175)","v":925},null,{"$f":"SUMIFS(Tabel1[Beloeb],INDIRECT(\"Tabel1[\"&$A177&\"]\"),$C177,INDIRECT(\"Tabel1[\"&$B177&\"]\"),$C177,Tabel1[DWID_Sted],Beregninger!H$173,Tabel1[DWID_Dato],\">=\"&Beregninger!H$174,Tabel1[DWID_Dato],\"<=\"&Beregninger!H$175)","v":74579.03},{"$f":"SUMIFS(Tabel1[Kvantum],INDIRECT(\"Tabel1[\"&$A177&\"]\"),$C177,INDIRECT(\"Tabel1[\"&$B177&\"]\"),$C177,Tabel1[DWID_Sted],Beregninger!H$173,Tabel1[DWID_Dato],\">=\"&Beregninger!H$174,Tabel1[DWID_Dato],\"<=\"&Beregninger!H$175)","v":108},null,{"$f":"SUMIFS(Tabel1[Beloeb],INDIRECT(\"Tabel1[\"&$A177&\"]\"),$C177,INDIRECT(\"Tabel1[\"&$B177&\"]\"),$C177,Tabel1[DWID_Sted],Beregninger!K$173,Tabel1[DWID_Dato],\">=\"&Beregninger!K$174,Tabel1[DWID_Dato],\"<=\"&Beregninger!K$175)","v":61430.38},{"$f":"SUMIFS(Tabel1[Kvantum],INDIRECT(\"Tabel1[\"&$A177&\"]\"),$C177,INDIRECT(\"Tabel1[\"&$B177&\"]\"),$C177,Tabel1[DWID_Sted],Beregninger!K$173,Tabel1[DWID_Dato],\">=\"&Beregninger!K$174,Tabel1[DWID_Dato],\"<=\"&Beregninger!K$175)","v":87},null,{"$f":"SUMIFS(Tabel1[Beloeb],INDIRECT(\"Tabel1[\"&$A177&\"]\"),$C177,INDIRECT(\"Tabel1[\"&$B177&\"]\"),$C177,Tabel1[DWID_Sted],Beregninger!N$173,Tabel1[DWID_Dato],\">=\"&Beregninger!N$174,Tabel1[DWID_Dato],\"<=\"&Beregninger!N$175)","v":0},{"$f":"SUMIFS(Tabel1[Kvantum],INDIRECT(\"Tabel1[\"&$A177&\"]\"),$C177,INDIRECT(\"Tabel1[\"&$B177&\"]\"),$C177,Tabel1[DWID_Sted],Beregninger!N$173,Tabel1[DWID_Dato],\">=\"&Beregninger!N$174,Tabel1[DWID_Dato],\"<=\"&Beregninger!N$175)","v":0},null,{"$f":"SUMIFS(Tabel1[Beloeb],INDIRECT(\"Tabel1[\"&$A177&\"]\"),$C177,INDIRECT(\"Tabel1[\"&$B177&\"]\"),$C177,Tabel1[DWID_Sted],Beregninger!Q$173,Tabel1[DWID_Dato],\">=\"&Beregninger!Q$174,Tabel1[DWID_Dato],\"<=\"&Beregninger!Q$175)","v":0},{"$f":"SUMIFS(Tabel1[Kvantum],INDIRECT(\"Tabel1[\"&$A177&\"]\"),$C177,INDIRECT(\"Tabel1[\"&$B177&\"]\"),$C177,Tabel1[DWID_Sted],Beregninger!Q$173,Tabel1[DWID_Dato],\">=\"&Beregninger!Q$174,Tabel1[DWID_Dato],\"<=\"&Beregninger!Q$175)","v":0},null,{"$f":"SUMIFS(Tabel1[Beloeb],INDIRECT(\"Tabel1[\"&$A177&\"]\"),$C177,INDIRECT(\"Tabel1[\"&$B177&\"]\"),$C177,Tabel1[DWID_Sted],Beregninger!T$173,Tabel1[DWID_Dato],\">=\"&Beregninger!T$174,Tabel1[DWID_Dato],\"<=\"&Beregninger!T$175)","v":0},{"$f":"SUMIFS(Tabel1[Kvantum],INDIRECT(\"Tabel1[\"&$A177&\"]\"),$C177,INDIRECT(\"Tabel1[\"&$B177&\"]\"),$C177,Tabel1[DWID_Sted],Beregninger!T$173,Tabel1[DWID_Dato],\">=\"&Beregninger!T$174,Tabel1[DWID_Dato],\"<=\"&Beregninger!T$175)","v":0},null,{"$f":"SUMIFS(Tabel1[Beloeb],INDIRECT(\"Tabel1[\"&$A177&\"]\"),$C177,INDIRECT(\"Tabel1[\"&$B177&\"]\"),$C177,Tabel1[DWID_Sted],Beregninger!W$173,Tabel1[DWID_Dato],\">=\"&Beregninger!W$174,Tabel1[DWID_Dato],\"<=\"&Beregninger!W$175)","v":0},{"$f":"SUMIFS(Tabel1[Kvantum],INDIRECT(\"Tabel1[\"&$A177&\"]\"),$C177,INDIRECT(\"Tabel1[\"&$B177&\"]\"),$C177,Tabel1[DWID_Sted],Beregninger!W$173,Tabel1[DWID_Dato],\">=\"&Beregninger!W$174,Tabel1[DWID_Dato],\"<=\"&Beregninger!W$175)","v":0},null,{"$f":"SUMIFS(Tabel1[Beloeb],INDIRECT(\"Tabel1[\"&$A177&\"]\"),$C177,INDIRECT(\"Tabel1[\"&$B177&\"]\"),$C177,Tabel1[DWID_Sted],Beregninger!Z$173,Tabel1[DWID_Dato],\">=\"&Beregninger!Z$174,Tabel1[DWID_Dato],\"<=\"&Beregninger!Z$175)","v":0},{"$f":"SUMIFS(Tabel1[Kvantum],INDIRECT(\"Tabel1[\"&$A177&\"]\"),$C177,INDIRECT(\"Tabel1[\"&$B177&\"]\"),$C177,Tabel1[DWID_Sted],Beregninger!Z$173,Tabel1[DWID_Dato],\">=\"&Beregninger!Z$174,Tabel1[DWID_Dato],\"<=\"&Beregninger!Z$175)","v":0},null,{"$f":"SUMIFS(Tabel1[Beloeb],INDIRECT(\"Tabel1[\"&$A177&\"]\"),$C177,INDIRECT(\"Tabel1[\"&$B177&\"]\"),$C177,Tabel1[DWID_Sted],Beregninger!AC$173,Tabel1[DWID_Dato],\">=\"&Beregninger!AC$174,Tabel1[DWID_Dato],\"<=\"&Beregninger!AC$175)","v":0},{"$f":"SUMIFS(Tabel1[Kvantum],INDIRECT(\"Tabel1[\"&$A177&\"]\"),$C177,INDIRECT(\"Tabel1[\"&$B177&\"]\"),$C177,Tabel1[DWID_Sted],Beregninger!AC$173,Tabel1[DWID_Dato],\">=\"&Beregninger!AC$174,Tabel1[DWID_Dato],\"<=\"&Beregninger!AC$175)","v":0},null,{"$f":"SUMIFS(Tabel1[Beloeb],INDIRECT(\"Tabel1[\"&$A177&\"]\"),$C177,INDIRECT(\"Tabel1[\"&$B177&\"]\"),$C177,Tabel1[DWID_Sted],Beregninger!AF$173,Tabel1[DWID_Dato],\">=\"&Beregninger!AF$174,Tabel1[DWID_Dato],\"<=\"&Beregninger!AF$175)","v":0},{"$f":"SUMIFS(Tabel1[Kvantum],INDIRECT(\"Tabel1[\"&$A177&\"]\"),$C177,INDIRECT(\"Tabel1[\"&$B177&\"]\"),$C177,Tabel1[DWID_Sted],Beregninger!AF$173,Tabel1[DWID_Dato],\">=\"&Beregninger!AF$174,Tabel1[DWID_Dato],\"<=\"&Beregninger!AF$175)","v":0}]
["Slsvin 1","Gen 1",1,"Foder",{"$f":"SUMIFS(Tabel1[Beloeb],INDIRECT(\"Tabel1[\"&$A178&\"]\"),$C178,INDIRECT(\"Tabel1[\"&$B178&\"]\"),$C178,Tabel1[DWID_Sted],Beregninger!E$173,Tabel1[DWID_Dato],\">=\"&Beregninger!E$174,Tabel1[DWID_Dato],\"<=\"&Beregninger!E$175)","v":-54979.68},{"$f":"SUMIFS(Tabel1[Kvantum],INDIRECT(\"Tabel1[\"&$A178&\"]\"),$C178,INDIRECT(\"Tabel1[\"&$B178&\"]\"),$C178,Tabel1[DWID_Sted],Beregninger!E$173,Tabel1[DWID_Dato],\">=\"&Beregninger!E$174,Tabel1[DWID_Dato],\"<=\"&Beregninger!E$175)","v":-33571},null,{"$f":"SUMIFS(Tabel1[Beloeb],INDIRECT(\"Tabel1[\"&$A178&\"]\"),$C178,INDIRECT(\"Tabel1[\"&$B178&\"]\"),$C178,Tabel1[DWID_Sted],Beregninger!H$173,Tabel1[DWID_Dato],\">=\"&Beregninger!H$174,Tabel1[DWID_Dato],\"<=\"&Beregninger!H$175)","v":-18786.2},{"$f":"SUMIFS(Tabel1[Kvantum],INDIRECT(\"Tabel1[\"&$A178&\"]\"),$C178,INDIRECT(\"Tabel1[\"&$B178&\"]\"),$C178,Tabel1[DWID_Sted],Beregninger!H$173,Tabel1[DWID_Dato],\">=\"&Beregninger!H$174,Tabel1[DWID_Dato],\"<=\"&Beregninger!H$175)","v":-11890},null,{"$f":"SUMIFS(Tabel1[Beloeb],INDIRECT(\"Tabel1[\"&$A178&\"]\"),$C178,INDIRECT(\"Tabel1[\"&$B178&\"]\"),$C178,Tabel1[DWID_Sted],Beregninger!K$173,Tabel1[DWID_Dato],\">=\"&Beregninger!K$174,Tabel1[DWID_Dato],\"<=\"&Beregninger!K$175)","v":-38631},{"$f":"SUMIFS(Tabel1[Kvantum],INDIRECT(\"Tabel1[\"&$A178&\"]\"),$C178,INDIRECT(\"Tabel1[\"&$B178&\"]\"),$C178,Tabel1[DWID_Sted],Beregninger!K$173,Tabel1[DWID_Dato],\">=\"&Beregninger!K$174,Tabel1[DWID_Dato],\"<=\"&Beregninger!K$175)","v":-24450},null,{"$f":"SUMIFS(Tabel1[Beloeb],INDIRECT(\"Tabel1[\"&$A178&\"]\"),$C178,INDIRECT(\"Tabel1[\"&$B178&\"]\"),$C178,Tabel1[DWID_Sted],Beregninger!N$173,Tabel1[DWID_Dato],\">=\"&Beregninger!N$174,Tabel1[DWID_Dato],\"<=\"&Beregninger!N$175)","v":0},{"$f":"SUMIFS(Tabel1[Kvantum],INDIRECT(\"Tabel1[\"&$A178&\"]\"),$C178,INDIRECT(\"Tabel1[\"&$B178&\"]\"),$C178,Tabel1[DWID_Sted],Beregninger!N$173,Tabel1[DWID_Dato],\">=\"&Beregninger!N$174,Tabel1[DWID_Dato],\"<=\"&Beregninger!N$175)","v":0},null,{"$f":"SUMIFS(Tabel1[Beloeb],INDIRECT(\"Tabel1[\"&$A178&\"]\"),$C178,INDIRECT(\"Tabel1[\"&$B178&\"]\"),$C178,Tabel1[DWID_Sted],Beregninger!Q$173,Tabel1[DWID_Dato],\">=\"&Beregninger!Q$174,Tabel1[DWID_Dato],\"<=\"&Beregninger!Q$175)","v":0},{"$f":"SUMIFS(Tabel1[Kvantum],INDIRECT(\"Tabel1[\"&$A178&\"]\"),$C178,INDIRECT(\"Tabel1[\"&$B178&\"]\"),$C178,Tabel1[DWID_Sted],Beregninger!Q$173,Tabel1[DWID_Dato],\">=\"&Beregninger!Q$174,Tabel1[DWID_Dato],\"<=\"&Beregninger!Q$175)","v":0},null,{"$f":"SUMIFS(Tabel1[Beloeb],INDIRECT(\"Tabel1[\"&$A178&\"]\"),$C178,INDIRECT(\"Tabel1[\"&$B178&\"]\"),$C178,Tabel1[DWID_Sted],Beregninger!T$173,Tabel1[DWID_Dato],\">=\"&Beregninger!T$174,Tabel1[DWID_Dato],\"<=\"&Beregninger!T$175)","v":0},{"$f":"SUMIFS(Tabel1[Kvantum],INDIRECT(\"Tabel1[\"&$A178&\"]\"),$C178,INDIRECT(\"Tabel1[\"&$B178&\"]\"),$C178,Tabel1[DWID_Sted],Beregninger!T$173,Tabel1[DWID_Dato],\">=\"&Beregninger!T$174,Tabel1[DWID_Dato],\"<=\"&Beregninger!T$175)","v":0},null,{"$f":"SUMIFS(Tabel1[Beloeb],INDIRECT(\"Tabel1[\"&$A178&\"]\"),$C178,INDIRECT(\"Tabel1[\"&$B178&\"]\"),$C178,Tabel1[DWID_Sted],Beregninger!W$173,Tabel1[DWID_Dato],\">=\"&Beregninger!W$174,Tabel1[DWID_Dato],\"<=\"&Beregninger!W$175)","v":0},{"$f":"SUMIFS(Tabel1[Kvantum],INDIRECT(\"Tabel1[\"&$A178&\"]\"),$C178,INDIRECT(\"Tabel1[\"&$B178&\"]\"),$C178,Tabel1[DWID_Sted],Beregninger!W$173,Tabel1[DWID_Dato],\">=\"&Beregninger!W$174,Tabel1[DWID_Dato],\"<=\"&Beregninger!W$175)","v":0},null,{"$f":"SUMIFS(Tabel1[Beloeb],INDIRECT(\"Tabel1[\"&$A178&\"]\"),$C178,INDIRECT(\"Tabel1[\"&$B178&\"]\"),$C178,Tabel1[DWID_Sted],Beregninger!Z$173,Tabel1[DWID_Dato],\">=\"&Beregninger!Z$174,Tabel1[DWID_Dato],\"<=\"&Beregninger!Z$175)","v":0},{"$f":"SUMIFS(Tabel1[Kvantum],INDIRECT(\"Tabel1[\"&$A178&\"]\"),$C178,INDIRECT(\"Tabel1[\"&$B178&\"]\"),$C178,Tabel1[DWID_Sted],Beregninger!Z$173,Tabel1[DWID_Dato],\">=\"&Beregninger!Z$174,Tabel1[DWID_Dato],\"<=\"&Beregninger!Z$175)","v":0},null,{"$f":"SUMIFS(Tabel1[Beloeb],INDIRECT(\"Tabel1[\"&$A178&\"]\"),$C178,INDIRECT(\"Tabel1[\"&$B178&\"]\"),$C178,Tabel1[DWID_Sted],Beregninger!AC$173,Tabel1[DWID_Dato],\">=\"&Beregninger!AC$174,Tabel1[DWID_Dato],\"<=\"&Beregninger!AC$175)","v":0},{"$f":"SUMIFS(Tabel1[Kvantum],INDIRECT(\"Tabel1[\"&$A178&\"]\"),$C178,INDIRECT(\"Tabel1[\"&$B178&\"]\"),$C178,Tabel1[DWID_Sted],Beregninger!AC$173,Tabel1[DWID_Dato],\">=\"&Beregninger!AC$174,Tabel1[DWID_Dato],\"<=\"&Beregninger!AC$175)","v":0},null,{"$f":"SUMIFS(Tabel1[Beloeb],INDIRECT(\"Tabel1[\"&$A178&\"]\"),$C178,INDIRECT(\"Tabel1[\"&$B178&\"]\"),$C178,Tabel1[DWID_Sted],Beregninger!AF$173,Tabel1[DWID_Dato],\">=\"&Beregninger!AF$174,Tabel1[DWID_Dato],\"<=\"&Beregninger!AF$175)","v":0},{"$f":"SUMIFS(Tabel1[Kvantum],INDIRECT(\"Tabel1[\"&$A178&\"]\"),$C178,INDIRECT(\"Tabel1[\"&$B178&\"]\"),$C178,Tabel1[DWID_Sted],Beregninger!AF$173,Tabel1[DWID_Dato],\">=\"&Beregninger!AF$174,Tabel1[DWID_Dato],\"<=\"&Beregninger!AF$175)","v":0}]
["Slsvin 1","Små 3",1," Heraf korn",{"$f":"SUMIFS(Tabel1[Beloeb],INDIRECT(\"Tabel1[\"&$A179&\"]\"),$C179,INDIRECT(\"Tabel1[\"&$B179&\"]\"),$C179,Tabel1[DWID_Sted],Beregninger!E$173,Tabel1[DWID_Dato],\">=\"&Beregninger!E$174,Tabel1[DWID_Dato],\"<=\"&Beregninger!E$175)","v":0},{"$f":"SUMIFS(Tabel1[Kvantum],INDIRECT(\"Tabel1[\"&$A179&\"]\"),$C179,INDIRECT(\"Tabel1[\"&$B179&\"]\"),$C179,Tabel1[DWID_Sted],Beregninger!E$173,Tabel1[DWID_Dato],\">=\"&Beregninger!E$174,Tabel1[DWID_Dato],\"<=\"&Beregninger!E$175)","v":0},null,{"$f":"SUMIFS(Tabel1[Beloeb],INDIRECT(\"Tabel1[\"&$A179&\"]\"),$C179,INDIRECT(\"Tabel1[\"&$B179&\"]\"),$C179,Tabel1[DWID_Sted],Beregninger!H$173,Tabel1[DWID_Dato],\">=\"&Beregninger!H$174,Tabel1[DWID_Dato],\"<=\"&Beregninger!H$175)","v":0},{"$f":"SUMIFS(Tabel1[Kvantum],INDIRECT(\"Tabel1[\"&$A179&\"]\"),$C179,INDIRECT(\"Tabel1[\"&$B179&\"]\"),$C179,Tabel1[DWID_Sted],Beregninger!H$173,Tabel1[DWID_Dato],\">=\"&Beregninger!H$174,Tabel1[DWID_Dato],\"<=\"&Beregninger!H$175)","v":0},null,{"$f":"SUMIFS(Tabel1[Beloeb],INDIRECT(\"Tabel1[\"&$A179&\"]\"),$C179,INDIRECT(\"Tabel1[\"&$B179&\"]\"),$C179,Tabel1[DWID_Sted],Beregninger!K$173,Tabel1[DWID_Dato],\">=\"&Beregninger!K$174,Tabel1[DWID_Dato],\"<=\"&Beregninger!K$175)","v":0},{"$f":"SUMIFS(Tabel1[Kvantum],INDIRECT(\"Tabel1[\"&$A179&\"]\"),$C179,INDIRECT(\"Tabel1[\"&$B179&\"]\"),$C179,Tabel1[DWID_Sted],Beregninger!K$173,Tabel1[DWID_Dato],\">=\"&Beregninger!K$174,Tabel1[DWID_Dato],\"<=\"&Beregninger!K$175)","v":0},null,{"$f":"SUMIFS(Tabel1[Beloeb],INDIRECT(\"Tabel1[\"&$A179&\"]\"),$C179,INDIRECT(\"Tabel1[\"&$B179&\"]\"),$C179,Tabel1[DWID_Sted],Beregninger!N$173,Tabel1[DWID_Dato],\">=\"&Beregninger!N$174,Tabel1[DWID_Dato],\"<=\"&Beregninger!N$175)","v":0},{"$f":"SUMIFS(Tabel1[Kvantum],INDIRECT(\"Tabel1[\"&$A179&\"]\"),$C179,INDIRECT(\"Tabel1[\"&$B179&\"]\"),$C179,Tabel1[DWID_Sted],Beregninger!N$173,Tabel1[DWID_Dato],\">=\"&Beregninger!N$174,Tabel1[DWID_Dato],\"<=\"&Beregninger!N$175)","v":0},null,{"$f":"SUMIFS(Tabel1[Beloeb],INDIRECT(\"Tabel1[\"&$A179&\"]\"),$C179,INDIRECT(\"Tabel1[\"&$B179&\"]\"),$C179,Tabel1[DWID_Sted],Beregninger!Q$173,Tabel1[DWID_Dato],\">=\"&Beregninger!Q$174,Tabel1[DWID_Dato],\"<=\"&Beregninger!Q$175)","v":0},{"$f":"SUMIFS(Tabel1[Kvantum],INDIRECT(\"Tabel1[\"&$A179&\"]\"),$C179,INDIRECT(\"Tabel1[\"&$B179&\"]\"),$C179,Tabel1[DWID_Sted],Beregninger!Q$173,Tabel1[DWID_Dato],\">=\"&Beregninger!Q$174,Tabel1[DWID_Dato],\"<=\"&Beregninger!Q$175)","v":0},null,{"$f":"SUMIFS(Tabel1[Beloeb],INDIRECT(\"Tabel1[\"&$A179&\"]\"),$C179,INDIRECT(\"Tabel1[\"&$B179&\"]\"),$C179,Tabel1[DWID_Sted],Beregninger!T$173,Tabel1[DWID_Dato],\">=\"&Beregninger!T$174,Tabel1[DWID_Dato],\"<=\"&Beregninger!T$175)","v":0},{"$f":"SUMIFS(Tabel1[Kvantum],INDIRECT(\"Tabel1[\"&$A179&\"]\"),$C179,INDIRECT(\"Tabel1[\"&$B179&\"]\"),$C179,Tabel1[DWID_Sted],Beregninger!T$173,Tabel1[DWID_Dato],\">=\"&Beregninger!T$174,Tabel1[DWID_Dato],\"<=\"&Beregninger!T$175)","v":0},null,{"$f":"SUMIFS(Tabel1[Beloeb],INDIRECT(\"Tabel1[\"&$A179&\"]\"),$C179,INDIRECT(\"Tabel1[\"&$B179&\"]\"),$C179,Tabel1[DWID_Sted],Beregninger!W$173,Tabel1[DWID_Dato],\">=\"&Beregninger!W$174,Tabel1[DWID_Dato],\"<=\"&Beregninger!W$175)","v":0},{"$f":"SUMIFS(Tabel1[Kvantum],INDIRECT(\"Tabel1[\"&$A179&\"]\"),$C179,INDIRECT(\"Tabel1[\"&$B179&\"]\"),$C179,Tabel1[DWID_Sted],Beregninger!W$173,Tabel1[DWID_Dato],\">=\"&Beregninger!W$174,Tabel1[DWID_Dato],\"<=\"&Beregninger!W$175)","v":0},null,{"$f":"SUMIFS(Tabel1[Beloeb],INDIRECT(\"Tabel1[\"&$A179&\"]\"),$C179,INDIRECT(\"Tabel1[\"&$B179&\"]\"),$C179,Tabel1[DWID_Sted],Beregninger!Z$173,Tabel1[DWID_Dato],\">=\"&Beregninger!Z$174,Tabel1[DWID_Dato],\"<=\"&Beregninger!Z$175)","v":0},{"$f":"SUMIFS(Tabel1[Kvantum],INDIRECT(\"Tabel1[\"&$A179&\"]\"),$C179,INDIRECT(\"Tabel1[\"&$B179&\"]\"),$C179,Tabel1[DWID_Sted],Beregninger!Z$173,Tabel1[DWID_Dato],\">=\"&Beregninger!Z$174,Tabel1[DWID_Dato],\"<=\"&Beregninger!Z$175)","v":0},null,{"$f":"SUMIFS(Tabel1[Beloeb],INDIRECT(\"Tabel1[\"&$A179&\"]\"),$C179,INDIRECT(\"Tabel1[\"&$B179&\"]\"),$C179,Tabel1[DWID_Sted],Beregninger!AC$173,Tabel1[DWID_Dato],\">=\"&Beregninger!AC$174,Tabel1[DWID_Dato],\"<=\"&Beregninger!AC$175)","v":0},{"$f":"SUMIFS(Tabel1[Kvantum],INDIRECT(\"Tabel1[\"&$A179&\"]\"),$C179,INDIRECT(\"Tabel1[\"&$B179&\"]\"),$C179,Tabel1[DWID_Sted],Beregninger!AC$173,Tabel1[DWID_Dato],\">=\"&Beregninger!AC$174,Tabel1[DWID_Dato],\"<=\"&Beregninger!AC$175)","v":0},null,{"$f":"SUMIFS(Tabel1[Beloeb],INDIRECT(\"Tabel1[\"&$A179&\"]\"),$C179,INDIRECT(\"Tabel1[\"&$B179&\"]\"),$C179,Tabel1[DWID_Sted],Beregninger!AF$173,Tabel1[DWID_Dato],\">=\"&Beregninger!AF$174,Tabel1[DWID_Dato],\"<=\"&Beregninger!AF$175)","v":0},{"$f":"SUMIFS(Tabel1[Kvantum],INDIRECT(\"Tabel1[\"&$A179&\"]\"),$C179,INDIRECT(\"Tabel1[\"&$B179&\"]\"),$C179,Tabel1[DWID_Sted],Beregninger!AF$173,Tabel1[DWID_Dato],\">=\"&Beregninger!AF$174,Tabel1[DWID_Dato],\"<=\"&Beregninger!AF$175)","v":0}]
["Slsvin 1","Små 4",1," Heraf tilskudsfoder",{"$f":"SUMIFS(Tabel1[Beloeb],INDIRECT(\"Tabel1[\"&$A180&\"]\"),$C180,INDIRECT(\"Tabel1[\"&$B180&\"]\"),$C180,Tabel1[DWID_Sted],Beregninger!E$173,Tabel1[DWID_Dato],\">=\"&Beregninger!E$174,Tabel1[DWID_Dato],\"<=\"&Beregninger!E$175)","v":0},{"$f":"SUMIFS(Tabel1[Kvantum],INDIRECT(\"Tabel1[\"&$A180&\"]\"),$C180,INDIRECT(\"Tabel1[\"&$B180&\"]\"),$C180,Tabel1[DWID_Sted],Beregninger!E$173,Tabel1[DWID_Dato],\">=\"&Beregninger!E$174,Tabel1[DWID_Dato],\"<=\"&Beregninger!E$175)","v":0},null,{"$f":"SUMIFS(Tabel1[Beloeb],INDIRECT(\"Tabel1[\"&$A180&\"]\"),$C180,INDIRECT(\"Tabel1[\"&$B180&\"]\"),$C180,Tabel1[DWID_Sted],Beregninger!H$173,Tabel1[DWID_Dato],\">=\"&Beregninger!H$174,Tabel1[DWID_Dato],\"<=\"&Beregninger!H$175)","v":0},{"$f":"SUMIFS(Tabel1[Kvantum],INDIRECT(\"Tabel1[\"&$A180&\"]\"),$C180,INDIRECT(\"Tabel1[\"&$B180&\"]\"),$C180,Tabel1[DWID_Sted],Beregninger!H$173,Tabel1[DWID_Dato],\">=\"&Beregninger!H$174,Tabel1[DWID_Dato],\"<=\"&Beregninger!H$175)","v":0},null,{"$f":"SUMIFS(Tabel1[Beloeb],INDIRECT(\"Tabel1[\"&$A180&\"]\"),$C180,INDIRECT(\"Tabel1[\"&$B180&\"]\"),$C180,Tabel1[DWID_Sted],Beregninger!K$173,Tabel1[DWID_Dato],\">=\"&Beregninger!K$174,Tabel1[DWID_Dato],\"<=\"&Beregninger!K$175)","v":0},{"$f":"SUMIFS(Tabel1[Kvantum],INDIRECT(\"Tabel1[\"&$A180&\"]\"),$C180,INDIRECT(\"Tabel1[\"&$B180&\"]\"),$C180,Tabel1[DWID_Sted],Beregninger!K$173,Tabel1[DWID_Dato],\">=\"&Beregninger!K$174,Tabel1[DWID_Dato],\"<=\"&Beregninger!K$175)","v":0},null,{"$f":"SUMIFS(Tabel1[Beloeb],INDIRECT(\"Tabel1[\"&$A180&\"]\"),$C180,INDIRECT(\"Tabel1[\"&$B180&\"]\"),$C180,Tabel1[DWID_Sted],Beregninger!N$173,Tabel1[DWID_Dato],\">=\"&Beregninger!N$174,Tabel1[DWID_Dato],\"<=\"&Beregninger!N$175)","v":0},{"$f":"SUMIFS(Tabel1[Kvantum],INDIRECT(\"Tabel1[\"&$A180&\"]\"),$C180,INDIRECT(\"Tabel1[\"&$B180&\"]\"),$C180,Tabel1[DWID_Sted],Beregninger!N$173,Tabel1[DWID_Dato],\">=\"&Beregninger!N$174,Tabel1[DWID_Dato],\"<=\"&Beregninger!N$175)","v":0},null,{"$f":"SUMIFS(Tabel1[Beloeb],INDIRECT(\"Tabel1[\"&$A180&\"]\"),$C180,INDIRECT(\"Tabel1[\"&$B180&\"]\"),$C180,Tabel1[DWID_Sted],Beregninger!Q$173,Tabel1[DWID_Dato],\">=\"&Beregninger!Q$174,Tabel1[DWID_Dato],\"<=\"&Beregninger!Q$175)","v":0},{"$f":"SUMIFS(Tabel1[Kvantum],INDIRECT(\"Tabel1[\"&$A180&\"]\"),$C180,INDIRECT(\"Tabel1[\"&$B180&\"]\"),$C180,Tabel1[DWID_Sted],Beregninger!Q$173,Tabel1[DWID_Dato],\">=\"&Beregninger!Q$174,Tabel1[DWID_Dato],\"<=\"&Beregninger!Q$175)","v":0},null,{"$f":"SUMIFS(Tabel1[Beloeb],INDIRECT(\"Tabel1[\"&$A180&\"]\"),$C180,INDIRECT(\"Tabel1[\"&$B180&\"]\"),$C180,Tabel1[DWID_Sted],Beregninger!T$173,Tabel1[DWID_Dato],\">=\"&Beregninger!T$174,Tabel1[DWID_Dato],\"<=\"&Beregninger!T$175)","v":0},{"$f":"SUMIFS(Tabel1[Kvantum],INDIRECT(\"Tabel1[\"&$A180&\"]\"),$C180,INDIRECT(\"Tabel1[\"&$B180&\"]\"),$C180,Tabel1[DWID_Sted],Beregninger!T$173,Tabel1[DWID_Dato],\">=\"&Beregninger!T$174,Tabel1[DWID_Dato],\"<=\"&Beregninger!T$175)","v":0},null,{"$f":"SUMIFS(Tabel1[Beloeb],INDIRECT(\"Tabel1[\"&$A180&\"]\"),$C180,INDIRECT(\"Tabel1[\"&$B180&\"]\"),$C180,Tabel1[DWID_Sted],Beregninger!W$173,Tabel1[DWID_Dato],\">=\"&Beregninger!W$174,Tabel1[DWID_Dato],\"<=\"&Beregninger!W$175)","v":0},{"$f":"SUMIFS(Tabel1[Kvantum],INDIRECT(\"Tabel1[\"&$A180&\"]\"),$C180,INDIRECT(\"Tabel1[\"&$B180&\"]\"),$C180,Tabel1[DWID_Sted],Beregninger!W$173,Tabel1[DWID_Dato],\">=\"&Beregninger!W$174,Tabel1[DWID_Dato],\"<=\"&Beregninger!W$175)","v":0},null,{"$f":"SUMIFS(Tabel1[Beloeb],INDIRECT(\"Tabel1[\"&$A180&\"]\"),$C180,INDIRECT(\"Tabel1[\"&$B180&\"]\"),$C180,Tabel1[DWID_Sted],Beregninger!Z$173,Tabel1[DWID_Dato],\">=\"&Beregninger!Z$174,Tabel1[DWID_Dato],\"<=\"&Beregninger!Z$175)","v":0},{"$f":"SUMIFS(Tabel1[Kvantum],INDIRECT(\"Tabel1[\"&$A180&\"]\"),$C180,INDIRECT(\"Tabel1[\"&$B180&\"]\"),$C180,Tabel1[DWID_Sted],Beregninger!Z$173,Tabel1[DWID_Dato],\">=\"&Beregninger!Z$174,Tabel1[DWID_Dato],\"<=\"&Beregninger!Z$175)","v":0},null,{"$f":"SUMIFS(Tabel1[Beloeb],INDIRECT(\"Tabel1[\"&$A180&\"]\"),$C180,INDIRECT(\"Tabel1[\"&$B180&\"]\"),$C180,Tabel1[DWID_Sted],Beregninger!AC$173,Tabel1[DWID_Dato],\">=\"&Beregninger!AC$174,Tabel1[DWID_Dato],\"<=\"&Beregninger!AC$175)","v":0},{"$f":"SUMIFS(Tabel1[Kvantum],INDIRECT(\"Tabel1[\"&$A180&\"]\"),$C180,INDIRECT(\"Tabel1[\"&$B180&\"]\"),$C180,Tabel1[DWID_Sted],Beregninger!AC$173,Tabel1[DWID_Dato],\">=\"&Beregninger!AC$174,Tabel1[DWID_Dato],\"<=\"&Beregninger!AC$175)","v":0},null,{"$f":"SUMIFS(Tabel1[Beloeb],INDIRECT(\"Tabel1[\"&$A180&\"]\"),$C180,INDIRECT(\"Tabel1[\"&$B180&\"]\"),$C180,Tabel1[DWID_Sted],Beregninger!AF$173,Tabel1[DWID_Dato],\">=\"&Beregninger!AF$174,Tabel1[DWID_Dato],\"<=\"&Beregninger!AF$175)","v":0},{"$f":"SUMIFS(Tabel1[Kvantum],INDIRECT(\"Tabel1[\"&$A180&\"]\"),$C180,INDIRECT(\"Tabel1[\"&$B180&\"]\"),$C180,Tabel1[DWID_Sted],Beregninger!AF$173,Tabel1[DWID_Dato],\">=\"&Beregninger!AF$174,Tabel1[DWID_Dato],\"<=\"&Beregninger!AF$175)","v":0}]
["Slsvin 1","Slsvin 3",1," Heraf Færdigblanding slagtesvin",{"$f":"SUMIFS(Tabel1[Beloeb],INDIRECT(\"Tabel1[\"&$A181&\"]\"),$C181,INDIRECT(\"Tabel1[\"&$B181&\"]\"),$C181,Tabel1[DWID_Sted],Beregninger!E$173,Tabel1[DWID_Dato],\">=\"&Beregninger!E$174,Tabel1[DWID_Dato],\"<=\"&Beregninger!E$175)","v":-53040.6},{"$f":"SUMIFS(Tabel1[Kvantum],INDIRECT(\"Tabel1[\"&$A181&\"]\"),$C181,INDIRECT(\"Tabel1[\"&$B181&\"]\"),$C181,Tabel1[DWID_Sted],Beregninger!E$173,Tabel1[DWID_Dato],\">=\"&Beregninger!E$174,Tabel1[DWID_Dato],\"<=\"&Beregninger!E$175)","v":-33570},null,{"$f":"SUMIFS(Tabel1[Beloeb],INDIRECT(\"Tabel1[\"&$A181&\"]\"),$C181,INDIRECT(\"Tabel1[\"&$B181&\"]\"),$C181,Tabel1[DWID_Sted],Beregninger!H$173,Tabel1[DWID_Dato],\">=\"&Beregninger!H$174,Tabel1[DWID_Dato],\"<=\"&Beregninger!H$175)","v":-18786.2},{"$f":"SUMIFS(Tabel1[Kvantum],INDIRECT(\"Tabel1[\"&$A181&\"]\"),$C181,INDIRECT(\"Tabel1[\"&$B181&\"]\"),$C181,Tabel1[DWID_Sted],Beregninger!H$173,Tabel1[DWID_Dato],\">=\"&Beregninger!H$174,Tabel1[DWID_Dato],\"<=\"&Beregninger!H$175)","v":-11890},null,{"$f":"SUMIFS(Tabel1[Beloeb],INDIRECT(\"Tabel1[\"&$A181&\"]\"),$C181,INDIRECT(\"Tabel1[\"&$B181&\"]\"),$C181,Tabel1[DWID_Sted],Beregninger!K$173,Tabel1[DWID_Dato],\">=\"&Beregninger!K$174,Tabel1[DWID_Dato],\"<=\"&Beregninger!K$175)","v":-38631},{"$f":"SUMIFS(Tabel1[Kvantum],INDIRECT(\"Tabel1[\"&$A181&\"]\"),$C181,INDIRECT(\"Tabel1[\"&$B181&\"]\"),$C181,Tabel1[DWID_Sted],Beregninger!K$173,Tabel1[DWID_Dato],\">=\"&Beregninger!K$174,Tabel1[DWID_Dato],\"<=\"&Beregninger!K$175)","v":-24450},null,{"$f":"SUMIFS(Tabel1[Beloeb],INDIRECT(\"Tabel1[\"&$A181&\"]\"),$C181,INDIRECT(\"Tabel1[\"&$B181&\"]\"),$C181,Tabel1[DWID_Sted],Beregninger!N$173,Tabel1[DWID_Dato],\">=\"&Beregninger!N$174,Tabel1[DWID_Dato],\"<=\"&Beregninger!N$175)","v":0},{"$f":"SUMIFS(Tabel1[Kvantum],INDIRECT(\"Tabel1[\"&$A181&\"]\"),$C181,INDIRECT(\"Tabel1[\"&$B181&\"]\"),$C181,Tabel1[DWID_Sted],Beregninger!N$173,Tabel1[DWID_Dato],\">=\"&Beregninger!N$174,Tabel1[DWID_Dato],\"<=\"&Beregninger!N$175)","v":0},null,{"$f":"SUMIFS(Tabel1[Beloeb],INDIRECT(\"Tabel1[\"&$A181&\"]\"),$C181,INDIRECT(\"Tabel1[\"&$B181&\"]\"),$C181,Tabel1[DWID_Sted],Beregninger!Q$173,Tabel1[DWID_Dato],\">=\"&Beregninger!Q$174,Tabel1[DWID_Dato],\"<=\"&Beregninger!Q$175)","v":0},{"$f":"SUMIFS(Tabel1[Kvantum],INDIRECT(\"Tabel1[\"&$A181&\"]\"),$C181,INDIRECT(\"Tabel1[\"&$B181&\"]\"),$C181,Tabel1[DWID_Sted],Beregninger!Q$173,Tabel1[DWID_Dato],\">=\"&Beregninger!Q$174,Tabel1[DWID_Dato],\"<=\"&Beregninger!Q$175)","v":0},null,{"$f":"SUMIFS(Tabel1[Beloeb],INDIRECT(\"Tabel1[\"&$A181&\"]\"),$C181,INDIRECT(\"Tabel1[\"&$B181&\"]\"),$C181,Tabel1[DWID_Sted],Beregninger!T$173,Tabel1[DWID_Dato],\">=\"&Beregninger!T$174,Tabel1[DWID_Dato],\"<=\"&Beregninger!T$175)","v":0},{"$f":"SUMIFS(Tabel1[Kvantum],INDIRECT(\"Tabel1[\"&$A181&\"]\"),$C181,INDIRECT(\"Tabel1[\"&$B181&\"]\"),$C181,Tabel1[DWID_Sted],Beregninger!T$173,Tabel1[DWID_Dato],\">=\"&Beregninger!T$174,Tabel1[DWID_Dato],\"<=\"&Beregninger!T$175)","v":0},null,{"$f":"SUMIFS(Tabel1[Beloeb],INDIRECT(\"Tabel1[\"&$A181&\"]\"),$C181,INDIRECT(\"Tabel1[\"&$B181&\"]\"),$C181,Tabel1[DWID_Sted],Beregninger!W$173,Tabel1[DWID_Dato],\">=\"&Beregninger!W$174,Tabel1[DWID_Dato],\"<=\"&Beregninger!W$175)","v":0},{"$f":"SUMIFS(Tabel1[Kvantum],INDIRECT(\"Tabel1[\"&$A181&\"]\"),$C181,INDIRECT(\"Tabel1[\"&$B181&\"]\"),$C181,Tabel1[DWID_Sted],Beregninger!W$173,Tabel1[DWID_Dato],\">=\"&Beregninger!W$174,Tabel1[DWID_Dato],\"<=\"&Beregninger!W$175)","v":0},null,{"$f":"SUMIFS(Tabel1[Beloeb],INDIRECT(\"Tabel1[\"&$A181&\"]\"),$C181,INDIRECT(\"Tabel1[\"&$B181&\"]\"),$C181,Tabel1[DWID_Sted],Beregninger!Z$173,Tabel1[DWID_Dato],\">=\"&Beregninger!Z$174,Tabel1[DWID_Dato],\"<=\"&Beregninger!Z$175)","v":0},{"$f":"SUMIFS(Tabel1[Kvantum],INDIRECT(\"Tabel1[\"&$A181&\"]\"),$C181,INDIRECT(\"Tabel1[\"&$B181&\"]\"),$C181,Tabel1[DWID_Sted],Beregninger!Z$173,Tabel1[DWID_Dato],\">=\"&Beregninger!Z$174,Tabel1[DWID_Dato],\"<=\"&Beregninger!Z$175)","v":0},null,{"$f":"SUMIFS(Tabel1[Beloeb],INDIRECT(\"Tabel1[\"&$A181&\"]\"),$C181,INDIRECT(\"Tabel1[\"&$B181&\"]\"),$C181,Tabel1[DWID_Sted],Beregninger!AC$173,Tabel1[DWID_Dato],\">=\"&Beregninger!AC$174,Tabel1[DWID_Dato],\"<=\"&Beregninger!AC$175)","v":0},{"$f":"SUMIFS(Tabel1[Kvantum],INDIRECT(\"Tabel1[\"&$A181&\"]\"),$C181,INDIRECT(\"Tabel1[\"&$B181&\"]\"),$C181,Tabel1[DWID_Sted],Beregninger!AC$173,Tabel1[DWID_Dato],\">=\"&Beregninger!AC$174,Tabel1[DWID_Dato],\"<=\"&Beregninger!AC$175)","v":0},null,{"$f":"SUMIFS(Tabel1[Beloeb],INDIRECT(\"Tabel1[\"&$A181&\"]\"),$C181,INDIRECT(\"Tabel1[\"&$B181&\"]\"),$C181,Tabel1[DWID_Sted],Beregninger!AF$173,Tabel1[DWID_Dato],\">=\"&Beregninger!AF$174,Tabel1[DWID_Dato],\"<=\"&Beregninger!AF$175)","v":0},{"$f":"SUMIFS(Tabel1[Kvantum],INDIRECT(\"Tabel1[\"&$A181&\"]\"),$C181,INDIRECT(\"Tabel1[\"&$B181&\"]\"),$C181,Tabel1[DWID_Sted],Beregninger!AF$173,Tabel1[DWID_Dato],\">=\"&Beregninger!AF$174,Tabel1[DWID_Dato],\"<=\"&Beregninger!AF$175)","v":0}]
["Slsvin 1","Gen 2",1,"Dyrlæge om medicin",{"$f":"SUMIFS(Tabel1[Beloeb],INDIRECT(\"Tabel1[\"&$A182&\"]\"),$C182,INDIRECT(\"Tabel1[\"&$B182&\"]\"),$C182,Tabel1[DWID_Sted],Beregninger!E$173,Tabel1[DWID_Dato],\">=\"&Beregninger!E$174,Tabel1[DWID_Dato],\"<=\"&Beregninger!E$175)","v":-353},{"$f":"SUMIFS(Tabel1[Kvantum],INDIRECT(\"Tabel1[\"&$A182&\"]\"),$C182,INDIRECT(\"Tabel1[\"&$B182&\"]\"),$C182,Tabel1[DWID_Sted],Beregninger!E$173,Tabel1[DWID_Dato],\">=\"&Beregninger!E$174,Tabel1[DWID_Dato],\"<=\"&Beregninger!E$175)","v":0},null,{"$f":"SUMIFS(Tabel1[Beloeb],INDIRECT(\"Tabel1[\"&$A182&\"]\"),$C182,INDIRECT(\"Tabel1[\"&$B182&\"]\"),$C182,Tabel1[DWID_Sted],Beregninger!H$173,Tabel1[DWID_Dato],\">=\"&Beregninger!H$174,Tabel1[DWID_Dato],\"<=\"&Beregninger!H$175)","v":0},{"$f":"SUMIFS(Tabel1[Kvantum],INDIRECT(\"Tabel1[\"&$A182&\"]\"),$C182,INDIRECT(\"Tabel1[\"&$B182&\"]\"),$C182,Tabel1[DWID_Sted],Beregninger!H$173,Tabel1[DWID_Dato],\">=\"&Beregninger!H$174,Tabel1[DWID_Dato],\"<=\"&Beregninger!H$175)","v":0},null,{"$f":"SUMIFS(Tabel1[Beloeb],INDIRECT(\"Tabel1[\"&$A182&\"]\"),$C182,INDIRECT(\"Tabel1[\"&$B182&\"]\"),$C182,Tabel1[DWID_Sted],Beregninger!K$173,Tabel1[DWID_Dato],\">=\"&Beregninger!K$174,Tabel1[DWID_Dato],\"<=\"&Beregninger!K$175)","v":0},{"$f":"SUMIFS(Tabel1[Kvantum],INDIRECT(\"Tabel1[\"&$A182&\"]\"),$C182,INDIRECT(\"Tabel1[\"&$B182&\"]\"),$C182,Tabel1[DWID_Sted],Beregninger!K$173,Tabel1[DWID_Dato],\">=\"&Beregninger!K$174,Tabel1[DWID_Dato],\"<=\"&Beregninger!K$175)","v":0},null,{"$f":"SUMIFS(Tabel1[Beloeb],INDIRECT(\"Tabel1[\"&$A182&\"]\"),$C182,INDIRECT(\"Tabel1[\"&$B182&\"]\"),$C182,Tabel1[DWID_Sted],Beregninger!N$173,Tabel1[DWID_Dato],\">=\"&Beregninger!N$174,Tabel1[DWID_Dato],\"<=\"&Beregninger!N$175)","v":0},{"$f":"SUMIFS(Tabel1[Kvantum],INDIRECT(\"Tabel1[\"&$A182&\"]\"),$C182,INDIRECT(\"Tabel1[\"&$B182&\"]\"),$C182,Tabel1[DWID_Sted],Beregninger!N$173,Tabel1[DWID_Dato],\">=\"&Beregninger!N$174,Tabel1[DWID_Dato],\"<=\"&Beregninger!N$175)","v":0},null,{"$f":"SUMIFS(Tabel1[Beloeb],INDIRECT(\"Tabel1[\"&$A182&\"]\"),$C182,INDIRECT(\"Tabel1[\"&$B182&\"]\"),$C182,Tabel1[DWID_Sted],Beregninger!Q$173,Tabel1[DWID_Dato],\">=\"&Beregninger!Q$174,Tabel1[DWID_Dato],\"<=\"&Beregninger!Q$175)","v":0},{"$f":"SUMIFS(Tabel1[Kvantum],INDIRECT(\"Tabel1[\"&$A182&\"]\"),$C182,INDIRECT(\"Tabel1[\"&$B182&\"]\"),$C182,Tabel1[DWID_Sted],Beregninger!Q$173,Tabel1[DWID_Dato],\">=\"&Beregninger!Q$174,Tabel1[DWID_Dato],\"<=\"&Beregninger!Q$175)","v":0},null,{"$f":"SUMIFS(Tabel1[Beloeb],INDIRECT(\"Tabel1[\"&$A182&\"]\"),$C182,INDIRECT(\"Tabel1[\"&$B182&\"]\"),$C182,Tabel1[DWID_Sted],Beregninger!T$173,Tabel1[DWID_Dato],\">=\"&Beregninger!T$174,Tabel1[DWID_Dato],\"<=\"&Beregninger!T$175)","v":0},{"$f":"SUMIFS(Tabel1[Kvantum],INDIRECT(\"Tabel1[\"&$A182&\"]\"),$C182,INDIRECT(\"Tabel1[\"&$B182&\"]\"),$C182,Tabel1[DWID_Sted],Beregninger!T$173,Tabel1[DWID_Dato],\">=\"&Beregninger!T$174,Tabel1[DWID_Dato],\"<=\"&Beregninger!T$175)","v":0},null,{"$f":"SUMIFS(Tabel1[Beloeb],INDIRECT(\"Tabel1[\"&$A182&\"]\"),$C182,INDIRECT(\"Tabel1[\"&$B182&\"]\"),$C182,Tabel1[DWID_Sted],Beregninger!W$173,Tabel1[DWID_Dato],\">=\"&Beregninger!W$174,Tabel1[DWID_Dato],\"<=\"&Beregninger!W$175)","v":0},{"$f":"SUMIFS(Tabel1[Kvantum],INDIRECT(\"Tabel1[\"&$A182&\"]\"),$C182,INDIRECT(\"Tabel1[\"&$B182&\"]\"),$C182,Tabel1[DWID_Sted],Beregninger!W$173,Tabel1[DWID_Dato],\">=\"&Beregninger!W$174,Tabel1[DWID_Dato],\"<=\"&Beregninger!W$175)","v":0},null,{"$f":"SUMIFS(Tabel1[Beloeb],INDIRECT(\"Tabel1[\"&$A182&\"]\"),$C182,INDIRECT(\"Tabel1[\"&$B182&\"]\"),$C182,Tabel1[DWID_Sted],Beregninger!Z$173,Tabel1[DWID_Dato],\">=\"&Beregninger!Z$174,Tabel1[DWID_Dato],\"<=\"&Beregninger!Z$175)","v":0},{"$f":"SUMIFS(Tabel1[Kvantum],INDIRECT(\"Tabel1[\"&$A182&\"]\"),$C182,INDIRECT(\"Tabel1[\"&$B182&\"]\"),$C182,Tabel1[DWID_Sted],Beregninger!Z$173,Tabel1[DWID_Dato],\">=\"&Beregninger!Z$174,Tabel1[DWID_Dato],\"<=\"&Beregninger!Z$175)","v":0},null,{"$f":"SUMIFS(Tabel1[Beloeb],INDIRECT(\"Tabel1[\"&$A182&\"]\"),$C182,INDIRECT(\"Tabel1[\"&$B182&\"]\"),$C182,Tabel1[DWID_Sted],Beregninger!AC$173,Tabel1[DWID_Dato],\">=\"&Beregninger!AC$174,Tabel1[DWID_Dato],\"<=\"&Beregninger!AC$175)","v":0},{"$f":"SUMIFS(Tabel1[Kvantum],INDIRECT(\"Tabel1[\"&$A182&\"]\"),$C182,INDIRECT(\"Tabel1[\"&$B182&\"]\"),$C182,Tabel1[DWID_Sted],Beregninger!AC$173,Tabel1[DWID_Dato],\">=\"&Beregninger!AC$174,Tabel1[DWID_Dato],\"<=\"&Beregninger!AC$175)","v":0},null,{"$f":"SUMIFS(Tabel1[Beloeb],INDIRECT(\"Tabel1[\"&$A182&\"]\"),$C182,INDIRECT(\"Tabel1[\"&$B182&\"]\"),$C182,Tabel1[DWID_Sted],Beregninger!AF$173,Tabel1[DWID_Dato],\">=\"&Beregninger!AF$174,Tabel1[DWID_Dato],\"<=\"&Beregninger!AF$175)","v":0},{"$f":"SUMIFS(Tabel1[Kvantum],INDIRECT(\"Tabel1[\"&$A182&\"]\"),$C182,INDIRECT(\"Tabel1[\"&$B182&\"]\"),$C182,Tabel1[DWID_Sted],Beregninger!AF$173,Tabel1[DWID_Dato],\">=\"&Beregninger!AF$174,Tabel1[DWID_Dato],\"<=\"&Beregninger!AF$175)","v":0}]
["Gen 3","Gen 3",1,"Vedligehold bygninger*",{"$f":"SUMIFS(Tabel1[Beloeb],INDIRECT(\"Tabel1[\"&$A183&\"]\"),$C183,INDIRECT(\"Tabel1[\"&$B183&\"]\"),$C183,Tabel1[DWID_Sted],Beregninger!E$173,Tabel1[DWID_Dato],\">=\"&Beregninger!E$174,Tabel1[DWID_Dato],\"<=\"&Beregninger!E$175)","v":0},{"$f":"SUMIFS(Tabel1[Kvantum],INDIRECT(\"Tabel1[\"&$A183&\"]\"),$C183,INDIRECT(\"Tabel1[\"&$B183&\"]\"),$C183,Tabel1[DWID_Sted],Beregninger!E$173,Tabel1[DWID_Dato],\">=\"&Beregninger!E$174,Tabel1[DWID_Dato],\"<=\"&Beregninger!E$175)","v":0},null,{"$f":"SUMIFS(Tabel1[Beloeb],INDIRECT(\"Tabel1[\"&$A183&\"]\"),$C183,INDIRECT(\"Tabel1[\"&$B183&\"]\"),$C183,Tabel1[DWID_Sted],Beregninger!H$173,Tabel1[DWID_Dato],\">=\"&Beregninger!H$174,Tabel1[DWID_Dato],\"<=\"&Beregninger!H$175)","v":0},{"$f":"SUMIFS(Tabel1[Kvantum],INDIRECT(\"Tabel1[\"&$A183&\"]\"),$C183,INDIRECT(\"Tabel1[\"&$B183&\"]\"),$C183,Tabel1[DWID_Sted],Beregninger!H$173,Tabel1[DWID_Dato],\">=\"&Beregninger!H$174,Tabel1[DWID_Dato],\"<=\"&Beregninger!H$175)","v":0},null,{"$f":"SUMIFS(Tabel1[Beloeb],INDIRECT(\"Tabel1[\"&$A183&\"]\"),$C183,INDIRECT(\"Tabel1[\"&$B183&\"]\"),$C183,Tabel1[DWID_Sted],Beregninger!K$173,Tabel1[DWID_Dato],\">=\"&Beregninger!K$174,Tabel1[DWID_Dato],\"<=\"&Beregninger!K$175)","v":0},{"$f":"SUMIFS(Tabel1[Kvantum],INDIRECT(\"Tabel1[\"&$A183&\"]\"),$C183,INDIRECT(\"Tabel1[\"&$B183&\"]\"),$C183,Tabel1[DWID_Sted],Beregninger!K$173,Tabel1[DWID_Dato],\">=\"&Beregninger!K$174,Tabel1[DWID_Dato],\"<=\"&Beregninger!K$175)","v":0},null,{"$f":"SUMIFS(Tabel1[Beloeb],INDIRECT(\"Tabel1[\"&$A183&\"]\"),$C183,INDIRECT(\"Tabel1[\"&$B183&\"]\"),$C183,Tabel1[DWID_Sted],Beregninger!N$173,Tabel1[DWID_Dato],\">=\"&Beregninger!N$174,Tabel1[DWID_Dato],\"<=\"&Beregninger!N$175)","v":0},{"$f":"SUMIFS(Tabel1[Kvantum],INDIRECT(\"Tabel1[\"&$A183&\"]\"),$C183,INDIRECT(\"Tabel1[\"&$B183&\"]\"),$C183,Tabel1[DWID_Sted],Beregninger!N$173,Tabel1[DWID_Dato],\">=\"&Beregninger!N$174,Tabel1[DWID_Dato],\"<=\"&Beregninger!N$175)","v":0},null,{"$f":"SUMIFS(Tabel1[Beloeb],INDIRECT(\"Tabel1[\"&$A183&\"]\"),$C183,INDIRECT(\"Tabel1[\"&$B183&\"]\"),$C183,Tabel1[DWID_Sted],Beregninger!Q$173,Tabel1[DWID_Dato],\">=\"&Beregninger!Q$174,Tabel1[DWID_Dato],\"<=\"&Beregninger!Q$175)","v":0},{"$f":"SUMIFS(Tabel1[Kvantum],INDIRECT(\"Tabel1[\"&$A183&\"]\"),$C183,INDIRECT(\"Tabel1[\"&$B183&\"]\"),$C183,Tabel1[DWID_Sted],Beregninger!Q$173,Tabel1[DWID_Dato],\">=\"&Beregninger!Q$174,Tabel1[DWID_Dato],\"<=\"&Beregninger!Q$175)","v":0},null,{"$f":"SUMIFS(Tabel1[Beloeb],INDIRECT(\"Tabel1[\"&$A183&\"]\"),$C183,INDIRECT(\"Tabel1[\"&$B183&\"]\"),$C183,Tabel1[DWID_Sted],Beregninger!T$173,Tabel1[DWID_Dato],\">=\"&Beregninger!T$174,Tabel1[DWID_Dato],\"<=\"&Beregninger!T$175)","v":0},{"$f":"SUMIFS(Tabel1[Kvantum],INDIRECT(\"Tabel1[\"&$A183&\"]\"),$C183,INDIRECT(\"Tabel1[\"&$B183&\"]\"),$C183,Tabel1[DWID_Sted],Beregninger!T$173,Tabel1[DWID_Dato],\">=\"&Beregninger!T$174,Tabel1[DWID_Dato],\"<=\"&Beregninger!T$175)","v":0},null,{"$f":"SUMIFS(Tabel1[Beloeb],INDIRECT(\"Tabel1[\"&$A183&\"]\"),$C183,INDIRECT(\"Tabel1[\"&$B183&\"]\"),$C183,Tabel1[DWID_Sted],Beregninger!W$173,Tabel1[DWID_Dato],\">=\"&Beregninger!W$174,Tabel1[DWID_Dato],\"<=\"&Beregninger!W$175)","v":0},{"$f":"SUMIFS(Tabel1[Kvantum],INDIRECT(\"Tabel1[\"&$A183&\"]\"),$C183,INDIRECT(\"Tabel1[\"&$B183&\"]\"),$C183,Tabel1[DWID_Sted],Beregninger!W$173,Tabel1[DWID_Dato],\">=\"&Beregninger!W$174,Tabel1[DWID_Dato],\"<=\"&Beregninger!W$175)","v":0},null,{"$f":"SUMIFS(Tabel1[Beloeb],INDIRECT(\"Tabel1[\"&$A183&\"]\"),$C183,INDIRECT(\"Tabel1[\"&$B183&\"]\"),$C183,Tabel1[DWID_Sted],Beregninger!Z$173,Tabel1[DWID_Dato],\">=\"&Beregninger!Z$174,Tabel1[DWID_Dato],\"<=\"&Beregninger!Z$175)","v":0},{"$f":"SUMIFS(Tabel1[Kvantum],INDIRECT(\"Tabel1[\"&$A183&\"]\"),$C183,INDIRECT(\"Tabel1[\"&$B183&\"]\"),$C183,Tabel1[DWID_Sted],Beregninger!Z$173,Tabel1[DWID_Dato],\">=\"&Beregninger!Z$174,Tabel1[DWID_Dato],\"<=\"&Beregninger!Z$175)","v":0},null,{"$f":"SUMIFS(Tabel1[Beloeb],INDIRECT(\"Tabel1[\"&$A183&\"]\"),$C183,INDIRECT(\"Tabel1[\"&$B183&\"]\"),$C183,Tabel1[DWID_Sted],Beregninger!AC$173,Tabel1[DWID_Dato],\">=\"&Beregninger!AC$174,Tabel1[DWID_Dato],\"<=\"&Beregninger!AC$175)","v":0},{"$f":"SUMIFS(Tabel1[Kvantum],INDIRECT(\"Tabel1[\"&$A183&\"]\"),$C183,INDIRECT(\"Tabel1[\"&$B183&\"]\"),$C183,Tabel1[DWID_Sted],Beregninger!AC$173,Tabel1[DWID_Dato],\">=\"&Beregninger!AC$174,Tabel1[DWID_Dato],\"<=\"&Beregninger!AC$175)","v":0},null,{"$f":"SUMIFS(Tabel1[Beloeb],INDIRECT(\"Tabel1[\"&$A183&\"]\"),$C183,INDIRECT(\"Tabel1[\"&$B183&\"]\"),$C183,Tabel1[DWID_Sted],Beregninger!AF$173,Tabel1[DWID_Dato],\">=\"&Beregninger!AF$174,Tabel1[DWID_Dato],\"<=\"&Beregninger!AF$175)","v":0},{"$f":"SUMIFS(Tabel1[Kvantum],INDIRECT(\"Tabel1[\"&$A183&\"]\"),$C183,INDIRECT(\"Tabel1[\"&$B183&\"]\"),$C183,Tabel1[DWID_Sted],Beregninger!AF$173,Tabel1[DWID_Dato],\">=\"&Beregninger!AF$174,Tabel1[DWID_Dato],\"<=\"&Beregninger!AF$175)","v":0}]
["Gen 4","Gen 4",1,"Vedligehold staldinv.*",{"$f":"SUMIFS(Tabel1[Beloeb],INDIRECT(\"Tabel1[\"&$A184&\"]\"),$C184,INDIRECT(\"Tabel1[\"&$B184&\"]\"),$C184,Tabel1[DWID_Sted],Beregninger!E$173,Tabel1[DWID_Dato],\">=\"&Beregninger!E$174,Tabel1[DWID_Dato],\"<=\"&Beregninger!E$175)","v":-19224.8},{"$f":"SUMIFS(Tabel1[Kvantum],INDIRECT(\"Tabel1[\"&$A184&\"]\"),$C184,INDIRECT(\"Tabel1[\"&$B184&\"]\"),$C184,Tabel1[DWID_Sted],Beregninger!E$173,Tabel1[DWID_Dato],\">=\"&Beregninger!E$174,Tabel1[DWID_Dato],\"<=\"&Beregninger!E$175)","v":0},null,{"$f":"SUMIFS(Tabel1[Beloeb],INDIRECT(\"Tabel1[\"&$A184&\"]\"),$C184,INDIRECT(\"Tabel1[\"&$B184&\"]\"),$C184,Tabel1[DWID_Sted],Beregninger!H$173,Tabel1[DWID_Dato],\">=\"&Beregninger!H$174,Tabel1[DWID_Dato],\"<=\"&Beregninger!H$175)","v":-29787.32},{"$f":"SUMIFS(Tabel1[Kvantum],INDIRECT(\"Tabel1[\"&$A184&\"]\"),$C184,INDIRECT(\"Tabel1[\"&$B184&\"]\"),$C184,Tabel1[DWID_Sted],Beregninger!H$173,Tabel1[DWID_Dato],\">=\"&Beregninger!H$174,Tabel1[DWID_Dato],\"<=\"&Beregninger!H$175)","v":0},null,{"$f":"SUMIFS(Tabel1[Beloeb],INDIRECT(\"Tabel1[\"&$A184&\"]\"),$C184,INDIRECT(\"Tabel1[\"&$B184&\"]\"),$C184,Tabel1[DWID_Sted],Beregninger!K$173,Tabel1[DWID_Dato],\">=\"&Beregninger!K$174,Tabel1[DWID_Dato],\"<=\"&Beregninger!K$175)","v":-22162.37},{"$f":"SUMIFS(Tabel1[Kvantum],INDIRECT(\"Tabel1[\"&$A184&\"]\"),$C184,INDIRECT(\"Tabel1[\"&$B184&\"]\"),$C184,Tabel1[DWID_Sted],Beregninger!K$173,Tabel1[DWID_Dato],\">=\"&Beregninger!K$174,Tabel1[DWID_Dato],\"<=\"&Beregninger!K$175)","v":0},null,{"$f":"SUMIFS(Tabel1[Beloeb],INDIRECT(\"Tabel1[\"&$A184&\"]\"),$C184,INDIRECT(\"Tabel1[\"&$B184&\"]\"),$C184,Tabel1[DWID_Sted],Beregninger!N$173,Tabel1[DWID_Dato],\">=\"&Beregninger!N$174,Tabel1[DWID_Dato],\"<=\"&Beregninger!N$175)","v":0},{"$f":"SUMIFS(Tabel1[Kvantum],INDIRECT(\"Tabel1[\"&$A184&\"]\"),$C184,INDIRECT(\"Tabel1[\"&$B184&\"]\"),$C184,Tabel1[DWID_Sted],Beregninger!N$173,Tabel1[DWID_Dato],\">=\"&Beregninger!N$174,Tabel1[DWID_Dato],\"<=\"&Beregninger!N$175)","v":0},null,{"$f":"SUMIFS(Tabel1[Beloeb],INDIRECT(\"Tabel1[\"&$A184&\"]\"),$C184,INDIRECT(\"Tabel1[\"&$B184&\"]\"),$C184,Tabel1[DWID_Sted],Beregninger!Q$173,Tabel1[DWID_Dato],\">=\"&Beregninger!Q$174,Tabel1[DWID_Dato],\"<=\"&Beregninger!Q$175)","v":0},{"$f":"SUMIFS(Tabel1[Kvantum],INDIRECT(\"Tabel1[\"&$A184&\"]\"),$C184,INDIRECT(\"Tabel1[\"&$B184&\"]\"),$C184,Tabel1[DWID_Sted],Beregninger!Q$173,Tabel1[DWID_Dato],\">=\"&Beregninger!Q$174,Tabel1[DWID_Dato],\"<=\"&Beregninger!Q$175)","v":0},null,{"$f":"SUMIFS(Tabel1[Beloeb],INDIRECT(\"Tabel1[\"&$A184&\"]\"),$C184,INDIRECT(\"Tabel1[\"&$B184&\"]\"),$C184,Tabel1[DWID_Sted],Beregninger!T$173,Tabel1[DWID_Dato],\">=\"&Beregninger!T$174,Tabel1[DWID_Dato],\"<=\"&Beregninger!T$175)","v":0},{"$f":"SUMIFS(Tabel1[Kvantum],INDIRECT(\"Tabel1[\"&$A184&\"]\"),$C184,INDIRECT(\"Tabel1[\"&$B184&\"]\"),$C184,Tabel1[DWID_Sted],Beregninger!T$173,Tabel1[DWID_Dato],\">=\"&Beregninger!T$174,Tabel1[DWID_Dato],\"<=\"&Beregninger!T$175)","v":0},null,{"$f":"SUMIFS(Tabel1[Beloeb],INDIRECT(\"Tabel1[\"&$A184&\"]\"),$C184,INDIRECT(\"Tabel1[\"&$B184&\"]\"),$C184,Tabel1[DWID_Sted],Beregninger!W$173,Tabel1[DWID_Dato],\">=\"&Beregninger!W$174,Tabel1[DWID_Dato],\"<=\"&Beregninger!W$175)","v":0},{"$f":"SUMIFS(Tabel1[Kvantum],INDIRECT(\"Tabel1[\"&$A184&\"]\"),$C184,INDIRECT(\"Tabel1[\"&$B184&\"]\"),$C184,Tabel1[DWID_Sted],Beregninger!W$173,Tabel1[DWID_Dato],\">=\"&Beregninger!W$174,Tabel1[DWID_Dato],\"<=\"&Beregninger!W$175)","v":0},null,{"$f":"SUMIFS(Tabel1[Beloeb],INDIRECT(\"Tabel1[\"&$A184&\"]\"),$C184,INDIRECT(\"Tabel1[\"&$B184&\"]\"),$C184,Tabel1[DWID_Sted],Beregninger!Z$173,Tabel1[DWID_Dato],\">=\"&Beregninger!Z$174,Tabel1[DWID_Dato],\"<=\"&Beregninger!Z$175)","v":0},{"$f":"SUMIFS(Tabel1[Kvantum],INDIRECT(\"Tabel1[\"&$A184&\"]\"),$C184,INDIRECT(\"Tabel1[\"&$B184&\"]\"),$C184,Tabel1[DWID_Sted],Beregninger!Z$173,Tabel1[DWID_Dato],\">=\"&Beregninger!Z$174,Tabel1[DWID_Dato],\"<=\"&Beregninger!Z$175)","v":0},null,{"$f":"SUMIFS(Tabel1[Beloeb],INDIRECT(\"Tabel1[\"&$A184&\"]\"),$C184,INDIRECT(\"Tabel1[\"&$B184&\"]\"),$C184,Tabel1[DWID_Sted],Beregninger!AC$173,Tabel1[DWID_Dato],\">=\"&Beregninger!AC$174,Tabel1[DWID_Dato],\"<=\"&Beregninger!AC$175)","v":0},{"$f":"SUMIFS(Tabel1[Kvantum],INDIRECT(\"Tabel1[\"&$A184&\"]\"),$C184,INDIRECT(\"Tabel1[\"&$B184&\"]\"),$C184,Tabel1[DWID_Sted],Beregninger!AC$173,Tabel1[DWID_Dato],\">=\"&Beregninger!AC$174,Tabel1[DWID_Dato],\"<=\"&Beregninger!AC$175)","v":0},null,{"$f":"SUMIFS(Tabel1[Beloeb],INDIRECT(\"Tabel1[\"&$A184&\"]\"),$C184,INDIRECT(\"Tabel1[\"&$B184&\"]\"),$C184,Tabel1[DWID_Sted],Beregninger!AF$173,Tabel1[DWID_Dato],\">=\"&Beregninger!AF$174,Tabel1[DWID_Dato],\"<=\"&Beregninger!AF$175)","v":0},{"$f":"SUMIFS(Tabel1[Kvantum],INDIRECT(\"Tabel1[\"&$A184&\"]\"),$C184,INDIRECT(\"Tabel1[\"&$B184&\"]\"),$C184,Tabel1[DWID_Sted],Beregninger!AF$173,Tabel1[DWID_Dato],\">=\"&Beregninger!AF$174,Tabel1[DWID_Dato],\"<=\"&Beregninger!AF$175)","v":0}]
[]
[]
[null,null,null,"pr slagtesvin"]
[null,null,null,"Solgte slagtesvin beløb - kvantum",{"$f":"IFERROR(E177/F$177,0)","v":688.04990270270264},{"$f":"IFERROR(F177/F$177,0)","v":1},null,{"$f":"IFERROR(H177/I$177,0)","v":690.5465740740741},{"$f":"IFERROR(I177/I$177,0)","v":1},null,{"$f":"IFERROR(K177/L$177,0)","v":706.09632183908047},{"$f":"IFERROR(L177/L$177,0)","v":1},null,{"$f":"IFERROR(N177/O$177,0)","v":0},{"$f":"IFERROR(O177/O$177,0)","v":0},null,{"$f":"IFERROR(Q177/R$177,0)","v":0},{"$f":"IFERROR(R177/R$177,0)","v":0},null,{"$f":"IFERROR(T177/U$177,0)","v":0},{"$f":"IFERROR(U177/U$177,0)","v":0},null,{"$f":"IFERROR(W177/X$177,0)","v":0},{"$f":"IFERROR(X177/X$177,0)","v":0},null,{"$f":"IFERROR(Z177/AA$177,0)","v":0},{"$f":"IFERROR(AA177/AA$177,0)","v":0},null,{"$f":"IFERROR(AC177/AD$177,0)","v":0},{"$f":"IFERROR(AD177/AD$177,0)","v":0},null,{"$f":"IFERROR(AF177/AG$177,0)","v":0},{"$f":"IFERROR(AG177/AG$177,0)","v":0}]
[null,null,null,"Foder",{"$f":"IFERROR(E178/F$177,0)","v":-59.437491891891895},{"$f":"IFERROR(F178/F$177,0)","v":-36.292972972972976},null,{"$f":"IFERROR(H178/I$177,0)","v":-173.94629629629631},{"$f":"IFERROR(I178/I$177,0)","v":-110.0925925925926},null,{"$f":"IFERROR(K178/L$177,0)","v":-444.0344827586207},{"$f":"IFERROR(L178/L$177,0)","v":-281.0344827586207},null,{"$f":"IFERROR(N178/O$177,0)","v":0},{"$f":"IFERROR(O178/O$177,0)","v":0},null,{"$f":"IFERROR(Q178/R$177,0)","v":0},{"$f":"IFERROR(R178/R$177,0)","v":0},null,{"$f":"IFERROR(T178/U$177,0)","v":0},{"$f":"IFERROR(U178/U$177,0)","v":0},null,{"$f":"IFERROR(W178/X$177,0)","v":0},{"$f":"IFERROR(X178/X$177,0)","v":0},null,{"$f":"IFERROR(Z178/AA$177,0)","v":0},{"$f":"IFERROR(AA178/AA$177,0)","v":0},null,{"$f":"IFERROR(AC178/AD$177,0)","v":0},{"$f":"IFERROR(AD178/AD$177,0)","v":0},null,{"$f":"IFERROR(AF178/AG$177,0)","v":0},{"$f":"IFERROR(AG178/AG$177,0)","v":0}]
[null,null,null," Heraf korn",0,0,null,0,0,null,0,0,null,0,0,null,0,0,null,0,0,null,0,0,null,0,0,null,0,0,null,0,0]
[null,null,null," Heraf tilskudsfoder",0,0,null,0,0,null,0,0,null,0,0,null,0,0,null,0,0,null,0,0,null,0,0,null,0,0,null,0,0]
[null,null,null," Heraf Færdigblanding slagtesvin",-57.341189189189187,-36.291891891891893,null,-173.94629629629631,-110.0925925925926,null,-444.0344827586207,-281.0344827586207,null,0,0,null,0,0,null,0,0,null,0,0,null,0,0,null,0,0,null,0,0]
[null,null,null,"Dyrlæge om medicin",-0.38162162162162161,0,null,0,0,null,0,0,null,0,0,null,0,0,null,0,0,null,0,0,null,0,0,null,0,0,null,0,0]
[null,null,null,"Vedligehold bygninger*",0,0,null,0,0,null,0,0,null,0,0,null,0,0,null,0,0,null,0,0,null,0,0,null,0,0,null,0,0]
[null,null,null,"Vedligehold staldinv.*",-20.783567567567566,0,null,-275.8085185185185,0,null,-254.73988505747124,0,null,0,0,null,0,0,null,0,0,null,0,0,null,0,0,null,0,0,null,0,0]
[]
[]
[]
[]
[]
[null,null,null,"pr kg slagtesvin"]
[null,null,null,"Solgte slagtesvin beløb - kvantum",{"$f":"IFERROR(E177/(F$177*E$172),0)","v":8.094704737678855},{"$f":"IFERROR(F177/(F$177*E$172),0)","v":1.1764705882352941E-2},null,{"$f":"IFERROR(H177/(I$177*H$172),0)","v":8.1240773420479293},{"$f":"IFERROR(I177/(I$177*H$172),0)","v":1.1764705882352941E-2},null,{"$f":"IFERROR(K177/(L$177*K$172),0)","v":8.3070155510480053},{"$f":"IFERROR(L177/(L$177*K$172),0)","v":1.1764705882352941E-2},null,{"$f":"IFERROR(N177/(O$177*N$172),0)","v":0},{"$f":"IFERROR(O177/(O$177*N$172),0)","v":0},null,{"$f":"IFERROR(Q177/(R$177*Q$172),0)","v":0},{"$f":"IFERROR(R177/(R$177*Q$172),0)","v":0},null,{"$f":"IFERROR(T177/(U$177*T$172),0)","v":0},{"$f":"IFERROR(U177/(U$177*T$172),0)","v":0},null,{"$f":"IFERROR(W177/(X$177*W$172),0)","v":0},{"$f":"IFERROR(X177/(X$177*W$172),0)","v":0},null,{"$f":"IFERROR(Z177/(AA$177*Z$172),0)","v":0},{"$f":"IFERROR(AA177/(AA$177*Z$172),0)","v":0},null,{"$f":"IFERROR(AC177/(AD$177*AC$172),0)","v":0},{"$f":"IFERROR(AD177/(AD$177*AC$172),0)","v":0},null,{"$f":"IFERROR(AF177/(AG$177*AF$172),0)","v":0},{"$f":"IFERROR(AG177/(AG$177*AF$172),0)","v":0}]
[null,null,null,"Foder",{"$f":"IFERROR(E178/(F$177*E$172),0)","v":-0.69926461049284583},{"$f":"IFERROR(F178/(F$177*E$172),0)","v":-0.42697615262321142},null,{"$f":"IFERROR(H178/(I$177*H$172),0)","v":-2.0464270152505448},{"$f":"IFERROR(I178/(I$177*H$172),0)","v":-1.2952069716775598},null,{"$f":"IFERROR(K178/(L$177*K$172),0)","v":-5.2239350912778901},{"$f":"IFERROR(L178/(L$177*K$172),0)","v":-3.3062880324543609},null,{"$f":"IFERROR(N178/(O$177*N$172),0)","v":0},{"$f":"IFERROR(O178/(O$177*N$172),0)","v":0},null,{"$f":"IFERROR(Q178/(R$177*Q$172),0)","v":0},{"$f":"IFERROR(R178/(R$177*Q$172),0)","v":0},null,{"$f":"IFERROR(T178/(U$177*T$172),0)","v":0},{"$f":"IFERROR(U178/(U$177*T$172),0)","v":0},null,{"$f":"IFERROR(W178/(X$177*W$172),0)","v":0},{"$f":"IFERROR(X178/(X$177*W$172),0)","v":0},null,{"$f":"IFERROR(Z178/(AA$177*Z$172),0)","v":0},{"$f":"IFERROR(AA178/(AA$177*Z$172),0)","v":0},null,{"$f":"IFERROR(AC178/(AD$177*AC$172),0)","v":0},{"$f":"IFERROR(AD178/(AD$177*AC$172),0)","v":0},null,{"$f":"IFERROR(AF178/(AG$177*AF$172),0)","v":0},{"$f":"IFERROR(AG178/(AG$177*AF$172),0)","v":0}]
[null,null,null," Heraf korn",0,0,null,0,0,null,0,0,null,0,0,null,0,0,null,0,0,null,0,0,null,0,0,null,0,0,null,0,0]
[null,null,null," Heraf tilskudsfoder",0,0,null,0,0,null,0,0,null,0,0,null,0,0,null,0,0,null,0,0,null,0,0,null,0,0,null,0,0]
[null,null,null," Heraf Færdigblanding slagtesvin",-0.67460222575516693,-0.42696343402225756,null,-2.0464270152505448,-1.2952069716775598,null,-5.2239350912778901,-3.3062880324543609,null,0,0,null,0,0,null,0,0,null,0,0,null,0,0,null,0,0,null,0,0]
[null,null,null,"Dyrlæge om medicin",-4.4896661367249601E-3,0,null,0,0,null,0,0,null,0,0,null,0,0,null,0,0,null,0,0,null,0,0,null,0,0,null,0,0]
[null,null,null,"Vedligehold bygninger*",0,0,null,0,0,null,0,0,null,0,0,null,0,0,null,0,0,null,0,0,null,0,0,null,0,0,null,0,0]
[null,null,null,"Vedligehold staldinv.*",-0.24451255961844195,0,null,-3.2448061002178648,0,null,-2.9969398242055441,0,null,0,0,null,0,0,null,0,0,null,0,0,null,0,0,null,0,0,null,0,0]